Workbook

Sheet Overview
D3: Key Action 2: Cooperation for innovation and the exchange of good practices
D4: Capacity Building in the field of higher education
B7: Before completing this table please read carefully the instructions available on
B8: CALL FOR PROPOSALS 2017 – EAC/A03/2016 - Erasmus+ Programme (C2016/386/09)
B9: Programme guide and instructions for applicants
B11: Action | E11: =IF(D11="","Please select Action Type",IF(OR(D11="Joint Project",D11="Structural Project"),"","Error Type of Action")) -> Please select Action Type
B12: Duration number of months | E12: =IF(D12="","Please select duration",IF(OR(D12=24,D12=36),"","Error duration")) -> Please select duration
B13: Project Acronym | E13: =IF(D13="","Please fill in Project Acronym","") -> Please fill in Project Acronym
B14: Project Title
B16: EU GRANT REQUESTED FROM THE EUROPEAN UNION (in EUR)
B17: 1. Staff Costs | D17: ='1. Staff costs'!D9 -> 0 | E17: ="Cannot exceed 40% of total A." -> Cannot exceed 40% of total A.
B18: 2. Travel Costs | D18: ='2-3. Travel Costs&Costs of Stay'!D8 -> 0
B19: 3. Costs of Stay | D19: ='2-3. Travel Costs&Costs of Stay'!D9 -> 0
B20: 4. Equipment Costs | D20: ='4. Equipment Costs'!C4 -> 0 | E20: ="Cannot exceed 30% of total A." -> Cannot exceed 30% of total A.
B21: 5. Subcontracting Costs | D21: ='5. Subcontracting Costs'!C4 -> 0 | E21: ="Cannot exceed 10% of total A." -> Cannot exceed 10% of total A.
B22: A. Grant for Project Activities | D22: =SUM(D17:D21) -> 0 | E22: ="Should be equal or above EUR 500.000,00 and cannot exceed EUR 1.000.000,00" -> Should be equal or above EUR 500.000,00 and cannot exceed EUR 1.000.000,00
B24: B. Additional Grant for Special Mobility Strand | D24: =SUM(J24:J27) -> 0 | E24: Value cannot exceed 80% of total A | G24: Students from Partner Countries | I24: Amounts (in EUR) | J24: =SUMIF('B. Special Mob Strand - Student'!E:E,G24,'B. Special Mob Strand - Student'!N:N) -> 0 | K24: Number of Participants | L24: =SUMIFS('B. Special Mob Strand - Student'!G:G,'B. Special Mob Strand - Student'!E:E,G24,'B. Special Mob Strand - Student'!O:O,"<>Error") -> 0
G25: Students from Programme Countries | J25: =SUMIF('B. Special Mob Strand - Student'!E:E,G25,'B. Special Mob Strand - Student'!N:N) -> 0 | L25: =SUMIFS('B. Special Mob Strand - Student'!G:G,'B. Special Mob Strand - Student'!E:E,G25,'B. Special Mob Strand - Student'!O:O,"<>Error") -> 0
G26: Staff from Partner Countries | J26: =SUMIF('B. Special Mob Strand - Staff'!E:E,G26,'B. Special Mob Strand - Staff'!N:N) -> 0 | L26: =SUMIFS('B. Special Mob Strand - Staff'!G:G,'B. Special Mob Strand - Staff'!E:E,G26,'B. Special Mob Strand - Staff'!O:O,"<>Error") -> 0
G27: Staff from Programme Countries | J27: =SUMIF('B. Special Mob Strand - Staff'!E:E,G27,'B. Special Mob Strand - Staff'!N:N) -> 0 | L27: =SUMIFS('B. Special Mob Strand - Staff'!G:G,'B. Special Mob Strand - Staff'!E:E,G27,'B. Special Mob Strand - Staff'!O:O,"<>Error") -> 0
B29: Total Grant requested from the European Union (A + B) | D29: =D22+D24 -> 0
B31: DISTRIBUTION OF THE GRANT BY ORGANISATION (in EUR)
B32: Partner N° | C32: Name of Partner | D32: Country | E32: PR/PA | F32: 1. Staff Costs | G32: 2. Travel Costs | H32: 3. Costs of Stay | I32: 4. Equipment Costs | J32: 5. Subcontracting Costs | K32: B. Special Mobility Strand | L32: Total Costs (in EUR)
B33: P1 | E33: =IFERROR(IF(D33<>"",VLOOKUP(D33,CountryType,2,FALSE),""),"Country not found") ->  | F33: =SUMIF('1. Staff costs'!C:C,B33,'1. Staff costs'!S:S) -> 0 | G33: =SUMIF('2-3. Travel Costs&Costs of Stay'!C:C,B33,'2-3. Travel Costs&Costs of Stay'!L:L) -> 0 | H33: =SUMIF('2-3. Travel Costs&Costs of Stay'!C:C,B33,'2-3. Travel Costs&Costs of Stay'!M:M) -> 0 | I33: =SUMIF('4. Equipment Costs'!C:C,B33,'4. Equipment Costs'!H:H) -> 0 | J33: =SUMIF('5. Subcontracting Costs'!C:C,B33,'5. Subcontracting Costs'!H:H) -> 0 | K33: =SUMIF('B. Special Mob Strand - Student'!B:B,B33,'B. Special Mob Strand - Student'!N:N)+SUMIF('B. Special Mob Strand - Staff'!B:B,B33,'B. Special Mob Strand - Staff'!N:N) -> 0 | L33: =SUM(F33:K33) -> 0
B34: P2 | F34: =SUMIF('1. Staff costs'!C:C,B34,'1. Staff costs'!S:S) -> 0 | G34: =SUMIF('2-3. Travel Costs&Costs of Stay'!C:C,B34,'2-3. Travel Costs&Costs of Stay'!L:L) -> 0 | H34: =SUMIF('2-3. Travel Costs&Costs of Stay'!C:C,B34,'2-3. Travel Costs&Costs of Stay'!M:M) -> 0 | I34: =SUMIF('4. Equipment Costs'!C:C,B34,'4. Equipment Costs'!H:H) -> 0 | J34: =SUMIF('5. Subcontracting Costs'!C:C,B34,'5. Subcontracting Costs'!H:H) -> 0 | K34: =SUMIF('B. Special Mob Strand - Student'!B:B,B34,'B. Special Mob Strand - Student'!N:N)+SUMIF('B. Special Mob Strand - Staff'!B:B,B34,'B. Special Mob Strand - Staff'!N:N) -> 0 | L34: =SUM(F34:K34) -> 0
B35: P3 | F35: =SUMIF('1. Staff costs'!C:C,B35,'1. Staff costs'!S:S) -> 0 | G35: =SUMIF('2-3. Travel Costs&Costs of Stay'!C:C,B35,'2-3. Travel Costs&Costs of Stay'!L:L) -> 0 | H35: =SUMIF('2-3. Travel Costs&Costs of Stay'!C:C,B35,'2-3. Travel Costs&Costs of Stay'!M:M) -> 0 | I35: =SUMIF('4. Equipment Costs'!C:C,B35,'4. Equipment Costs'!H:H) -> 0 | J35: =SUMIF('5. Subcontracting Costs'!C:C,B35,'5. Subcontracting Costs'!H:H) -> 0 | K35: =SUMIF('B. Special Mob Strand - Student'!B:B,B35,'B. Special Mob Strand - Student'!N:N)+SUMIF('B. Special Mob Strand - Staff'!B:B,B35,'B. Special Mob Strand - Staff'!N:N) -> 0 | L35: 0
B36: P4 | F36: =SUMIF('1. Staff costs'!C:C,B36,'1. Staff costs'!S:S) -> 0 | G36: =SUMIF('2-3. Travel Costs&Costs of Stay'!C:C,B36,'2-3. Travel Costs&Costs of Stay'!L:L) -> 0 | H36: =SUMIF('2-3. Travel Costs&Costs of Stay'!C:C,B36,'2-3. Travel Costs&Costs of Stay'!M:M) -> 0 | I36: =SUMIF('4. Equipment Costs'!C:C,B36,'4. Equipment Costs'!H:H) -> 0 | J36: =SUMIF('5. Subcontracting Costs'!C:C,B36,'5. Subcontracting Costs'!H:H) -> 0 | K36: =SUMIF('B. Special Mob Strand - Student'!B:B,B36,'B. Special Mob Strand - Student'!N:N)+SUMIF('B. Special Mob Strand - Staff'!B:B,B36,'B. Special Mob Strand - Staff'!N:N) -> 0 | L36: 0
B37: P5 | F37: =SUMIF('1. Staff costs'!C:C,B37,'1. Staff costs'!S:S) -> 0 | G37: =SUMIF('2-3. Travel Costs&Costs of Stay'!C:C,B37,'2-3. Travel Costs&Costs of Stay'!L:L) -> 0 | H37: =SUMIF('2-3. Travel Costs&Costs of Stay'!C:C,B37,'2-3. Travel Costs&Costs of Stay'!M:M) -> 0 | I37: =SUMIF('4. Equipment Costs'!C:C,B37,'4. Equipment Costs'!H:H) -> 0 | J37: =SUMIF('5. Subcontracting Costs'!C:C,B37,'5. Subcontracting Costs'!H:H) -> 0 | K37: =SUMIF('B. Special Mob Strand - Student'!B:B,B37,'B. Special Mob Strand - Student'!N:N)+SUMIF('B. Special Mob Strand - Staff'!B:B,B37,'B. Special Mob Strand - Staff'!N:N) -> 0 | L37: 0
B38: P6 | F38: =SUMIF('1. Staff costs'!C:C,B38,'1. Staff costs'!S:S) -> 0 | G38: =SUMIF('2-3. Travel Costs&Costs of Stay'!C:C,B38,'2-3. Travel Costs&Costs of Stay'!L:L) -> 0 | H38: =SUMIF('2-3. Travel Costs&Costs of Stay'!C:C,B38,'2-3. Travel Costs&Costs of Stay'!M:M) -> 0 | I38: =SUMIF('4. Equipment Costs'!C:C,B38,'4. Equipment Costs'!H:H) -> 0 | J38: =SUMIF('5. Subcontracting Costs'!C:C,B38,'5. Subcontracting Costs'!H:H) -> 0 | K38: =SUMIF('B. Special Mob Strand - Student'!B:B,B38,'B. Special Mob Strand - Student'!N:N)+SUMIF('B. Special Mob Strand - Staff'!B:B,B38,'B. Special Mob Strand - Staff'!N:N) -> 0 | L38: 0
B39: P7 | F39: =SUMIF('1. Staff costs'!C:C,B39,'1. Staff costs'!S:S) -> 0 | G39: =SUMIF('2-3. Travel Costs&Costs of Stay'!C:C,B39,'2-3. Travel Costs&Costs of Stay'!L:L) -> 0 | H39: =SUMIF('2-3. Travel Costs&Costs of Stay'!C:C,B39,'2-3. Travel Costs&Costs of Stay'!M:M) -> 0 | I39: =SUMIF('4. Equipment Costs'!C:C,B39,'4. Equipment Costs'!H:H) -> 0 | J39: =SUMIF('5. Subcontracting Costs'!C:C,B39,'5. Subcontracting Costs'!H:H) -> 0 | K39: =SUMIF('B. Special Mob Strand - Student'!B:B,B39,'B. Special Mob Strand - Student'!N:N)+SUMIF('B. Special Mob Strand - Staff'!B:B,B39,'B. Special Mob Strand - Staff'!N:N) -> 0 | L39: 0
B40: P8 | F40: =SUMIF('1. Staff costs'!C:C,B40,'1. Staff costs'!S:S) -> 0 | G40: =SUMIF('2-3. Travel Costs&Costs of Stay'!C:C,B40,'2-3. Travel Costs&Costs of Stay'!L:L) -> 0 | H40: =SUMIF('2-3. Travel Costs&Costs of Stay'!C:C,B40,'2-3. Travel Costs&Costs of Stay'!M:M) -> 0 | I40: =SUMIF('4. Equipment Costs'!C:C,B40,'4. Equipment Costs'!H:H) -> 0 | J40: =SUMIF('5. Subcontracting Costs'!C:C,B40,'5. Subcontracting Costs'!H:H) -> 0 | K40: =SUMIF('B. Special Mob Strand - Student'!B:B,B40,'B. Special Mob Strand - Student'!N:N)+SUMIF('B. Special Mob Strand - Staff'!B:B,B40,'B. Special Mob Strand - Staff'!N:N) -> 0 | L40: 0
B41: P9 | F41: =SUMIF('1. Staff costs'!C:C,B41,'1. Staff costs'!S:S) -> 0 | G41: =SUMIF('2-3. Travel Costs&Costs of Stay'!C:C,B41,'2-3. Travel Costs&Costs of Stay'!L:L) -> 0 | H41: =SUMIF('2-3. Travel Costs&Costs of Stay'!C:C,B41,'2-3. Travel Costs&Costs of Stay'!M:M) -> 0 | I41: =SUMIF('4. Equipment Costs'!C:C,B41,'4. Equipment Costs'!H:H) -> 0 | J41: =SUMIF('5. Subcontracting Costs'!C:C,B41,'5. Subcontracting Costs'!H:H) -> 0 | K41: =SUMIF('B. Special Mob Strand - Student'!B:B,B41,'B. Special Mob Strand - Student'!N:N)+SUMIF('B. Special Mob Strand - Staff'!B:B,B41,'B. Special Mob Strand - Staff'!N:N) -> 0 | L41: 0
B42: P10 | F42: =SUMIF('1. Staff costs'!C:C,B42,'1. Staff costs'!S:S) -> 0 | G42: =SUMIF('2-3. Travel Costs&Costs of Stay'!C:C,B42,'2-3. Travel Costs&Costs of Stay'!L:L) -> 0 | H42: =SUMIF('2-3. Travel Costs&Costs of Stay'!C:C,B42,'2-3. Travel Costs&Costs of Stay'!M:M) -> 0 | I42: =SUMIF('4. Equipment Costs'!C:C,B42,'4. Equipment Costs'!H:H) -> 0 | J42: =SUMIF('5. Subcontracting Costs'!C:C,B42,'5. Subcontracting Costs'!H:H) -> 0 | K42: =SUMIF('B. Special Mob Strand - Student'!B:B,B42,'B. Special Mob Strand - Student'!N:N)+SUMIF('B. Special Mob Strand - Staff'!B:B,B42,'B. Special Mob Strand - Staff'!N:N) -> 0 | L42: 0
B43: P11 | F43: =SUMIF('1. Staff costs'!C:C,B43,'1. Staff costs'!S:S) -> 0 | G43: =SUMIF('2-3. Travel Costs&Costs of Stay'!C:C,B43,'2-3. Travel Costs&Costs of Stay'!L:L) -> 0 | H43: =SUMIF('2-3. Travel Costs&Costs of Stay'!C:C,B43,'2-3. Travel Costs&Costs of Stay'!M:M) -> 0 | I43: =SUMIF('4. Equipment Costs'!C:C,B43,'4. Equipment Costs'!H:H) -> 0 | J43: =SUMIF('5. Subcontracting Costs'!C:C,B43,'5. Subcontracting Costs'!H:H) -> 0 | K43: =SUMIF('B. Special Mob Strand - Student'!B:B,B43,'B. Special Mob Strand - Student'!N:N)+SUMIF('B. Special Mob Strand - Staff'!B:B,B43,'B. Special Mob Strand - Staff'!N:N) -> 0 | L43: 0
B44: P12 | F44: =SUMIF('1. Staff costs'!C:C,B44,'1. Staff costs'!S:S) -> 0 | G44: =SUMIF('2-3. Travel Costs&Costs of Stay'!C:C,B44,'2-3. Travel Costs&Costs of Stay'!L:L) -> 0 | H44: =SUMIF('2-3. Travel Costs&Costs of Stay'!C:C,B44,'2-3. Travel Costs&Costs of Stay'!M:M) -> 0 | I44: =SUMIF('4. Equipment Costs'!C:C,B44,'4. Equipment Costs'!H:H) -> 0 | J44: =SUMIF('5. Subcontracting Costs'!C:C,B44,'5. Subcontracting Costs'!H:H) -> 0 | K44: =SUMIF('B. Special Mob Strand - Student'!B:B,B44,'B. Special Mob Strand - Student'!N:N)+SUMIF('B. Special Mob Strand - Staff'!B:B,B44,'B. Special Mob Strand - Staff'!N:N) -> 0 | L44: 0
B45: P13 | F45: =SUMIF('1. Staff costs'!C:C,B45,'1. Staff costs'!S:S) -> 0 | G45: =SUMIF('2-3. Travel Costs&Costs of Stay'!C:C,B45,'2-3. Travel Costs&Costs of Stay'!L:L) -> 0 | H45: =SUMIF('2-3. Travel Costs&Costs of Stay'!C:C,B45,'2-3. Travel Costs&Costs of Stay'!M:M) -> 0 | I45: =SUMIF('4. Equipment Costs'!C:C,B45,'4. Equipment Costs'!H:H) -> 0 | J45: =SUMIF('5. Subcontracting Costs'!C:C,B45,'5. Subcontracting Costs'!H:H) -> 0 | K45: =SUMIF('B. Special Mob Strand - Student'!B:B,B45,'B. Special Mob Strand - Student'!N:N)+SUMIF('B. Special Mob Strand - Staff'!B:B,B45,'B. Special Mob Strand - Staff'!N:N) -> 0 | L45: 0
B46: P14 | F46: =SUMIF('1. Staff costs'!C:C,B46,'1. Staff costs'!S:S) -> 0 | G46: =SUMIF('2-3. Travel Costs&Costs of Stay'!C:C,B46,'2-3. Travel Costs&Costs of Stay'!L:L) -> 0 | H46: =SUMIF('2-3. Travel Costs&Costs of Stay'!C:C,B46,'2-3. Travel Costs&Costs of Stay'!M:M) -> 0 | I46: =SUMIF('4. Equipment Costs'!C:C,B46,'4. Equipment Costs'!H:H) -> 0 | J46: =SUMIF('5. Subcontracting Costs'!C:C,B46,'5. Subcontracting Costs'!H:H) -> 0 | K46: =SUMIF('B. Special Mob Strand - Student'!B:B,B46,'B. Special Mob Strand - Student'!N:N)+SUMIF('B. Special Mob Strand - Staff'!B:B,B46,'B. Special Mob Strand - Staff'!N:N) -> 0 | L46: 0
B47: P15 | F47: =SUMIF('1. Staff costs'!C:C,B47,'1. Staff costs'!S:S) -> 0 | G47: =SUMIF('2-3. Travel Costs&Costs of Stay'!C:C,B47,'2-3. Travel Costs&Costs of Stay'!L:L) -> 0 | H47: =SUMIF('2-3. Travel Costs&Costs of Stay'!C:C,B47,'2-3. Travel Costs&Costs of Stay'!M:M) -> 0 | I47: =SUMIF('4. Equipment Costs'!C:C,B47,'4. Equipment Costs'!H:H) -> 0 | J47: =SUMIF('5. Subcontracting Costs'!C:C,B47,'5. Subcontracting Costs'!H:H) -> 0 | K47: =SUMIF('B. Special Mob Strand - Student'!B:B,B47,'B. Special Mob Strand - Student'!N:N)+SUMIF('B. Special Mob Strand - Staff'!B:B,B47,'B. Special Mob Strand - Staff'!N:N) -> 0 | L47: 0
B48: P16 | F48: =SUMIF('1. Staff costs'!C:C,B48,'1. Staff costs'!S:S) -> 0 | G48: =SUMIF('2-3. Travel Costs&Costs of Stay'!C:C,B48,'2-3. Travel Costs&Costs of Stay'!L:L) -> 0 | H48: =SUMIF('2-3. Travel Costs&Costs of Stay'!C:C,B48,'2-3. Travel Costs&Costs of Stay'!M:M) -> 0 | I48: =SUMIF('4. Equipment Costs'!C:C,B48,'4. Equipment Costs'!H:H) -> 0 | J48: =SUMIF('5. Subcontracting Costs'!C:C,B48,'5. Subcontracting Costs'!H:H) -> 0 | K48: =SUMIF('B. Special Mob Strand - Student'!B:B,B48,'B. Special Mob Strand - Student'!N:N)+SUMIF('B. Special Mob Strand - Staff'!B:B,B48,'B. Special Mob Strand - Staff'!N:N) -> 0 | L48: 0
B49: P17 | F49: =SUMIF('1. Staff costs'!C:C,B49,'1. Staff costs'!S:S) -> 0 | G49: =SUMIF('2-3. Travel Costs&Costs of Stay'!C:C,B49,'2-3. Travel Costs&Costs of Stay'!L:L) -> 0 | H49: =SUMIF('2-3. Travel Costs&Costs of Stay'!C:C,B49,'2-3. Travel Costs&Costs of Stay'!M:M) -> 0 | I49: =SUMIF('4. Equipment Costs'!C:C,B49,'4. Equipment Costs'!H:H) -> 0 | J49: =SUMIF('5. Subcontracting Costs'!C:C,B49,'5. Subcontracting Costs'!H:H) -> 0 | K49: =SUMIF('B. Special Mob Strand - Student'!B:B,B49,'B. Special Mob Strand - Student'!N:N)+SUMIF('B. Special Mob Strand - Staff'!B:B,B49,'B. Special Mob Strand - Staff'!N:N) -> 0 | L49: 0
B50: P18 | F50: =SUMIF('1. Staff costs'!C:C,B50,'1. Staff costs'!S:S) -> 0 | G50: =SUMIF('2-3. Travel Costs&Costs of Stay'!C:C,B50,'2-3. Travel Costs&Costs of Stay'!L:L) -> 0 | H50: =SUMIF('2-3. Travel Costs&Costs of Stay'!C:C,B50,'2-3. Travel Costs&Costs of Stay'!M:M) -> 0 | I50: =SUMIF('4. Equipment Costs'!C:C,B50,'4. Equipment Costs'!H:H) -> 0 | J50: =SUMIF('5. Subcontracting Costs'!C:C,B50,'5. Subcontracting Costs'!H:H) -> 0 | K50: =SUMIF('B. Special Mob Strand - Student'!B:B,B50,'B. Special Mob Strand - Student'!N:N)+SUMIF('B. Special Mob Strand - Staff'!B:B,B50,'B. Special Mob Strand - Staff'!N:N) -> 0 | L50: 0
B51: P19 | F51: =SUMIF('1. Staff costs'!C:C,B51,'1. Staff costs'!S:S) -> 0 | G51: =SUMIF('2-3. Travel Costs&Costs of Stay'!C:C,B51,'2-3. Travel Costs&Costs of Stay'!L:L) -> 0 | H51: =SUMIF('2-3. Travel Costs&Costs of Stay'!C:C,B51,'2-3. Travel Costs&Costs of Stay'!M:M) -> 0 | I51: =SUMIF('4. Equipment Costs'!C:C,B51,'4. Equipment Costs'!H:H) -> 0 | J51: =SUMIF('5. Subcontracting Costs'!C:C,B51,'5. Subcontracting Costs'!H:H) -> 0 | K51: =SUMIF('B. Special Mob Strand - Student'!B:B,B51,'B. Special Mob Strand - Student'!N:N)+SUMIF('B. Special Mob Strand - Staff'!B:B,B51,'B. Special Mob Strand - Staff'!N:N) -> 0 | L51: 0
B52: P20 | F52: =SUMIF('1. Staff costs'!C:C,B52,'1. Staff costs'!S:S) -> 0 | G52: =SUMIF('2-3. Travel Costs&Costs of Stay'!C:C,B52,'2-3. Travel Costs&Costs of Stay'!L:L) -> 0 | H52: =SUMIF('2-3. Travel Costs&Costs of Stay'!C:C,B52,'2-3. Travel Costs&Costs of Stay'!M:M) -> 0 | I52: =SUMIF('4. Equipment Costs'!C:C,B52,'4. Equipment Costs'!H:H) -> 0 | J52: =SUMIF('5. Subcontracting Costs'!C:C,B52,'5. Subcontracting Costs'!H:H) -> 0 | K52: =SUMIF('B. Special Mob Strand - Student'!B:B,B52,'B. Special Mob Strand - Student'!N:N)+SUMIF('B. Special Mob Strand - Staff'!B:B,B52,'B. Special Mob Strand - Staff'!N:N) -> 0 | L52: 0
B53: P21 | F53: =SUMIF('1. Staff costs'!C:C,B53,'1. Staff costs'!S:S) -> 0 | G53: =SUMIF('2-3. Travel Costs&Costs of Stay'!C:C,B53,'2-3. Travel Costs&Costs of Stay'!L:L) -> 0 | H53: =SUMIF('2-3. Travel Costs&Costs of Stay'!C:C,B53,'2-3. Travel Costs&Costs of Stay'!M:M) -> 0 | I53: =SUMIF('4. Equipment Costs'!C:C,B53,'4. Equipment Costs'!H:H) -> 0 | J53: =SUMIF('5. Subcontracting Costs'!C:C,B53,'5. Subcontracting Costs'!H:H) -> 0 | K53: =SUMIF('B. Special Mob Strand - Student'!B:B,B53,'B. Special Mob Strand - Student'!N:N)+SUMIF('B. Special Mob Strand - Staff'!B:B,B53,'B. Special Mob Strand - Staff'!N:N) -> 0 | L53: 0
B54: P22 | F54: =SUMIF('1. Staff costs'!C:C,B54,'1. Staff costs'!S:S) -> 0 | G54: =SUMIF('2-3. Travel Costs&Costs of Stay'!C:C,B54,'2-3. Travel Costs&Costs of Stay'!L:L) -> 0 | H54: =SUMIF('2-3. Travel Costs&Costs of Stay'!C:C,B54,'2-3. Travel Costs&Costs of Stay'!M:M) -> 0 | I54: =SUMIF('4. Equipment Costs'!C:C,B54,'4. Equipment Costs'!H:H) -> 0 | J54: =SUMIF('5. Subcontracting Costs'!C:C,B54,'5. Subcontracting Costs'!H:H) -> 0 | K54: =SUMIF('B. Special Mob Strand - Student'!B:B,B54,'B. Special Mob Strand - Student'!N:N)+SUMIF('B. Special Mob Strand - Staff'!B:B,B54,'B. Special Mob Strand - Staff'!N:N) -> 0 | L54: 0
B55: P23 | F55: =SUMIF('1. Staff costs'!C:C,B55,'1. Staff costs'!S:S) -> 0 | G55: =SUMIF('2-3. Travel Costs&Costs of Stay'!C:C,B55,'2-3. Travel Costs&Costs of Stay'!L:L) -> 0 | H55: =SUMIF('2-3. Travel Costs&Costs of Stay'!C:C,B55,'2-3. Travel Costs&Costs of Stay'!M:M) -> 0 | I55: =SUMIF('4. Equipment Costs'!C:C,B55,'4. Equipment Costs'!H:H) -> 0 | J55: =SUMIF('5. Subcontracting Costs'!C:C,B55,'5. Subcontracting Costs'!H:H) -> 0 | K55: =SUMIF('B. Special Mob Strand - Student'!B:B,B55,'B. Special Mob Strand - Student'!N:N)+SUMIF('B. Special Mob Strand - Staff'!B:B,B55,'B. Special Mob Strand - Staff'!N:N) -> 0 | L55: 0
B56: P24 | F56: =SUMIF('1. Staff costs'!C:C,B56,'1. Staff costs'!S:S) -> 0 | G56: =SUMIF('2-3. Travel Costs&Costs of Stay'!C:C,B56,'2-3. Travel Costs&Costs of Stay'!L:L) -> 0 | H56: =SUMIF('2-3. Travel Costs&Costs of Stay'!C:C,B56,'2-3. Travel Costs&Costs of Stay'!M:M) -> 0 | I56: =SUMIF('4. Equipment Costs'!C:C,B56,'4. Equipment Costs'!H:H) -> 0 | J56: =SUMIF('5. Subcontracting Costs'!C:C,B56,'5. Subcontracting Costs'!H:H) -> 0 | K56: =SUMIF('B. Special Mob Strand - Student'!B:B,B56,'B. Special Mob Strand - Student'!N:N)+SUMIF('B. Special Mob Strand - Staff'!B:B,B56,'B. Special Mob Strand - Staff'!N:N) -> 0 | L56: 0
B57: P25 | F57: =SUMIF('1. Staff costs'!C:C,B57,'1. Staff costs'!S:S) -> 0 | G57: =SUMIF('2-3. Travel Costs&Costs of Stay'!C:C,B57,'2-3. Travel Costs&Costs of Stay'!L:L) -> 0 | H57: =SUMIF('2-3. Travel Costs&Costs of Stay'!C:C,B57,'2-3. Travel Costs&Costs of Stay'!M:M) -> 0 | I57: =SUMIF('4. Equipment Costs'!C:C,B57,'4. Equipment Costs'!H:H) -> 0 | J57: =SUMIF('5. Subcontracting Costs'!C:C,B57,'5. Subcontracting Costs'!H:H) -> 0 | K57: =SUMIF('B. Special Mob Strand - Student'!B:B,B57,'B. Special Mob Strand - Student'!N:N)+SUMIF('B. Special Mob Strand - Staff'!B:B,B57,'B. Special Mob Strand - Staff'!N:N) -> 0 | L57: 0
B58: P26 | F58: =SUMIF('1. Staff costs'!C:C,B58,'1. Staff costs'!S:S) -> 0 | G58: =SUMIF('2-3. Travel Costs&Costs of Stay'!C:C,B58,'2-3. Travel Costs&Costs of Stay'!L:L) -> 0 | H58: =SUMIF('2-3. Travel Costs&Costs of Stay'!C:C,B58,'2-3. Travel Costs&Costs of Stay'!M:M) -> 0 | I58: =SUMIF('4. Equipment Costs'!C:C,B58,'4. Equipment Costs'!H:H) -> 0 | J58: =SUMIF('5. Subcontracting Costs'!C:C,B58,'5. Subcontracting Costs'!H:H) -> 0 | K58: =SUMIF('B. Special Mob Strand - Student'!B:B,B58,'B. Special Mob Strand - Student'!N:N)+SUMIF('B. Special Mob Strand - Staff'!B:B,B58,'B. Special Mob Strand - Staff'!N:N) -> 0 | L58: 0
B59: P27 | F59: =SUMIF('1. Staff costs'!C:C,B59,'1. Staff costs'!S:S) -> 0 | G59: =SUMIF('2-3. Travel Costs&Costs of Stay'!C:C,B59,'2-3. Travel Costs&Costs of Stay'!L:L) -> 0 | H59: =SUMIF('2-3. Travel Costs&Costs of Stay'!C:C,B59,'2-3. Travel Costs&Costs of Stay'!M:M) -> 0 | I59: =SUMIF('4. Equipment Costs'!C:C,B59,'4. Equipment Costs'!H:H) -> 0 | J59: =SUMIF('5. Subcontracting Costs'!C:C,B59,'5. Subcontracting Costs'!H:H) -> 0 | K59: =SUMIF('B. Special Mob Strand - Student'!B:B,B59,'B. Special Mob Strand - Student'!N:N)+SUMIF('B. Special Mob Strand - Staff'!B:B,B59,'B. Special Mob Strand - Staff'!N:N) -> 0 | L59: 0
B60: P28 | F60: =SUMIF('1. Staff costs'!C:C,B60,'1. Staff costs'!S:S) -> 0 | G60: =SUMIF('2-3. Travel Costs&Costs of Stay'!C:C,B60,'2-3. Travel Costs&Costs of Stay'!L:L) -> 0 | H60: =SUMIF('2-3. Travel Costs&Costs of Stay'!C:C,B60,'2-3. Travel Costs&Costs of Stay'!M:M) -> 0 | I60: =SUMIF('4. Equipment Costs'!C:C,B60,'4. Equipment Costs'!H:H) -> 0 | J60: =SUMIF('5. Subcontracting Costs'!C:C,B60,'5. Subcontracting Costs'!H:H) -> 0 | K60: =SUMIF('B. Special Mob Strand - Student'!B:B,B60,'B. Special Mob Strand - Student'!N:N)+SUMIF('B. Special Mob Strand - Staff'!B:B,B60,'B. Special Mob Strand - Staff'!N:N) -> 0 | L60: 0
B61: P29 | F61: =SUMIF('1. Staff costs'!C:C,B61,'1. Staff costs'!S:S) -> 0 | G61: =SUMIF('2-3. Travel Costs&Costs of Stay'!C:C,B61,'2-3. Travel Costs&Costs of Stay'!L:L) -> 0 | H61: =SUMIF('2-3. Travel Costs&Costs of Stay'!C:C,B61,'2-3. Travel Costs&Costs of Stay'!M:M) -> 0 | I61: =SUMIF('4. Equipment Costs'!C:C,B61,'4. Equipment Costs'!H:H) -> 0 | J61: =SUMIF('5. Subcontracting Costs'!C:C,B61,'5. Subcontracting Costs'!H:H) -> 0 | K61: =SUMIF('B. Special Mob Strand - Student'!B:B,B61,'B. Special Mob Strand - Student'!N:N)+SUMIF('B. Special Mob Strand - Staff'!B:B,B61,'B. Special Mob Strand - Staff'!N:N) -> 0 | L61: 0
B62: P30 | F62: =SUMIF('1. Staff costs'!C:C,B62,'1. Staff costs'!S:S) -> 0 | G62: =SUMIF('2-3. Travel Costs&Costs of Stay'!C:C,B62,'2-3. Travel Costs&Costs of Stay'!L:L) -> 0 | H62: =SUMIF('2-3. Travel Costs&Costs of Stay'!C:C,B62,'2-3. Travel Costs&Costs of Stay'!M:M) -> 0 | I62: =SUMIF('4. Equipment Costs'!C:C,B62,'4. Equipment Costs'!H:H) -> 0 | J62: =SUMIF('5. Subcontracting Costs'!C:C,B62,'5. Subcontracting Costs'!H:H) -> 0 | K62: =SUMIF('B. Special Mob Strand - Student'!B:B,B62,'B. Special Mob Strand - Student'!N:N)+SUMIF('B. Special Mob Strand - Staff'!B:B,B62,'B. Special Mob Strand - Staff'!N:N) -> 0 | L62: 0
B63: P31 | F63: =SUMIF('1. Staff costs'!C:C,B63,'1. Staff costs'!S:S) -> 0 | G63: =SUMIF('2-3. Travel Costs&Costs of Stay'!C:C,B63,'2-3. Travel Costs&Costs of Stay'!L:L) -> 0 | H63: =SUMIF('2-3. Travel Costs&Costs of Stay'!C:C,B63,'2-3. Travel Costs&Costs of Stay'!M:M) -> 0 | I63: =SUMIF('4. Equipment Costs'!C:C,B63,'4. Equipment Costs'!H:H) -> 0 | J63: =SUMIF('5. Subcontracting Costs'!C:C,B63,'5. Subcontracting Costs'!H:H) -> 0 | K63: =SUMIF('B. Special Mob Strand - Student'!B:B,B63,'B. Special Mob Strand - Student'!N:N)+SUMIF('B. Special Mob Strand - Staff'!B:B,B63,'B. Special Mob Strand - Staff'!N:N) -> 0 | L63: 0
B64: P32 | F64: =SUMIF('1. Staff costs'!C:C,B64,'1. Staff costs'!S:S) -> 0 | G64: =SUMIF('2-3. Travel Costs&Costs of Stay'!C:C,B64,'2-3. Travel Costs&Costs of Stay'!L:L) -> 0 | H64: =SUMIF('2-3. Travel Costs&Costs of Stay'!C:C,B64,'2-3. Travel Costs&Costs of Stay'!M:M) -> 0 | I64: =SUMIF('4. Equipment Costs'!C:C,B64,'4. Equipment Costs'!H:H) -> 0 | J64: =SUMIF('5. Subcontracting Costs'!C:C,B64,'5. Subcontracting Costs'!H:H) -> 0 | K64: =SUMIF('B. Special Mob Strand - Student'!B:B,B64,'B. Special Mob Strand - Student'!N:N)+SUMIF('B. Special Mob Strand - Staff'!B:B,B64,'B. Special Mob Strand - Staff'!N:N) -> 0 | L64: 0
B65: P33 | F65: =SUMIF('1. Staff costs'!C:C,B65,'1. Staff costs'!S:S) -> 0 | G65: =SUMIF('2-3. Travel Costs&Costs of Stay'!C:C,B65,'2-3. Travel Costs&Costs of Stay'!L:L) -> 0 | H65: =SUMIF('2-3. Travel Costs&Costs of Stay'!C:C,B65,'2-3. Travel Costs&Costs of Stay'!M:M) -> 0 | I65: =SUMIF('4. Equipment Costs'!C:C,B65,'4. Equipment Costs'!H:H) -> 0 | J65: =SUMIF('5. Subcontracting Costs'!C:C,B65,'5. Subcontracting Costs'!H:H) -> 0 | K65: =SUMIF('B. Special Mob Strand - Student'!B:B,B65,'B. Special Mob Strand - Student'!N:N)+SUMIF('B. Special Mob Strand - Staff'!B:B,B65,'B. Special Mob Strand - Staff'!N:N) -> 0 | L65: 0
B66: P34 | F66: =SUMIF('1. Staff costs'!C:C,B66,'1. Staff costs'!S:S) -> 0 | G66: =SUMIF('2-3. Travel Costs&Costs of Stay'!C:C,B66,'2-3. Travel Costs&Costs of Stay'!L:L) -> 0 | H66: =SUMIF('2-3. Travel Costs&Costs of Stay'!C:C,B66,'2-3. Travel Costs&Costs of Stay'!M:M) -> 0 | I66: =SUMIF('4. Equipment Costs'!C:C,B66,'4. Equipment Costs'!H:H) -> 0 | J66: =SUMIF('5. Subcontracting Costs'!C:C,B66,'5. Subcontracting Costs'!H:H) -> 0 | K66: =SUMIF('B. Special Mob Strand - Student'!B:B,B66,'B. Special Mob Strand - Student'!N:N)+SUMIF('B. Special Mob Strand - Staff'!B:B,B66,'B. Special Mob Strand - Staff'!N:N) -> 0 | L66: 0
B67: P35 | F67: =SUMIF('1. Staff costs'!C:C,B67,'1. Staff costs'!S:S) -> 0 | G67: =SUMIF('2-3. Travel Costs&Costs of Stay'!C:C,B67,'2-3. Travel Costs&Costs of Stay'!L:L) -> 0 | H67: =SUMIF('2-3. Travel Costs&Costs of Stay'!C:C,B67,'2-3. Travel Costs&Costs of Stay'!M:M) -> 0 | I67: =SUMIF('4. Equipment Costs'!C:C,B67,'4. Equipment Costs'!H:H) -> 0 | J67: =SUMIF('5. Subcontracting Costs'!C:C,B67,'5. Subcontracting Costs'!H:H) -> 0 | K67: =SUMIF('B. Special Mob Strand - Student'!B:B,B67,'B. Special Mob Strand - Student'!N:N)+SUMIF('B. Special Mob Strand - Staff'!B:B,B67,'B. Special Mob Strand - Staff'!N:N) -> 0 | L67: 0
B68: P36 | F68: =SUMIF('1. Staff costs'!C:C,B68,'1. Staff costs'!S:S) -> 0 | G68: =SUMIF('2-3. Travel Costs&Costs of Stay'!C:C,B68,'2-3. Travel Costs&Costs of Stay'!L:L) -> 0 | H68: =SUMIF('2-3. Travel Costs&Costs of Stay'!C:C,B68,'2-3. Travel Costs&Costs of Stay'!M:M) -> 0 | I68: =SUMIF('4. Equipment Costs'!C:C,B68,'4. Equipment Costs'!H:H) -> 0 | J68: =SUMIF('5. Subcontracting Costs'!C:C,B68,'5. Subcontracting Costs'!H:H) -> 0 | K68: =SUMIF('B. Special Mob Strand - Student'!B:B,B68,'B. Special Mob Strand - Student'!N:N)+SUMIF('B. Special Mob Strand - Staff'!B:B,B68,'B. Special Mob Strand - Staff'!N:N) -> 0 | L68: 0
B69: P37 | F69: =SUMIF('1. Staff costs'!C:C,B69,'1. Staff costs'!S:S) -> 0 | G69: =SUMIF('2-3. Travel Costs&Costs of Stay'!C:C,B69,'2-3. Travel Costs&Costs of Stay'!L:L) -> 0 | H69: =SUMIF('2-3. Travel Costs&Costs of Stay'!C:C,B69,'2-3. Travel Costs&Costs of Stay'!M:M) -> 0 | I69: =SUMIF('4. Equipment Costs'!C:C,B69,'4. Equipment Costs'!H:H) -> 0 | J69: =SUMIF('5. Subcontracting Costs'!C:C,B69,'5. Subcontracting Costs'!H:H) -> 0 | K69: =SUMIF('B. Special Mob Strand - Student'!B:B,B69,'B. Special Mob Strand - Student'!N:N)+SUMIF('B. Special Mob Strand - Staff'!B:B,B69,'B. Special Mob Strand - Staff'!N:N) -> 0 | L69: 0
B70: P38 | F70: =SUMIF('1. Staff costs'!C:C,B70,'1. Staff costs'!S:S) -> 0 | G70: =SUMIF('2-3. Travel Costs&Costs of Stay'!C:C,B70,'2-3. Travel Costs&Costs of Stay'!L:L) -> 0 | H70: =SUMIF('2-3. Travel Costs&Costs of Stay'!C:C,B70,'2-3. Travel Costs&Costs of Stay'!M:M) -> 0 | I70: =SUMIF('4. Equipment Costs'!C:C,B70,'4. Equipment Costs'!H:H) -> 0 | J70: =SUMIF('5. Subcontracting Costs'!C:C,B70,'5. Subcontracting Costs'!H:H) -> 0 | K70: =SUMIF('B. Special Mob Strand - Student'!B:B,B70,'B. Special Mob Strand - Student'!N:N)+SUMIF('B. Special Mob Strand - Staff'!B:B,B70,'B. Special Mob Strand - Staff'!N:N) -> 0 | L70: 0
B71: P39 | F71: =SUMIF('1. Staff costs'!C:C,B71,'1. Staff costs'!S:S) -> 0 | G71: =SUMIF('2-3. Travel Costs&Costs of Stay'!C:C,B71,'2-3. Travel Costs&Costs of Stay'!L:L) -> 0 | H71: =SUMIF('2-3. Travel Costs&Costs of Stay'!C:C,B71,'2-3. Travel Costs&Costs of Stay'!M:M) -> 0 | I71: =SUMIF('4. Equipment Costs'!C:C,B71,'4. Equipment Costs'!H:H) -> 0 | J71: =SUMIF('5. Subcontracting Costs'!C:C,B71,'5. Subcontracting Costs'!H:H) -> 0 | K71: =SUMIF('B. Special Mob Strand - Student'!B:B,B71,'B. Special Mob Strand - Student'!N:N)+SUMIF('B. Special Mob Strand - Staff'!B:B,B71,'B. Special Mob Strand - Staff'!N:N) -> 0 | L71: 0
B72: P40 | F72: =SUMIF('1. Staff costs'!C:C,B72,'1. Staff costs'!S:S) -> 0 | G72: =SUMIF('2-3. Travel Costs&Costs of Stay'!C:C,B72,'2-3. Travel Costs&Costs of Stay'!L:L) -> 0 | H72: =SUMIF('2-3. Travel Costs&Costs of Stay'!C:C,B72,'2-3. Travel Costs&Costs of Stay'!M:M) -> 0 | I72: =SUMIF('4. Equipment Costs'!C:C,B72,'4. Equipment Costs'!H:H) -> 0 | J72: =SUMIF('5. Subcontracting Costs'!C:C,B72,'5. Subcontracting Costs'!H:H) -> 0 | K72: =SUMIF('B. Special Mob Strand - Student'!B:B,B72,'B. Special Mob Strand - Student'!N:N)+SUMIF('B. Special Mob Strand - Staff'!B:B,B72,'B. Special Mob Strand - Staff'!N:N) -> 0 | L72: 0
B73: P41 | F73: =SUMIF('1. Staff costs'!C:C,B73,'1. Staff costs'!S:S) -> 0 | G73: =SUMIF('2-3. Travel Costs&Costs of Stay'!C:C,B73,'2-3. Travel Costs&Costs of Stay'!L:L) -> 0 | H73: =SUMIF('2-3. Travel Costs&Costs of Stay'!C:C,B73,'2-3. Travel Costs&Costs of Stay'!M:M) -> 0 | I73: =SUMIF('4. Equipment Costs'!C:C,B73,'4. Equipment Costs'!H:H) -> 0 | J73: =SUMIF('5. Subcontracting Costs'!C:C,B73,'5. Subcontracting Costs'!H:H) -> 0 | K73: =SUMIF('B. Special Mob Strand - Student'!B:B,B73,'B. Special Mob Strand - Student'!N:N)+SUMIF('B. Special Mob Strand - Staff'!B:B,B73,'B. Special Mob Strand - Staff'!N:N) -> 0 | L73: 0
B74: P42 | F74: =SUMIF('1. Staff costs'!C:C,B74,'1. Staff costs'!S:S) -> 0 | G74: =SUMIF('2-3. Travel Costs&Costs of Stay'!C:C,B74,'2-3. Travel Costs&Costs of Stay'!L:L) -> 0 | H74: =SUMIF('2-3. Travel Costs&Costs of Stay'!C:C,B74,'2-3. Travel Costs&Costs of Stay'!M:M) -> 0 | I74: =SUMIF('4. Equipment Costs'!C:C,B74,'4. Equipment Costs'!H:H) -> 0 | J74: =SUMIF('5. Subcontracting Costs'!C:C,B74,'5. Subcontracting Costs'!H:H) -> 0 | K74: =SUMIF('B. Special Mob Strand - Student'!B:B,B74,'B. Special Mob Strand - Student'!N:N)+SUMIF('B. Special Mob Strand - Staff'!B:B,B74,'B. Special Mob Strand - Staff'!N:N) -> 0 | L74: 0
B75: P43 | F75: =SUMIF('1. Staff costs'!C:C,B75,'1. Staff costs'!S:S) -> 0 | G75: =SUMIF('2-3. Travel Costs&Costs of Stay'!C:C,B75,'2-3. Travel Costs&Costs of Stay'!L:L) -> 0 | H75: =SUMIF('2-3. Travel Costs&Costs of Stay'!C:C,B75,'2-3. Travel Costs&Costs of Stay'!M:M) -> 0 | I75: =SUMIF('4. Equipment Costs'!C:C,B75,'4. Equipment Costs'!H:H) -> 0 | J75: =SUMIF('5. Subcontracting Costs'!C:C,B75,'5. Subcontracting Costs'!H:H) -> 0 | K75: =SUMIF('B. Special Mob Strand - Student'!B:B,B75,'B. Special Mob Strand - Student'!N:N)+SUMIF('B. Special Mob Strand - Staff'!B:B,B75,'B. Special Mob Strand - Staff'!N:N) -> 0 | L75: 0
B76: P44 | F76: =SUMIF('1. Staff costs'!C:C,B76,'1. Staff costs'!S:S) -> 0 | G76: =SUMIF('2-3. Travel Costs&Costs of Stay'!C:C,B76,'2-3. Travel Costs&Costs of Stay'!L:L) -> 0 | H76: =SUMIF('2-3. Travel Costs&Costs of Stay'!C:C,B76,'2-3. Travel Costs&Costs of Stay'!M:M) -> 0 | I76: =SUMIF('4. Equipment Costs'!C:C,B76,'4. Equipment Costs'!H:H) -> 0 | J76: =SUMIF('5. Subcontracting Costs'!C:C,B76,'5. Subcontracting Costs'!H:H) -> 0 | K76: =SUMIF('B. Special Mob Strand - Student'!B:B,B76,'B. Special Mob Strand - Student'!N:N)+SUMIF('B. Special Mob Strand - Staff'!B:B,B76,'B. Special Mob Strand - Staff'!N:N) -> 0 | L76: 0
B77: P45 | F77: =SUMIF('1. Staff costs'!C:C,B77,'1. Staff costs'!S:S) -> 0 | G77: =SUMIF('2-3. Travel Costs&Costs of Stay'!C:C,B77,'2-3. Travel Costs&Costs of Stay'!L:L) -> 0 | H77: =SUMIF('2-3. Travel Costs&Costs of Stay'!C:C,B77,'2-3. Travel Costs&Costs of Stay'!M:M) -> 0 | I77: =SUMIF('4. Equipment Costs'!C:C,B77,'4. Equipment Costs'!H:H) -> 0 | J77: =SUMIF('5. Subcontracting Costs'!C:C,B77,'5. Subcontracting Costs'!H:H) -> 0 | K77: =SUMIF('B. Special Mob Strand - Student'!B:B,B77,'B. Special Mob Strand - Student'!N:N)+SUMIF('B. Special Mob Strand - Staff'!B:B,B77,'B. Special Mob Strand - Staff'!N:N) -> 0 | L77: 0
B78: P46 | F78: =SUMIF('1. Staff costs'!C:C,B78,'1. Staff costs'!S:S) -> 0 | G78: =SUMIF('2-3. Travel Costs&Costs of Stay'!C:C,B78,'2-3. Travel Costs&Costs of Stay'!L:L) -> 0 | H78: =SUMIF('2-3. Travel Costs&Costs of Stay'!C:C,B78,'2-3. Travel Costs&Costs of Stay'!M:M) -> 0 | I78: =SUMIF('4. Equipment Costs'!C:C,B78,'4. Equipment Costs'!H:H) -> 0 | J78: =SUMIF('5. Subcontracting Costs'!C:C,B78,'5. Subcontracting Costs'!H:H) -> 0 | K78: =SUMIF('B. Special Mob Strand - Student'!B:B,B78,'B. Special Mob Strand - Student'!N:N)+SUMIF('B. Special Mob Strand - Staff'!B:B,B78,'B. Special Mob Strand - Staff'!N:N) -> 0 | L78: 0
B79: P47 | F79: =SUMIF('1. Staff costs'!C:C,B79,'1. Staff costs'!S:S) -> 0 | G79: =SUMIF('2-3. Travel Costs&Costs of Stay'!C:C,B79,'2-3. Travel Costs&Costs of Stay'!L:L) -> 0 | H79: =SUMIF('2-3. Travel Costs&Costs of Stay'!C:C,B79,'2-3. Travel Costs&Costs of Stay'!M:M) -> 0 | I79: =SUMIF('4. Equipment Costs'!C:C,B79,'4. Equipment Costs'!H:H) -> 0 | J79: =SUMIF('5. Subcontracting Costs'!C:C,B79,'5. Subcontracting Costs'!H:H) -> 0 | K79: =SUMIF('B. Special Mob Strand - Student'!B:B,B79,'B. Special Mob Strand - Student'!N:N)+SUMIF('B. Special Mob Strand - Staff'!B:B,B79,'B. Special Mob Strand - Staff'!N:N) -> 0 | L79: 0
B80: P48 | F80: =SUMIF('1. Staff costs'!C:C,B80,'1. Staff costs'!S:S) -> 0 | G80: =SUMIF('2-3. Travel Costs&Costs of Stay'!C:C,B80,'2-3. Travel Costs&Costs of Stay'!L:L) -> 0 | H80: =SUMIF('2-3. Travel Costs&Costs of Stay'!C:C,B80,'2-3. Travel Costs&Costs of Stay'!M:M) -> 0 | I80: =SUMIF('4. Equipment Costs'!C:C,B80,'4. Equipment Costs'!H:H) -> 0 | J80: =SUMIF('5. Subcontracting Costs'!C:C,B80,'5. Subcontracting Costs'!H:H) -> 0 | K80: =SUMIF('B. Special Mob Strand - Student'!B:B,B80,'B. Special Mob Strand - Student'!N:N)+SUMIF('B. Special Mob Strand - Staff'!B:B,B80,'B. Special Mob Strand - Staff'!N:N) -> 0 | L80: 0
B81: P49 | F81: =SUMIF('1. Staff costs'!C:C,B81,'1. Staff costs'!S:S) -> 0 | G81: =SUMIF('2-3. Travel Costs&Costs of Stay'!C:C,B81,'2-3. Travel Costs&Costs of Stay'!L:L) -> 0 | H81: =SUMIF('2-3. Travel Costs&Costs of Stay'!C:C,B81,'2-3. Travel Costs&Costs of Stay'!M:M) -> 0 | I81: =SUMIF('4. Equipment Costs'!C:C,B81,'4. Equipment Costs'!H:H) -> 0 | J81: =SUMIF('5. Subcontracting Costs'!C:C,B81,'5. Subcontracting Costs'!H:H) -> 0 | K81: =SUMIF('B. Special Mob Strand - Student'!B:B,B81,'B. Special Mob Strand - Student'!N:N)+SUMIF('B. Special Mob Strand - Staff'!B:B,B81,'B. Special Mob Strand - Staff'!N:N) -> 0 | L81: 0
B82: P50 | F82: =SUMIF('1. Staff costs'!C:C,B82,'1. Staff costs'!S:S) -> 0 | G82: =SUMIF('2-3. Travel Costs&Costs of Stay'!C:C,B82,'2-3. Travel Costs&Costs of Stay'!L:L) -> 0 | H82: =SUMIF('2-3. Travel Costs&Costs of Stay'!C:C,B82,'2-3. Travel Costs&Costs of Stay'!M:M) -> 0 | I82: =SUMIF('4. Equipment Costs'!C:C,B82,'4. Equipment Costs'!H:H) -> 0 | J82: =SUMIF('5. Subcontracting Costs'!C:C,B82,'5. Subcontracting Costs'!H:H) -> 0 | K82: =SUMIF('B. Special Mob Strand - Student'!B:B,B82,'B. Special Mob Strand - Student'!N:N)+SUMIF('B. Special Mob Strand - Staff'!B:B,B82,'B. Special Mob Strand - Staff'!N:N) -> 0 | L82: 0
B83: P51 | F83: =SUMIF('1. Staff costs'!C:C,B83,'1. Staff costs'!S:S) -> 0 | G83: =SUMIF('2-3. Travel Costs&Costs of Stay'!C:C,B83,'2-3. Travel Costs&Costs of Stay'!L:L) -> 0 | H83: =SUMIF('2-3. Travel Costs&Costs of Stay'!C:C,B83,'2-3. Travel Costs&Costs of Stay'!M:M) -> 0 | I83: =SUMIF('4. Equipment Costs'!C:C,B83,'4. Equipment Costs'!H:H) -> 0 | J83: =SUMIF('5. Subcontracting Costs'!C:C,B83,'5. Subcontracting Costs'!H:H) -> 0 | K83: =SUMIF('B. Special Mob Strand - Student'!B:B,B83,'B. Special Mob Strand - Student'!N:N)+SUMIF('B. Special Mob Strand - Staff'!B:B,B83,'B. Special Mob Strand - Staff'!N:N) -> 0 | L83: 0
B84: P52 | F84: =SUMIF('1. Staff costs'!C:C,B84,'1. Staff costs'!S:S) -> 0 | G84: =SUMIF('2-3. Travel Costs&Costs of Stay'!C:C,B84,'2-3. Travel Costs&Costs of Stay'!L:L) -> 0 | H84: =SUMIF('2-3. Travel Costs&Costs of Stay'!C:C,B84,'2-3. Travel Costs&Costs of Stay'!M:M) -> 0 | I84: =SUMIF('4. Equipment Costs'!C:C,B84,'4. Equipment Costs'!H:H) -> 0 | J84: =SUMIF('5. Subcontracting Costs'!C:C,B84,'5. Subcontracting Costs'!H:H) -> 0 | K84: =SUMIF('B. Special Mob Strand - Student'!B:B,B84,'B. Special Mob Strand - Student'!N:N)+SUMIF('B. Special Mob Strand - Staff'!B:B,B84,'B. Special Mob Strand - Staff'!N:N) -> 0 | L84: 0
B85: P53 | F85: =SUMIF('1. Staff costs'!C:C,B85,'1. Staff costs'!S:S) -> 0 | G85: =SUMIF('2-3. Travel Costs&Costs of Stay'!C:C,B85,'2-3. Travel Costs&Costs of Stay'!L:L) -> 0 | H85: =SUMIF('2-3. Travel Costs&Costs of Stay'!C:C,B85,'2-3. Travel Costs&Costs of Stay'!M:M) -> 0 | I85: =SUMIF('4. Equipment Costs'!C:C,B85,'4. Equipment Costs'!H:H) -> 0 | J85: =SUMIF('5. Subcontracting Costs'!C:C,B85,'5. Subcontracting Costs'!H:H) -> 0 | K85: =SUMIF('B. Special Mob Strand - Student'!B:B,B85,'B. Special Mob Strand - Student'!N:N)+SUMIF('B. Special Mob Strand - Staff'!B:B,B85,'B. Special Mob Strand - Staff'!N:N) -> 0 | L85: 0
B86: P54 | F86: =SUMIF('1. Staff costs'!C:C,B86,'1. Staff costs'!S:S) -> 0 | G86: =SUMIF('2-3. Travel Costs&Costs of Stay'!C:C,B86,'2-3. Travel Costs&Costs of Stay'!L:L) -> 0 | H86: =SUMIF('2-3. Travel Costs&Costs of Stay'!C:C,B86,'2-3. Travel Costs&Costs of Stay'!M:M) -> 0 | I86: =SUMIF('4. Equipment Costs'!C:C,B86,'4. Equipment Costs'!H:H) -> 0 | J86: =SUMIF('5. Subcontracting Costs'!C:C,B86,'5. Subcontracting Costs'!H:H) -> 0 | K86: =SUMIF('B. Special Mob Strand - Student'!B:B,B86,'B. Special Mob Strand - Student'!N:N)+SUMIF('B. Special Mob Strand - Staff'!B:B,B86,'B. Special Mob Strand - Staff'!N:N) -> 0 | L86: 0
B87: P55 | F87: =SUMIF('1. Staff costs'!C:C,B87,'1. Staff costs'!S:S) -> 0 | G87: =SUMIF('2-3. Travel Costs&Costs of Stay'!C:C,B87,'2-3. Travel Costs&Costs of Stay'!L:L) -> 0 | H87: =SUMIF('2-3. Travel Costs&Costs of Stay'!C:C,B87,'2-3. Travel Costs&Costs of Stay'!M:M) -> 0 | I87: =SUMIF('4. Equipment Costs'!C:C,B87,'4. Equipment Costs'!H:H) -> 0 | J87: =SUMIF('5. Subcontracting Costs'!C:C,B87,'5. Subcontracting Costs'!H:H) -> 0 | K87: =SUMIF('B. Special Mob Strand - Student'!B:B,B87,'B. Special Mob Strand - Student'!N:N)+SUMIF('B. Special Mob Strand - Staff'!B:B,B87,'B. Special Mob Strand - Staff'!N:N) -> 0 | L87: 0

Sheet 1. Staff costs
B2: 1. Staff Costs
D4: Total (EUR) | E4: Number of Days
B5: Manager | D5: =SUM(H:H) -> 0 | E5: =SUMIF(T:T,"<>Error",F:F) -> 0
B6: Teacher/Trainer/Researcher | D6: =SUM(K:K) -> 0 | E6: =SUMIF(T:T,"<>Error",I:I) -> 0
B7: Technical Staff | D7: =SUM(N:N) -> 0 | E7: =SUMIF(T:T,"<>Error",L:L) -> 0
B8: Administrative Staff | D8: =SUM(Q:Q) -> 0 | E8: =SUMIF(T:T,"<>Error",O:O) -> 0
D9: =SUM(D5:D8) -> 0 | E9: =SUM(E5:E8) -> 0
B11: Work Package | C11: Partner N° | D11: Name of Partner (to encode in overview sheet) | E11: Country (to encode in overview sheet) | F11: =Rates!E3 -> Manager | I11: =Rates!F3 -> Teacher/Trainer/Researcher | L11: =Rates!G3 -> Technical Staff | O11: =Rates!H3 -> Administrative Staff | R11: Total Number of Days | S11: Total (EUR) | T11: Check Data Encoding
F12: Number of days | G12: Unit cost per day | H12: Total (EUR) | I12: Number of days | J12: Unit cost per day | K12: Total (EUR) | L12: Number of days | M12: Unit cost per day | N12: Total (EUR) | O12: Number of days | P12: Unit cost per day | Q12: Total (EUR)
D13: =IFERROR(IF(VLOOKUP(C13,PartnerN°Ref,2,FALSE)=0,"",VLOOKUP(C13,PartnerN°Ref,2,FALSE)),"") ->  | E13: =IFERROR(IF(OR(VLOOKUP(C13,PartnerN°Ref,4,FALSE)="Country not found",VLOOKUP(C13,PartnerN°Ref,3,FALSE)=0),"",VLOOKUP(C13,PartnerN°Ref,3,FALSE)),"") ->  | F13: 0 | G13: =IF(T13="Error",0,INDEX(Rates,MATCH(E13,CountryALL,0),MATCH($F$11,Category,0))) -> 0 | H13: =IFERROR(IF(T13="Error",0,ROUND(F13*G13,2)),0) -> 0 | I13: 0 | J13: =IF(T13="Error",0,INDEX(Rates,MATCH(E13,CountryALL,0),MATCH($I$11,Category,0))) -> 0 | K13: =IFERROR(IF(T13="Error",0,ROUND(I13*J13,2)),0) -> 0 | L13: 0 | M13: =IF(T13="Error",0,INDEX(Rates,MATCH(E13,CountryALL,0),MATCH($L$11,Category,0))) -> 0 | N13: =IFERROR(IF(T13="Error",0,ROUND(L13*M13,2)),0) -> 0 | O13: 0 | P13: =IF(T13="Error",0,INDEX(Rates,MATCH(E13,CountryALL,0),MATCH($O$11,Category,0))) -> 0 | Q13: =IFERROR(IF(T13="Error",0,ROUND(O13*P13,2)),0) -> 0 | R13: =IF(T13="Error",0,F13+I13+L13+O13) -> 0 | S13: =IF(T13="Error",0,H13+K13+N13+Q13) -> 0 | T13: =IF(OR(COUNTIF(WorkPackage,B13)=0,COUNTIF(PartnerN°,C13)=0,D13="",COUNTIF(CountryALL,E13)=0,ISNUMBER(F13)=FALSE,ISNUMBER(I13)=FALSE,ISNUMBER(L13)=FALSE,ISNUMBER(O13)=FALSE,IF(ISNUMBER(F13)=TRUE,F13=INT(F13*10)/10=FALSE),IF(ISNUMBER(I13)=TRUE,I13=INT(I13*10)/10=FALSE),IF(ISNUMBER(L13)=TRUE,L13=INT(L13*10)/10=FALSE),IF(ISNUMBER(O13)=TRUE,O13=INT(O13*10)/10=FALSE)),"Error","") -> Error
D14: =IFERROR(IF(VLOOKUP(C14,PartnerN°Ref,2,FALSE)=0,"",VLOOKUP(C14,PartnerN°Ref,2,FALSE)),"") ->  | E14: =IFERROR(IF(OR(VLOOKUP(C14,PartnerN°Ref,4,FALSE)="Country not found",VLOOKUP(C14,PartnerN°Ref,3,FALSE)=0),"",VLOOKUP(C14,PartnerN°Ref,3,FALSE)),"") ->  | F14: 0 | G14: =IF(T14="Error",0,INDEX(Rates,MATCH(E14,CountryALL,0),MATCH($F$11,Category,0))) -> 0 | H14: =IFERROR(IF(T14="Error",0,ROUND(F14*G14,2)),0) -> 0 | I14: 0 | J14: =IF(T14="Error",0,INDEX(Rates,MATCH(E14,CountryALL,0),MATCH($I$11,Category,0))) -> 0 | K14: =IFERROR(IF(T14="Error",0,ROUND(I14*J14,2)),0) -> 0 | L14: 0 | M14: =IF(T14="Error",0,INDEX(Rates,MATCH(E14,CountryALL,0),MATCH($L$11,Category,0))) -> 0 | N14: =IFERROR(IF(T14="Error",0,ROUND(L14*M14,2)),0) -> 0 | O14: 0 | P14: =IF(T14="Error",0,INDEX(Rates,MATCH(E14,CountryALL,0),MATCH($O$11,Category,0))) -> 0 | Q14: =IFERROR(IF(T14="Error",0,ROUND(O14*P14,2)),0) -> 0 | R14: =IF(T14="Error",0,F14+I14+L14+O14) -> 0 | S14: =IF(T14="Error",0,H14+K14+N14+Q14) -> 0 | T14: =IF(OR(COUNTIF(WorkPackage,B14)=0,COUNTIF(PartnerN°,C14)=0,D14="",COUNTIF(CountryALL,E14)=0,ISNUMBER(F14)=FALSE,ISNUMBER(I14)=FALSE,ISNUMBER(L14)=FALSE,ISNUMBER(O14)=FALSE,IF(ISNUMBER(F14)=TRUE,F14=INT(F14*10)/10=FALSE),IF(ISNUMBER(I14)=TRUE,I14=INT(I14*10)/10=FALSE),IF(ISNUMBER(L14)=TRUE,L14=INT(L14*10)/10=FALSE),IF(ISNUMBER(O14)=TRUE,O14=INT(O14*10)/10=FALSE)),"Error","") -> Error

Sheet 2-3. Travel Costs&Costs of Stay
B2: 2-3. Travel Costs & Costs of Stay
B4: Travel Costs Student (EUR) | D4: =SUMIF(G:G,"Student",L:L) -> 0 | E4: =D4+D5 -> 0 | F4: =SUMIFS(H:H,G:G,"Student",O:O,"<>Error") -> 0
B5: Costs of Stay Student (EUR) | D5: =SUMIF(G:G,"Student",M:M) -> 0
B6: Travel Costs Staff (EUR) | D6: =SUMIF(G:G,"Staff",L:L) -> 0 | E6: =D6+D7 -> 0 | F6: =SUMIFS(H:H,G:G,"Staff",O:O,"<>Error") -> 0
B7: Costs of Stay Staff (EUR) | D7: =SUMIF(G:G,"Staff",M:M) -> 0
B8: Total Travel Costs (EUR) | D8: =SUM(L:L) -> 0 | E8: =D8+D9 -> 0 | F8: =F4+F6 -> 0
B9: Total Costs of Stay (EUR) | D9: =SUM(M:M) -> 0
B11: Work Package | C11: Partner N° | D11: Name of Partner (to encode in overview sheet) | E11: Country (to encode in overview sheet) | F11: City of Departure | G11: Student/ Staff | H11: Number of Participants | I11: City of Destination | J11: Travel Distance | K11: Number of days (per participant) | L11: Travel Costs (EUR) | M11: Costs of Stay (EUR) | N11: Total (EUR) | O11: Check Data Encoding
D13: =IFERROR(IF(VLOOKUP(C13,PartnerN°Ref,2,FALSE)=0,"",VLOOKUP(C13,PartnerN°Ref,2,FALSE)),"") ->  | E13: =IFERROR(IF(OR(VLOOKUP(C13,PartnerN°Ref,4,FALSE)="Country not found",VLOOKUP(C13,PartnerN°Ref,3,FALSE)=0),"",VLOOKUP(C13,PartnerN°Ref,3,FALSE)),"") ->  | H13: 0 | K13: 0 | L13: =IF(O13="Error",0,ROUND(ROUND(H13,0)*(VLOOKUP(J13,TravelCosts,2,FALSE)),2)) -> 0 | M13: =IF(O13="Error",0,IF(AND(G13="Staff",K13>0,K13<15),(120*K13)*H13,IF(AND(G13="Staff",K13>14,K13<61),(1680+((K13-14)*70))*H13,IF(AND(G13="Staff",K13>60,K13<91),(4900+((K13-60)*50))*H13,IF(AND(G13="Student",K13>0,K13<15),(55*K13)*H13,IF(AND(G13="Student",K13>14,K13<91),(770+((K13-14)*40))*H13,0)))))) -> 0 | N13: =L13+M13 -> 0 | O13: =IF(OR(COUNTIF(WorkPackage,B13)=0,COUNTIF(PartnerN°,C13)=0,D13="",COUNTIF(CountryALL,E13)=0,F13="",COUNTIF(Category2,G13)=0,ISNUMBER(H13)=FALSE,I13="",COUNTIF(TravelBands,J13)=0,ISNUMBER(K13)=FALSE,OR(K13<0,K13>90),IF(ISNUMBER(H13)=TRUE,H13=INT(H13*1)/1=FALSE),IF(ISNUMBER(K13)=TRUE,K13=INT(K13*1)/1=FALSE)),"Error","") -> Error
D14: =IFERROR(IF(VLOOKUP(C14,PartnerN°Ref,2,FALSE)=0,"",VLOOKUP(C14,PartnerN°Ref,2,FALSE)),"") ->  | E14: =IFERROR(IF(OR(VLOOKUP(C14,PartnerN°Ref,4,FALSE)="Country not found",VLOOKUP(C14,PartnerN°Ref,3,FALSE)=0),"",VLOOKUP(C14,PartnerN°Ref,3,FALSE)),"") ->  | H14: 0 | K14: 0 | L14: =IF(O14="Error",0,ROUND(ROUND(H14,0)*(VLOOKUP(J14,TravelCosts,2,FALSE)),2)) -> 0 | M14: =IF(O14="Error",0,IF(AND(G14="Staff",K14>0,K14<15),(120*K14)*H14,IF(AND(G14="Staff",K14>14,K14<61),(1680+((K14-14)*70))*H14,IF(AND(G14="Staff",K14>60,K14<91),(4900+((K14-60)*50))*H14,IF(AND(G14="Student",K14>0,K14<15),(55*K14)*H14,IF(AND(G14="Student",K14>14,K14<91),(770+((K14-14)*40))*H14,0)))))) -> 0 | N14: =L14+M14 -> 0 | O14: =IF(OR(COUNTIF(WorkPackage,B14)=0,COUNTIF(PartnerN°,C14)=0,D14="",COUNTIF(CountryALL,E14)=0,F14="",COUNTIF(Category2,G14)=0,ISNUMBER(H14)=FALSE,I14="",COUNTIF(TravelBands,J14)=0,ISNUMBER(K14)=FALSE,OR(K14<0,K14>90),IF(ISNUMBER(H14)=TRUE,H14=INT(H14*1)/1=FALSE),IF(ISNUMBER(K14)=TRUE,K14=INT(K14*1)/1=FALSE)),"Error","") -> Error

Sheet 4. Equipment Costs
B2: 4. Equipment Costs
B4: Total (EUR) | C4: =SUM(H:H) -> 0
B11: Work Package | C11: Partner N° | D11: Name of Partner (to encode in overview sheet) | E11: Country (to encode in overview sheet) | F11: Nature, type and specifications of the item | G11: Amount Excluding VAT (EUR) | H11: Total (EUR) | I11: Check Data Encoding
D13: =IFERROR(IF(VLOOKUP(C13,PartnerN°Ref,2,FALSE)=0,"",VLOOKUP(C13,PartnerN°Ref,2,FALSE)),"") ->  | E13: =IFERROR(IF(OR(VLOOKUP(C13,PartnerN°Ref,4,FALSE)="Country not found",VLOOKUP(C13,PartnerN°Ref,3,FALSE)=0),"",VLOOKUP(C13,PartnerN°Ref,3,FALSE)),"") ->  | G13: 0 | H13: =IF(I13="Error",0,ROUND(G13,2)) -> 0 | I13: =IF(OR(COUNTIF(WorkPackage,B13)=0,COUNTIF(PartnerN°,C13)=0,D13="",COUNTIF(CountryEligEquip,E13)=0,F13="",ISNUMBER(G13)=FALSE,IF(ISNUMBER(G13)=TRUE,G13=INT(G13*100)/100=FALSE)),"Error","") -> Error
D14: =IFERROR(IF(VLOOKUP(C14,PartnerN°Ref,2,FALSE)=0,"",VLOOKUP(C14,PartnerN°Ref,2,FALSE)),"") ->  | E14: =IFERROR(IF(OR(VLOOKUP(C14,PartnerN°Ref,4,FALSE)="Country not found",VLOOKUP(C14,PartnerN°Ref,3,FALSE)=0),"",VLOOKUP(C14,PartnerN°Ref,3,FALSE)),"") ->  | G14: 0 | H14: =IF(I14="Error",0,ROUND(G14,2)) -> 0 | I14: =IF(OR(COUNTIF(WorkPackage,B14)=0,COUNTIF(PartnerN°,C14)=0,D14="",COUNTIF(CountryEligEquip,E14)=0,F14="",ISNUMBER(G14)=FALSE,IF(ISNUMBER(G14)=TRUE,G14=INT(G14*100)/100=FALSE)),"Error","") -> Error

Sheet 5. Subcontracting Costs
B2: 5. Subcontracting Costs
B4: Total (EUR) | C4: =SUM(H:H) -> 0
B11: Work Package | C11: Partner N° | D11: Name of Partner (to encode in overview sheet) | E11: Country (to encode in overview sheet) | F11: Nature, type and specifications of the item | G11: Amount Excluding VAT (EUR) | H11: Total (EUR) | I11: Check Data Encoding
D13: =IFERROR(IF(VLOOKUP(C13,PartnerN°Ref,2,FALSE)=0,"",VLOOKUP(C13,PartnerN°Ref,2,FALSE)),"") ->  | E13: =IFERROR(IF(OR(VLOOKUP(C13,PartnerN°Ref,4,FALSE)="Country not found",VLOOKUP(C13,PartnerN°Ref,3,FALSE)=0),"",VLOOKUP(C13,PartnerN°Ref,3,FALSE)),"") ->  | G13: 0 | H13: =IF(I13="Error",0,ROUND(G13,2)) -> 0 | I13: =IF(OR(COUNTIF(WorkPackage,B13)=0,COUNTIF(PartnerN°,C13)=0,D13="",COUNTIF(CountryALL,E13)=0,F13="",ISNUMBER(G13)=FALSE,IF(ISNUMBER(G13)=TRUE,G13=INT(G13*100)/100=FALSE)),"Error","") -> Error
D14: =IFERROR(IF(VLOOKUP(C14,PartnerN°Ref,2,FALSE)=0,"",VLOOKUP(C14,PartnerN°Ref,2,FALSE)),"") ->  | E14: =IFERROR(IF(OR(VLOOKUP(C14,PartnerN°Ref,4,FALSE)="Country not found",VLOOKUP(C14,PartnerN°Ref,3,FALSE)=0),"",VLOOKUP(C14,PartnerN°Ref,3,FALSE)),"") ->  | G14: 0 | H14: =IF(I14="Error",0,ROUND(G14,2)) -> 0 | I14: =IF(OR(COUNTIF(WorkPackage,B14)=0,COUNTIF(PartnerN°,C14)=0,D14="",COUNTIF(CountryALL,E14)=0,F14="",ISNUMBER(G14)=FALSE,IF(ISNUMBER(G14)=TRUE,G14=INT(G14*100)/100=FALSE)),"Error","") -> Error

Sheet B. Special Mob Strand - Student
B2: B. Special Mobility Strand - Student
B4: Travel Costs | C4: =SUM(L:L) -> 0
B6: Subsistence Costs | C6: =SUM(M:M) -> 0
B8: Total (EUR) | C8: =C4+C6 -> 0
B11: Partner N° | C11: Name of Partner (to encode in overview sheet) | D11: Country (to encode in overview sheet) | E11: Category | F11: City of Departure | G11: Number of Participants | H11: Receiving country | I11: City of Destination | J11: Travel Distance | K11: Number of months (per participant) | L11: Travel Costs (EUR) | M11: Subsistence Costs (EUR) | N11: Total (EUR) | O11: Check Data Encoding
C13: =IFERROR(IF(VLOOKUP(B13,PartnerN°Ref,2,FALSE)=0,"",VLOOKUP(B13,PartnerN°Ref,2,FALSE)),"") ->  | D13: =IFERROR(IF(OR(VLOOKUP(B13,PartnerN°Ref,4,FALSE)="Country not found",VLOOKUP(B13,PartnerN°Ref,3,FALSE)=0),"",VLOOKUP(B13,PartnerN°Ref,3,FALSE)),"") ->  | E13: =IF(D13="","",CONCATENATE("Students from"," ",VLOOKUP(D13,CountryType,2,FALSE))) ->  | G13: 0 | L13: =IF(O13="Error",0,ROUND(ROUND(G13,0)*(VLOOKUP(J13,TravelCosts,2,FALSE)),2)) -> 0 | M13: =IF(O13="Error",0,ROUND(ROUND(G13,0)*(ROUND(K13,0)*(INDEX(Rates,MATCH(H13,CountryALL,0),MATCH(E13,Category,0)))),2)) -> 0 | N13: =L13+M13 -> 0 | O13: =IF(OR(COUNTIF(PartnerN°,B13)=0,C13="",COUNTIF(SMSCountry,D13)=0,COUNTIF(Category,E13)=0,F13="",ISNUMBER(G13)=FALSE,COUNTIF(SMSCountry,H13)=0,I13="",COUNTIF(TravelBands,J13)=0,ISNUMBER(K13)=FALSE,COUNTIF(StudentSMSMonths,K13)=0,P13=1,Q13=1,R13=1,IF(ISNUMBER(G13)=TRUE,G13=INT(G13*1)/1=FALSE),IF(ISNUMBER(K13)=TRUE,K13=INT(K13*1)/1=FALSE)),"Error","") -> Error | P13: =IF(AND(COUNTIF(EUCountry,D13)=1,COUNTIF(EUCountry,H13)=1),1,0) -> 0 | Q13: =IF(AND(D13<>"",COUNTIF(SMSCountry,D13)=0),1,0) -> 0 | R13: =IF(AND(H13<>"",COUNTIF(SMSCountry,H13)=0),1,0) -> 0
C14: =IFERROR(IF(VLOOKUP(B14,PartnerN°Ref,2,FALSE)=0,"",VLOOKUP(B14,PartnerN°Ref,2,FALSE)),"") ->  | D14: =IFERROR(IF(OR(VLOOKUP(B14,PartnerN°Ref,4,FALSE)="Country not found",VLOOKUP(B14,PartnerN°Ref,3,FALSE)=0),"",VLOOKUP(B14,PartnerN°Ref,3,FALSE)),"") ->  | E14: =IF(D14="","",CONCATENATE("Students from"," ",VLOOKUP(D14,CountryType,2,FALSE))) ->  | G14: 0 | L14: =IF(O14="Error",0,ROUND(ROUND(G14,0)*(VLOOKUP(J14,TravelCosts,2,FALSE)),2)) -> 0 | M14: =IF(O14="Error",0,ROUND(ROUND(G14,0)*(ROUND(K14,0)*(INDEX(Rates,MATCH(H14,CountryALL,0),MATCH(E14,Category,0)))),2)) -> 0 | N14: =L14+M14 -> 0 | O14: =IF(OR(COUNTIF(PartnerN°,B14)=0,C14="",COUNTIF(SMSCountry,D14)=0,COUNTIF(Category,E14)=0,F14="",ISNUMBER(G14)=FALSE,COUNTIF(SMSCountry,H14)=0,I14="",COUNTIF(TravelBands,J14)=0,ISNUMBER(K14)=FALSE,COUNTIF(StudentSMSMonths,K14)=0,P14=1,Q14=1,R14=1,IF(ISNUMBER(G14)=TRUE,G14=INT(G14*1)/1=FALSE),IF(ISNUMBER(K14)=TRUE,K14=INT(K14*1)/1=FALSE)),"Error","") -> Error | P14: =IF(AND(COUNTIF(EUCountry,D14)=1,COUNTIF(EUCountry,H14)=1),1,0) -> 0 | Q14: =IF(AND(D14<>"",COUNTIF(SMSCountry,D14)=0),1,0) -> 0 | R14: =IF(AND(H14<>"",COUNTIF(SMSCountry,H14)=0),1,0) -> 0

Sheet B. Special Mob Strand - Staff
B2: B. Special Mobility Strand - Staff
B4: Travel Costs | C4: =SUM(L:L) -> 0
B6: Subsistence Costs | C6: =SUM(M:M) -> 0
B8: Total (EUR) | C8: =C4+C6 -> 0
B11: Partner N° | C11: Name of Partner (to encode in overview sheet) | D11: Country (to encode in overview sheet) | E11: Category | F11: City of Departure | G11: Number of Participants | H11: Receiving country | I11: City of Destination | J11: Travel Distance | K11: Number of days (per participant) | L11: Travel Costs (EUR) | M11: Subsistence Costs (EUR) | N11: Total (EUR) | O11: Check Data Encoding
C13: =IFERROR(IF(VLOOKUP(B13,PartnerN°Ref,2,FALSE)=0,"",VLOOKUP(B13,PartnerN°Ref,2,FALSE)),"") ->  | D13: =IFERROR(IF(OR(VLOOKUP(B13,PartnerN°Ref,4,FALSE)="Country not found",VLOOKUP(B13,PartnerN°Ref,3,FALSE)=0),"",VLOOKUP(B13,PartnerN°Ref,3,FALSE)),"") ->  | E13: =IF(D13="","",CONCATENATE("Staff from"," ",VLOOKUP(D13,CountryType,2,FALSE))) ->  | G13: 0 | L13: =IF(O13="Error",0,ROUND(ROUND(G13,0)*(VLOOKUP(J13,TravelCosts,2,FALSE)),2)) -> 0 | M13: =IF(O13="Error",0,ROUND(IF(AND(ROUND(K13,0)>0,ROUND(K13,0)<=14),ROUND(G13,0)*(ROUND(K13,0)*(INDEX(Rates,MATCH(H13,CountryALL,0),MATCH(E13,Category,0)))),IF(AND(ROUND(K13,0)>14,ROUND(K13,0)<=60),ROUND(G13,0)*((14*(INDEX(Rates,MATCH(H13,CountryALL,0),MATCH(E13,Category,0)))))+ROUND(G13,0)*(((ROUND(K13,0)-14)*(0.7*INDEX(Rates,MATCH(H13,CountryALL,0),MATCH(E13,Category,0))))),IF(ROUND(K13,0)>60,0))),2)) -> 0 | N13: =L13+M13 -> 0 | O13: =IF(OR(COUNTIF(PartnerN°,B13)=0,C13="",COUNTIF(SMSCountry,D13)=0,COUNTIF(Category,E13)=0,F13="",ISNUMBER(G13)=FALSE,COUNTIF(SMSCountry,H13)=0,I13="",COUNTIF(TravelBands,J13)=0,ISNUMBER(K13)=FALSE,COUNTIF(StaffSMSDays,K13)=0,P13=1,Q13=1,R13=1,IF(ISNUMBER(G13)=TRUE,G13=INT(G13*1)/1=FALSE),IF(ISNUMBER(K13)=TRUE,K13=INT(K13*1)/1=FALSE)),"Error","") -> Error | P13: =IF(AND(COUNTIF(EUCountry,D13)=1,COUNTIF(EUCountry,H13)=1),1,0) -> 0 | Q13: =IF(AND(D13<>"",COUNTIF(SMSCountry,D13)=0),1,0) -> 0 | R13: =IF(AND(H13<>"",COUNTIF(SMSCountry,H13)=0),1,0) -> 0
C14: =IFERROR(IF(VLOOKUP(B14,PartnerN°Ref,2,FALSE)=0,"",VLOOKUP(B14,PartnerN°Ref,2,FALSE)),"") ->  | D14: =IFERROR(IF(OR(VLOOKUP(B14,PartnerN°Ref,4,FALSE)="Country not found",VLOOKUP(B14,PartnerN°Ref,3,FALSE)=0),"",VLOOKUP(B14,PartnerN°Ref,3,FALSE)),"") ->  | E14: =IF(D14="","",CONCATENATE("Staff from"," ",VLOOKUP(D14,CountryType,2,FALSE))) ->  | G14: 0 | L14: =IF(O14="Error",0,ROUND(ROUND(G14,0)*(VLOOKUP(J14,TravelCosts,2,FALSE)),2)) -> 0 | M14: =IF(O14="Error",0,ROUND(IF(AND(ROUND(K14,0)>0,ROUND(K14,0)<=14),ROUND(G14,0)*(ROUND(K14,0)*(INDEX(Rates,MATCH(H14,CountryALL,0),MATCH(E14,Category,0)))),IF(AND(ROUND(K14,0)>14,ROUND(K14,0)<=60),ROUND(G14,0)*((14*(INDEX(Rates,MATCH(H14,CountryALL,0),MATCH(E14,Category,0)))))+ROUND(G14,0)*(((ROUND(K14,0)-14)*(0.7*INDEX(Rates,MATCH(H14,CountryALL,0),MATCH(E14,Category,0))))),IF(ROUND(K14,0)>60,0))),2)) -> 0 | N14: 0 | O14: =IF(OR(COUNTIF(PartnerN°,B14)=0,C14="",COUNTIF(SMSCountry,D14)=0,COUNTIF(Category,E14)=0,F14="",ISNUMBER(G14)=FALSE,COUNTIF(SMSCountry,H14)=0,I14="",COUNTIF(TravelBands,J14)=0,ISNUMBER(K14)=FALSE,COUNTIF(StaffSMSDays,K14)=0,P14=1,Q14=1,R14=1,IF(ISNUMBER(G14)=TRUE,G14=INT(G14*1)/1=FALSE),IF(ISNUMBER(K14)=TRUE,K14=INT(K14*1)/1=FALSE)),"Error","") -> Error | P14: =IF(AND(COUNTIF(EUCountry,D14)=1,COUNTIF(EUCountry,H14)=1),1,0) -> 0 | Q14: =IF(AND(D14<>"",COUNTIF(SMSCountry,D14)=0),1,0) -> 0 | R14: =IF(AND(H14<>"",COUNTIF(SMSCountry,H14)=0),1,0) -> 0

Sheet Co-financing
B2: Information for the Co-financing
B4: Total (EUR) | C4: =SUM(I:I) -> 0
B11: Partner N° | C11: Name of Partner (to encode in overview sheet) | D11: Country (to encode in overview sheet) | E11: Item* | F11: Source of Co-financing** | G11: Justification*** | H11: Amount Excluding VAT (EUR) | I11: Total (EUR) | J11: Check Data Encoding
C13: =IFERROR(IF(VLOOKUP(B13,PartnerN°Ref,2,FALSE)=0,"",VLOOKUP(B13,PartnerN°Ref,2,FALSE)),"") ->  | D13: =IFERROR(IF(OR(VLOOKUP(B13,PartnerN°Ref,4,FALSE)="Country not found",VLOOKUP(B13,PartnerN°Ref,3,FALSE)=0),"",VLOOKUP(B13,PartnerN°Ref,3,FALSE)),"") ->  | H13: 0 | I13: =IF(J13="Error",0,ROUND(H13,2)) -> 0 | J13: =IF(OR(COUNTIF(PartnerN°,B13)=0,C13="",COUNTIF(CountryALL,D13)=0,E13="",F13="",G13="",ISNUMBER(H13)=FALSE,IF(ISNUMBER(H13)=TRUE,H13=INT(H13*100)/100=FALSE)),"Error","") -> Error
C14: =IFERROR(IF(VLOOKUP(B14,PartnerN°Ref,2,FALSE)=0,"",VLOOKUP(B14,PartnerN°Ref,2,FALSE)),"") ->  | D14: =IFERROR(IF(OR(VLOOKUP(B14,PartnerN°Ref,4,FALSE)="Country not found",VLOOKUP(B14,PartnerN°Ref,3,FALSE)=0),"",VLOOKUP(B14,PartnerN°Ref,3,FALSE)),"") ->  | H14: 0 | I14: =IF(J14="Error",0,ROUND(H14,2)) -> 0 | J14: =IF(OR(COUNTIF(PartnerN°,B14)=0,C14="",COUNTIF(CountryALL,D14)=0,E14="",F14="",G14="",ISNUMBER(H14)=FALSE,IF(ISNUMBER(H14)=TRUE,H14=INT(H14*100)/100=FALSE)),"Error","") -> Error
B16: * e.g.: Equipment, Staff costs, travel costs and/or costs of stay, printing & publishing
B17: ** e.g.: governmental grant, organisation/institution's own resources
B18: *** e.g.: Preparation of training materials - 2 days x 7,5 hours x 3 persons x € 25

Sheet Breakdown & Project Funding
B2: Budget Breakdown by Workpackage / Budget Headings
B4: Work Package | C4: 1. Staff Costs | D4: 2. Travel Costs | E4: 3. Costs of Stay | F4: 4. Equipment Costs | G4: 5. Subcontracting Costs | H4: B. Special Mobility Strand | I4: Total (EUR)
B5: =Rates!P14 -> Preparation | C5: =SUMIF('1. Staff costs'!B:B,B5,'1. Staff costs'!S:S) -> 0 | D5: =SUMIF('2-3. Travel Costs&Costs of Stay'!B:B,B5,'2-3. Travel Costs&Costs of Stay'!L:L) -> 0 | E5: =SUMIF('2-3. Travel Costs&Costs of Stay'!B:B,B5,'2-3. Travel Costs&Costs of Stay'!M:M) -> 0 | F5: =SUMIF('4. Equipment Costs'!B:B,B5,'4. Equipment Costs'!H:H) -> 0 | G5: =SUMIF('5. Subcontracting Costs'!B:B,B5,'5. Subcontracting Costs'!H:H) -> 0 | I5: =SUM(C5:G5) -> 0
B6: =Rates!P15 -> Development | C6: =SUMIF('1. Staff costs'!B:B,B6,'1. Staff costs'!S:S) -> 0 | D6: =SUMIF('2-3. Travel Costs&Costs of Stay'!B:B,B6,'2-3. Travel Costs&Costs of Stay'!L:L) -> 0 | E6: =SUMIF('2-3. Travel Costs&Costs of Stay'!B:B,B6,'2-3. Travel Costs&Costs of Stay'!M:M) -> 0 | F6: =SUMIF('4. Equipment Costs'!B:B,B6,'4. Equipment Costs'!H:H) -> 0 | G6: =SUMIF('5. Subcontracting Costs'!B:B,B6,'5. Subcontracting Costs'!H:H) -> 0 | I6: =SUM(C6:G6) -> 0
B7: =Rates!P16 -> Quality Plan | C7: =SUMIF('1. Staff costs'!B:B,B7,'1. Staff costs'!S:S) -> 0 | D7: =SUMIF('2-3. Travel Costs&Costs of Stay'!B:B,B7,'2-3. Travel Costs&Costs of Stay'!L:L) -> 0 | E7: =SUMIF('2-3. Travel Costs&Costs of Stay'!B:B,B7,'2-3. Travel Costs&Costs of Stay'!M:M) -> 0 | F7: =SUMIF('4. Equipment Costs'!B:B,B7,'4. Equipment Costs'!H:H) -> 0 | G7: =SUMIF('5. Subcontracting Costs'!B:B,B7,'5. Subcontracting Costs'!H:H) -> 0 | I7: 0
B8: =Rates!P17 -> Dissemination & Exploitation | C8: =SUMIF('1. Staff costs'!B:B,B8,'1. Staff costs'!S:S) -> 0 | D8: =SUMIF('2-3. Travel Costs&Costs of Stay'!B:B,B8,'2-3. Travel Costs&Costs of Stay'!L:L) -> 0 | E8: =SUMIF('2-3. Travel Costs&Costs of Stay'!B:B,B8,'2-3. Travel Costs&Costs of Stay'!M:M) -> 0 | F8: =SUMIF('4. Equipment Costs'!B:B,B8,'4. Equipment Costs'!H:H) -> 0 | G8: =SUMIF('5. Subcontracting Costs'!B:B,B8,'5. Subcontracting Costs'!H:H) -> 0 | I8: 0
B9: =Rates!P18 -> Management | C9: =SUMIF('1. Staff costs'!B:B,B9,'1. Staff costs'!S:S) -> 0 | D9: =SUMIF('2-3. Travel Costs&Costs of Stay'!B:B,B9,'2-3. Travel Costs&Costs of Stay'!L:L) -> 0 | E9: =SUMIF('2-3. Travel Costs&Costs of Stay'!B:B,B9,'2-3. Travel Costs&Costs of Stay'!M:M) -> 0 | F9: =SUMIF('4. Equipment Costs'!B:B,B9,'4. Equipment Costs'!H:H) -> 0 | G9: =SUMIF('5. Subcontracting Costs'!B:B,B9,'5. Subcontracting Costs'!H:H) -> 0 | I9: 0
B10: Total | C10: =SUM(C5:C9) -> 0 | D10: 0 | E10: 0 | F10: 0 | G10: =SUM(G5:G9) -> 0 | H10: ='B. Special Mob Strand - Student'!C8+'B. Special Mob Strand - Staff'!C8 -> 0 | I10: =SUM(C10:H10) -> 0
B14: Budget Breakdown by Programme or Partner Countries / Budget Headings
B16: Countries | C16: 1. Staff Costs | D16: 2. Travel Costs | E16: 3. Costs of Stay | F16: 4. Equipment Costs | G16: 5. Subcontracting Costs | H16: B. Special Mobility Strand | I16: Total (EUR)
B17: Programme Countries | C17: =SUMIF(Overview!$E$33:$E$87,B17,Overview!$F$33:$F$87) -> 0 | D17: =SUMIF(Overview!$E$33:$E$87,B17,Overview!$G$33:$G$87) -> 0 | E17: =SUMIF(Overview!$E$33:$E$87,B17,Overview!$H$33:$H$87) -> 0 | F17: =SUMIF(Overview!$E$33:$E$87,B17,Overview!$I$33:$I$87) -> 0 | G17: =SUMIF(Overview!$E$33:$E$87,B17,Overview!$J$33:$J$87) -> 0 | H17: =SUMIF(Overview!$E$33:$E$87,B17,Overview!$K$33:$K$87) -> 0 | I17: =SUM(C17:H17) -> 0
B18: Partner Countries | C18: =SUMIF(Overview!$E$33:$E$87,B18,Overview!$F$33:$F$87) -> 0 | D18: =SUMIF(Overview!$E$33:$E$87,B18,Overview!$G$33:$G$87) -> 0 | E18: =SUMIF(Overview!$E$33:$E$87,B18,Overview!$H$33:$H$87) -> 0 | F18: =SUMIF(Overview!$E$33:$E$87,B18,Overview!$I$33:$I$87) -> 0 | G18: =SUMIF(Overview!$E$33:$E$87,B18,Overview!$J$33:$J$87) -> 0 | H18: =SUMIF(Overview!$E$33:$E$87,B18,Overview!$K$33:$K$87) -> 0 | I18: =SUM(C18:H18) -> 0
B19: Total | C19: =SUM(C17:C18) -> 0 | D19: 0 | E19: 0 | F19: 0 | G19: 0 | H19: 0 | I19: =SUM(C19:H19) -> 0
B23: Budget Breakdown by Partner / Work Package
B25: Partner N° | C25: =Rates!P14 -> Preparation | D25: =Rates!P15 -> Development | E25: =Rates!P16 -> Quality Plan | F25: =Rates!P17 -> Dissemination & Exploitation | G25: =Rates!P18 -> Management | H25: B. Special Mobility Strand | I25: Total (EUR)
B26: P1 | C26: =SUMIFS('1. Staff costs'!S:S,'1. Staff costs'!C:C,B26,'1. Staff costs'!B:B,$C$25)+SUMIFS('2-3. Travel Costs&Costs of Stay'!N:N,'2-3. Travel Costs&Costs of Stay'!C:C,B26,'2-3. Travel Costs&Costs of Stay'!B:B,$C$25)+SUMIFS('4. Equipment Costs'!H:H,'4. Equipment Costs'!C:C,B26,'4. Equipment Costs'!B:B,$C$25)+SUMIFS('5. Subcontracting Costs'!H:H,'5. Subcontracting Costs'!C:C,B26,'5. Subcontracting Costs'!B:B,$C$25) -> 0 | D26: =SUMIFS('1. Staff costs'!S:S,'1. Staff costs'!C:C,B26,'1. Staff costs'!B:B,$D$25)+SUMIFS('2-3. Travel Costs&Costs of Stay'!N:N,'2-3. Travel Costs&Costs of Stay'!C:C,B26,'2-3. Travel Costs&Costs of Stay'!B:B,$D$25)+SUMIFS('4. Equipment Costs'!H:H,'4. Equipment Costs'!C:C,B26,'4. Equipment Costs'!B:B,$D$25)+SUMIFS('5. Subcontracting Costs'!H:H,'5. Subcontracting Costs'!C:C,B26,'5. Subcontracting Costs'!B:B,$D$25) -> 0 | E26: =SUMIFS('1. Staff costs'!S:S,'1. Staff costs'!C:C,B26,'1. Staff costs'!B:B,$E$25)+SUMIFS('2-3. Travel Costs&Costs of Stay'!N:N,'2-3. Travel Costs&Costs of Stay'!C:C,B26,'2-3. Travel Costs&Costs of Stay'!B:B,$E$25)+SUMIFS('4. Equipment Costs'!H:H,'4. Equipment Costs'!C:C,B26,'4. Equipment Costs'!B:B,$E$25)+SUMIFS('5. Subcontracting Costs'!H:H,'5. Subcontracting Costs'!C:C,B26,'5. Subcontracting Costs'!B:B,$E$25) -> 0 | F26: =SUMIFS('1. Staff costs'!S:S,'1. Staff costs'!C:C,B26,'1. Staff costs'!B:B,$B$8)+SUMIFS('2-3. Travel Costs&Costs of Stay'!N:N,'2-3. Travel Costs&Costs of Stay'!C:C,B26,'2-3. Travel Costs&Costs of Stay'!B:B,$B$8)+SUMIFS('4. Equipment Costs'!H:H,'4. Equipment Costs'!C:C,B26,'4. Equipment Costs'!B:B,$B$8)+SUMIFS('5. Subcontracting Costs'!H:H,'5. Subcontracting Costs'!C:C,B26,'5. Subcontracting Costs'!B:B,$B$8) -> 0 | G26: =SUMIFS('1. Staff costs'!S:S,'1. Staff costs'!C:C,B26,'1. Staff costs'!B:B,$G$25)+SUMIFS('2-3. Travel Costs&Costs of Stay'!N:N,'2-3. Travel Costs&Costs of Stay'!C:C,B26,'2-3. Travel Costs&Costs of Stay'!B:B,$G$25)+SUMIFS('4. Equipment Costs'!H:H,'4. Equipment Costs'!C:C,B26,'4. Equipment Costs'!B:B,$G$25)+SUMIFS('5. Subcontracting Costs'!H:H,'5. Subcontracting Costs'!C:C,B26,'5. Subcontracting Costs'!B:B,$G$25) -> 0 | H26: =SUMIF('B. Special Mob Strand - Student'!B:B,B26,'B. Special Mob Strand - Student'!N:N)+SUMIF('B. Special Mob Strand - Staff'!B:B,B26,'B. Special Mob Strand - Staff'!N:N) -> 0 | I26: =SUM(C26:H26) -> 0
B27: P2 | C27: =SUMIFS('1. Staff costs'!S:S,'1. Staff costs'!C:C,B27,'1. Staff costs'!B:B,$C$25)+SUMIFS('2-3. Travel Costs&Costs of Stay'!N:N,'2-3. Travel Costs&Costs of Stay'!C:C,B27,'2-3. Travel Costs&Costs of Stay'!B:B,$C$25)+SUMIFS('4. Equipment Costs'!H:H,'4. Equipment Costs'!C:C,B27,'4. Equipment Costs'!B:B,$C$25)+SUMIFS('5. Subcontracting Costs'!H:H,'5. Subcontracting Costs'!C:C,B27,'5. Subcontracting Costs'!B:B,$C$25) -> 0 | D27: =SUMIFS('1. Staff costs'!S:S,'1. Staff costs'!C:C,B27,'1. Staff costs'!B:B,$D$25)+SUMIFS('2-3. Travel Costs&Costs of Stay'!N:N,'2-3. Travel Costs&Costs of Stay'!C:C,B27,'2-3. Travel Costs&Costs of Stay'!B:B,$D$25)+SUMIFS('4. Equipment Costs'!H:H,'4. Equipment Costs'!C:C,B27,'4. Equipment Costs'!B:B,$D$25)+SUMIFS('5. Subcontracting Costs'!H:H,'5. Subcontracting Costs'!C:C,B27,'5. Subcontracting Costs'!B:B,$D$25) -> 0 | E27: =SUMIFS('1. Staff costs'!S:S,'1. Staff costs'!C:C,B27,'1. Staff costs'!B:B,$E$25)+SUMIFS('2-3. Travel Costs&Costs of Stay'!N:N,'2-3. Travel Costs&Costs of Stay'!C:C,B27,'2-3. Travel Costs&Costs of Stay'!B:B,$E$25)+SUMIFS('4. Equipment Costs'!H:H,'4. Equipment Costs'!C:C,B27,'4. Equipment Costs'!B:B,$E$25)+SUMIFS('5. Subcontracting Costs'!H:H,'5. Subcontracting Costs'!C:C,B27,'5. Subcontracting Costs'!B:B,$E$25) -> 0 | F27: =SUMIFS('1. Staff costs'!S:S,'1. Staff costs'!C:C,B27,'1. Staff costs'!B:B,$B$8)+SUMIFS('2-3. Travel Costs&Costs of Stay'!N:N,'2-3. Travel Costs&Costs of Stay'!C:C,B27,'2-3. Travel Costs&Costs of Stay'!B:B,$B$8)+SUMIFS('4. Equipment Costs'!H:H,'4. Equipment Costs'!C:C,B27,'4. Equipment Costs'!B:B,$B$8)+SUMIFS('5. Subcontracting Costs'!H:H,'5. Subcontracting Costs'!C:C,B27,'5. Subcontracting Costs'!B:B,$B$8) -> 0 | G27: =SUMIFS('1. Staff costs'!S:S,'1. Staff costs'!C:C,B27,'1. Staff costs'!B:B,$G$25)+SUMIFS('2-3. Travel Costs&Costs of Stay'!N:N,'2-3. Travel Costs&Costs of Stay'!C:C,B27,'2-3. Travel Costs&Costs of Stay'!B:B,$G$25)+SUMIFS('4. Equipment Costs'!H:H,'4. Equipment Costs'!C:C,B27,'4. Equipment Costs'!B:B,$G$25)+SUMIFS('5. Subcontracting Costs'!H:H,'5. Subcontracting Costs'!C:C,B27,'5. Subcontracting Costs'!B:B,$G$25) -> 0 | H27: =SUMIF('B. Special Mob Strand - Student'!B:B,B27,'B. Special Mob Strand - Student'!N:N)+SUMIF('B. Special Mob Strand - Staff'!B:B,B27,'B. Special Mob Strand - Staff'!N:N) -> 0 | I27: =SUM(C27:H27) -> 0
B28: P3 | C28: =SUMIFS('1. Staff costs'!S:S,'1. Staff costs'!C:C,B28,'1. Staff costs'!B:B,$C$25)+SUMIFS('2-3. Travel Costs&Costs of Stay'!N:N,'2-3. Travel Costs&Costs of Stay'!C:C,B28,'2-3. Travel Costs&Costs of Stay'!B:B,$C$25)+SUMIFS('4. Equipment Costs'!H:H,'4. Equipment Costs'!C:C,B28,'4. Equipment Costs'!B:B,$C$25)+SUMIFS('5. Subcontracting Costs'!H:H,'5. Subcontracting Costs'!C:C,B28,'5. Subcontracting Costs'!B:B,$C$25) -> 0 | D28: =SUMIFS('1. Staff costs'!S:S,'1. Staff costs'!C:C,B28,'1. Staff costs'!B:B,$D$25)+SUMIFS('2-3. Travel Costs&Costs of Stay'!N:N,'2-3. Travel Costs&Costs of Stay'!C:C,B28,'2-3. Travel Costs&Costs of Stay'!B:B,$D$25)+SUMIFS('4. Equipment Costs'!H:H,'4. Equipment Costs'!C:C,B28,'4. Equipment Costs'!B:B,$D$25)+SUMIFS('5. Subcontracting Costs'!H:H,'5. Subcontracting Costs'!C:C,B28,'5. Subcontracting Costs'!B:B,$D$25) -> 0 | E28: =SUMIFS('1. Staff costs'!S:S,'1. Staff costs'!C:C,B28,'1. Staff costs'!B:B,$E$25)+SUMIFS('2-3. Travel Costs&Costs of Stay'!N:N,'2-3. Travel Costs&Costs of Stay'!C:C,B28,'2-3. Travel Costs&Costs of Stay'!B:B,$E$25)+SUMIFS('4. Equipment Costs'!H:H,'4. Equipment Costs'!C:C,B28,'4. Equipment Costs'!B:B,$E$25)+SUMIFS('5. Subcontracting Costs'!H:H,'5. Subcontracting Costs'!C:C,B28,'5. Subcontracting Costs'!B:B,$E$25) -> 0 | F28: =SUMIFS('1. Staff costs'!S:S,'1. Staff costs'!C:C,B28,'1. Staff costs'!B:B,$B$8)+SUMIFS('2-3. Travel Costs&Costs of Stay'!N:N,'2-3. Travel Costs&Costs of Stay'!C:C,B28,'2-3. Travel Costs&Costs of Stay'!B:B,$B$8)+SUMIFS('4. Equipment Costs'!H:H,'4. Equipment Costs'!C:C,B28,'4. Equipment Costs'!B:B,$B$8)+SUMIFS('5. Subcontracting Costs'!H:H,'5. Subcontracting Costs'!C:C,B28,'5. Subcontracting Costs'!B:B,$B$8) -> 0 | G28: =SUMIFS('1. Staff costs'!S:S,'1. Staff costs'!C:C,B28,'1. Staff costs'!B:B,$G$25)+SUMIFS('2-3. Travel Costs&Costs of Stay'!N:N,'2-3. Travel Costs&Costs of Stay'!C:C,B28,'2-3. Travel Costs&Costs of Stay'!B:B,$G$25)+SUMIFS('4. Equipment Costs'!H:H,'4. Equipment Costs'!C:C,B28,'4. Equipment Costs'!B:B,$G$25)+SUMIFS('5. Subcontracting Costs'!H:H,'5. Subcontracting Costs'!C:C,B28,'5. Subcontracting Costs'!B:B,$G$25) -> 0 | H28: =SUMIF('B. Special Mob Strand - Student'!B:B,B28,'B. Special Mob Strand - Student'!N:N)+SUMIF('B. Special Mob Strand - Staff'!B:B,B28,'B. Special Mob Strand - Staff'!N:N) -> 0 | I28: 0
B29: P4 | C29: =SUMIFS('1. Staff costs'!S:S,'1. Staff costs'!C:C,B29,'1. Staff costs'!B:B,$C$25)+SUMIFS('2-3. Travel Costs&Costs of Stay'!N:N,'2-3. Travel Costs&Costs of Stay'!C:C,B29,'2-3. Travel Costs&Costs of Stay'!B:B,$C$25)+SUMIFS('4. Equipment Costs'!H:H,'4. Equipment Costs'!C:C,B29,'4. Equipment Costs'!B:B,$C$25)+SUMIFS('5. Subcontracting Costs'!H:H,'5. Subcontracting Costs'!C:C,B29,'5. Subcontracting Costs'!B:B,$C$25) -> 0 | D29: =SUMIFS('1. Staff costs'!S:S,'1. Staff costs'!C:C,B29,'1. Staff costs'!B:B,$D$25)+SUMIFS('2-3. Travel Costs&Costs of Stay'!N:N,'2-3. Travel Costs&Costs of Stay'!C:C,B29,'2-3. Travel Costs&Costs of Stay'!B:B,$D$25)+SUMIFS('4. Equipment Costs'!H:H,'4. Equipment Costs'!C:C,B29,'4. Equipment Costs'!B:B,$D$25)+SUMIFS('5. Subcontracting Costs'!H:H,'5. Subcontracting Costs'!C:C,B29,'5. Subcontracting Costs'!B:B,$D$25) -> 0 | E29: =SUMIFS('1. Staff costs'!S:S,'1. Staff costs'!C:C,B29,'1. Staff costs'!B:B,$E$25)+SUMIFS('2-3. Travel Costs&Costs of Stay'!N:N,'2-3. Travel Costs&Costs of Stay'!C:C,B29,'2-3. Travel Costs&Costs of Stay'!B:B,$E$25)+SUMIFS('4. Equipment Costs'!H:H,'4. Equipment Costs'!C:C,B29,'4. Equipment Costs'!B:B,$E$25)+SUMIFS('5. Subcontracting Costs'!H:H,'5. Subcontracting Costs'!C:C,B29,'5. Subcontracting Costs'!B:B,$E$25) -> 0 | F29: =SUMIFS('1. Staff costs'!S:S,'1. Staff costs'!C:C,B29,'1. Staff costs'!B:B,$B$8)+SUMIFS('2-3. Travel Costs&Costs of Stay'!N:N,'2-3. Travel Costs&Costs of Stay'!C:C,B29,'2-3. Travel Costs&Costs of Stay'!B:B,$B$8)+SUMIFS('4. Equipment Costs'!H:H,'4. Equipment Costs'!C:C,B29,'4. Equipment Costs'!B:B,$B$8)+SUMIFS('5. Subcontracting Costs'!H:H,'5. Subcontracting Costs'!C:C,B29,'5. Subcontracting Costs'!B:B,$B$8) -> 0 | G29: =SUMIFS('1. Staff costs'!S:S,'1. Staff costs'!C:C,B29,'1. Staff costs'!B:B,$G$25)+SUMIFS('2-3. Travel Costs&Costs of Stay'!N:N,'2-3. Travel Costs&Costs of Stay'!C:C,B29,'2-3. Travel Costs&Costs of Stay'!B:B,$G$25)+SUMIFS('4. Equipment Costs'!H:H,'4. Equipment Costs'!C:C,B29,'4. Equipment Costs'!B:B,$G$25)+SUMIFS('5. Subcontracting Costs'!H:H,'5. Subcontracting Costs'!C:C,B29,'5. Subcontracting Costs'!B:B,$G$25) -> 0 | H29: =SUMIF('B. Special Mob Strand - Student'!B:B,B29,'B. Special Mob Strand - Student'!N:N)+SUMIF('B. Special Mob Strand - Staff'!B:B,B29,'B. Special Mob Strand - Staff'!N:N) -> 0 | I29: 0
B30: P5 | C30: =SUMIFS('1. Staff costs'!S:S,'1. Staff costs'!C:C,B30,'1. Staff costs'!B:B,$C$25)+SUMIFS('2-3. Travel Costs&Costs of Stay'!N:N,'2-3. Travel Costs&Costs of Stay'!C:C,B30,'2-3. Travel Costs&Costs of Stay'!B:B,$C$25)+SUMIFS('4. Equipment Costs'!H:H,'4. Equipment Costs'!C:C,B30,'4. Equipment Costs'!B:B,$C$25)+SUMIFS('5. Subcontracting Costs'!H:H,'5. Subcontracting Costs'!C:C,B30,'5. Subcontracting Costs'!B:B,$C$25) -> 0 | D30: =SUMIFS('1. Staff costs'!S:S,'1. Staff costs'!C:C,B30,'1. Staff costs'!B:B,$D$25)+SUMIFS('2-3. Travel Costs&Costs of Stay'!N:N,'2-3. Travel Costs&Costs of Stay'!C:C,B30,'2-3. Travel Costs&Costs of Stay'!B:B,$D$25)+SUMIFS('4. Equipment Costs'!H:H,'4. Equipment Costs'!C:C,B30,'4. Equipment Costs'!B:B,$D$25)+SUMIFS('5. Subcontracting Costs'!H:H,'5. Subcontracting Costs'!C:C,B30,'5. Subcontracting Costs'!B:B,$D$25) -> 0 | E30: =SUMIFS('1. Staff costs'!S:S,'1. Staff costs'!C:C,B30,'1. Staff costs'!B:B,$E$25)+SUMIFS('2-3. Travel Costs&Costs of Stay'!N:N,'2-3. Travel Costs&Costs of Stay'!C:C,B30,'2-3. Travel Costs&Costs of Stay'!B:B,$E$25)+SUMIFS('4. Equipment Costs'!H:H,'4. Equipment Costs'!C:C,B30,'4. Equipment Costs'!B:B,$E$25)+SUMIFS('5. Subcontracting Costs'!H:H,'5. Subcontracting Costs'!C:C,B30,'5. Subcontracting Costs'!B:B,$E$25) -> 0 | F30: =SUMIFS('1. Staff costs'!S:S,'1. Staff costs'!C:C,B30,'1. Staff costs'!B:B,$B$8)+SUMIFS('2-3. Travel Costs&Costs of Stay'!N:N,'2-3. Travel Costs&Costs of Stay'!C:C,B30,'2-3. Travel Costs&Costs of Stay'!B:B,$B$8)+SUMIFS('4. Equipment Costs'!H:H,'4. Equipment Costs'!C:C,B30,'4. Equipment Costs'!B:B,$B$8)+SUMIFS('5. Subcontracting Costs'!H:H,'5. Subcontracting Costs'!C:C,B30,'5. Subcontracting Costs'!B:B,$B$8) -> 0 | G30: =SUMIFS('1. Staff costs'!S:S,'1. Staff costs'!C:C,B30,'1. Staff costs'!B:B,$G$25)+SUMIFS('2-3. Travel Costs&Costs of Stay'!N:N,'2-3. Travel Costs&Costs of Stay'!C:C,B30,'2-3. Travel Costs&Costs of Stay'!B:B,$G$25)+SUMIFS('4. Equipment Costs'!H:H,'4. Equipment Costs'!C:C,B30,'4. Equipment Costs'!B:B,$G$25)+SUMIFS('5. Subcontracting Costs'!H:H,'5. Subcontracting Costs'!C:C,B30,'5. Subcontracting Costs'!B:B,$G$25) -> 0 | H30: =SUMIF('B. Special Mob Strand - Student'!B:B,B30,'B. Special Mob Strand - Student'!N:N)+SUMIF('B. Special Mob Strand - Staff'!B:B,B30,'B. Special Mob Strand - Staff'!N:N) -> 0 | I30: 0
B31: P6 | C31: =SUMIFS('1. Staff costs'!S:S,'1. Staff costs'!C:C,B31,'1. Staff costs'!B:B,$C$25)+SUMIFS('2-3. Travel Costs&Costs of Stay'!N:N,'2-3. Travel Costs&Costs of Stay'!C:C,B31,'2-3. Travel Costs&Costs of Stay'!B:B,$C$25)+SUMIFS('4. Equipment Costs'!H:H,'4. Equipment Costs'!C:C,B31,'4. Equipment Costs'!B:B,$C$25)+SUMIFS('5. Subcontracting Costs'!H:H,'5. Subcontracting Costs'!C:C,B31,'5. Subcontracting Costs'!B:B,$C$25) -> 0 | D31: =SUMIFS('1. Staff costs'!S:S,'1. Staff costs'!C:C,B31,'1. Staff costs'!B:B,$D$25)+SUMIFS('2-3. Travel Costs&Costs of Stay'!N:N,'2-3. Travel Costs&Costs of Stay'!C:C,B31,'2-3. Travel Costs&Costs of Stay'!B:B,$D$25)+SUMIFS('4. Equipment Costs'!H:H,'4. Equipment Costs'!C:C,B31,'4. Equipment Costs'!B:B,$D$25)+SUMIFS('5. Subcontracting Costs'!H:H,'5. Subcontracting Costs'!C:C,B31,'5. Subcontracting Costs'!B:B,$D$25) -> 0 | E31: =SUMIFS('1. Staff costs'!S:S,'1. Staff costs'!C:C,B31,'1. Staff costs'!B:B,$E$25)+SUMIFS('2-3. Travel Costs&Costs of Stay'!N:N,'2-3. Travel Costs&Costs of Stay'!C:C,B31,'2-3. Travel Costs&Costs of Stay'!B:B,$E$25)+SUMIFS('4. Equipment Costs'!H:H,'4. Equipment Costs'!C:C,B31,'4. Equipment Costs'!B:B,$E$25)+SUMIFS('5. Subcontracting Costs'!H:H,'5. Subcontracting Costs'!C:C,B31,'5. Subcontracting Costs'!B:B,$E$25) -> 0 | F31: =SUMIFS('1. Staff costs'!S:S,'1. Staff costs'!C:C,B31,'1. Staff costs'!B:B,$B$8)+SUMIFS('2-3. Travel Costs&Costs of Stay'!N:N,'2-3. Travel Costs&Costs of Stay'!C:C,B31,'2-3. Travel Costs&Costs of Stay'!B:B,$B$8)+SUMIFS('4. Equipment Costs'!H:H,'4. Equipment Costs'!C:C,B31,'4. Equipment Costs'!B:B,$B$8)+SUMIFS('5. Subcontracting Costs'!H:H,'5. Subcontracting Costs'!C:C,B31,'5. Subcontracting Costs'!B:B,$B$8) -> 0 | G31: =SUMIFS('1. Staff costs'!S:S,'1. Staff costs'!C:C,B31,'1. Staff costs'!B:B,$G$25)+SUMIFS('2-3. Travel Costs&Costs of Stay'!N:N,'2-3. Travel Costs&Costs of Stay'!C:C,B31,'2-3. Travel Costs&Costs of Stay'!B:B,$G$25)+SUMIFS('4. Equipment Costs'!H:H,'4. Equipment Costs'!C:C,B31,'4. Equipment Costs'!B:B,$G$25)+SUMIFS('5. Subcontracting Costs'!H:H,'5. Subcontracting Costs'!C:C,B31,'5. Subcontracting Costs'!B:B,$G$25) -> 0 | H31: =SUMIF('B. Special Mob Strand - Student'!B:B,B31,'B. Special Mob Strand - Student'!N:N)+SUMIF('B. Special Mob Strand - Staff'!B:B,B31,'B. Special Mob Strand - Staff'!N:N) -> 0 | I31: 0
B32: P7 | C32: =SUMIFS('1. Staff costs'!S:S,'1. Staff costs'!C:C,B32,'1. Staff costs'!B:B,$C$25)+SUMIFS('2-3. Travel Costs&Costs of Stay'!N:N,'2-3. Travel Costs&Costs of Stay'!C:C,B32,'2-3. Travel Costs&Costs of Stay'!B:B,$C$25)+SUMIFS('4. Equipment Costs'!H:H,'4. Equipment Costs'!C:C,B32,'4. Equipment Costs'!B:B,$C$25)+SUMIFS('5. Subcontracting Costs'!H:H,'5. Subcontracting Costs'!C:C,B32,'5. Subcontracting Costs'!B:B,$C$25) -> 0 | D32: =SUMIFS('1. Staff costs'!S:S,'1. Staff costs'!C:C,B32,'1. Staff costs'!B:B,$D$25)+SUMIFS('2-3. Travel Costs&Costs of Stay'!N:N,'2-3. Travel Costs&Costs of Stay'!C:C,B32,'2-3. Travel Costs&Costs of Stay'!B:B,$D$25)+SUMIFS('4. Equipment Costs'!H:H,'4. Equipment Costs'!C:C,B32,'4. Equipment Costs'!B:B,$D$25)+SUMIFS('5. Subcontracting Costs'!H:H,'5. Subcontracting Costs'!C:C,B32,'5. Subcontracting Costs'!B:B,$D$25) -> 0 | E32: =SUMIFS('1. Staff costs'!S:S,'1. Staff costs'!C:C,B32,'1. Staff costs'!B:B,$E$25)+SUMIFS('2-3. Travel Costs&Costs of Stay'!N:N,'2-3. Travel Costs&Costs of Stay'!C:C,B32,'2-3. Travel Costs&Costs of Stay'!B:B,$E$25)+SUMIFS('4. Equipment Costs'!H:H,'4. Equipment Costs'!C:C,B32,'4. Equipment Costs'!B:B,$E$25)+SUMIFS('5. Subcontracting Costs'!H:H,'5. Subcontracting Costs'!C:C,B32,'5. Subcontracting Costs'!B:B,$E$25) -> 0 | F32: =SUMIFS('1. Staff costs'!S:S,'1. Staff costs'!C:C,B32,'1. Staff costs'!B:B,$B$8)+SUMIFS('2-3. Travel Costs&Costs of Stay'!N:N,'2-3. Travel Costs&Costs of Stay'!C:C,B32,'2-3. Travel Costs&Costs of Stay'!B:B,$B$8)+SUMIFS('4. Equipment Costs'!H:H,'4. Equipment Costs'!C:C,B32,'4. Equipment Costs'!B:B,$B$8)+SUMIFS('5. Subcontracting Costs'!H:H,'5. Subcontracting Costs'!C:C,B32,'5. Subcontracting Costs'!B:B,$B$8) -> 0 | G32: =SUMIFS('1. Staff costs'!S:S,'1. Staff costs'!C:C,B32,'1. Staff costs'!B:B,$G$25)+SUMIFS('2-3. Travel Costs&Costs of Stay'!N:N,'2-3. Travel Costs&Costs of Stay'!C:C,B32,'2-3. Travel Costs&Costs of Stay'!B:B,$G$25)+SUMIFS('4. Equipment Costs'!H:H,'4. Equipment Costs'!C:C,B32,'4. Equipment Costs'!B:B,$G$25)+SUMIFS('5. Subcontracting Costs'!H:H,'5. Subcontracting Costs'!C:C,B32,'5. Subcontracting Costs'!B:B,$G$25) -> 0 | H32: =SUMIF('B. Special Mob Strand - Student'!B:B,B32,'B. Special Mob Strand - Student'!N:N)+SUMIF('B. Special Mob Strand - Staff'!B:B,B32,'B. Special Mob Strand - Staff'!N:N) -> 0 | I32: 0
B33: P8 | C33: =SUMIFS('1. Staff costs'!S:S,'1. Staff costs'!C:C,B33,'1. Staff costs'!B:B,$C$25)+SUMIFS('2-3. Travel Costs&Costs of Stay'!N:N,'2-3. Travel Costs&Costs of Stay'!C:C,B33,'2-3. Travel Costs&Costs of Stay'!B:B,$C$25)+SUMIFS('4. Equipment Costs'!H:H,'4. Equipment Costs'!C:C,B33,'4. Equipment Costs'!B:B,$C$25)+SUMIFS('5. Subcontracting Costs'!H:H,'5. Subcontracting Costs'!C:C,B33,'5. Subcontracting Costs'!B:B,$C$25) -> 0 | D33: =SUMIFS('1. Staff costs'!S:S,'1. Staff costs'!C:C,B33,'1. Staff costs'!B:B,$D$25)+SUMIFS('2-3. Travel Costs&Costs of Stay'!N:N,'2-3. Travel Costs&Costs of Stay'!C:C,B33,'2-3. Travel Costs&Costs of Stay'!B:B,$D$25)+SUMIFS('4. Equipment Costs'!H:H,'4. Equipment Costs'!C:C,B33,'4. Equipment Costs'!B:B,$D$25)+SUMIFS('5. Subcontracting Costs'!H:H,'5. Subcontracting Costs'!C:C,B33,'5. Subcontracting Costs'!B:B,$D$25) -> 0 | E33: =SUMIFS('1. Staff costs'!S:S,'1. Staff costs'!C:C,B33,'1. Staff costs'!B:B,$E$25)+SUMIFS('2-3. Travel Costs&Costs of Stay'!N:N,'2-3. Travel Costs&Costs of Stay'!C:C,B33,'2-3. Travel Costs&Costs of Stay'!B:B,$E$25)+SUMIFS('4. Equipment Costs'!H:H,'4. Equipment Costs'!C:C,B33,'4. Equipment Costs'!B:B,$E$25)+SUMIFS('5. Subcontracting Costs'!H:H,'5. Subcontracting Costs'!C:C,B33,'5. Subcontracting Costs'!B:B,$E$25) -> 0 | F33: =SUMIFS('1. Staff costs'!S:S,'1. Staff costs'!C:C,B33,'1. Staff costs'!B:B,$B$8)+SUMIFS('2-3. Travel Costs&Costs of Stay'!N:N,'2-3. Travel Costs&Costs of Stay'!C:C,B33,'2-3. Travel Costs&Costs of Stay'!B:B,$B$8)+SUMIFS('4. Equipment Costs'!H:H,'4. Equipment Costs'!C:C,B33,'4. Equipment Costs'!B:B,$B$8)+SUMIFS('5. Subcontracting Costs'!H:H,'5. Subcontracting Costs'!C:C,B33,'5. Subcontracting Costs'!B:B,$B$8) -> 0 | G33: =SUMIFS('1. Staff costs'!S:S,'1. Staff costs'!C:C,B33,'1. Staff costs'!B:B,$G$25)+SUMIFS('2-3. Travel Costs&Costs of Stay'!N:N,'2-3. Travel Costs&Costs of Stay'!C:C,B33,'2-3. Travel Costs&Costs of Stay'!B:B,$G$25)+SUMIFS('4. Equipment Costs'!H:H,'4. Equipment Costs'!C:C,B33,'4. Equipment Costs'!B:B,$G$25)+SUMIFS('5. Subcontracting Costs'!H:H,'5. Subcontracting Costs'!C:C,B33,'5. Subcontracting Costs'!B:B,$G$25) -> 0 | H33: =SUMIF('B. Special Mob Strand - Student'!B:B,B33,'B. Special Mob Strand - Student'!N:N)+SUMIF('B. Special Mob Strand - Staff'!B:B,B33,'B. Special Mob Strand - Staff'!N:N) -> 0 | I33: 0
B34: P9 | C34: =SUMIFS('1. Staff costs'!S:S,'1. Staff costs'!C:C,B34,'1. Staff costs'!B:B,$C$25)+SUMIFS('2-3. Travel Costs&Costs of Stay'!N:N,'2-3. Travel Costs&Costs of Stay'!C:C,B34,'2-3. Travel Costs&Costs of Stay'!B:B,$C$25)+SUMIFS('4. Equipment Costs'!H:H,'4. Equipment Costs'!C:C,B34,'4. Equipment Costs'!B:B,$C$25)+SUMIFS('5. Subcontracting Costs'!H:H,'5. Subcontracting Costs'!C:C,B34,'5. Subcontracting Costs'!B:B,$C$25) -> 0 | D34: =SUMIFS('1. Staff costs'!S:S,'1. Staff costs'!C:C,B34,'1. Staff costs'!B:B,$D$25)+SUMIFS('2-3. Travel Costs&Costs of Stay'!N:N,'2-3. Travel Costs&Costs of Stay'!C:C,B34,'2-3. Travel Costs&Costs of Stay'!B:B,$D$25)+SUMIFS('4. Equipment Costs'!H:H,'4. Equipment Costs'!C:C,B34,'4. Equipment Costs'!B:B,$D$25)+SUMIFS('5. Subcontracting Costs'!H:H,'5. Subcontracting Costs'!C:C,B34,'5. Subcontracting Costs'!B:B,$D$25) -> 0 | E34: =SUMIFS('1. Staff costs'!S:S,'1. Staff costs'!C:C,B34,'1. Staff costs'!B:B,$E$25)+SUMIFS('2-3. Travel Costs&Costs of Stay'!N:N,'2-3. Travel Costs&Costs of Stay'!C:C,B34,'2-3. Travel Costs&Costs of Stay'!B:B,$E$25)+SUMIFS('4. Equipment Costs'!H:H,'4. Equipment Costs'!C:C,B34,'4. Equipment Costs'!B:B,$E$25)+SUMIFS('5. Subcontracting Costs'!H:H,'5. Subcontracting Costs'!C:C,B34,'5. Subcontracting Costs'!B:B,$E$25) -> 0 | F34: =SUMIFS('1. Staff costs'!S:S,'1. Staff costs'!C:C,B34,'1. Staff costs'!B:B,$B$8)+SUMIFS('2-3. Travel Costs&Costs of Stay'!N:N,'2-3. Travel Costs&Costs of Stay'!C:C,B34,'2-3. Travel Costs&Costs of Stay'!B:B,$B$8)+SUMIFS('4. Equipment Costs'!H:H,'4. Equipment Costs'!C:C,B34,'4. Equipment Costs'!B:B,$B$8)+SUMIFS('5. Subcontracting Costs'!H:H,'5. Subcontracting Costs'!C:C,B34,'5. Subcontracting Costs'!B:B,$B$8) -> 0 | G34: =SUMIFS('1. Staff costs'!S:S,'1. Staff costs'!C:C,B34,'1. Staff costs'!B:B,$G$25)+SUMIFS('2-3. Travel Costs&Costs of Stay'!N:N,'2-3. Travel Costs&Costs of Stay'!C:C,B34,'2-3. Travel Costs&Costs of Stay'!B:B,$G$25)+SUMIFS('4. Equipment Costs'!H:H,'4. Equipment Costs'!C:C,B34,'4. Equipment Costs'!B:B,$G$25)+SUMIFS('5. Subcontracting Costs'!H:H,'5. Subcontracting Costs'!C:C,B34,'5. Subcontracting Costs'!B:B,$G$25) -> 0 | H34: =SUMIF('B. Special Mob Strand - Student'!B:B,B34,'B. Special Mob Strand - Student'!N:N)+SUMIF('B. Special Mob Strand - Staff'!B:B,B34,'B. Special Mob Strand - Staff'!N:N) -> 0 | I34: 0
B35: P10 | C35: =SUMIFS('1. Staff costs'!S:S,'1. Staff costs'!C:C,B35,'1. Staff costs'!B:B,$C$25)+SUMIFS('2-3. Travel Costs&Costs of Stay'!N:N,'2-3. Travel Costs&Costs of Stay'!C:C,B35,'2-3. Travel Costs&Costs of Stay'!B:B,$C$25)+SUMIFS('4. Equipment Costs'!H:H,'4. Equipment Costs'!C:C,B35,'4. Equipment Costs'!B:B,$C$25)+SUMIFS('5. Subcontracting Costs'!H:H,'5. Subcontracting Costs'!C:C,B35,'5. Subcontracting Costs'!B:B,$C$25) -> 0 | D35: =SUMIFS('1. Staff costs'!S:S,'1. Staff costs'!C:C,B35,'1. Staff costs'!B:B,$D$25)+SUMIFS('2-3. Travel Costs&Costs of Stay'!N:N,'2-3. Travel Costs&Costs of Stay'!C:C,B35,'2-3. Travel Costs&Costs of Stay'!B:B,$D$25)+SUMIFS('4. Equipment Costs'!H:H,'4. Equipment Costs'!C:C,B35,'4. Equipment Costs'!B:B,$D$25)+SUMIFS('5. Subcontracting Costs'!H:H,'5. Subcontracting Costs'!C:C,B35,'5. Subcontracting Costs'!B:B,$D$25) -> 0 | E35: =SUMIFS('1. Staff costs'!S:S,'1. Staff costs'!C:C,B35,'1. Staff costs'!B:B,$E$25)+SUMIFS('2-3. Travel Costs&Costs of Stay'!N:N,'2-3. Travel Costs&Costs of Stay'!C:C,B35,'2-3. Travel Costs&Costs of Stay'!B:B,$E$25)+SUMIFS('4. Equipment Costs'!H:H,'4. Equipment Costs'!C:C,B35,'4. Equipment Costs'!B:B,$E$25)+SUMIFS('5. Subcontracting Costs'!H:H,'5. Subcontracting Costs'!C:C,B35,'5. Subcontracting Costs'!B:B,$E$25) -> 0 | F35: =SUMIFS('1. Staff costs'!S:S,'1. Staff costs'!C:C,B35,'1. Staff costs'!B:B,$B$8)+SUMIFS('2-3. Travel Costs&Costs of Stay'!N:N,'2-3. Travel Costs&Costs of Stay'!C:C,B35,'2-3. Travel Costs&Costs of Stay'!B:B,$B$8)+SUMIFS('4. Equipment Costs'!H:H,'4. Equipment Costs'!C:C,B35,'4. Equipment Costs'!B:B,$B$8)+SUMIFS('5. Subcontracting Costs'!H:H,'5. Subcontracting Costs'!C:C,B35,'5. Subcontracting Costs'!B:B,$B$8) -> 0 | G35: =SUMIFS('1. Staff costs'!S:S,'1. Staff costs'!C:C,B35,'1. Staff costs'!B:B,$G$25)+SUMIFS('2-3. Travel Costs&Costs of Stay'!N:N,'2-3. Travel Costs&Costs of Stay'!C:C,B35,'2-3. Travel Costs&Costs of Stay'!B:B,$G$25)+SUMIFS('4. Equipment Costs'!H:H,'4. Equipment Costs'!C:C,B35,'4. Equipment Costs'!B:B,$G$25)+SUMIFS('5. Subcontracting Costs'!H:H,'5. Subcontracting Costs'!C:C,B35,'5. Subcontracting Costs'!B:B,$G$25) -> 0 | H35: =SUMIF('B. Special Mob Strand - Student'!B:B,B35,'B. Special Mob Strand - Student'!N:N)+SUMIF('B. Special Mob Strand - Staff'!B:B,B35,'B. Special Mob Strand - Staff'!N:N) -> 0 | I35: 0
B36: P11 | C36: =SUMIFS('1. Staff costs'!S:S,'1. Staff costs'!C:C,B36,'1. Staff costs'!B:B,$C$25)+SUMIFS('2-3. Travel Costs&Costs of Stay'!N:N,'2-3. Travel Costs&Costs of Stay'!C:C,B36,'2-3. Travel Costs&Costs of Stay'!B:B,$C$25)+SUMIFS('4. Equipment Costs'!H:H,'4. Equipment Costs'!C:C,B36,'4. Equipment Costs'!B:B,$C$25)+SUMIFS('5. Subcontracting Costs'!H:H,'5. Subcontracting Costs'!C:C,B36,'5. Subcontracting Costs'!B:B,$C$25) -> 0 | D36: =SUMIFS('1. Staff costs'!S:S,'1. Staff costs'!C:C,B36,'1. Staff costs'!B:B,$D$25)+SUMIFS('2-3. Travel Costs&Costs of Stay'!N:N,'2-3. Travel Costs&Costs of Stay'!C:C,B36,'2-3. Travel Costs&Costs of Stay'!B:B,$D$25)+SUMIFS('4. Equipment Costs'!H:H,'4. Equipment Costs'!C:C,B36,'4. Equipment Costs'!B:B,$D$25)+SUMIFS('5. Subcontracting Costs'!H:H,'5. Subcontracting Costs'!C:C,B36,'5. Subcontracting Costs'!B:B,$D$25) -> 0 | E36: =SUMIFS('1. Staff costs'!S:S,'1. Staff costs'!C:C,B36,'1. Staff costs'!B:B,$E$25)+SUMIFS('2-3. Travel Costs&Costs of Stay'!N:N,'2-3. Travel Costs&Costs of Stay'!C:C,B36,'2-3. Travel Costs&Costs of Stay'!B:B,$E$25)+SUMIFS('4. Equipment Costs'!H:H,'4. Equipment Costs'!C:C,B36,'4. Equipment Costs'!B:B,$E$25)+SUMIFS('5. Subcontracting Costs'!H:H,'5. Subcontracting Costs'!C:C,B36,'5. Subcontracting Costs'!B:B,$E$25) -> 0 | F36: =SUMIFS('1. Staff costs'!S:S,'1. Staff costs'!C:C,B36,'1. Staff costs'!B:B,$B$8)+SUMIFS('2-3. Travel Costs&Costs of Stay'!N:N,'2-3. Travel Costs&Costs of Stay'!C:C,B36,'2-3. Travel Costs&Costs of Stay'!B:B,$B$8)+SUMIFS('4. Equipment Costs'!H:H,'4. Equipment Costs'!C:C,B36,'4. Equipment Costs'!B:B,$B$8)+SUMIFS('5. Subcontracting Costs'!H:H,'5. Subcontracting Costs'!C:C,B36,'5. Subcontracting Costs'!B:B,$B$8) -> 0 | G36: =SUMIFS('1. Staff costs'!S:S,'1. Staff costs'!C:C,B36,'1. Staff costs'!B:B,$G$25)+SUMIFS('2-3. Travel Costs&Costs of Stay'!N:N,'2-3. Travel Costs&Costs of Stay'!C:C,B36,'2-3. Travel Costs&Costs of Stay'!B:B,$G$25)+SUMIFS('4. Equipment Costs'!H:H,'4. Equipment Costs'!C:C,B36,'4. Equipment Costs'!B:B,$G$25)+SUMIFS('5. Subcontracting Costs'!H:H,'5. Subcontracting Costs'!C:C,B36,'5. Subcontracting Costs'!B:B,$G$25) -> 0 | H36: =SUMIF('B. Special Mob Strand - Student'!B:B,B36,'B. Special Mob Strand - Student'!N:N)+SUMIF('B. Special Mob Strand - Staff'!B:B,B36,'B. Special Mob Strand - Staff'!N:N) -> 0 | I36: 0
B37: P12 | C37: =SUMIFS('1. Staff costs'!S:S,'1. Staff costs'!C:C,B37,'1. Staff costs'!B:B,$C$25)+SUMIFS('2-3. Travel Costs&Costs of Stay'!N:N,'2-3. Travel Costs&Costs of Stay'!C:C,B37,'2-3. Travel Costs&Costs of Stay'!B:B,$C$25)+SUMIFS('4. Equipment Costs'!H:H,'4. Equipment Costs'!C:C,B37,'4. Equipment Costs'!B:B,$C$25)+SUMIFS('5. Subcontracting Costs'!H:H,'5. Subcontracting Costs'!C:C,B37,'5. Subcontracting Costs'!B:B,$C$25) -> 0 | D37: =SUMIFS('1. Staff costs'!S:S,'1. Staff costs'!C:C,B37,'1. Staff costs'!B:B,$D$25)+SUMIFS('2-3. Travel Costs&Costs of Stay'!N:N,'2-3. Travel Costs&Costs of Stay'!C:C,B37,'2-3. Travel Costs&Costs of Stay'!B:B,$D$25)+SUMIFS('4. Equipment Costs'!H:H,'4. Equipment Costs'!C:C,B37,'4. Equipment Costs'!B:B,$D$25)+SUMIFS('5. Subcontracting Costs'!H:H,'5. Subcontracting Costs'!C:C,B37,'5. Subcontracting Costs'!B:B,$D$25) -> 0 | E37: =SUMIFS('1. Staff costs'!S:S,'1. Staff costs'!C:C,B37,'1. Staff costs'!B:B,$E$25)+SUMIFS('2-3. Travel Costs&Costs of Stay'!N:N,'2-3. Travel Costs&Costs of Stay'!C:C,B37,'2-3. Travel Costs&Costs of Stay'!B:B,$E$25)+SUMIFS('4. Equipment Costs'!H:H,'4. Equipment Costs'!C:C,B37,'4. Equipment Costs'!B:B,$E$25)+SUMIFS('5. Subcontracting Costs'!H:H,'5. Subcontracting Costs'!C:C,B37,'5. Subcontracting Costs'!B:B,$E$25) -> 0 | F37: =SUMIFS('1. Staff costs'!S:S,'1. Staff costs'!C:C,B37,'1. Staff costs'!B:B,$B$8)+SUMIFS('2-3. Travel Costs&Costs of Stay'!N:N,'2-3. Travel Costs&Costs of Stay'!C:C,B37,'2-3. Travel Costs&Costs of Stay'!B:B,$B$8)+SUMIFS('4. Equipment Costs'!H:H,'4. Equipment Costs'!C:C,B37,'4. Equipment Costs'!B:B,$B$8)+SUMIFS('5. Subcontracting Costs'!H:H,'5. Subcontracting Costs'!C:C,B37,'5. Subcontracting Costs'!B:B,$B$8) -> 0 | G37: =SUMIFS('1. Staff costs'!S:S,'1. Staff costs'!C:C,B37,'1. Staff costs'!B:B,$G$25)+SUMIFS('2-3. Travel Costs&Costs of Stay'!N:N,'2-3. Travel Costs&Costs of Stay'!C:C,B37,'2-3. Travel Costs&Costs of Stay'!B:B,$G$25)+SUMIFS('4. Equipment Costs'!H:H,'4. Equipment Costs'!C:C,B37,'4. Equipment Costs'!B:B,$G$25)+SUMIFS('5. Subcontracting Costs'!H:H,'5. Subcontracting Costs'!C:C,B37,'5. Subcontracting Costs'!B:B,$G$25) -> 0 | H37: =SUMIF('B. Special Mob Strand - Student'!B:B,B37,'B. Special Mob Strand - Student'!N:N)+SUMIF('B. Special Mob Strand - Staff'!B:B,B37,'B. Special Mob Strand - Staff'!N:N) -> 0 | I37: 0
B38: P13 | C38: =SUMIFS('1. Staff costs'!S:S,'1. Staff costs'!C:C,B38,'1. Staff costs'!B:B,$C$25)+SUMIFS('2-3. Travel Costs&Costs of Stay'!N:N,'2-3. Travel Costs&Costs of Stay'!C:C,B38,'2-3. Travel Costs&Costs of Stay'!B:B,$C$25)+SUMIFS('4. Equipment Costs'!H:H,'4. Equipment Costs'!C:C,B38,'4. Equipment Costs'!B:B,$C$25)+SUMIFS('5. Subcontracting Costs'!H:H,'5. Subcontracting Costs'!C:C,B38,'5. Subcontracting Costs'!B:B,$C$25) -> 0 | D38: =SUMIFS('1. Staff costs'!S:S,'1. Staff costs'!C:C,B38,'1. Staff costs'!B:B,$D$25)+SUMIFS('2-3. Travel Costs&Costs of Stay'!N:N,'2-3. Travel Costs&Costs of Stay'!C:C,B38,'2-3. Travel Costs&Costs of Stay'!B:B,$D$25)+SUMIFS('4. Equipment Costs'!H:H,'4. Equipment Costs'!C:C,B38,'4. Equipment Costs'!B:B,$D$25)+SUMIFS('5. Subcontracting Costs'!H:H,'5. Subcontracting Costs'!C:C,B38,'5. Subcontracting Costs'!B:B,$D$25) -> 0 | E38: =SUMIFS('1. Staff costs'!S:S,'1. Staff costs'!C:C,B38,'1. Staff costs'!B:B,$E$25)+SUMIFS('2-3. Travel Costs&Costs of Stay'!N:N,'2-3. Travel Costs&Costs of Stay'!C:C,B38,'2-3. Travel Costs&Costs of Stay'!B:B,$E$25)+SUMIFS('4. Equipment Costs'!H:H,'4. Equipment Costs'!C:C,B38,'4. Equipment Costs'!B:B,$E$25)+SUMIFS('5. Subcontracting Costs'!H:H,'5. Subcontracting Costs'!C:C,B38,'5. Subcontracting Costs'!B:B,$E$25) -> 0 | F38: =SUMIFS('1. Staff costs'!S:S,'1. Staff costs'!C:C,B38,'1. Staff costs'!B:B,$B$8)+SUMIFS('2-3. Travel Costs&Costs of Stay'!N:N,'2-3. Travel Costs&Costs of Stay'!C:C,B38,'2-3. Travel Costs&Costs of Stay'!B:B,$B$8)+SUMIFS('4. Equipment Costs'!H:H,'4. Equipment Costs'!C:C,B38,'4. Equipment Costs'!B:B,$B$8)+SUMIFS('5. Subcontracting Costs'!H:H,'5. Subcontracting Costs'!C:C,B38,'5. Subcontracting Costs'!B:B,$B$8) -> 0 | G38: =SUMIFS('1. Staff costs'!S:S,'1. Staff costs'!C:C,B38,'1. Staff costs'!B:B,$G$25)+SUMIFS('2-3. Travel Costs&Costs of Stay'!N:N,'2-3. Travel Costs&Costs of Stay'!C:C,B38,'2-3. Travel Costs&Costs of Stay'!B:B,$G$25)+SUMIFS('4. Equipment Costs'!H:H,'4. Equipment Costs'!C:C,B38,'4. Equipment Costs'!B:B,$G$25)+SUMIFS('5. Subcontracting Costs'!H:H,'5. Subcontracting Costs'!C:C,B38,'5. Subcontracting Costs'!B:B,$G$25) -> 0 | H38: =SUMIF('B. Special Mob Strand - Student'!B:B,B38,'B. Special Mob Strand - Student'!N:N)+SUMIF('B. Special Mob Strand - Staff'!B:B,B38,'B. Special Mob Strand - Staff'!N:N) -> 0 | I38: 0
B39: P14 | C39: =SUMIFS('1. Staff costs'!S:S,'1. Staff costs'!C:C,B39,'1. Staff costs'!B:B,$C$25)+SUMIFS('2-3. Travel Costs&Costs of Stay'!N:N,'2-3. Travel Costs&Costs of Stay'!C:C,B39,'2-3. Travel Costs&Costs of Stay'!B:B,$C$25)+SUMIFS('4. Equipment Costs'!H:H,'4. Equipment Costs'!C:C,B39,'4. Equipment Costs'!B:B,$C$25)+SUMIFS('5. Subcontracting Costs'!H:H,'5. Subcontracting Costs'!C:C,B39,'5. Subcontracting Costs'!B:B,$C$25) -> 0 | D39: =SUMIFS('1. Staff costs'!S:S,'1. Staff costs'!C:C,B39,'1. Staff costs'!B:B,$D$25)+SUMIFS('2-3. Travel Costs&Costs of Stay'!N:N,'2-3. Travel Costs&Costs of Stay'!C:C,B39,'2-3. Travel Costs&Costs of Stay'!B:B,$D$25)+SUMIFS('4. Equipment Costs'!H:H,'4. Equipment Costs'!C:C,B39,'4. Equipment Costs'!B:B,$D$25)+SUMIFS('5. Subcontracting Costs'!H:H,'5. Subcontracting Costs'!C:C,B39,'5. Subcontracting Costs'!B:B,$D$25) -> 0 | E39: =SUMIFS('1. Staff costs'!S:S,'1. Staff costs'!C:C,B39,'1. Staff costs'!B:B,$E$25)+SUMIFS('2-3. Travel Costs&Costs of Stay'!N:N,'2-3. Travel Costs&Costs of Stay'!C:C,B39,'2-3. Travel Costs&Costs of Stay'!B:B,$E$25)+SUMIFS('4. Equipment Costs'!H:H,'4. Equipment Costs'!C:C,B39,'4. Equipment Costs'!B:B,$E$25)+SUMIFS('5. Subcontracting Costs'!H:H,'5. Subcontracting Costs'!C:C,B39,'5. Subcontracting Costs'!B:B,$E$25) -> 0 | F39: =SUMIFS('1. Staff costs'!S:S,'1. Staff costs'!C:C,B39,'1. Staff costs'!B:B,$B$8)+SUMIFS('2-3. Travel Costs&Costs of Stay'!N:N,'2-3. Travel Costs&Costs of Stay'!C:C,B39,'2-3. Travel Costs&Costs of Stay'!B:B,$B$8)+SUMIFS('4. Equipment Costs'!H:H,'4. Equipment Costs'!C:C,B39,'4. Equipment Costs'!B:B,$B$8)+SUMIFS('5. Subcontracting Costs'!H:H,'5. Subcontracting Costs'!C:C,B39,'5. Subcontracting Costs'!B:B,$B$8) -> 0 | G39: =SUMIFS('1. Staff costs'!S:S,'1. Staff costs'!C:C,B39,'1. Staff costs'!B:B,$G$25)+SUMIFS('2-3. Travel Costs&Costs of Stay'!N:N,'2-3. Travel Costs&Costs of Stay'!C:C,B39,'2-3. Travel Costs&Costs of Stay'!B:B,$G$25)+SUMIFS('4. Equipment Costs'!H:H,'4. Equipment Costs'!C:C,B39,'4. Equipment Costs'!B:B,$G$25)+SUMIFS('5. Subcontracting Costs'!H:H,'5. Subcontracting Costs'!C:C,B39,'5. Subcontracting Costs'!B:B,$G$25) -> 0 | H39: =SUMIF('B. Special Mob Strand - Student'!B:B,B39,'B. Special Mob Strand - Student'!N:N)+SUMIF('B. Special Mob Strand - Staff'!B:B,B39,'B. Special Mob Strand - Staff'!N:N) -> 0 | I39: 0
B40: P15 | C40: =SUMIFS('1. Staff costs'!S:S,'1. Staff costs'!C:C,B40,'1. Staff costs'!B:B,$C$25)+SUMIFS('2-3. Travel Costs&Costs of Stay'!N:N,'2-3. Travel Costs&Costs of Stay'!C:C,B40,'2-3. Travel Costs&Costs of Stay'!B:B,$C$25)+SUMIFS('4. Equipment Costs'!H:H,'4. Equipment Costs'!C:C,B40,'4. Equipment Costs'!B:B,$C$25)+SUMIFS('5. Subcontracting Costs'!H:H,'5. Subcontracting Costs'!C:C,B40,'5. Subcontracting Costs'!B:B,$C$25) -> 0 | D40: =SUMIFS('1. Staff costs'!S:S,'1. Staff costs'!C:C,B40,'1. Staff costs'!B:B,$D$25)+SUMIFS('2-3. Travel Costs&Costs of Stay'!N:N,'2-3. Travel Costs&Costs of Stay'!C:C,B40,'2-3. Travel Costs&Costs of Stay'!B:B,$D$25)+SUMIFS('4. Equipment Costs'!H:H,'4. Equipment Costs'!C:C,B40,'4. Equipment Costs'!B:B,$D$25)+SUMIFS('5. Subcontracting Costs'!H:H,'5. Subcontracting Costs'!C:C,B40,'5. Subcontracting Costs'!B:B,$D$25) -> 0 | E40: =SUMIFS('1. Staff costs'!S:S,'1. Staff costs'!C:C,B40,'1. Staff costs'!B:B,$E$25)+SUMIFS('2-3. Travel Costs&Costs of Stay'!N:N,'2-3. Travel Costs&Costs of Stay'!C:C,B40,'2-3. Travel Costs&Costs of Stay'!B:B,$E$25)+SUMIFS('4. Equipment Costs'!H:H,'4. Equipment Costs'!C:C,B40,'4. Equipment Costs'!B:B,$E$25)+SUMIFS('5. Subcontracting Costs'!H:H,'5. Subcontracting Costs'!C:C,B40,'5. Subcontracting Costs'!B:B,$E$25) -> 0 | F40: =SUMIFS('1. Staff costs'!S:S,'1. Staff costs'!C:C,B40,'1. Staff costs'!B:B,$B$8)+SUMIFS('2-3. Travel Costs&Costs of Stay'!N:N,'2-3. Travel Costs&Costs of Stay'!C:C,B40,'2-3. Travel Costs&Costs of Stay'!B:B,$B$8)+SUMIFS('4. Equipment Costs'!H:H,'4. Equipment Costs'!C:C,B40,'4. Equipment Costs'!B:B,$B$8)+SUMIFS('5. Subcontracting Costs'!H:H,'5. Subcontracting Costs'!C:C,B40,'5. Subcontracting Costs'!B:B,$B$8) -> 0 | G40: =SUMIFS('1. Staff costs'!S:S,'1. Staff costs'!C:C,B40,'1. Staff costs'!B:B,$G$25)+SUMIFS('2-3. Travel Costs&Costs of Stay'!N:N,'2-3. Travel Costs&Costs of Stay'!C:C,B40,'2-3. Travel Costs&Costs of Stay'!B:B,$G$25)+SUMIFS('4. Equipment Costs'!H:H,'4. Equipment Costs'!C:C,B40,'4. Equipment Costs'!B:B,$G$25)+SUMIFS('5. Subcontracting Costs'!H:H,'5. Subcontracting Costs'!C:C,B40,'5. Subcontracting Costs'!B:B,$G$25) -> 0 | H40: =SUMIF('B. Special Mob Strand - Student'!B:B,B40,'B. Special Mob Strand - Student'!N:N)+SUMIF('B. Special Mob Strand - Staff'!B:B,B40,'B. Special Mob Strand - Staff'!N:N) -> 0 | I40: 0
B41: P16 | C41: =SUMIFS('1. Staff costs'!S:S,'1. Staff costs'!C:C,B41,'1. Staff costs'!B:B,$C$25)+SUMIFS('2-3. Travel Costs&Costs of Stay'!N:N,'2-3. Travel Costs&Costs of Stay'!C:C,B41,'2-3. Travel Costs&Costs of Stay'!B:B,$C$25)+SUMIFS('4. Equipment Costs'!H:H,'4. Equipment Costs'!C:C,B41,'4. Equipment Costs'!B:B,$C$25)+SUMIFS('5. Subcontracting Costs'!H:H,'5. Subcontracting Costs'!C:C,B41,'5. Subcontracting Costs'!B:B,$C$25) -> 0 | D41: =SUMIFS('1. Staff costs'!S:S,'1. Staff costs'!C:C,B41,'1. Staff costs'!B:B,$D$25)+SUMIFS('2-3. Travel Costs&Costs of Stay'!N:N,'2-3. Travel Costs&Costs of Stay'!C:C,B41,'2-3. Travel Costs&Costs of Stay'!B:B,$D$25)+SUMIFS('4. Equipment Costs'!H:H,'4. Equipment Costs'!C:C,B41,'4. Equipment Costs'!B:B,$D$25)+SUMIFS('5. Subcontracting Costs'!H:H,'5. Subcontracting Costs'!C:C,B41,'5. Subcontracting Costs'!B:B,$D$25) -> 0 | E41: =SUMIFS('1. Staff costs'!S:S,'1. Staff costs'!C:C,B41,'1. Staff costs'!B:B,$E$25)+SUMIFS('2-3. Travel Costs&Costs of Stay'!N:N,'2-3. Travel Costs&Costs of Stay'!C:C,B41,'2-3. Travel Costs&Costs of Stay'!B:B,$E$25)+SUMIFS('4. Equipment Costs'!H:H,'4. Equipment Costs'!C:C,B41,'4. Equipment Costs'!B:B,$E$25)+SUMIFS('5. Subcontracting Costs'!H:H,'5. Subcontracting Costs'!C:C,B41,'5. Subcontracting Costs'!B:B,$E$25) -> 0 | F41: =SUMIFS('1. Staff costs'!S:S,'1. Staff costs'!C:C,B41,'1. Staff costs'!B:B,$B$8)+SUMIFS('2-3. Travel Costs&Costs of Stay'!N:N,'2-3. Travel Costs&Costs of Stay'!C:C,B41,'2-3. Travel Costs&Costs of Stay'!B:B,$B$8)+SUMIFS('4. Equipment Costs'!H:H,'4. Equipment Costs'!C:C,B41,'4. Equipment Costs'!B:B,$B$8)+SUMIFS('5. Subcontracting Costs'!H:H,'5. Subcontracting Costs'!C:C,B41,'5. Subcontracting Costs'!B:B,$B$8) -> 0 | G41: =SUMIFS('1. Staff costs'!S:S,'1. Staff costs'!C:C,B41,'1. Staff costs'!B:B,$G$25)+SUMIFS('2-3. Travel Costs&Costs of Stay'!N:N,'2-3. Travel Costs&Costs of Stay'!C:C,B41,'2-3. Travel Costs&Costs of Stay'!B:B,$G$25)+SUMIFS('4. Equipment Costs'!H:H,'4. Equipment Costs'!C:C,B41,'4. Equipment Costs'!B:B,$G$25)+SUMIFS('5. Subcontracting Costs'!H:H,'5. Subcontracting Costs'!C:C,B41,'5. Subcontracting Costs'!B:B,$G$25) -> 0 | H41: =SUMIF('B. Special Mob Strand - Student'!B:B,B41,'B. Special Mob Strand - Student'!N:N)+SUMIF('B. Special Mob Strand - Staff'!B:B,B41,'B. Special Mob Strand - Staff'!N:N) -> 0 | I41: 0
B42: P17 | C42: =SUMIFS('1. Staff costs'!S:S,'1. Staff costs'!C:C,B42,'1. Staff costs'!B:B,$C$25)+SUMIFS('2-3. Travel Costs&Costs of Stay'!N:N,'2-3. Travel Costs&Costs of Stay'!C:C,B42,'2-3. Travel Costs&Costs of Stay'!B:B,$C$25)+SUMIFS('4. Equipment Costs'!H:H,'4. Equipment Costs'!C:C,B42,'4. Equipment Costs'!B:B,$C$25)+SUMIFS('5. Subcontracting Costs'!H:H,'5. Subcontracting Costs'!C:C,B42,'5. Subcontracting Costs'!B:B,$C$25) -> 0 | D42: =SUMIFS('1. Staff costs'!S:S,'1. Staff costs'!C:C,B42,'1. Staff costs'!B:B,$D$25)+SUMIFS('2-3. Travel Costs&Costs of Stay'!N:N,'2-3. Travel Costs&Costs of Stay'!C:C,B42,'2-3. Travel Costs&Costs of Stay'!B:B,$D$25)+SUMIFS('4. Equipment Costs'!H:H,'4. Equipment Costs'!C:C,B42,'4. Equipment Costs'!B:B,$D$25)+SUMIFS('5. Subcontracting Costs'!H:H,'5. Subcontracting Costs'!C:C,B42,'5. Subcontracting Costs'!B:B,$D$25) -> 0 | E42: =SUMIFS('1. Staff costs'!S:S,'1. Staff costs'!C:C,B42,'1. Staff costs'!B:B,$E$25)+SUMIFS('2-3. Travel Costs&Costs of Stay'!N:N,'2-3. Travel Costs&Costs of Stay'!C:C,B42,'2-3. Travel Costs&Costs of Stay'!B:B,$E$25)+SUMIFS('4. Equipment Costs'!H:H,'4. Equipment Costs'!C:C,B42,'4. Equipment Costs'!B:B,$E$25)+SUMIFS('5. Subcontracting Costs'!H:H,'5. Subcontracting Costs'!C:C,B42,'5. Subcontracting Costs'!B:B,$E$25) -> 0 | F42: =SUMIFS('1. Staff costs'!S:S,'1. Staff costs'!C:C,B42,'1. Staff costs'!B:B,$B$8)+SUMIFS('2-3. Travel Costs&Costs of Stay'!N:N,'2-3. Travel Costs&Costs of Stay'!C:C,B42,'2-3. Travel Costs&Costs of Stay'!B:B,$B$8)+SUMIFS('4. Equipment Costs'!H:H,'4. Equipment Costs'!C:C,B42,'4. Equipment Costs'!B:B,$B$8)+SUMIFS('5. Subcontracting Costs'!H:H,'5. Subcontracting Costs'!C:C,B42,'5. Subcontracting Costs'!B:B,$B$8) -> 0 | G42: =SUMIFS('1. Staff costs'!S:S,'1. Staff costs'!C:C,B42,'1. Staff costs'!B:B,$G$25)+SUMIFS('2-3. Travel Costs&Costs of Stay'!N:N,'2-3. Travel Costs&Costs of Stay'!C:C,B42,'2-3. Travel Costs&Costs of Stay'!B:B,$G$25)+SUMIFS('4. Equipment Costs'!H:H,'4. Equipment Costs'!C:C,B42,'4. Equipment Costs'!B:B,$G$25)+SUMIFS('5. Subcontracting Costs'!H:H,'5. Subcontracting Costs'!C:C,B42,'5. Subcontracting Costs'!B:B,$G$25) -> 0 | H42: =SUMIF('B. Special Mob Strand - Student'!B:B,B42,'B. Special Mob Strand - Student'!N:N)+SUMIF('B. Special Mob Strand - Staff'!B:B,B42,'B. Special Mob Strand - Staff'!N:N) -> 0 | I42: 0
B43: P18 | C43: =SUMIFS('1. Staff costs'!S:S,'1. Staff costs'!C:C,B43,'1. Staff costs'!B:B,$C$25)+SUMIFS('2-3. Travel Costs&Costs of Stay'!N:N,'2-3. Travel Costs&Costs of Stay'!C:C,B43,'2-3. Travel Costs&Costs of Stay'!B:B,$C$25)+SUMIFS('4. Equipment Costs'!H:H,'4. Equipment Costs'!C:C,B43,'4. Equipment Costs'!B:B,$C$25)+SUMIFS('5. Subcontracting Costs'!H:H,'5. Subcontracting Costs'!C:C,B43,'5. Subcontracting Costs'!B:B,$C$25) -> 0 | D43: =SUMIFS('1. Staff costs'!S:S,'1. Staff costs'!C:C,B43,'1. Staff costs'!B:B,$D$25)+SUMIFS('2-3. Travel Costs&Costs of Stay'!N:N,'2-3. Travel Costs&Costs of Stay'!C:C,B43,'2-3. Travel Costs&Costs of Stay'!B:B,$D$25)+SUMIFS('4. Equipment Costs'!H:H,'4. Equipment Costs'!C:C,B43,'4. Equipment Costs'!B:B,$D$25)+SUMIFS('5. Subcontracting Costs'!H:H,'5. Subcontracting Costs'!C:C,B43,'5. Subcontracting Costs'!B:B,$D$25) -> 0 | E43: =SUMIFS('1. Staff costs'!S:S,'1. Staff costs'!C:C,B43,'1. Staff costs'!B:B,$E$25)+SUMIFS('2-3. Travel Costs&Costs of Stay'!N:N,'2-3. Travel Costs&Costs of Stay'!C:C,B43,'2-3. Travel Costs&Costs of Stay'!B:B,$E$25)+SUMIFS('4. Equipment Costs'!H:H,'4. Equipment Costs'!C:C,B43,'4. Equipment Costs'!B:B,$E$25)+SUMIFS('5. Subcontracting Costs'!H:H,'5. Subcontracting Costs'!C:C,B43,'5. Subcontracting Costs'!B:B,$E$25) -> 0 | F43: =SUMIFS('1. Staff costs'!S:S,'1. Staff costs'!C:C,B43,'1. Staff costs'!B:B,$B$8)+SUMIFS('2-3. Travel Costs&Costs of Stay'!N:N,'2-3. Travel Costs&Costs of Stay'!C:C,B43,'2-3. Travel Costs&Costs of Stay'!B:B,$B$8)+SUMIFS('4. Equipment Costs'!H:H,'4. Equipment Costs'!C:C,B43,'4. Equipment Costs'!B:B,$B$8)+SUMIFS('5. Subcontracting Costs'!H:H,'5. Subcontracting Costs'!C:C,B43,'5. Subcontracting Costs'!B:B,$B$8) -> 0 | G43: =SUMIFS('1. Staff costs'!S:S,'1. Staff costs'!C:C,B43,'1. Staff costs'!B:B,$G$25)+SUMIFS('2-3. Travel Costs&Costs of Stay'!N:N,'2-3. Travel Costs&Costs of Stay'!C:C,B43,'2-3. Travel Costs&Costs of Stay'!B:B,$G$25)+SUMIFS('4. Equipment Costs'!H:H,'4. Equipment Costs'!C:C,B43,'4. Equipment Costs'!B:B,$G$25)+SUMIFS('5. Subcontracting Costs'!H:H,'5. Subcontracting Costs'!C:C,B43,'5. Subcontracting Costs'!B:B,$G$25) -> 0 | H43: =SUMIF('B. Special Mob Strand - Student'!B:B,B43,'B. Special Mob Strand - Student'!N:N)+SUMIF('B. Special Mob Strand - Staff'!B:B,B43,'B. Special Mob Strand - Staff'!N:N) -> 0 | I43: 0
B44: P19 | C44: =SUMIFS('1. Staff costs'!S:S,'1. Staff costs'!C:C,B44,'1. Staff costs'!B:B,$C$25)+SUMIFS('2-3. Travel Costs&Costs of Stay'!N:N,'2-3. Travel Costs&Costs of Stay'!C:C,B44,'2-3. Travel Costs&Costs of Stay'!B:B,$C$25)+SUMIFS('4. Equipment Costs'!H:H,'4. Equipment Costs'!C:C,B44,'4. Equipment Costs'!B:B,$C$25)+SUMIFS('5. Subcontracting Costs'!H:H,'5. Subcontracting Costs'!C:C,B44,'5. Subcontracting Costs'!B:B,$C$25) -> 0 | D44: =SUMIFS('1. Staff costs'!S:S,'1. Staff costs'!C:C,B44,'1. Staff costs'!B:B,$D$25)+SUMIFS('2-3. Travel Costs&Costs of Stay'!N:N,'2-3. Travel Costs&Costs of Stay'!C:C,B44,'2-3. Travel Costs&Costs of Stay'!B:B,$D$25)+SUMIFS('4. Equipment Costs'!H:H,'4. Equipment Costs'!C:C,B44,'4. Equipment Costs'!B:B,$D$25)+SUMIFS('5. Subcontracting Costs'!H:H,'5. Subcontracting Costs'!C:C,B44,'5. Subcontracting Costs'!B:B,$D$25) -> 0 | E44: =SUMIFS('1. Staff costs'!S:S,'1. Staff costs'!C:C,B44,'1. Staff costs'!B:B,$E$25)+SUMIFS('2-3. Travel Costs&Costs of Stay'!N:N,'2-3. Travel Costs&Costs of Stay'!C:C,B44,'2-3. Travel Costs&Costs of Stay'!B:B,$E$25)+SUMIFS('4. Equipment Costs'!H:H,'4. Equipment Costs'!C:C,B44,'4. Equipment Costs'!B:B,$E$25)+SUMIFS('5. Subcontracting Costs'!H:H,'5. Subcontracting Costs'!C:C,B44,'5. Subcontracting Costs'!B:B,$E$25) -> 0 | F44: =SUMIFS('1. Staff costs'!S:S,'1. Staff costs'!C:C,B44,'1. Staff costs'!B:B,$B$8)+SUMIFS('2-3. Travel Costs&Costs of Stay'!N:N,'2-3. Travel Costs&Costs of Stay'!C:C,B44,'2-3. Travel Costs&Costs of Stay'!B:B,$B$8)+SUMIFS('4. Equipment Costs'!H:H,'4. Equipment Costs'!C:C,B44,'4. Equipment Costs'!B:B,$B$8)+SUMIFS('5. Subcontracting Costs'!H:H,'5. Subcontracting Costs'!C:C,B44,'5. Subcontracting Costs'!B:B,$B$8) -> 0 | G44: =SUMIFS('1. Staff costs'!S:S,'1. Staff costs'!C:C,B44,'1. Staff costs'!B:B,$G$25)+SUMIFS('2-3. Travel Costs&Costs of Stay'!N:N,'2-3. Travel Costs&Costs of Stay'!C:C,B44,'2-3. Travel Costs&Costs of Stay'!B:B,$G$25)+SUMIFS('4. Equipment Costs'!H:H,'4. Equipment Costs'!C:C,B44,'4. Equipment Costs'!B:B,$G$25)+SUMIFS('5. Subcontracting Costs'!H:H,'5. Subcontracting Costs'!C:C,B44,'5. Subcontracting Costs'!B:B,$G$25) -> 0 | H44: =SUMIF('B. Special Mob Strand - Student'!B:B,B44,'B. Special Mob Strand - Student'!N:N)+SUMIF('B. Special Mob Strand - Staff'!B:B,B44,'B. Special Mob Strand - Staff'!N:N) -> 0 | I44: 0
B45: P20 | C45: =SUMIFS('1. Staff costs'!S:S,'1. Staff costs'!C:C,B45,'1. Staff costs'!B:B,$C$25)+SUMIFS('2-3. Travel Costs&Costs of Stay'!N:N,'2-3. Travel Costs&Costs of Stay'!C:C,B45,'2-3. Travel Costs&Costs of Stay'!B:B,$C$25)+SUMIFS('4. Equipment Costs'!H:H,'4. Equipment Costs'!C:C,B45,'4. Equipment Costs'!B:B,$C$25)+SUMIFS('5. Subcontracting Costs'!H:H,'5. Subcontracting Costs'!C:C,B45,'5. Subcontracting Costs'!B:B,$C$25) -> 0 | D45: =SUMIFS('1. Staff costs'!S:S,'1. Staff costs'!C:C,B45,'1. Staff costs'!B:B,$D$25)+SUMIFS('2-3. Travel Costs&Costs of Stay'!N:N,'2-3. Travel Costs&Costs of Stay'!C:C,B45,'2-3. Travel Costs&Costs of Stay'!B:B,$D$25)+SUMIFS('4. Equipment Costs'!H:H,'4. Equipment Costs'!C:C,B45,'4. Equipment Costs'!B:B,$D$25)+SUMIFS('5. Subcontracting Costs'!H:H,'5. Subcontracting Costs'!C:C,B45,'5. Subcontracting Costs'!B:B,$D$25) -> 0 | E45: =SUMIFS('1. Staff costs'!S:S,'1. Staff costs'!C:C,B45,'1. Staff costs'!B:B,$E$25)+SUMIFS('2-3. Travel Costs&Costs of Stay'!N:N,'2-3. Travel Costs&Costs of Stay'!C:C,B45,'2-3. Travel Costs&Costs of Stay'!B:B,$E$25)+SUMIFS('4. Equipment Costs'!H:H,'4. Equipment Costs'!C:C,B45,'4. Equipment Costs'!B:B,$E$25)+SUMIFS('5. Subcontracting Costs'!H:H,'5. Subcontracting Costs'!C:C,B45,'5. Subcontracting Costs'!B:B,$E$25) -> 0 | F45: =SUMIFS('1. Staff costs'!S:S,'1. Staff costs'!C:C,B45,'1. Staff costs'!B:B,$B$8)+SUMIFS('2-3. Travel Costs&Costs of Stay'!N:N,'2-3. Travel Costs&Costs of Stay'!C:C,B45,'2-3. Travel Costs&Costs of Stay'!B:B,$B$8)+SUMIFS('4. Equipment Costs'!H:H,'4. Equipment Costs'!C:C,B45,'4. Equipment Costs'!B:B,$B$8)+SUMIFS('5. Subcontracting Costs'!H:H,'5. Subcontracting Costs'!C:C,B45,'5. Subcontracting Costs'!B:B,$B$8) -> 0 | G45: =SUMIFS('1. Staff costs'!S:S,'1. Staff costs'!C:C,B45,'1. Staff costs'!B:B,$G$25)+SUMIFS('2-3. Travel Costs&Costs of Stay'!N:N,'2-3. Travel Costs&Costs of Stay'!C:C,B45,'2-3. Travel Costs&Costs of Stay'!B:B,$G$25)+SUMIFS('4. Equipment Costs'!H:H,'4. Equipment Costs'!C:C,B45,'4. Equipment Costs'!B:B,$G$25)+SUMIFS('5. Subcontracting Costs'!H:H,'5. Subcontracting Costs'!C:C,B45,'5. Subcontracting Costs'!B:B,$G$25) -> 0 | H45: =SUMIF('B. Special Mob Strand - Student'!B:B,B45,'B. Special Mob Strand - Student'!N:N)+SUMIF('B. Special Mob Strand - Staff'!B:B,B45,'B. Special Mob Strand - Staff'!N:N) -> 0 | I45: 0
B46: P21 | C46: =SUMIFS('1. Staff costs'!S:S,'1. Staff costs'!C:C,B46,'1. Staff costs'!B:B,$C$25)+SUMIFS('2-3. Travel Costs&Costs of Stay'!N:N,'2-3. Travel Costs&Costs of Stay'!C:C,B46,'2-3. Travel Costs&Costs of Stay'!B:B,$C$25)+SUMIFS('4. Equipment Costs'!H:H,'4. Equipment Costs'!C:C,B46,'4. Equipment Costs'!B:B,$C$25)+SUMIFS('5. Subcontracting Costs'!H:H,'5. Subcontracting Costs'!C:C,B46,'5. Subcontracting Costs'!B:B,$C$25) -> 0 | D46: =SUMIFS('1. Staff costs'!S:S,'1. Staff costs'!C:C,B46,'1. Staff costs'!B:B,$D$25)+SUMIFS('2-3. Travel Costs&Costs of Stay'!N:N,'2-3. Travel Costs&Costs of Stay'!C:C,B46,'2-3. Travel Costs&Costs of Stay'!B:B,$D$25)+SUMIFS('4. Equipment Costs'!H:H,'4. Equipment Costs'!C:C,B46,'4. Equipment Costs'!B:B,$D$25)+SUMIFS('5. Subcontracting Costs'!H:H,'5. Subcontracting Costs'!C:C,B46,'5. Subcontracting Costs'!B:B,$D$25) -> 0 | E46: =SUMIFS('1. Staff costs'!S:S,'1. Staff costs'!C:C,B46,'1. Staff costs'!B:B,$E$25)+SUMIFS('2-3. Travel Costs&Costs of Stay'!N:N,'2-3. Travel Costs&Costs of Stay'!C:C,B46,'2-3. Travel Costs&Costs of Stay'!B:B,$E$25)+SUMIFS('4. Equipment Costs'!H:H,'4. Equipment Costs'!C:C,B46,'4. Equipment Costs'!B:B,$E$25)+SUMIFS('5. Subcontracting Costs'!H:H,'5. Subcontracting Costs'!C:C,B46,'5. Subcontracting Costs'!B:B,$E$25) -> 0 | F46: =SUMIFS('1. Staff costs'!S:S,'1. Staff costs'!C:C,B46,'1. Staff costs'!B:B,$B$8)+SUMIFS('2-3. Travel Costs&Costs of Stay'!N:N,'2-3. Travel Costs&Costs of Stay'!C:C,B46,'2-3. Travel Costs&Costs of Stay'!B:B,$B$8)+SUMIFS('4. Equipment Costs'!H:H,'4. Equipment Costs'!C:C,B46,'4. Equipment Costs'!B:B,$B$8)+SUMIFS('5. Subcontracting Costs'!H:H,'5. Subcontracting Costs'!C:C,B46,'5. Subcontracting Costs'!B:B,$B$8) -> 0 | G46: =SUMIFS('1. Staff costs'!S:S,'1. Staff costs'!C:C,B46,'1. Staff costs'!B:B,$G$25)+SUMIFS('2-3. Travel Costs&Costs of Stay'!N:N,'2-3. Travel Costs&Costs of Stay'!C:C,B46,'2-3. Travel Costs&Costs of Stay'!B:B,$G$25)+SUMIFS('4. Equipment Costs'!H:H,'4. Equipment Costs'!C:C,B46,'4. Equipment Costs'!B:B,$G$25)+SUMIFS('5. Subcontracting Costs'!H:H,'5. Subcontracting Costs'!C:C,B46,'5. Subcontracting Costs'!B:B,$G$25) -> 0 | H46: =SUMIF('B. Special Mob Strand - Student'!B:B,B46,'B. Special Mob Strand - Student'!N:N)+SUMIF('B. Special Mob Strand - Staff'!B:B,B46,'B. Special Mob Strand - Staff'!N:N) -> 0 | I46: 0
B47: P22 | C47: =SUMIFS('1. Staff costs'!S:S,'1. Staff costs'!C:C,B47,'1. Staff costs'!B:B,$C$25)+SUMIFS('2-3. Travel Costs&Costs of Stay'!N:N,'2-3. Travel Costs&Costs of Stay'!C:C,B47,'2-3. Travel Costs&Costs of Stay'!B:B,$C$25)+SUMIFS('4. Equipment Costs'!H:H,'4. Equipment Costs'!C:C,B47,'4. Equipment Costs'!B:B,$C$25)+SUMIFS('5. Subcontracting Costs'!H:H,'5. Subcontracting Costs'!C:C,B47,'5. Subcontracting Costs'!B:B,$C$25) -> 0 | D47: =SUMIFS('1. Staff costs'!S:S,'1. Staff costs'!C:C,B47,'1. Staff costs'!B:B,$D$25)+SUMIFS('2-3. Travel Costs&Costs of Stay'!N:N,'2-3. Travel Costs&Costs of Stay'!C:C,B47,'2-3. Travel Costs&Costs of Stay'!B:B,$D$25)+SUMIFS('4. Equipment Costs'!H:H,'4. Equipment Costs'!C:C,B47,'4. Equipment Costs'!B:B,$D$25)+SUMIFS('5. Subcontracting Costs'!H:H,'5. Subcontracting Costs'!C:C,B47,'5. Subcontracting Costs'!B:B,$D$25) -> 0 | E47: =SUMIFS('1. Staff costs'!S:S,'1. Staff costs'!C:C,B47,'1. Staff costs'!B:B,$E$25)+SUMIFS('2-3. Travel Costs&Costs of Stay'!N:N,'2-3. Travel Costs&Costs of Stay'!C:C,B47,'2-3. Travel Costs&Costs of Stay'!B:B,$E$25)+SUMIFS('4. Equipment Costs'!H:H,'4. Equipment Costs'!C:C,B47,'4. Equipment Costs'!B:B,$E$25)+SUMIFS('5. Subcontracting Costs'!H:H,'5. Subcontracting Costs'!C:C,B47,'5. Subcontracting Costs'!B:B,$E$25) -> 0 | F47: =SUMIFS('1. Staff costs'!S:S,'1. Staff costs'!C:C,B47,'1. Staff costs'!B:B,$B$8)+SUMIFS('2-3. Travel Costs&Costs of Stay'!N:N,'2-3. Travel Costs&Costs of Stay'!C:C,B47,'2-3. Travel Costs&Costs of Stay'!B:B,$B$8)+SUMIFS('4. Equipment Costs'!H:H,'4. Equipment Costs'!C:C,B47,'4. Equipment Costs'!B:B,$B$8)+SUMIFS('5. Subcontracting Costs'!H:H,'5. Subcontracting Costs'!C:C,B47,'5. Subcontracting Costs'!B:B,$B$8) -> 0 | G47: =SUMIFS('1. Staff costs'!S:S,'1. Staff costs'!C:C,B47,'1. Staff costs'!B:B,$G$25)+SUMIFS('2-3. Travel Costs&Costs of Stay'!N:N,'2-3. Travel Costs&Costs of Stay'!C:C,B47,'2-3. Travel Costs&Costs of Stay'!B:B,$G$25)+SUMIFS('4. Equipment Costs'!H:H,'4. Equipment Costs'!C:C,B47,'4. Equipment Costs'!B:B,$G$25)+SUMIFS('5. Subcontracting Costs'!H:H,'5. Subcontracting Costs'!C:C,B47,'5. Subcontracting Costs'!B:B,$G$25) -> 0 | H47: =SUMIF('B. Special Mob Strand - Student'!B:B,B47,'B. Special Mob Strand - Student'!N:N)+SUMIF('B. Special Mob Strand - Staff'!B:B,B47,'B. Special Mob Strand - Staff'!N:N) -> 0 | I47: 0
B48: P23 | C48: =SUMIFS('1. Staff costs'!S:S,'1. Staff costs'!C:C,B48,'1. Staff costs'!B:B,$C$25)+SUMIFS('2-3. Travel Costs&Costs of Stay'!N:N,'2-3. Travel Costs&Costs of Stay'!C:C,B48,'2-3. Travel Costs&Costs of Stay'!B:B,$C$25)+SUMIFS('4. Equipment Costs'!H:H,'4. Equipment Costs'!C:C,B48,'4. Equipment Costs'!B:B,$C$25)+SUMIFS('5. Subcontracting Costs'!H:H,'5. Subcontracting Costs'!C:C,B48,'5. Subcontracting Costs'!B:B,$C$25) -> 0 | D48: =SUMIFS('1. Staff costs'!S:S,'1. Staff costs'!C:C,B48,'1. Staff costs'!B:B,$D$25)+SUMIFS('2-3. Travel Costs&Costs of Stay'!N:N,'2-3. Travel Costs&Costs of Stay'!C:C,B48,'2-3. Travel Costs&Costs of Stay'!B:B,$D$25)+SUMIFS('4. Equipment Costs'!H:H,'4. Equipment Costs'!C:C,B48,'4. Equipment Costs'!B:B,$D$25)+SUMIFS('5. Subcontracting Costs'!H:H,'5. Subcontracting Costs'!C:C,B48,'5. Subcontracting Costs'!B:B,$D$25) -> 0 | E48: =SUMIFS('1. Staff costs'!S:S,'1. Staff costs'!C:C,B48,'1. Staff costs'!B:B,$E$25)+SUMIFS('2-3. Travel Costs&Costs of Stay'!N:N,'2-3. Travel Costs&Costs of Stay'!C:C,B48,'2-3. Travel Costs&Costs of Stay'!B:B,$E$25)+SUMIFS('4. Equipment Costs'!H:H,'4. Equipment Costs'!C:C,B48,'4. Equipment Costs'!B:B,$E$25)+SUMIFS('5. Subcontracting Costs'!H:H,'5. Subcontracting Costs'!C:C,B48,'5. Subcontracting Costs'!B:B,$E$25) -> 0 | F48: =SUMIFS('1. Staff costs'!S:S,'1. Staff costs'!C:C,B48,'1. Staff costs'!B:B,$B$8)+SUMIFS('2-3. Travel Costs&Costs of Stay'!N:N,'2-3. Travel Costs&Costs of Stay'!C:C,B48,'2-3. Travel Costs&Costs of Stay'!B:B,$B$8)+SUMIFS('4. Equipment Costs'!H:H,'4. Equipment Costs'!C:C,B48,'4. Equipment Costs'!B:B,$B$8)+SUMIFS('5. Subcontracting Costs'!H:H,'5. Subcontracting Costs'!C:C,B48,'5. Subcontracting Costs'!B:B,$B$8) -> 0 | G48: =SUMIFS('1. Staff costs'!S:S,'1. Staff costs'!C:C,B48,'1. Staff costs'!B:B,$G$25)+SUMIFS('2-3. Travel Costs&Costs of Stay'!N:N,'2-3. Travel Costs&Costs of Stay'!C:C,B48,'2-3. Travel Costs&Costs of Stay'!B:B,$G$25)+SUMIFS('4. Equipment Costs'!H:H,'4. Equipment Costs'!C:C,B48,'4. Equipment Costs'!B:B,$G$25)+SUMIFS('5. Subcontracting Costs'!H:H,'5. Subcontracting Costs'!C:C,B48,'5. Subcontracting Costs'!B:B,$G$25) -> 0 | H48: =SUMIF('B. Special Mob Strand - Student'!B:B,B48,'B. Special Mob Strand - Student'!N:N)+SUMIF('B. Special Mob Strand - Staff'!B:B,B48,'B. Special Mob Strand - Staff'!N:N) -> 0 | I48: 0
B49: P24 | C49: =SUMIFS('1. Staff costs'!S:S,'1. Staff costs'!C:C,B49,'1. Staff costs'!B:B,$C$25)+SUMIFS('2-3. Travel Costs&Costs of Stay'!N:N,'2-3. Travel Costs&Costs of Stay'!C:C,B49,'2-3. Travel Costs&Costs of Stay'!B:B,$C$25)+SUMIFS('4. Equipment Costs'!H:H,'4. Equipment Costs'!C:C,B49,'4. Equipment Costs'!B:B,$C$25)+SUMIFS('5. Subcontracting Costs'!H:H,'5. Subcontracting Costs'!C:C,B49,'5. Subcontracting Costs'!B:B,$C$25) -> 0 | D49: =SUMIFS('1. Staff costs'!S:S,'1. Staff costs'!C:C,B49,'1. Staff costs'!B:B,$D$25)+SUMIFS('2-3. Travel Costs&Costs of Stay'!N:N,'2-3. Travel Costs&Costs of Stay'!C:C,B49,'2-3. Travel Costs&Costs of Stay'!B:B,$D$25)+SUMIFS('4. Equipment Costs'!H:H,'4. Equipment Costs'!C:C,B49,'4. Equipment Costs'!B:B,$D$25)+SUMIFS('5. Subcontracting Costs'!H:H,'5. Subcontracting Costs'!C:C,B49,'5. Subcontracting Costs'!B:B,$D$25) -> 0 | E49: =SUMIFS('1. Staff costs'!S:S,'1. Staff costs'!C:C,B49,'1. Staff costs'!B:B,$E$25)+SUMIFS('2-3. Travel Costs&Costs of Stay'!N:N,'2-3. Travel Costs&Costs of Stay'!C:C,B49,'2-3. Travel Costs&Costs of Stay'!B:B,$E$25)+SUMIFS('4. Equipment Costs'!H:H,'4. Equipment Costs'!C:C,B49,'4. Equipment Costs'!B:B,$E$25)+SUMIFS('5. Subcontracting Costs'!H:H,'5. Subcontracting Costs'!C:C,B49,'5. Subcontracting Costs'!B:B,$E$25) -> 0 | F49: =SUMIFS('1. Staff costs'!S:S,'1. Staff costs'!C:C,B49,'1. Staff costs'!B:B,$B$8)+SUMIFS('2-3. Travel Costs&Costs of Stay'!N:N,'2-3. Travel Costs&Costs of Stay'!C:C,B49,'2-3. Travel Costs&Costs of Stay'!B:B,$B$8)+SUMIFS('4. Equipment Costs'!H:H,'4. Equipment Costs'!C:C,B49,'4. Equipment Costs'!B:B,$B$8)+SUMIFS('5. Subcontracting Costs'!H:H,'5. Subcontracting Costs'!C:C,B49,'5. Subcontracting Costs'!B:B,$B$8) -> 0 | G49: =SUMIFS('1. Staff costs'!S:S,'1. Staff costs'!C:C,B49,'1. Staff costs'!B:B,$G$25)+SUMIFS('2-3. Travel Costs&Costs of Stay'!N:N,'2-3. Travel Costs&Costs of Stay'!C:C,B49,'2-3. Travel Costs&Costs of Stay'!B:B,$G$25)+SUMIFS('4. Equipment Costs'!H:H,'4. Equipment Costs'!C:C,B49,'4. Equipment Costs'!B:B,$G$25)+SUMIFS('5. Subcontracting Costs'!H:H,'5. Subcontracting Costs'!C:C,B49,'5. Subcontracting Costs'!B:B,$G$25) -> 0 | H49: =SUMIF('B. Special Mob Strand - Student'!B:B,B49,'B. Special Mob Strand - Student'!N:N)+SUMIF('B. Special Mob Strand - Staff'!B:B,B49,'B. Special Mob Strand - Staff'!N:N) -> 0 | I49: 0
B50: P25 | C50: =SUMIFS('1. Staff costs'!S:S,'1. Staff costs'!C:C,B50,'1. Staff costs'!B:B,$C$25)+SUMIFS('2-3. Travel Costs&Costs of Stay'!N:N,'2-3. Travel Costs&Costs of Stay'!C:C,B50,'2-3. Travel Costs&Costs of Stay'!B:B,$C$25)+SUMIFS('4. Equipment Costs'!H:H,'4. Equipment Costs'!C:C,B50,'4. Equipment Costs'!B:B,$C$25)+SUMIFS('5. Subcontracting Costs'!H:H,'5. Subcontracting Costs'!C:C,B50,'5. Subcontracting Costs'!B:B,$C$25) -> 0 | D50: =SUMIFS('1. Staff costs'!S:S,'1. Staff costs'!C:C,B50,'1. Staff costs'!B:B,$D$25)+SUMIFS('2-3. Travel Costs&Costs of Stay'!N:N,'2-3. Travel Costs&Costs of Stay'!C:C,B50,'2-3. Travel Costs&Costs of Stay'!B:B,$D$25)+SUMIFS('4. Equipment Costs'!H:H,'4. Equipment Costs'!C:C,B50,'4. Equipment Costs'!B:B,$D$25)+SUMIFS('5. Subcontracting Costs'!H:H,'5. Subcontracting Costs'!C:C,B50,'5. Subcontracting Costs'!B:B,$D$25) -> 0 | E50: =SUMIFS('1. Staff costs'!S:S,'1. Staff costs'!C:C,B50,'1. Staff costs'!B:B,$E$25)+SUMIFS('2-3. Travel Costs&Costs of Stay'!N:N,'2-3. Travel Costs&Costs of Stay'!C:C,B50,'2-3. Travel Costs&Costs of Stay'!B:B,$E$25)+SUMIFS('4. Equipment Costs'!H:H,'4. Equipment Costs'!C:C,B50,'4. Equipment Costs'!B:B,$E$25)+SUMIFS('5. Subcontracting Costs'!H:H,'5. Subcontracting Costs'!C:C,B50,'5. Subcontracting Costs'!B:B,$E$25) -> 0 | F50: =SUMIFS('1. Staff costs'!S:S,'1. Staff costs'!C:C,B50,'1. Staff costs'!B:B,$B$8)+SUMIFS('2-3. Travel Costs&Costs of Stay'!N:N,'2-3. Travel Costs&Costs of Stay'!C:C,B50,'2-3. Travel Costs&Costs of Stay'!B:B,$B$8)+SUMIFS('4. Equipment Costs'!H:H,'4. Equipment Costs'!C:C,B50,'4. Equipment Costs'!B:B,$B$8)+SUMIFS('5. Subcontracting Costs'!H:H,'5. Subcontracting Costs'!C:C,B50,'5. Subcontracting Costs'!B:B,$B$8) -> 0 | G50: =SUMIFS('1. Staff costs'!S:S,'1. Staff costs'!C:C,B50,'1. Staff costs'!B:B,$G$25)+SUMIFS('2-3. Travel Costs&Costs of Stay'!N:N,'2-3. Travel Costs&Costs of Stay'!C:C,B50,'2-3. Travel Costs&Costs of Stay'!B:B,$G$25)+SUMIFS('4. Equipment Costs'!H:H,'4. Equipment Costs'!C:C,B50,'4. Equipment Costs'!B:B,$G$25)+SUMIFS('5. Subcontracting Costs'!H:H,'5. Subcontracting Costs'!C:C,B50,'5. Subcontracting Costs'!B:B,$G$25) -> 0 | H50: =SUMIF('B. Special Mob Strand - Student'!B:B,B50,'B. Special Mob Strand - Student'!N:N)+SUMIF('B. Special Mob Strand - Staff'!B:B,B50,'B. Special Mob Strand - Staff'!N:N) -> 0 | I50: 0
B51: P26 | C51: =SUMIFS('1. Staff costs'!S:S,'1. Staff costs'!C:C,B51,'1. Staff costs'!B:B,$C$25)+SUMIFS('2-3. Travel Costs&Costs of Stay'!N:N,'2-3. Travel Costs&Costs of Stay'!C:C,B51,'2-3. Travel Costs&Costs of Stay'!B:B,$C$25)+SUMIFS('4. Equipment Costs'!H:H,'4. Equipment Costs'!C:C,B51,'4. Equipment Costs'!B:B,$C$25)+SUMIFS('5. Subcontracting Costs'!H:H,'5. Subcontracting Costs'!C:C,B51,'5. Subcontracting Costs'!B:B,$C$25) -> 0 | D51: =SUMIFS('1. Staff costs'!S:S,'1. Staff costs'!C:C,B51,'1. Staff costs'!B:B,$D$25)+SUMIFS('2-3. Travel Costs&Costs of Stay'!N:N,'2-3. Travel Costs&Costs of Stay'!C:C,B51,'2-3. Travel Costs&Costs of Stay'!B:B,$D$25)+SUMIFS('4. Equipment Costs'!H:H,'4. Equipment Costs'!C:C,B51,'4. Equipment Costs'!B:B,$D$25)+SUMIFS('5. Subcontracting Costs'!H:H,'5. Subcontracting Costs'!C:C,B51,'5. Subcontracting Costs'!B:B,$D$25) -> 0 | E51: =SUMIFS('1. Staff costs'!S:S,'1. Staff costs'!C:C,B51,'1. Staff costs'!B:B,$E$25)+SUMIFS('2-3. Travel Costs&Costs of Stay'!N:N,'2-3. Travel Costs&Costs of Stay'!C:C,B51,'2-3. Travel Costs&Costs of Stay'!B:B,$E$25)+SUMIFS('4. Equipment Costs'!H:H,'4. Equipment Costs'!C:C,B51,'4. Equipment Costs'!B:B,$E$25)+SUMIFS('5. Subcontracting Costs'!H:H,'5. Subcontracting Costs'!C:C,B51,'5. Subcontracting Costs'!B:B,$E$25) -> 0 | F51: =SUMIFS('1. Staff costs'!S:S,'1. Staff costs'!C:C,B51,'1. Staff costs'!B:B,$B$8)+SUMIFS('2-3. Travel Costs&Costs of Stay'!N:N,'2-3. Travel Costs&Costs of Stay'!C:C,B51,'2-3. Travel Costs&Costs of Stay'!B:B,$B$8)+SUMIFS('4. Equipment Costs'!H:H,'4. Equipment Costs'!C:C,B51,'4. Equipment Costs'!B:B,$B$8)+SUMIFS('5. Subcontracting Costs'!H:H,'5. Subcontracting Costs'!C:C,B51,'5. Subcontracting Costs'!B:B,$B$8) -> 0 | G51: =SUMIFS('1. Staff costs'!S:S,'1. Staff costs'!C:C,B51,'1. Staff costs'!B:B,$G$25)+SUMIFS('2-3. Travel Costs&Costs of Stay'!N:N,'2-3. Travel Costs&Costs of Stay'!C:C,B51,'2-3. Travel Costs&Costs of Stay'!B:B,$G$25)+SUMIFS('4. Equipment Costs'!H:H,'4. Equipment Costs'!C:C,B51,'4. Equipment Costs'!B:B,$G$25)+SUMIFS('5. Subcontracting Costs'!H:H,'5. Subcontracting Costs'!C:C,B51,'5. Subcontracting Costs'!B:B,$G$25) -> 0 | H51: =SUMIF('B. Special Mob Strand - Student'!B:B,B51,'B. Special Mob Strand - Student'!N:N)+SUMIF('B. Special Mob Strand - Staff'!B:B,B51,'B. Special Mob Strand - Staff'!N:N) -> 0 | I51: 0
B52: P27 | C52: =SUMIFS('1. Staff costs'!S:S,'1. Staff costs'!C:C,B52,'1. Staff costs'!B:B,$C$25)+SUMIFS('2-3. Travel Costs&Costs of Stay'!N:N,'2-3. Travel Costs&Costs of Stay'!C:C,B52,'2-3. Travel Costs&Costs of Stay'!B:B,$C$25)+SUMIFS('4. Equipment Costs'!H:H,'4. Equipment Costs'!C:C,B52,'4. Equipment Costs'!B:B,$C$25)+SUMIFS('5. Subcontracting Costs'!H:H,'5. Subcontracting Costs'!C:C,B52,'5. Subcontracting Costs'!B:B,$C$25) -> 0 | D52: =SUMIFS('1. Staff costs'!S:S,'1. Staff costs'!C:C,B52,'1. Staff costs'!B:B,$D$25)+SUMIFS('2-3. Travel Costs&Costs of Stay'!N:N,'2-3. Travel Costs&Costs of Stay'!C:C,B52,'2-3. Travel Costs&Costs of Stay'!B:B,$D$25)+SUMIFS('4. Equipment Costs'!H:H,'4. Equipment Costs'!C:C,B52,'4. Equipment Costs'!B:B,$D$25)+SUMIFS('5. Subcontracting Costs'!H:H,'5. Subcontracting Costs'!C:C,B52,'5. Subcontracting Costs'!B:B,$D$25) -> 0 | E52: =SUMIFS('1. Staff costs'!S:S,'1. Staff costs'!C:C,B52,'1. Staff costs'!B:B,$E$25)+SUMIFS('2-3. Travel Costs&Costs of Stay'!N:N,'2-3. Travel Costs&Costs of Stay'!C:C,B52,'2-3. Travel Costs&Costs of Stay'!B:B,$E$25)+SUMIFS('4. Equipment Costs'!H:H,'4. Equipment Costs'!C:C,B52,'4. Equipment Costs'!B:B,$E$25)+SUMIFS('5. Subcontracting Costs'!H:H,'5. Subcontracting Costs'!C:C,B52,'5. Subcontracting Costs'!B:B,$E$25) -> 0 | F52: =SUMIFS('1. Staff costs'!S:S,'1. Staff costs'!C:C,B52,'1. Staff costs'!B:B,$B$8)+SUMIFS('2-3. Travel Costs&Costs of Stay'!N:N,'2-3. Travel Costs&Costs of Stay'!C:C,B52,'2-3. Travel Costs&Costs of Stay'!B:B,$B$8)+SUMIFS('4. Equipment Costs'!H:H,'4. Equipment Costs'!C:C,B52,'4. Equipment Costs'!B:B,$B$8)+SUMIFS('5. Subcontracting Costs'!H:H,'5. Subcontracting Costs'!C:C,B52,'5. Subcontracting Costs'!B:B,$B$8) -> 0 | G52: =SUMIFS('1. Staff costs'!S:S,'1. Staff costs'!C:C,B52,'1. Staff costs'!B:B,$G$25)+SUMIFS('2-3. Travel Costs&Costs of Stay'!N:N,'2-3. Travel Costs&Costs of Stay'!C:C,B52,'2-3. Travel Costs&Costs of Stay'!B:B,$G$25)+SUMIFS('4. Equipment Costs'!H:H,'4. Equipment Costs'!C:C,B52,'4. Equipment Costs'!B:B,$G$25)+SUMIFS('5. Subcontracting Costs'!H:H,'5. Subcontracting Costs'!C:C,B52,'5. Subcontracting Costs'!B:B,$G$25) -> 0 | H52: =SUMIF('B. Special Mob Strand - Student'!B:B,B52,'B. Special Mob Strand - Student'!N:N)+SUMIF('B. Special Mob Strand - Staff'!B:B,B52,'B. Special Mob Strand - Staff'!N:N) -> 0 | I52: 0
B53: P28 | C53: =SUMIFS('1. Staff costs'!S:S,'1. Staff costs'!C:C,B53,'1. Staff costs'!B:B,$C$25)+SUMIFS('2-3. Travel Costs&Costs of Stay'!N:N,'2-3. Travel Costs&Costs of Stay'!C:C,B53,'2-3. Travel Costs&Costs of Stay'!B:B,$C$25)+SUMIFS('4. Equipment Costs'!H:H,'4. Equipment Costs'!C:C,B53,'4. Equipment Costs'!B:B,$C$25)+SUMIFS('5. Subcontracting Costs'!H:H,'5. Subcontracting Costs'!C:C,B53,'5. Subcontracting Costs'!B:B,$C$25) -> 0 | D53: =SUMIFS('1. Staff costs'!S:S,'1. Staff costs'!C:C,B53,'1. Staff costs'!B:B,$D$25)+SUMIFS('2-3. Travel Costs&Costs of Stay'!N:N,'2-3. Travel Costs&Costs of Stay'!C:C,B53,'2-3. Travel Costs&Costs of Stay'!B:B,$D$25)+SUMIFS('4. Equipment Costs'!H:H,'4. Equipment Costs'!C:C,B53,'4. Equipment Costs'!B:B,$D$25)+SUMIFS('5. Subcontracting Costs'!H:H,'5. Subcontracting Costs'!C:C,B53,'5. Subcontracting Costs'!B:B,$D$25) -> 0 | E53: =SUMIFS('1. Staff costs'!S:S,'1. Staff costs'!C:C,B53,'1. Staff costs'!B:B,$E$25)+SUMIFS('2-3. Travel Costs&Costs of Stay'!N:N,'2-3. Travel Costs&Costs of Stay'!C:C,B53,'2-3. Travel Costs&Costs of Stay'!B:B,$E$25)+SUMIFS('4. Equipment Costs'!H:H,'4. Equipment Costs'!C:C,B53,'4. Equipment Costs'!B:B,$E$25)+SUMIFS('5. Subcontracting Costs'!H:H,'5. Subcontracting Costs'!C:C,B53,'5. Subcontracting Costs'!B:B,$E$25) -> 0 | F53: =SUMIFS('1. Staff costs'!S:S,'1. Staff costs'!C:C,B53,'1. Staff costs'!B:B,$B$8)+SUMIFS('2-3. Travel Costs&Costs of Stay'!N:N,'2-3. Travel Costs&Costs of Stay'!C:C,B53,'2-3. Travel Costs&Costs of Stay'!B:B,$B$8)+SUMIFS('4. Equipment Costs'!H:H,'4. Equipment Costs'!C:C,B53,'4. Equipment Costs'!B:B,$B$8)+SUMIFS('5. Subcontracting Costs'!H:H,'5. Subcontracting Costs'!C:C,B53,'5. Subcontracting Costs'!B:B,$B$8) -> 0 | G53: =SUMIFS('1. Staff costs'!S:S,'1. Staff costs'!C:C,B53,'1. Staff costs'!B:B,$G$25)+SUMIFS('2-3. Travel Costs&Costs of Stay'!N:N,'2-3. Travel Costs&Costs of Stay'!C:C,B53,'2-3. Travel Costs&Costs of Stay'!B:B,$G$25)+SUMIFS('4. Equipment Costs'!H:H,'4. Equipment Costs'!C:C,B53,'4. Equipment Costs'!B:B,$G$25)+SUMIFS('5. Subcontracting Costs'!H:H,'5. Subcontracting Costs'!C:C,B53,'5. Subcontracting Costs'!B:B,$G$25) -> 0 | H53: =SUMIF('B. Special Mob Strand - Student'!B:B,B53,'B. Special Mob Strand - Student'!N:N)+SUMIF('B. Special Mob Strand - Staff'!B:B,B53,'B. Special Mob Strand - Staff'!N:N) -> 0 | I53: 0
B54: P29 | C54: =SUMIFS('1. Staff costs'!S:S,'1. Staff costs'!C:C,B54,'1. Staff costs'!B:B,$C$25)+SUMIFS('2-3. Travel Costs&Costs of Stay'!N:N,'2-3. Travel Costs&Costs of Stay'!C:C,B54,'2-3. Travel Costs&Costs of Stay'!B:B,$C$25)+SUMIFS('4. Equipment Costs'!H:H,'4. Equipment Costs'!C:C,B54,'4. Equipment Costs'!B:B,$C$25)+SUMIFS('5. Subcontracting Costs'!H:H,'5. Subcontracting Costs'!C:C,B54,'5. Subcontracting Costs'!B:B,$C$25) -> 0 | D54: =SUMIFS('1. Staff costs'!S:S,'1. Staff costs'!C:C,B54,'1. Staff costs'!B:B,$D$25)+SUMIFS('2-3. Travel Costs&Costs of Stay'!N:N,'2-3. Travel Costs&Costs of Stay'!C:C,B54,'2-3. Travel Costs&Costs of Stay'!B:B,$D$25)+SUMIFS('4. Equipment Costs'!H:H,'4. Equipment Costs'!C:C,B54,'4. Equipment Costs'!B:B,$D$25)+SUMIFS('5. Subcontracting Costs'!H:H,'5. Subcontracting Costs'!C:C,B54,'5. Subcontracting Costs'!B:B,$D$25) -> 0 | E54: =SUMIFS('1. Staff costs'!S:S,'1. Staff costs'!C:C,B54,'1. Staff costs'!B:B,$E$25)+SUMIFS('2-3. Travel Costs&Costs of Stay'!N:N,'2-3. Travel Costs&Costs of Stay'!C:C,B54,'2-3. Travel Costs&Costs of Stay'!B:B,$E$25)+SUMIFS('4. Equipment Costs'!H:H,'4. Equipment Costs'!C:C,B54,'4. Equipment Costs'!B:B,$E$25)+SUMIFS('5. Subcontracting Costs'!H:H,'5. Subcontracting Costs'!C:C,B54,'5. Subcontracting Costs'!B:B,$E$25) -> 0 | F54: =SUMIFS('1. Staff costs'!S:S,'1. Staff costs'!C:C,B54,'1. Staff costs'!B:B,$B$8)+SUMIFS('2-3. Travel Costs&Costs of Stay'!N:N,'2-3. Travel Costs&Costs of Stay'!C:C,B54,'2-3. Travel Costs&Costs of Stay'!B:B,$B$8)+SUMIFS('4. Equipment Costs'!H:H,'4. Equipment Costs'!C:C,B54,'4. Equipment Costs'!B:B,$B$8)+SUMIFS('5. Subcontracting Costs'!H:H,'5. Subcontracting Costs'!C:C,B54,'5. Subcontracting Costs'!B:B,$B$8) -> 0 | G54: =SUMIFS('1. Staff costs'!S:S,'1. Staff costs'!C:C,B54,'1. Staff costs'!B:B,$G$25)+SUMIFS('2-3. Travel Costs&Costs of Stay'!N:N,'2-3. Travel Costs&Costs of Stay'!C:C,B54,'2-3. Travel Costs&Costs of Stay'!B:B,$G$25)+SUMIFS('4. Equipment Costs'!H:H,'4. Equipment Costs'!C:C,B54,'4. Equipment Costs'!B:B,$G$25)+SUMIFS('5. Subcontracting Costs'!H:H,'5. Subcontracting Costs'!C:C,B54,'5. Subcontracting Costs'!B:B,$G$25) -> 0 | H54: =SUMIF('B. Special Mob Strand - Student'!B:B,B54,'B. Special Mob Strand - Student'!N:N)+SUMIF('B. Special Mob Strand - Staff'!B:B,B54,'B. Special Mob Strand - Staff'!N:N) -> 0 | I54: 0
B55: P30 | C55: =SUMIFS('1. Staff costs'!S:S,'1. Staff costs'!C:C,B55,'1. Staff costs'!B:B,$C$25)+SUMIFS('2-3. Travel Costs&Costs of Stay'!N:N,'2-3. Travel Costs&Costs of Stay'!C:C,B55,'2-3. Travel Costs&Costs of Stay'!B:B,$C$25)+SUMIFS('4. Equipment Costs'!H:H,'4. Equipment Costs'!C:C,B55,'4. Equipment Costs'!B:B,$C$25)+SUMIFS('5. Subcontracting Costs'!H:H,'5. Subcontracting Costs'!C:C,B55,'5. Subcontracting Costs'!B:B,$C$25) -> 0 | D55: =SUMIFS('1. Staff costs'!S:S,'1. Staff costs'!C:C,B55,'1. Staff costs'!B:B,$D$25)+SUMIFS('2-3. Travel Costs&Costs of Stay'!N:N,'2-3. Travel Costs&Costs of Stay'!C:C,B55,'2-3. Travel Costs&Costs of Stay'!B:B,$D$25)+SUMIFS('4. Equipment Costs'!H:H,'4. Equipment Costs'!C:C,B55,'4. Equipment Costs'!B:B,$D$25)+SUMIFS('5. Subcontracting Costs'!H:H,'5. Subcontracting Costs'!C:C,B55,'5. Subcontracting Costs'!B:B,$D$25) -> 0 | E55: =SUMIFS('1. Staff costs'!S:S,'1. Staff costs'!C:C,B55,'1. Staff costs'!B:B,$E$25)+SUMIFS('2-3. Travel Costs&Costs of Stay'!N:N,'2-3. Travel Costs&Costs of Stay'!C:C,B55,'2-3. Travel Costs&Costs of Stay'!B:B,$E$25)+SUMIFS('4. Equipment Costs'!H:H,'4. Equipment Costs'!C:C,B55,'4. Equipment Costs'!B:B,$E$25)+SUMIFS('5. Subcontracting Costs'!H:H,'5. Subcontracting Costs'!C:C,B55,'5. Subcontracting Costs'!B:B,$E$25) -> 0 | F55: =SUMIFS('1. Staff costs'!S:S,'1. Staff costs'!C:C,B55,'1. Staff costs'!B:B,$B$8)+SUMIFS('2-3. Travel Costs&Costs of Stay'!N:N,'2-3. Travel Costs&Costs of Stay'!C:C,B55,'2-3. Travel Costs&Costs of Stay'!B:B,$B$8)+SUMIFS('4. Equipment Costs'!H:H,'4. Equipment Costs'!C:C,B55,'4. Equipment Costs'!B:B,$B$8)+SUMIFS('5. Subcontracting Costs'!H:H,'5. Subcontracting Costs'!C:C,B55,'5. Subcontracting Costs'!B:B,$B$8) -> 0 | G55: =SUMIFS('1. Staff costs'!S:S,'1. Staff costs'!C:C,B55,'1. Staff costs'!B:B,$G$25)+SUMIFS('2-3. Travel Costs&Costs of Stay'!N:N,'2-3. Travel Costs&Costs of Stay'!C:C,B55,'2-3. Travel Costs&Costs of Stay'!B:B,$G$25)+SUMIFS('4. Equipment Costs'!H:H,'4. Equipment Costs'!C:C,B55,'4. Equipment Costs'!B:B,$G$25)+SUMIFS('5. Subcontracting Costs'!H:H,'5. Subcontracting Costs'!C:C,B55,'5. Subcontracting Costs'!B:B,$G$25) -> 0 | H55: =SUMIF('B. Special Mob Strand - Student'!B:B,B55,'B. Special Mob Strand - Student'!N:N)+SUMIF('B. Special Mob Strand - Staff'!B:B,B55,'B. Special Mob Strand - Staff'!N:N) -> 0 | I55: 0
B56: P31 | C56: =SUMIFS('1. Staff costs'!S:S,'1. Staff costs'!C:C,B56,'1. Staff costs'!B:B,$C$25)+SUMIFS('2-3. Travel Costs&Costs of Stay'!N:N,'2-3. Travel Costs&Costs of Stay'!C:C,B56,'2-3. Travel Costs&Costs of Stay'!B:B,$C$25)+SUMIFS('4. Equipment Costs'!H:H,'4. Equipment Costs'!C:C,B56,'4. Equipment Costs'!B:B,$C$25)+SUMIFS('5. Subcontracting Costs'!H:H,'5. Subcontracting Costs'!C:C,B56,'5. Subcontracting Costs'!B:B,$C$25) -> 0 | D56: =SUMIFS('1. Staff costs'!S:S,'1. Staff costs'!C:C,B56,'1. Staff costs'!B:B,$D$25)+SUMIFS('2-3. Travel Costs&Costs of Stay'!N:N,'2-3. Travel Costs&Costs of Stay'!C:C,B56,'2-3. Travel Costs&Costs of Stay'!B:B,$D$25)+SUMIFS('4. Equipment Costs'!H:H,'4. Equipment Costs'!C:C,B56,'4. Equipment Costs'!B:B,$D$25)+SUMIFS('5. Subcontracting Costs'!H:H,'5. Subcontracting Costs'!C:C,B56,'5. Subcontracting Costs'!B:B,$D$25) -> 0 | E56: =SUMIFS('1. Staff costs'!S:S,'1. Staff costs'!C:C,B56,'1. Staff costs'!B:B,$E$25)+SUMIFS('2-3. Travel Costs&Costs of Stay'!N:N,'2-3. Travel Costs&Costs of Stay'!C:C,B56,'2-3. Travel Costs&Costs of Stay'!B:B,$E$25)+SUMIFS('4. Equipment Costs'!H:H,'4. Equipment Costs'!C:C,B56,'4. Equipment Costs'!B:B,$E$25)+SUMIFS('5. Subcontracting Costs'!H:H,'5. Subcontracting Costs'!C:C,B56,'5. Subcontracting Costs'!B:B,$E$25) -> 0 | F56: =SUMIFS('1. Staff costs'!S:S,'1. Staff costs'!C:C,B56,'1. Staff costs'!B:B,$B$8)+SUMIFS('2-3. Travel Costs&Costs of Stay'!N:N,'2-3. Travel Costs&Costs of Stay'!C:C,B56,'2-3. Travel Costs&Costs of Stay'!B:B,$B$8)+SUMIFS('4. Equipment Costs'!H:H,'4. Equipment Costs'!C:C,B56,'4. Equipment Costs'!B:B,$B$8)+SUMIFS('5. Subcontracting Costs'!H:H,'5. Subcontracting Costs'!C:C,B56,'5. Subcontracting Costs'!B:B,$B$8) -> 0 | G56: =SUMIFS('1. Staff costs'!S:S,'1. Staff costs'!C:C,B56,'1. Staff costs'!B:B,$G$25)+SUMIFS('2-3. Travel Costs&Costs of Stay'!N:N,'2-3. Travel Costs&Costs of Stay'!C:C,B56,'2-3. Travel Costs&Costs of Stay'!B:B,$G$25)+SUMIFS('4. Equipment Costs'!H:H,'4. Equipment Costs'!C:C,B56,'4. Equipment Costs'!B:B,$G$25)+SUMIFS('5. Subcontracting Costs'!H:H,'5. Subcontracting Costs'!C:C,B56,'5. Subcontracting Costs'!B:B,$G$25) -> 0 | H56: =SUMIF('B. Special Mob Strand - Student'!B:B,B56,'B. Special Mob Strand - Student'!N:N)+SUMIF('B. Special Mob Strand - Staff'!B:B,B56,'B. Special Mob Strand - Staff'!N:N) -> 0 | I56: 0
B57: P32 | C57: =SUMIFS('1. Staff costs'!S:S,'1. Staff costs'!C:C,B57,'1. Staff costs'!B:B,$C$25)+SUMIFS('2-3. Travel Costs&Costs of Stay'!N:N,'2-3. Travel Costs&Costs of Stay'!C:C,B57,'2-3. Travel Costs&Costs of Stay'!B:B,$C$25)+SUMIFS('4. Equipment Costs'!H:H,'4. Equipment Costs'!C:C,B57,'4. Equipment Costs'!B:B,$C$25)+SUMIFS('5. Subcontracting Costs'!H:H,'5. Subcontracting Costs'!C:C,B57,'5. Subcontracting Costs'!B:B,$C$25) -> 0 | D57: =SUMIFS('1. Staff costs'!S:S,'1. Staff costs'!C:C,B57,'1. Staff costs'!B:B,$D$25)+SUMIFS('2-3. Travel Costs&Costs of Stay'!N:N,'2-3. Travel Costs&Costs of Stay'!C:C,B57,'2-3. Travel Costs&Costs of Stay'!B:B,$D$25)+SUMIFS('4. Equipment Costs'!H:H,'4. Equipment Costs'!C:C,B57,'4. Equipment Costs'!B:B,$D$25)+SUMIFS('5. Subcontracting Costs'!H:H,'5. Subcontracting Costs'!C:C,B57,'5. Subcontracting Costs'!B:B,$D$25) -> 0 | E57: =SUMIFS('1. Staff costs'!S:S,'1. Staff costs'!C:C,B57,'1. Staff costs'!B:B,$E$25)+SUMIFS('2-3. Travel Costs&Costs of Stay'!N:N,'2-3. Travel Costs&Costs of Stay'!C:C,B57,'2-3. Travel Costs&Costs of Stay'!B:B,$E$25)+SUMIFS('4. Equipment Costs'!H:H,'4. Equipment Costs'!C:C,B57,'4. Equipment Costs'!B:B,$E$25)+SUMIFS('5. Subcontracting Costs'!H:H,'5. Subcontracting Costs'!C:C,B57,'5. Subcontracting Costs'!B:B,$E$25) -> 0 | F57: =SUMIFS('1. Staff costs'!S:S,'1. Staff costs'!C:C,B57,'1. Staff costs'!B:B,$B$8)+SUMIFS('2-3. Travel Costs&Costs of Stay'!N:N,'2-3. Travel Costs&Costs of Stay'!C:C,B57,'2-3. Travel Costs&Costs of Stay'!B:B,$B$8)+SUMIFS('4. Equipment Costs'!H:H,'4. Equipment Costs'!C:C,B57,'4. Equipment Costs'!B:B,$B$8)+SUMIFS('5. Subcontracting Costs'!H:H,'5. Subcontracting Costs'!C:C,B57,'5. Subcontracting Costs'!B:B,$B$8) -> 0 | G57: =SUMIFS('1. Staff costs'!S:S,'1. Staff costs'!C:C,B57,'1. Staff costs'!B:B,$G$25)+SUMIFS('2-3. Travel Costs&Costs of Stay'!N:N,'2-3. Travel Costs&Costs of Stay'!C:C,B57,'2-3. Travel Costs&Costs of Stay'!B:B,$G$25)+SUMIFS('4. Equipment Costs'!H:H,'4. Equipment Costs'!C:C,B57,'4. Equipment Costs'!B:B,$G$25)+SUMIFS('5. Subcontracting Costs'!H:H,'5. Subcontracting Costs'!C:C,B57,'5. Subcontracting Costs'!B:B,$G$25) -> 0 | H57: =SUMIF('B. Special Mob Strand - Student'!B:B,B57,'B. Special Mob Strand - Student'!N:N)+SUMIF('B. Special Mob Strand - Staff'!B:B,B57,'B. Special Mob Strand - Staff'!N:N) -> 0 | I57: 0
B58: P33 | C58: =SUMIFS('1. Staff costs'!S:S,'1. Staff costs'!C:C,B58,'1. Staff costs'!B:B,$C$25)+SUMIFS('2-3. Travel Costs&Costs of Stay'!N:N,'2-3. Travel Costs&Costs of Stay'!C:C,B58,'2-3. Travel Costs&Costs of Stay'!B:B,$C$25)+SUMIFS('4. Equipment Costs'!H:H,'4. Equipment Costs'!C:C,B58,'4. Equipment Costs'!B:B,$C$25)+SUMIFS('5. Subcontracting Costs'!H:H,'5. Subcontracting Costs'!C:C,B58,'5. Subcontracting Costs'!B:B,$C$25) -> 0 | D58: =SUMIFS('1. Staff costs'!S:S,'1. Staff costs'!C:C,B58,'1. Staff costs'!B:B,$D$25)+SUMIFS('2-3. Travel Costs&Costs of Stay'!N:N,'2-3. Travel Costs&Costs of Stay'!C:C,B58,'2-3. Travel Costs&Costs of Stay'!B:B,$D$25)+SUMIFS('4. Equipment Costs'!H:H,'4. Equipment Costs'!C:C,B58,'4. Equipment Costs'!B:B,$D$25)+SUMIFS('5. Subcontracting Costs'!H:H,'5. Subcontracting Costs'!C:C,B58,'5. Subcontracting Costs'!B:B,$D$25) -> 0 | E58: =SUMIFS('1. Staff costs'!S:S,'1. Staff costs'!C:C,B58,'1. Staff costs'!B:B,$E$25)+SUMIFS('2-3. Travel Costs&Costs of Stay'!N:N,'2-3. Travel Costs&Costs of Stay'!C:C,B58,'2-3. Travel Costs&Costs of Stay'!B:B,$E$25)+SUMIFS('4. Equipment Costs'!H:H,'4. Equipment Costs'!C:C,B58,'4. Equipment Costs'!B:B,$E$25)+SUMIFS('5. Subcontracting Costs'!H:H,'5. Subcontracting Costs'!C:C,B58,'5. Subcontracting Costs'!B:B,$E$25) -> 0 | F58: =SUMIFS('1. Staff costs'!S:S,'1. Staff costs'!C:C,B58,'1. Staff costs'!B:B,$B$8)+SUMIFS('2-3. Travel Costs&Costs of Stay'!N:N,'2-3. Travel Costs&Costs of Stay'!C:C,B58,'2-3. Travel Costs&Costs of Stay'!B:B,$B$8)+SUMIFS('4. Equipment Costs'!H:H,'4. Equipment Costs'!C:C,B58,'4. Equipment Costs'!B:B,$B$8)+SUMIFS('5. Subcontracting Costs'!H:H,'5. Subcontracting Costs'!C:C,B58,'5. Subcontracting Costs'!B:B,$B$8) -> 0 | G58: =SUMIFS('1. Staff costs'!S:S,'1. Staff costs'!C:C,B58,'1. Staff costs'!B:B,$G$25)+SUMIFS('2-3. Travel Costs&Costs of Stay'!N:N,'2-3. Travel Costs&Costs of Stay'!C:C,B58,'2-3. Travel Costs&Costs of Stay'!B:B,$G$25)+SUMIFS('4. Equipment Costs'!H:H,'4. Equipment Costs'!C:C,B58,'4. Equipment Costs'!B:B,$G$25)+SUMIFS('5. Subcontracting Costs'!H:H,'5. Subcontracting Costs'!C:C,B58,'5. Subcontracting Costs'!B:B,$G$25) -> 0 | H58: =SUMIF('B. Special Mob Strand - Student'!B:B,B58,'B. Special Mob Strand - Student'!N:N)+SUMIF('B. Special Mob Strand - Staff'!B:B,B58,'B. Special Mob Strand - Staff'!N:N) -> 0 | I58: 0
B59: P34 | C59: =SUMIFS('1. Staff costs'!S:S,'1. Staff costs'!C:C,B59,'1. Staff costs'!B:B,$C$25)+SUMIFS('2-3. Travel Costs&Costs of Stay'!N:N,'2-3. Travel Costs&Costs of Stay'!C:C,B59,'2-3. Travel Costs&Costs of Stay'!B:B,$C$25)+SUMIFS('4. Equipment Costs'!H:H,'4. Equipment Costs'!C:C,B59,'4. Equipment Costs'!B:B,$C$25)+SUMIFS('5. Subcontracting Costs'!H:H,'5. Subcontracting Costs'!C:C,B59,'5. Subcontracting Costs'!B:B,$C$25) -> 0 | D59: =SUMIFS('1. Staff costs'!S:S,'1. Staff costs'!C:C,B59,'1. Staff costs'!B:B,$D$25)+SUMIFS('2-3. Travel Costs&Costs of Stay'!N:N,'2-3. Travel Costs&Costs of Stay'!C:C,B59,'2-3. Travel Costs&Costs of Stay'!B:B,$D$25)+SUMIFS('4. Equipment Costs'!H:H,'4. Equipment Costs'!C:C,B59,'4. Equipment Costs'!B:B,$D$25)+SUMIFS('5. Subcontracting Costs'!H:H,'5. Subcontracting Costs'!C:C,B59,'5. Subcontracting Costs'!B:B,$D$25) -> 0 | E59: =SUMIFS('1. Staff costs'!S:S,'1. Staff costs'!C:C,B59,'1. Staff costs'!B:B,$E$25)+SUMIFS('2-3. Travel Costs&Costs of Stay'!N:N,'2-3. Travel Costs&Costs of Stay'!C:C,B59,'2-3. Travel Costs&Costs of Stay'!B:B,$E$25)+SUMIFS('4. Equipment Costs'!H:H,'4. Equipment Costs'!C:C,B59,'4. Equipment Costs'!B:B,$E$25)+SUMIFS('5. Subcontracting Costs'!H:H,'5. Subcontracting Costs'!C:C,B59,'5. Subcontracting Costs'!B:B,$E$25) -> 0 | F59: =SUMIFS('1. Staff costs'!S:S,'1. Staff costs'!C:C,B59,'1. Staff costs'!B:B,$B$8)+SUMIFS('2-3. Travel Costs&Costs of Stay'!N:N,'2-3. Travel Costs&Costs of Stay'!C:C,B59,'2-3. Travel Costs&Costs of Stay'!B:B,$B$8)+SUMIFS('4. Equipment Costs'!H:H,'4. Equipment Costs'!C:C,B59,'4. Equipment Costs'!B:B,$B$8)+SUMIFS('5. Subcontracting Costs'!H:H,'5. Subcontracting Costs'!C:C,B59,'5. Subcontracting Costs'!B:B,$B$8) -> 0 | G59: =SUMIFS('1. Staff costs'!S:S,'1. Staff costs'!C:C,B59,'1. Staff costs'!B:B,$G$25)+SUMIFS('2-3. Travel Costs&Costs of Stay'!N:N,'2-3. Travel Costs&Costs of Stay'!C:C,B59,'2-3. Travel Costs&Costs of Stay'!B:B,$G$25)+SUMIFS('4. Equipment Costs'!H:H,'4. Equipment Costs'!C:C,B59,'4. Equipment Costs'!B:B,$G$25)+SUMIFS('5. Subcontracting Costs'!H:H,'5. Subcontracting Costs'!C:C,B59,'5. Subcontracting Costs'!B:B,$G$25) -> 0 | H59: =SUMIF('B. Special Mob Strand - Student'!B:B,B59,'B. Special Mob Strand - Student'!N:N)+SUMIF('B. Special Mob Strand - Staff'!B:B,B59,'B. Special Mob Strand - Staff'!N:N) -> 0 | I59: 0
B60: P35 | C60: =SUMIFS('1. Staff costs'!S:S,'1. Staff costs'!C:C,B60,'1. Staff costs'!B:B,$C$25)+SUMIFS('2-3. Travel Costs&Costs of Stay'!N:N,'2-3. Travel Costs&Costs of Stay'!C:C,B60,'2-3. Travel Costs&Costs of Stay'!B:B,$C$25)+SUMIFS('4. Equipment Costs'!H:H,'4. Equipment Costs'!C:C,B60,'4. Equipment Costs'!B:B,$C$25)+SUMIFS('5. Subcontracting Costs'!H:H,'5. Subcontracting Costs'!C:C,B60,'5. Subcontracting Costs'!B:B,$C$25) -> 0 | D60: =SUMIFS('1. Staff costs'!S:S,'1. Staff costs'!C:C,B60,'1. Staff costs'!B:B,$D$25)+SUMIFS('2-3. Travel Costs&Costs of Stay'!N:N,'2-3. Travel Costs&Costs of Stay'!C:C,B60,'2-3. Travel Costs&Costs of Stay'!B:B,$D$25)+SUMIFS('4. Equipment Costs'!H:H,'4. Equipment Costs'!C:C,B60,'4. Equipment Costs'!B:B,$D$25)+SUMIFS('5. Subcontracting Costs'!H:H,'5. Subcontracting Costs'!C:C,B60,'5. Subcontracting Costs'!B:B,$D$25) -> 0 | E60: =SUMIFS('1. Staff costs'!S:S,'1. Staff costs'!C:C,B60,'1. Staff costs'!B:B,$E$25)+SUMIFS('2-3. Travel Costs&Costs of Stay'!N:N,'2-3. Travel Costs&Costs of Stay'!C:C,B60,'2-3. Travel Costs&Costs of Stay'!B:B,$E$25)+SUMIFS('4. Equipment Costs'!H:H,'4. Equipment Costs'!C:C,B60,'4. Equipment Costs'!B:B,$E$25)+SUMIFS('5. Subcontracting Costs'!H:H,'5. Subcontracting Costs'!C:C,B60,'5. Subcontracting Costs'!B:B,$E$25) -> 0 | F60: =SUMIFS('1. Staff costs'!S:S,'1. Staff costs'!C:C,B60,'1. Staff costs'!B:B,$B$8)+SUMIFS('2-3. Travel Costs&Costs of Stay'!N:N,'2-3. Travel Costs&Costs of Stay'!C:C,B60,'2-3. Travel Costs&Costs of Stay'!B:B,$B$8)+SUMIFS('4. Equipment Costs'!H:H,'4. Equipment Costs'!C:C,B60,'4. Equipment Costs'!B:B,$B$8)+SUMIFS('5. Subcontracting Costs'!H:H,'5. Subcontracting Costs'!C:C,B60,'5. Subcontracting Costs'!B:B,$B$8) -> 0 | G60: =SUMIFS('1. Staff costs'!S:S,'1. Staff costs'!C:C,B60,'1. Staff costs'!B:B,$G$25)+SUMIFS('2-3. Travel Costs&Costs of Stay'!N:N,'2-3. Travel Costs&Costs of Stay'!C:C,B60,'2-3. Travel Costs&Costs of Stay'!B:B,$G$25)+SUMIFS('4. Equipment Costs'!H:H,'4. Equipment Costs'!C:C,B60,'4. Equipment Costs'!B:B,$G$25)+SUMIFS('5. Subcontracting Costs'!H:H,'5. Subcontracting Costs'!C:C,B60,'5. Subcontracting Costs'!B:B,$G$25) -> 0 | H60: =SUMIF('B. Special Mob Strand - Student'!B:B,B60,'B. Special Mob Strand - Student'!N:N)+SUMIF('B. Special Mob Strand - Staff'!B:B,B60,'B. Special Mob Strand - Staff'!N:N) -> 0 | I60: 0
B61: P36 | C61: =SUMIFS('1. Staff costs'!S:S,'1. Staff costs'!C:C,B61,'1. Staff costs'!B:B,$C$25)+SUMIFS('2-3. Travel Costs&Costs of Stay'!N:N,'2-3. Travel Costs&Costs of Stay'!C:C,B61,'2-3. Travel Costs&Costs of Stay'!B:B,$C$25)+SUMIFS('4. Equipment Costs'!H:H,'4. Equipment Costs'!C:C,B61,'4. Equipment Costs'!B:B,$C$25)+SUMIFS('5. Subcontracting Costs'!H:H,'5. Subcontracting Costs'!C:C,B61,'5. Subcontracting Costs'!B:B,$C$25) -> 0 | D61: =SUMIFS('1. Staff costs'!S:S,'1. Staff costs'!C:C,B61,'1. Staff costs'!B:B,$D$25)+SUMIFS('2-3. Travel Costs&Costs of Stay'!N:N,'2-3. Travel Costs&Costs of Stay'!C:C,B61,'2-3. Travel Costs&Costs of Stay'!B:B,$D$25)+SUMIFS('4. Equipment Costs'!H:H,'4. Equipment Costs'!C:C,B61,'4. Equipment Costs'!B:B,$D$25)+SUMIFS('5. Subcontracting Costs'!H:H,'5. Subcontracting Costs'!C:C,B61,'5. Subcontracting Costs'!B:B,$D$25) -> 0 | E61: =SUMIFS('1. Staff costs'!S:S,'1. Staff costs'!C:C,B61,'1. Staff costs'!B:B,$E$25)+SUMIFS('2-3. Travel Costs&Costs of Stay'!N:N,'2-3. Travel Costs&Costs of Stay'!C:C,B61,'2-3. Travel Costs&Costs of Stay'!B:B,$E$25)+SUMIFS('4. Equipment Costs'!H:H,'4. Equipment Costs'!C:C,B61,'4. Equipment Costs'!B:B,$E$25)+SUMIFS('5. Subcontracting Costs'!H:H,'5. Subcontracting Costs'!C:C,B61,'5. Subcontracting Costs'!B:B,$E$25) -> 0 | F61: =SUMIFS('1. Staff costs'!S:S,'1. Staff costs'!C:C,B61,'1. Staff costs'!B:B,$B$8)+SUMIFS('2-3. Travel Costs&Costs of Stay'!N:N,'2-3. Travel Costs&Costs of Stay'!C:C,B61,'2-3. Travel Costs&Costs of Stay'!B:B,$B$8)+SUMIFS('4. Equipment Costs'!H:H,'4. Equipment Costs'!C:C,B61,'4. Equipment Costs'!B:B,$B$8)+SUMIFS('5. Subcontracting Costs'!H:H,'5. Subcontracting Costs'!C:C,B61,'5. Subcontracting Costs'!B:B,$B$8) -> 0 | G61: =SUMIFS('1. Staff costs'!S:S,'1. Staff costs'!C:C,B61,'1. Staff costs'!B:B,$G$25)+SUMIFS('2-3. Travel Costs&Costs of Stay'!N:N,'2-3. Travel Costs&Costs of Stay'!C:C,B61,'2-3. Travel Costs&Costs of Stay'!B:B,$G$25)+SUMIFS('4. Equipment Costs'!H:H,'4. Equipment Costs'!C:C,B61,'4. Equipment Costs'!B:B,$G$25)+SUMIFS('5. Subcontracting Costs'!H:H,'5. Subcontracting Costs'!C:C,B61,'5. Subcontracting Costs'!B:B,$G$25) -> 0 | H61: =SUMIF('B. Special Mob Strand - Student'!B:B,B61,'B. Special Mob Strand - Student'!N:N)+SUMIF('B. Special Mob Strand - Staff'!B:B,B61,'B. Special Mob Strand - Staff'!N:N) -> 0 | I61: 0
B62: P37 | C62: =SUMIFS('1. Staff costs'!S:S,'1. Staff costs'!C:C,B62,'1. Staff costs'!B:B,$C$25)+SUMIFS('2-3. Travel Costs&Costs of Stay'!N:N,'2-3. Travel Costs&Costs of Stay'!C:C,B62,'2-3. Travel Costs&Costs of Stay'!B:B,$C$25)+SUMIFS('4. Equipment Costs'!H:H,'4. Equipment Costs'!C:C,B62,'4. Equipment Costs'!B:B,$C$25)+SUMIFS('5. Subcontracting Costs'!H:H,'5. Subcontracting Costs'!C:C,B62,'5. Subcontracting Costs'!B:B,$C$25) -> 0 | D62: =SUMIFS('1. Staff costs'!S:S,'1. Staff costs'!C:C,B62,'1. Staff costs'!B:B,$D$25)+SUMIFS('2-3. Travel Costs&Costs of Stay'!N:N,'2-3. Travel Costs&Costs of Stay'!C:C,B62,'2-3. Travel Costs&Costs of Stay'!B:B,$D$25)+SUMIFS('4. Equipment Costs'!H:H,'4. Equipment Costs'!C:C,B62,'4. Equipment Costs'!B:B,$D$25)+SUMIFS('5. Subcontracting Costs'!H:H,'5. Subcontracting Costs'!C:C,B62,'5. Subcontracting Costs'!B:B,$D$25) -> 0 | E62: =SUMIFS('1. Staff costs'!S:S,'1. Staff costs'!C:C,B62,'1. Staff costs'!B:B,$E$25)+SUMIFS('2-3. Travel Costs&Costs of Stay'!N:N,'2-3. Travel Costs&Costs of Stay'!C:C,B62,'2-3. Travel Costs&Costs of Stay'!B:B,$E$25)+SUMIFS('4. Equipment Costs'!H:H,'4. Equipment Costs'!C:C,B62,'4. Equipment Costs'!B:B,$E$25)+SUMIFS('5. Subcontracting Costs'!H:H,'5. Subcontracting Costs'!C:C,B62,'5. Subcontracting Costs'!B:B,$E$25) -> 0 | F62: =SUMIFS('1. Staff costs'!S:S,'1. Staff costs'!C:C,B62,'1. Staff costs'!B:B,$B$8)+SUMIFS('2-3. Travel Costs&Costs of Stay'!N:N,'2-3. Travel Costs&Costs of Stay'!C:C,B62,'2-3. Travel Costs&Costs of Stay'!B:B,$B$8)+SUMIFS('4. Equipment Costs'!H:H,'4. Equipment Costs'!C:C,B62,'4. Equipment Costs'!B:B,$B$8)+SUMIFS('5. Subcontracting Costs'!H:H,'5. Subcontracting Costs'!C:C,B62,'5. Subcontracting Costs'!B:B,$B$8) -> 0 | G62: =SUMIFS('1. Staff costs'!S:S,'1. Staff costs'!C:C,B62,'1. Staff costs'!B:B,$G$25)+SUMIFS('2-3. Travel Costs&Costs of Stay'!N:N,'2-3. Travel Costs&Costs of Stay'!C:C,B62,'2-3. Travel Costs&Costs of Stay'!B:B,$G$25)+SUMIFS('4. Equipment Costs'!H:H,'4. Equipment Costs'!C:C,B62,'4. Equipment Costs'!B:B,$G$25)+SUMIFS('5. Subcontracting Costs'!H:H,'5. Subcontracting Costs'!C:C,B62,'5. Subcontracting Costs'!B:B,$G$25) -> 0 | H62: =SUMIF('B. Special Mob Strand - Student'!B:B,B62,'B. Special Mob Strand - Student'!N:N)+SUMIF('B. Special Mob Strand - Staff'!B:B,B62,'B. Special Mob Strand - Staff'!N:N) -> 0 | I62: 0
B63: P38 | C63: =SUMIFS('1. Staff costs'!S:S,'1. Staff costs'!C:C,B63,'1. Staff costs'!B:B,$C$25)+SUMIFS('2-3. Travel Costs&Costs of Stay'!N:N,'2-3. Travel Costs&Costs of Stay'!C:C,B63,'2-3. Travel Costs&Costs of Stay'!B:B,$C$25)+SUMIFS('4. Equipment Costs'!H:H,'4. Equipment Costs'!C:C,B63,'4. Equipment Costs'!B:B,$C$25)+SUMIFS('5. Subcontracting Costs'!H:H,'5. Subcontracting Costs'!C:C,B63,'5. Subcontracting Costs'!B:B,$C$25) -> 0 | D63: =SUMIFS('1. Staff costs'!S:S,'1. Staff costs'!C:C,B63,'1. Staff costs'!B:B,$D$25)+SUMIFS('2-3. Travel Costs&Costs of Stay'!N:N,'2-3. Travel Costs&Costs of Stay'!C:C,B63,'2-3. Travel Costs&Costs of Stay'!B:B,$D$25)+SUMIFS('4. Equipment Costs'!H:H,'4. Equipment Costs'!C:C,B63,'4. Equipment Costs'!B:B,$D$25)+SUMIFS('5. Subcontracting Costs'!H:H,'5. Subcontracting Costs'!C:C,B63,'5. Subcontracting Costs'!B:B,$D$25) -> 0 | E63: =SUMIFS('1. Staff costs'!S:S,'1. Staff costs'!C:C,B63,'1. Staff costs'!B:B,$E$25)+SUMIFS('2-3. Travel Costs&Costs of Stay'!N:N,'2-3. Travel Costs&Costs of Stay'!C:C,B63,'2-3. Travel Costs&Costs of Stay'!B:B,$E$25)+SUMIFS('4. Equipment Costs'!H:H,'4. Equipment Costs'!C:C,B63,'4. Equipment Costs'!B:B,$E$25)+SUMIFS('5. Subcontracting Costs'!H:H,'5. Subcontracting Costs'!C:C,B63,'5. Subcontracting Costs'!B:B,$E$25) -> 0 | F63: =SUMIFS('1. Staff costs'!S:S,'1. Staff costs'!C:C,B63,'1. Staff costs'!B:B,$B$8)+SUMIFS('2-3. Travel Costs&Costs of Stay'!N:N,'2-3. Travel Costs&Costs of Stay'!C:C,B63,'2-3. Travel Costs&Costs of Stay'!B:B,$B$8)+SUMIFS('4. Equipment Costs'!H:H,'4. Equipment Costs'!C:C,B63,'4. Equipment Costs'!B:B,$B$8)+SUMIFS('5. Subcontracting Costs'!H:H,'5. Subcontracting Costs'!C:C,B63,'5. Subcontracting Costs'!B:B,$B$8) -> 0 | G63: =SUMIFS('1. Staff costs'!S:S,'1. Staff costs'!C:C,B63,'1. Staff costs'!B:B,$G$25)+SUMIFS('2-3. Travel Costs&Costs of Stay'!N:N,'2-3. Travel Costs&Costs of Stay'!C:C,B63,'2-3. Travel Costs&Costs of Stay'!B:B,$G$25)+SUMIFS('4. Equipment Costs'!H:H,'4. Equipment Costs'!C:C,B63,'4. Equipment Costs'!B:B,$G$25)+SUMIFS('5. Subcontracting Costs'!H:H,'5. Subcontracting Costs'!C:C,B63,'5. Subcontracting Costs'!B:B,$G$25) -> 0 | H63: =SUMIF('B. Special Mob Strand - Student'!B:B,B63,'B. Special Mob Strand - Student'!N:N)+SUMIF('B. Special Mob Strand - Staff'!B:B,B63,'B. Special Mob Strand - Staff'!N:N) -> 0 | I63: 0
B64: P39 | C64: =SUMIFS('1. Staff costs'!S:S,'1. Staff costs'!C:C,B64,'1. Staff costs'!B:B,$C$25)+SUMIFS('2-3. Travel Costs&Costs of Stay'!N:N,'2-3. Travel Costs&Costs of Stay'!C:C,B64,'2-3. Travel Costs&Costs of Stay'!B:B,$C$25)+SUMIFS('4. Equipment Costs'!H:H,'4. Equipment Costs'!C:C,B64,'4. Equipment Costs'!B:B,$C$25)+SUMIFS('5. Subcontracting Costs'!H:H,'5. Subcontracting Costs'!C:C,B64,'5. Subcontracting Costs'!B:B,$C$25) -> 0 | D64: =SUMIFS('1. Staff costs'!S:S,'1. Staff costs'!C:C,B64,'1. Staff costs'!B:B,$D$25)+SUMIFS('2-3. Travel Costs&Costs of Stay'!N:N,'2-3. Travel Costs&Costs of Stay'!C:C,B64,'2-3. Travel Costs&Costs of Stay'!B:B,$D$25)+SUMIFS('4. Equipment Costs'!H:H,'4. Equipment Costs'!C:C,B64,'4. Equipment Costs'!B:B,$D$25)+SUMIFS('5. Subcontracting Costs'!H:H,'5. Subcontracting Costs'!C:C,B64,'5. Subcontracting Costs'!B:B,$D$25) -> 0 | E64: =SUMIFS('1. Staff costs'!S:S,'1. Staff costs'!C:C,B64,'1. Staff costs'!B:B,$E$25)+SUMIFS('2-3. Travel Costs&Costs of Stay'!N:N,'2-3. Travel Costs&Costs of Stay'!C:C,B64,'2-3. Travel Costs&Costs of Stay'!B:B,$E$25)+SUMIFS('4. Equipment Costs'!H:H,'4. Equipment Costs'!C:C,B64,'4. Equipment Costs'!B:B,$E$25)+SUMIFS('5. Subcontracting Costs'!H:H,'5. Subcontracting Costs'!C:C,B64,'5. Subcontracting Costs'!B:B,$E$25) -> 0 | F64: =SUMIFS('1. Staff costs'!S:S,'1. Staff costs'!C:C,B64,'1. Staff costs'!B:B,$B$8)+SUMIFS('2-3. Travel Costs&Costs of Stay'!N:N,'2-3. Travel Costs&Costs of Stay'!C:C,B64,'2-3. Travel Costs&Costs of Stay'!B:B,$B$8)+SUMIFS('4. Equipment Costs'!H:H,'4. Equipment Costs'!C:C,B64,'4. Equipment Costs'!B:B,$B$8)+SUMIFS('5. Subcontracting Costs'!H:H,'5. Subcontracting Costs'!C:C,B64,'5. Subcontracting Costs'!B:B,$B$8) -> 0 | G64: =SUMIFS('1. Staff costs'!S:S,'1. Staff costs'!C:C,B64,'1. Staff costs'!B:B,$G$25)+SUMIFS('2-3. Travel Costs&Costs of Stay'!N:N,'2-3. Travel Costs&Costs of Stay'!C:C,B64,'2-3. Travel Costs&Costs of Stay'!B:B,$G$25)+SUMIFS('4. Equipment Costs'!H:H,'4. Equipment Costs'!C:C,B64,'4. Equipment Costs'!B:B,$G$25)+SUMIFS('5. Subcontracting Costs'!H:H,'5. Subcontracting Costs'!C:C,B64,'5. Subcontracting Costs'!B:B,$G$25) -> 0 | H64: =SUMIF('B. Special Mob Strand - Student'!B:B,B64,'B. Special Mob Strand - Student'!N:N)+SUMIF('B. Special Mob Strand - Staff'!B:B,B64,'B. Special Mob Strand - Staff'!N:N) -> 0 | I64: 0
B65: P40 | C65: =SUMIFS('1. Staff costs'!S:S,'1. Staff costs'!C:C,B65,'1. Staff costs'!B:B,$C$25)+SUMIFS('2-3. Travel Costs&Costs of Stay'!N:N,'2-3. Travel Costs&Costs of Stay'!C:C,B65,'2-3. Travel Costs&Costs of Stay'!B:B,$C$25)+SUMIFS('4. Equipment Costs'!H:H,'4. Equipment Costs'!C:C,B65,'4. Equipment Costs'!B:B,$C$25)+SUMIFS('5. Subcontracting Costs'!H:H,'5. Subcontracting Costs'!C:C,B65,'5. Subcontracting Costs'!B:B,$C$25) -> 0 | D65: =SUMIFS('1. Staff costs'!S:S,'1. Staff costs'!C:C,B65,'1. Staff costs'!B:B,$D$25)+SUMIFS('2-3. Travel Costs&Costs of Stay'!N:N,'2-3. Travel Costs&Costs of Stay'!C:C,B65,'2-3. Travel Costs&Costs of Stay'!B:B,$D$25)+SUMIFS('4. Equipment Costs'!H:H,'4. Equipment Costs'!C:C,B65,'4. Equipment Costs'!B:B,$D$25)+SUMIFS('5. Subcontracting Costs'!H:H,'5. Subcontracting Costs'!C:C,B65,'5. Subcontracting Costs'!B:B,$D$25) -> 0 | E65: =SUMIFS('1. Staff costs'!S:S,'1. Staff costs'!C:C,B65,'1. Staff costs'!B:B,$E$25)+SUMIFS('2-3. Travel Costs&Costs of Stay'!N:N,'2-3. Travel Costs&Costs of Stay'!C:C,B65,'2-3. Travel Costs&Costs of Stay'!B:B,$E$25)+SUMIFS('4. Equipment Costs'!H:H,'4. Equipment Costs'!C:C,B65,'4. Equipment Costs'!B:B,$E$25)+SUMIFS('5. Subcontracting Costs'!H:H,'5. Subcontracting Costs'!C:C,B65,'5. Subcontracting Costs'!B:B,$E$25) -> 0 | F65: =SUMIFS('1. Staff costs'!S:S,'1. Staff costs'!C:C,B65,'1. Staff costs'!B:B,$B$8)+SUMIFS('2-3. Travel Costs&Costs of Stay'!N:N,'2-3. Travel Costs&Costs of Stay'!C:C,B65,'2-3. Travel Costs&Costs of Stay'!B:B,$B$8)+SUMIFS('4. Equipment Costs'!H:H,'4. Equipment Costs'!C:C,B65,'4. Equipment Costs'!B:B,$B$8)+SUMIFS('5. Subcontracting Costs'!H:H,'5. Subcontracting Costs'!C:C,B65,'5. Subcontracting Costs'!B:B,$B$8) -> 0 | G65: =SUMIFS('1. Staff costs'!S:S,'1. Staff costs'!C:C,B65,'1. Staff costs'!B:B,$G$25)+SUMIFS('2-3. Travel Costs&Costs of Stay'!N:N,'2-3. Travel Costs&Costs of Stay'!C:C,B65,'2-3. Travel Costs&Costs of Stay'!B:B,$G$25)+SUMIFS('4. Equipment Costs'!H:H,'4. Equipment Costs'!C:C,B65,'4. Equipment Costs'!B:B,$G$25)+SUMIFS('5. Subcontracting Costs'!H:H,'5. Subcontracting Costs'!C:C,B65,'5. Subcontracting Costs'!B:B,$G$25) -> 0 | H65: =SUMIF('B. Special Mob Strand - Student'!B:B,B65,'B. Special Mob Strand - Student'!N:N)+SUMIF('B. Special Mob Strand - Staff'!B:B,B65,'B. Special Mob Strand - Staff'!N:N) -> 0 | I65: 0
B66: P41 | C66: =SUMIFS('1. Staff costs'!S:S,'1. Staff costs'!C:C,B66,'1. Staff costs'!B:B,$C$25)+SUMIFS('2-3. Travel Costs&Costs of Stay'!N:N,'2-3. Travel Costs&Costs of Stay'!C:C,B66,'2-3. Travel Costs&Costs of Stay'!B:B,$C$25)+SUMIFS('4. Equipment Costs'!H:H,'4. Equipment Costs'!C:C,B66,'4. Equipment Costs'!B:B,$C$25)+SUMIFS('5. Subcontracting Costs'!H:H,'5. Subcontracting Costs'!C:C,B66,'5. Subcontracting Costs'!B:B,$C$25) -> 0 | D66: =SUMIFS('1. Staff costs'!S:S,'1. Staff costs'!C:C,B66,'1. Staff costs'!B:B,$D$25)+SUMIFS('2-3. Travel Costs&Costs of Stay'!N:N,'2-3. Travel Costs&Costs of Stay'!C:C,B66,'2-3. Travel Costs&Costs of Stay'!B:B,$D$25)+SUMIFS('4. Equipment Costs'!H:H,'4. Equipment Costs'!C:C,B66,'4. Equipment Costs'!B:B,$D$25)+SUMIFS('5. Subcontracting Costs'!H:H,'5. Subcontracting Costs'!C:C,B66,'5. Subcontracting Costs'!B:B,$D$25) -> 0 | E66: =SUMIFS('1. Staff costs'!S:S,'1. Staff costs'!C:C,B66,'1. Staff costs'!B:B,$E$25)+SUMIFS('2-3. Travel Costs&Costs of Stay'!N:N,'2-3. Travel Costs&Costs of Stay'!C:C,B66,'2-3. Travel Costs&Costs of Stay'!B:B,$E$25)+SUMIFS('4. Equipment Costs'!H:H,'4. Equipment Costs'!C:C,B66,'4. Equipment Costs'!B:B,$E$25)+SUMIFS('5. Subcontracting Costs'!H:H,'5. Subcontracting Costs'!C:C,B66,'5. Subcontracting Costs'!B:B,$E$25) -> 0 | F66: =SUMIFS('1. Staff costs'!S:S,'1. Staff costs'!C:C,B66,'1. Staff costs'!B:B,$B$8)+SUMIFS('2-3. Travel Costs&Costs of Stay'!N:N,'2-3. Travel Costs&Costs of Stay'!C:C,B66,'2-3. Travel Costs&Costs of Stay'!B:B,$B$8)+SUMIFS('4. Equipment Costs'!H:H,'4. Equipment Costs'!C:C,B66,'4. Equipment Costs'!B:B,$B$8)+SUMIFS('5. Subcontracting Costs'!H:H,'5. Subcontracting Costs'!C:C,B66,'5. Subcontracting Costs'!B:B,$B$8) -> 0 | G66: =SUMIFS('1. Staff costs'!S:S,'1. Staff costs'!C:C,B66,'1. Staff costs'!B:B,$G$25)+SUMIFS('2-3. Travel Costs&Costs of Stay'!N:N,'2-3. Travel Costs&Costs of Stay'!C:C,B66,'2-3. Travel Costs&Costs of Stay'!B:B,$G$25)+SUMIFS('4. Equipment Costs'!H:H,'4. Equipment Costs'!C:C,B66,'4. Equipment Costs'!B:B,$G$25)+SUMIFS('5. Subcontracting Costs'!H:H,'5. Subcontracting Costs'!C:C,B66,'5. Subcontracting Costs'!B:B,$G$25) -> 0 | H66: =SUMIF('B. Special Mob Strand - Student'!B:B,B66,'B. Special Mob Strand - Student'!N:N)+SUMIF('B. Special Mob Strand - Staff'!B:B,B66,'B. Special Mob Strand - Staff'!N:N) -> 0 | I66: 0
B67: P42 | C67: =SUMIFS('1. Staff costs'!S:S,'1. Staff costs'!C:C,B67,'1. Staff costs'!B:B,$C$25)+SUMIFS('2-3. Travel Costs&Costs of Stay'!N:N,'2-3. Travel Costs&Costs of Stay'!C:C,B67,'2-3. Travel Costs&Costs of Stay'!B:B,$C$25)+SUMIFS('4. Equipment Costs'!H:H,'4. Equipment Costs'!C:C,B67,'4. Equipment Costs'!B:B,$C$25)+SUMIFS('5. Subcontracting Costs'!H:H,'5. Subcontracting Costs'!C:C,B67,'5. Subcontracting Costs'!B:B,$C$25) -> 0 | D67: =SUMIFS('1. Staff costs'!S:S,'1. Staff costs'!C:C,B67,'1. Staff costs'!B:B,$D$25)+SUMIFS('2-3. Travel Costs&Costs of Stay'!N:N,'2-3. Travel Costs&Costs of Stay'!C:C,B67,'2-3. Travel Costs&Costs of Stay'!B:B,$D$25)+SUMIFS('4. Equipment Costs'!H:H,'4. Equipment Costs'!C:C,B67,'4. Equipment Costs'!B:B,$D$25)+SUMIFS('5. Subcontracting Costs'!H:H,'5. Subcontracting Costs'!C:C,B67,'5. Subcontracting Costs'!B:B,$D$25) -> 0 | E67: =SUMIFS('1. Staff costs'!S:S,'1. Staff costs'!C:C,B67,'1. Staff costs'!B:B,$E$25)+SUMIFS('2-3. Travel Costs&Costs of Stay'!N:N,'2-3. Travel Costs&Costs of Stay'!C:C,B67,'2-3. Travel Costs&Costs of Stay'!B:B,$E$25)+SUMIFS('4. Equipment Costs'!H:H,'4. Equipment Costs'!C:C,B67,'4. Equipment Costs'!B:B,$E$25)+SUMIFS('5. Subcontracting Costs'!H:H,'5. Subcontracting Costs'!C:C,B67,'5. Subcontracting Costs'!B:B,$E$25) -> 0 | F67: =SUMIFS('1. Staff costs'!S:S,'1. Staff costs'!C:C,B67,'1. Staff costs'!B:B,$B$8)+SUMIFS('2-3. Travel Costs&Costs of Stay'!N:N,'2-3. Travel Costs&Costs of Stay'!C:C,B67,'2-3. Travel Costs&Costs of Stay'!B:B,$B$8)+SUMIFS('4. Equipment Costs'!H:H,'4. Equipment Costs'!C:C,B67,'4. Equipment Costs'!B:B,$B$8)+SUMIFS('5. Subcontracting Costs'!H:H,'5. Subcontracting Costs'!C:C,B67,'5. Subcontracting Costs'!B:B,$B$8) -> 0 | G67: =SUMIFS('1. Staff costs'!S:S,'1. Staff costs'!C:C,B67,'1. Staff costs'!B:B,$G$25)+SUMIFS('2-3. Travel Costs&Costs of Stay'!N:N,'2-3. Travel Costs&Costs of Stay'!C:C,B67,'2-3. Travel Costs&Costs of Stay'!B:B,$G$25)+SUMIFS('4. Equipment Costs'!H:H,'4. Equipment Costs'!C:C,B67,'4. Equipment Costs'!B:B,$G$25)+SUMIFS('5. Subcontracting Costs'!H:H,'5. Subcontracting Costs'!C:C,B67,'5. Subcontracting Costs'!B:B,$G$25) -> 0 | H67: =SUMIF('B. Special Mob Strand - Student'!B:B,B67,'B. Special Mob Strand - Student'!N:N)+SUMIF('B. Special Mob Strand - Staff'!B:B,B67,'B. Special Mob Strand - Staff'!N:N) -> 0 | I67: 0
B68: P43 | C68: =SUMIFS('1. Staff costs'!S:S,'1. Staff costs'!C:C,B68,'1. Staff costs'!B:B,$C$25)+SUMIFS('2-3. Travel Costs&Costs of Stay'!N:N,'2-3. Travel Costs&Costs of Stay'!C:C,B68,'2-3. Travel Costs&Costs of Stay'!B:B,$C$25)+SUMIFS('4. Equipment Costs'!H:H,'4. Equipment Costs'!C:C,B68,'4. Equipment Costs'!B:B,$C$25)+SUMIFS('5. Subcontracting Costs'!H:H,'5. Subcontracting Costs'!C:C,B68,'5. Subcontracting Costs'!B:B,$C$25) -> 0 | D68: =SUMIFS('1. Staff costs'!S:S,'1. Staff costs'!C:C,B68,'1. Staff costs'!B:B,$D$25)+SUMIFS('2-3. Travel Costs&Costs of Stay'!N:N,'2-3. Travel Costs&Costs of Stay'!C:C,B68,'2-3. Travel Costs&Costs of Stay'!B:B,$D$25)+SUMIFS('4. Equipment Costs'!H:H,'4. Equipment Costs'!C:C,B68,'4. Equipment Costs'!B:B,$D$25)+SUMIFS('5. Subcontracting Costs'!H:H,'5. Subcontracting Costs'!C:C,B68,'5. Subcontracting Costs'!B:B,$D$25) -> 0 | E68: =SUMIFS('1. Staff costs'!S:S,'1. Staff costs'!C:C,B68,'1. Staff costs'!B:B,$E$25)+SUMIFS('2-3. Travel Costs&Costs of Stay'!N:N,'2-3. Travel Costs&Costs of Stay'!C:C,B68,'2-3. Travel Costs&Costs of Stay'!B:B,$E$25)+SUMIFS('4. Equipment Costs'!H:H,'4. Equipment Costs'!C:C,B68,'4. Equipment Costs'!B:B,$E$25)+SUMIFS('5. Subcontracting Costs'!H:H,'5. Subcontracting Costs'!C:C,B68,'5. Subcontracting Costs'!B:B,$E$25) -> 0 | F68: =SUMIFS('1. Staff costs'!S:S,'1. Staff costs'!C:C,B68,'1. Staff costs'!B:B,$B$8)+SUMIFS('2-3. Travel Costs&Costs of Stay'!N:N,'2-3. Travel Costs&Costs of Stay'!C:C,B68,'2-3. Travel Costs&Costs of Stay'!B:B,$B$8)+SUMIFS('4. Equipment Costs'!H:H,'4. Equipment Costs'!C:C,B68,'4. Equipment Costs'!B:B,$B$8)+SUMIFS('5. Subcontracting Costs'!H:H,'5. Subcontracting Costs'!C:C,B68,'5. Subcontracting Costs'!B:B,$B$8) -> 0 | G68: =SUMIFS('1. Staff costs'!S:S,'1. Staff costs'!C:C,B68,'1. Staff costs'!B:B,$G$25)+SUMIFS('2-3. Travel Costs&Costs of Stay'!N:N,'2-3. Travel Costs&Costs of Stay'!C:C,B68,'2-3. Travel Costs&Costs of Stay'!B:B,$G$25)+SUMIFS('4. Equipment Costs'!H:H,'4. Equipment Costs'!C:C,B68,'4. Equipment Costs'!B:B,$G$25)+SUMIFS('5. Subcontracting Costs'!H:H,'5. Subcontracting Costs'!C:C,B68,'5. Subcontracting Costs'!B:B,$G$25) -> 0 | H68: =SUMIF('B. Special Mob Strand - Student'!B:B,B68,'B. Special Mob Strand - Student'!N:N)+SUMIF('B. Special Mob Strand - Staff'!B:B,B68,'B. Special Mob Strand - Staff'!N:N) -> 0 | I68: 0
B69: P44 | C69: =SUMIFS('1. Staff costs'!S:S,'1. Staff costs'!C:C,B69,'1. Staff costs'!B:B,$C$25)+SUMIFS('2-3. Travel Costs&Costs of Stay'!N:N,'2-3. Travel Costs&Costs of Stay'!C:C,B69,'2-3. Travel Costs&Costs of Stay'!B:B,$C$25)+SUMIFS('4. Equipment Costs'!H:H,'4. Equipment Costs'!C:C,B69,'4. Equipment Costs'!B:B,$C$25)+SUMIFS('5. Subcontracting Costs'!H:H,'5. Subcontracting Costs'!C:C,B69,'5. Subcontracting Costs'!B:B,$C$25) -> 0 | D69: =SUMIFS('1. Staff costs'!S:S,'1. Staff costs'!C:C,B69,'1. Staff costs'!B:B,$D$25)+SUMIFS('2-3. Travel Costs&Costs of Stay'!N:N,'2-3. Travel Costs&Costs of Stay'!C:C,B69,'2-3. Travel Costs&Costs of Stay'!B:B,$D$25)+SUMIFS('4. Equipment Costs'!H:H,'4. Equipment Costs'!C:C,B69,'4. Equipment Costs'!B:B,$D$25)+SUMIFS('5. Subcontracting Costs'!H:H,'5. Subcontracting Costs'!C:C,B69,'5. Subcontracting Costs'!B:B,$D$25) -> 0 | E69: =SUMIFS('1. Staff costs'!S:S,'1. Staff costs'!C:C,B69,'1. Staff costs'!B:B,$E$25)+SUMIFS('2-3. Travel Costs&Costs of Stay'!N:N,'2-3. Travel Costs&Costs of Stay'!C:C,B69,'2-3. Travel Costs&Costs of Stay'!B:B,$E$25)+SUMIFS('4. Equipment Costs'!H:H,'4. Equipment Costs'!C:C,B69,'4. Equipment Costs'!B:B,$E$25)+SUMIFS('5. Subcontracting Costs'!H:H,'5. Subcontracting Costs'!C:C,B69,'5. Subcontracting Costs'!B:B,$E$25) -> 0 | F69: =SUMIFS('1. Staff costs'!S:S,'1. Staff costs'!C:C,B69,'1. Staff costs'!B:B,$B$8)+SUMIFS('2-3. Travel Costs&Costs of Stay'!N:N,'2-3. Travel Costs&Costs of Stay'!C:C,B69,'2-3. Travel Costs&Costs of Stay'!B:B,$B$8)+SUMIFS('4. Equipment Costs'!H:H,'4. Equipment Costs'!C:C,B69,'4. Equipment Costs'!B:B,$B$8)+SUMIFS('5. Subcontracting Costs'!H:H,'5. Subcontracting Costs'!C:C,B69,'5. Subcontracting Costs'!B:B,$B$8) -> 0 | G69: =SUMIFS('1. Staff costs'!S:S,'1. Staff costs'!C:C,B69,'1. Staff costs'!B:B,$G$25)+SUMIFS('2-3. Travel Costs&Costs of Stay'!N:N,'2-3. Travel Costs&Costs of Stay'!C:C,B69,'2-3. Travel Costs&Costs of Stay'!B:B,$G$25)+SUMIFS('4. Equipment Costs'!H:H,'4. Equipment Costs'!C:C,B69,'4. Equipment Costs'!B:B,$G$25)+SUMIFS('5. Subcontracting Costs'!H:H,'5. Subcontracting Costs'!C:C,B69,'5. Subcontracting Costs'!B:B,$G$25) -> 0 | H69: =SUMIF('B. Special Mob Strand - Student'!B:B,B69,'B. Special Mob Strand - Student'!N:N)+SUMIF('B. Special Mob Strand - Staff'!B:B,B69,'B. Special Mob Strand - Staff'!N:N) -> 0 | I69: 0
B70: P45 | C70: =SUMIFS('1. Staff costs'!S:S,'1. Staff costs'!C:C,B70,'1. Staff costs'!B:B,$C$25)+SUMIFS('2-3. Travel Costs&Costs of Stay'!N:N,'2-3. Travel Costs&Costs of Stay'!C:C,B70,'2-3. Travel Costs&Costs of Stay'!B:B,$C$25)+SUMIFS('4. Equipment Costs'!H:H,'4. Equipment Costs'!C:C,B70,'4. Equipment Costs'!B:B,$C$25)+SUMIFS('5. Subcontracting Costs'!H:H,'5. Subcontracting Costs'!C:C,B70,'5. Subcontracting Costs'!B:B,$C$25) -> 0 | D70: =SUMIFS('1. Staff costs'!S:S,'1. Staff costs'!C:C,B70,'1. Staff costs'!B:B,$D$25)+SUMIFS('2-3. Travel Costs&Costs of Stay'!N:N,'2-3. Travel Costs&Costs of Stay'!C:C,B70,'2-3. Travel Costs&Costs of Stay'!B:B,$D$25)+SUMIFS('4. Equipment Costs'!H:H,'4. Equipment Costs'!C:C,B70,'4. Equipment Costs'!B:B,$D$25)+SUMIFS('5. Subcontracting Costs'!H:H,'5. Subcontracting Costs'!C:C,B70,'5. Subcontracting Costs'!B:B,$D$25) -> 0 | E70: =SUMIFS('1. Staff costs'!S:S,'1. Staff costs'!C:C,B70,'1. Staff costs'!B:B,$E$25)+SUMIFS('2-3. Travel Costs&Costs of Stay'!N:N,'2-3. Travel Costs&Costs of Stay'!C:C,B70,'2-3. Travel Costs&Costs of Stay'!B:B,$E$25)+SUMIFS('4. Equipment Costs'!H:H,'4. Equipment Costs'!C:C,B70,'4. Equipment Costs'!B:B,$E$25)+SUMIFS('5. Subcontracting Costs'!H:H,'5. Subcontracting Costs'!C:C,B70,'5. Subcontracting Costs'!B:B,$E$25) -> 0 | F70: =SUMIFS('1. Staff costs'!S:S,'1. Staff costs'!C:C,B70,'1. Staff costs'!B:B,$B$8)+SUMIFS('2-3. Travel Costs&Costs of Stay'!N:N,'2-3. Travel Costs&Costs of Stay'!C:C,B70,'2-3. Travel Costs&Costs of Stay'!B:B,$B$8)+SUMIFS('4. Equipment Costs'!H:H,'4. Equipment Costs'!C:C,B70,'4. Equipment Costs'!B:B,$B$8)+SUMIFS('5. Subcontracting Costs'!H:H,'5. Subcontracting Costs'!C:C,B70,'5. Subcontracting Costs'!B:B,$B$8) -> 0 | G70: =SUMIFS('1. Staff costs'!S:S,'1. Staff costs'!C:C,B70,'1. Staff costs'!B:B,$G$25)+SUMIFS('2-3. Travel Costs&Costs of Stay'!N:N,'2-3. Travel Costs&Costs of Stay'!C:C,B70,'2-3. Travel Costs&Costs of Stay'!B:B,$G$25)+SUMIFS('4. Equipment Costs'!H:H,'4. Equipment Costs'!C:C,B70,'4. Equipment Costs'!B:B,$G$25)+SUMIFS('5. Subcontracting Costs'!H:H,'5. Subcontracting Costs'!C:C,B70,'5. Subcontracting Costs'!B:B,$G$25) -> 0 | H70: =SUMIF('B. Special Mob Strand - Student'!B:B,B70,'B. Special Mob Strand - Student'!N:N)+SUMIF('B. Special Mob Strand - Staff'!B:B,B70,'B. Special Mob Strand - Staff'!N:N) -> 0 | I70: 0
B71: P46 | C71: =SUMIFS('1. Staff costs'!S:S,'1. Staff costs'!C:C,B71,'1. Staff costs'!B:B,$C$25)+SUMIFS('2-3. Travel Costs&Costs of Stay'!N:N,'2-3. Travel Costs&Costs of Stay'!C:C,B71,'2-3. Travel Costs&Costs of Stay'!B:B,$C$25)+SUMIFS('4. Equipment Costs'!H:H,'4. Equipment Costs'!C:C,B71,'4. Equipment Costs'!B:B,$C$25)+SUMIFS('5. Subcontracting Costs'!H:H,'5. Subcontracting Costs'!C:C,B71,'5. Subcontracting Costs'!B:B,$C$25) -> 0 | D71: =SUMIFS('1. Staff costs'!S:S,'1. Staff costs'!C:C,B71,'1. Staff costs'!B:B,$D$25)+SUMIFS('2-3. Travel Costs&Costs of Stay'!N:N,'2-3. Travel Costs&Costs of Stay'!C:C,B71,'2-3. Travel Costs&Costs of Stay'!B:B,$D$25)+SUMIFS('4. Equipment Costs'!H:H,'4. Equipment Costs'!C:C,B71,'4. Equipment Costs'!B:B,$D$25)+SUMIFS('5. Subcontracting Costs'!H:H,'5. Subcontracting Costs'!C:C,B71,'5. Subcontracting Costs'!B:B,$D$25) -> 0 | E71: =SUMIFS('1. Staff costs'!S:S,'1. Staff costs'!C:C,B71,'1. Staff costs'!B:B,$E$25)+SUMIFS('2-3. Travel Costs&Costs of Stay'!N:N,'2-3. Travel Costs&Costs of Stay'!C:C,B71,'2-3. Travel Costs&Costs of Stay'!B:B,$E$25)+SUMIFS('4. Equipment Costs'!H:H,'4. Equipment Costs'!C:C,B71,'4. Equipment Costs'!B:B,$E$25)+SUMIFS('5. Subcontracting Costs'!H:H,'5. Subcontracting Costs'!C:C,B71,'5. Subcontracting Costs'!B:B,$E$25) -> 0 | F71: =SUMIFS('1. Staff costs'!S:S,'1. Staff costs'!C:C,B71,'1. Staff costs'!B:B,$B$8)+SUMIFS('2-3. Travel Costs&Costs of Stay'!N:N,'2-3. Travel Costs&Costs of Stay'!C:C,B71,'2-3. Travel Costs&Costs of Stay'!B:B,$B$8)+SUMIFS('4. Equipment Costs'!H:H,'4. Equipment Costs'!C:C,B71,'4. Equipment Costs'!B:B,$B$8)+SUMIFS('5. Subcontracting Costs'!H:H,'5. Subcontracting Costs'!C:C,B71,'5. Subcontracting Costs'!B:B,$B$8) -> 0 | G71: =SUMIFS('1. Staff costs'!S:S,'1. Staff costs'!C:C,B71,'1. Staff costs'!B:B,$G$25)+SUMIFS('2-3. Travel Costs&Costs of Stay'!N:N,'2-3. Travel Costs&Costs of Stay'!C:C,B71,'2-3. Travel Costs&Costs of Stay'!B:B,$G$25)+SUMIFS('4. Equipment Costs'!H:H,'4. Equipment Costs'!C:C,B71,'4. Equipment Costs'!B:B,$G$25)+SUMIFS('5. Subcontracting Costs'!H:H,'5. Subcontracting Costs'!C:C,B71,'5. Subcontracting Costs'!B:B,$G$25) -> 0 | H71: =SUMIF('B. Special Mob Strand - Student'!B:B,B71,'B. Special Mob Strand - Student'!N:N)+SUMIF('B. Special Mob Strand - Staff'!B:B,B71,'B. Special Mob Strand - Staff'!N:N) -> 0 | I71: 0
B72: P47 | C72: =SUMIFS('1. Staff costs'!S:S,'1. Staff costs'!C:C,B72,'1. Staff costs'!B:B,$C$25)+SUMIFS('2-3. Travel Costs&Costs of Stay'!N:N,'2-3. Travel Costs&Costs of Stay'!C:C,B72,'2-3. Travel Costs&Costs of Stay'!B:B,$C$25)+SUMIFS('4. Equipment Costs'!H:H,'4. Equipment Costs'!C:C,B72,'4. Equipment Costs'!B:B,$C$25)+SUMIFS('5. Subcontracting Costs'!H:H,'5. Subcontracting Costs'!C:C,B72,'5. Subcontracting Costs'!B:B,$C$25) -> 0 | D72: =SUMIFS('1. Staff costs'!S:S,'1. Staff costs'!C:C,B72,'1. Staff costs'!B:B,$D$25)+SUMIFS('2-3. Travel Costs&Costs of Stay'!N:N,'2-3. Travel Costs&Costs of Stay'!C:C,B72,'2-3. Travel Costs&Costs of Stay'!B:B,$D$25)+SUMIFS('4. Equipment Costs'!H:H,'4. Equipment Costs'!C:C,B72,'4. Equipment Costs'!B:B,$D$25)+SUMIFS('5. Subcontracting Costs'!H:H,'5. Subcontracting Costs'!C:C,B72,'5. Subcontracting Costs'!B:B,$D$25) -> 0 | E72: =SUMIFS('1. Staff costs'!S:S,'1. Staff costs'!C:C,B72,'1. Staff costs'!B:B,$E$25)+SUMIFS('2-3. Travel Costs&Costs of Stay'!N:N,'2-3. Travel Costs&Costs of Stay'!C:C,B72,'2-3. Travel Costs&Costs of Stay'!B:B,$E$25)+SUMIFS('4. Equipment Costs'!H:H,'4. Equipment Costs'!C:C,B72,'4. Equipment Costs'!B:B,$E$25)+SUMIFS('5. Subcontracting Costs'!H:H,'5. Subcontracting Costs'!C:C,B72,'5. Subcontracting Costs'!B:B,$E$25) -> 0 | F72: =SUMIFS('1. Staff costs'!S:S,'1. Staff costs'!C:C,B72,'1. Staff costs'!B:B,$B$8)+SUMIFS('2-3. Travel Costs&Costs of Stay'!N:N,'2-3. Travel Costs&Costs of Stay'!C:C,B72,'2-3. Travel Costs&Costs of Stay'!B:B,$B$8)+SUMIFS('4. Equipment Costs'!H:H,'4. Equipment Costs'!C:C,B72,'4. Equipment Costs'!B:B,$B$8)+SUMIFS('5. Subcontracting Costs'!H:H,'5. Subcontracting Costs'!C:C,B72,'5. Subcontracting Costs'!B:B,$B$8) -> 0 | G72: =SUMIFS('1. Staff costs'!S:S,'1. Staff costs'!C:C,B72,'1. Staff costs'!B:B,$G$25)+SUMIFS('2-3. Travel Costs&Costs of Stay'!N:N,'2-3. Travel Costs&Costs of Stay'!C:C,B72,'2-3. Travel Costs&Costs of Stay'!B:B,$G$25)+SUMIFS('4. Equipment Costs'!H:H,'4. Equipment Costs'!C:C,B72,'4. Equipment Costs'!B:B,$G$25)+SUMIFS('5. Subcontracting Costs'!H:H,'5. Subcontracting Costs'!C:C,B72,'5. Subcontracting Costs'!B:B,$G$25) -> 0 | H72: =SUMIF('B. Special Mob Strand - Student'!B:B,B72,'B. Special Mob Strand - Student'!N:N)+SUMIF('B. Special Mob Strand - Staff'!B:B,B72,'B. Special Mob Strand - Staff'!N:N) -> 0 | I72: 0
B73: P48 | C73: =SUMIFS('1. Staff costs'!S:S,'1. Staff costs'!C:C,B73,'1. Staff costs'!B:B,$C$25)+SUMIFS('2-3. Travel Costs&Costs of Stay'!N:N,'2-3. Travel Costs&Costs of Stay'!C:C,B73,'2-3. Travel Costs&Costs of Stay'!B:B,$C$25)+SUMIFS('4. Equipment Costs'!H:H,'4. Equipment Costs'!C:C,B73,'4. Equipment Costs'!B:B,$C$25)+SUMIFS('5. Subcontracting Costs'!H:H,'5. Subcontracting Costs'!C:C,B73,'5. Subcontracting Costs'!B:B,$C$25) -> 0 | D73: =SUMIFS('1. Staff costs'!S:S,'1. Staff costs'!C:C,B73,'1. Staff costs'!B:B,$D$25)+SUMIFS('2-3. Travel Costs&Costs of Stay'!N:N,'2-3. Travel Costs&Costs of Stay'!C:C,B73,'2-3. Travel Costs&Costs of Stay'!B:B,$D$25)+SUMIFS('4. Equipment Costs'!H:H,'4. Equipment Costs'!C:C,B73,'4. Equipment Costs'!B:B,$D$25)+SUMIFS('5. Subcontracting Costs'!H:H,'5. Subcontracting Costs'!C:C,B73,'5. Subcontracting Costs'!B:B,$D$25) -> 0 | E73: =SUMIFS('1. Staff costs'!S:S,'1. Staff costs'!C:C,B73,'1. Staff costs'!B:B,$E$25)+SUMIFS('2-3. Travel Costs&Costs of Stay'!N:N,'2-3. Travel Costs&Costs of Stay'!C:C,B73,'2-3. Travel Costs&Costs of Stay'!B:B,$E$25)+SUMIFS('4. Equipment Costs'!H:H,'4. Equipment Costs'!C:C,B73,'4. Equipment Costs'!B:B,$E$25)+SUMIFS('5. Subcontracting Costs'!H:H,'5. Subcontracting Costs'!C:C,B73,'5. Subcontracting Costs'!B:B,$E$25) -> 0 | F73: =SUMIFS('1. Staff costs'!S:S,'1. Staff costs'!C:C,B73,'1. Staff costs'!B:B,$B$8)+SUMIFS('2-3. Travel Costs&Costs of Stay'!N:N,'2-3. Travel Costs&Costs of Stay'!C:C,B73,'2-3. Travel Costs&Costs of Stay'!B:B,$B$8)+SUMIFS('4. Equipment Costs'!H:H,'4. Equipment Costs'!C:C,B73,'4. Equipment Costs'!B:B,$B$8)+SUMIFS('5. Subcontracting Costs'!H:H,'5. Subcontracting Costs'!C:C,B73,'5. Subcontracting Costs'!B:B,$B$8) -> 0 | G73: =SUMIFS('1. Staff costs'!S:S,'1. Staff costs'!C:C,B73,'1. Staff costs'!B:B,$G$25)+SUMIFS('2-3. Travel Costs&Costs of Stay'!N:N,'2-3. Travel Costs&Costs of Stay'!C:C,B73,'2-3. Travel Costs&Costs of Stay'!B:B,$G$25)+SUMIFS('4. Equipment Costs'!H:H,'4. Equipment Costs'!C:C,B73,'4. Equipment Costs'!B:B,$G$25)+SUMIFS('5. Subcontracting Costs'!H:H,'5. Subcontracting Costs'!C:C,B73,'5. Subcontracting Costs'!B:B,$G$25) -> 0 | H73: =SUMIF('B. Special Mob Strand - Student'!B:B,B73,'B. Special Mob Strand - Student'!N:N)+SUMIF('B. Special Mob Strand - Staff'!B:B,B73,'B. Special Mob Strand - Staff'!N:N) -> 0 | I73: 0
B74: P49 | C74: =SUMIFS('1. Staff costs'!S:S,'1. Staff costs'!C:C,B74,'1. Staff costs'!B:B,$C$25)+SUMIFS('2-3. Travel Costs&Costs of Stay'!N:N,'2-3. Travel Costs&Costs of Stay'!C:C,B74,'2-3. Travel Costs&Costs of Stay'!B:B,$C$25)+SUMIFS('4. Equipment Costs'!H:H,'4. Equipment Costs'!C:C,B74,'4. Equipment Costs'!B:B,$C$25)+SUMIFS('5. Subcontracting Costs'!H:H,'5. Subcontracting Costs'!C:C,B74,'5. Subcontracting Costs'!B:B,$C$25) -> 0 | D74: =SUMIFS('1. Staff costs'!S:S,'1. Staff costs'!C:C,B74,'1. Staff costs'!B:B,$D$25)+SUMIFS('2-3. Travel Costs&Costs of Stay'!N:N,'2-3. Travel Costs&Costs of Stay'!C:C,B74,'2-3. Travel Costs&Costs of Stay'!B:B,$D$25)+SUMIFS('4. Equipment Costs'!H:H,'4. Equipment Costs'!C:C,B74,'4. Equipment Costs'!B:B,$D$25)+SUMIFS('5. Subcontracting Costs'!H:H,'5. Subcontracting Costs'!C:C,B74,'5. Subcontracting Costs'!B:B,$D$25) -> 0 | E74: =SUMIFS('1. Staff costs'!S:S,'1. Staff costs'!C:C,B74,'1. Staff costs'!B:B,$E$25)+SUMIFS('2-3. Travel Costs&Costs of Stay'!N:N,'2-3. Travel Costs&Costs of Stay'!C:C,B74,'2-3. Travel Costs&Costs of Stay'!B:B,$E$25)+SUMIFS('4. Equipment Costs'!H:H,'4. Equipment Costs'!C:C,B74,'4. Equipment Costs'!B:B,$E$25)+SUMIFS('5. Subcontracting Costs'!H:H,'5. Subcontracting Costs'!C:C,B74,'5. Subcontracting Costs'!B:B,$E$25) -> 0 | F74: =SUMIFS('1. Staff costs'!S:S,'1. Staff costs'!C:C,B74,'1. Staff costs'!B:B,$B$8)+SUMIFS('2-3. Travel Costs&Costs of Stay'!N:N,'2-3. Travel Costs&Costs of Stay'!C:C,B74,'2-3. Travel Costs&Costs of Stay'!B:B,$B$8)+SUMIFS('4. Equipment Costs'!H:H,'4. Equipment Costs'!C:C,B74,'4. Equipment Costs'!B:B,$B$8)+SUMIFS('5. Subcontracting Costs'!H:H,'5. Subcontracting Costs'!C:C,B74,'5. Subcontracting Costs'!B:B,$B$8) -> 0 | G74: =SUMIFS('1. Staff costs'!S:S,'1. Staff costs'!C:C,B74,'1. Staff costs'!B:B,$G$25)+SUMIFS('2-3. Travel Costs&Costs of Stay'!N:N,'2-3. Travel Costs&Costs of Stay'!C:C,B74,'2-3. Travel Costs&Costs of Stay'!B:B,$G$25)+SUMIFS('4. Equipment Costs'!H:H,'4. Equipment Costs'!C:C,B74,'4. Equipment Costs'!B:B,$G$25)+SUMIFS('5. Subcontracting Costs'!H:H,'5. Subcontracting Costs'!C:C,B74,'5. Subcontracting Costs'!B:B,$G$25) -> 0 | H74: =SUMIF('B. Special Mob Strand - Student'!B:B,B74,'B. Special Mob Strand - Student'!N:N)+SUMIF('B. Special Mob Strand - Staff'!B:B,B74,'B. Special Mob Strand - Staff'!N:N) -> 0 | I74: 0
B75: P50 | C75: =SUMIFS('1. Staff costs'!S:S,'1. Staff costs'!C:C,B75,'1. Staff costs'!B:B,$C$25)+SUMIFS('2-3. Travel Costs&Costs of Stay'!N:N,'2-3. Travel Costs&Costs of Stay'!C:C,B75,'2-3. Travel Costs&Costs of Stay'!B:B,$C$25)+SUMIFS('4. Equipment Costs'!H:H,'4. Equipment Costs'!C:C,B75,'4. Equipment Costs'!B:B,$C$25)+SUMIFS('5. Subcontracting Costs'!H:H,'5. Subcontracting Costs'!C:C,B75,'5. Subcontracting Costs'!B:B,$C$25) -> 0 | D75: =SUMIFS('1. Staff costs'!S:S,'1. Staff costs'!C:C,B75,'1. Staff costs'!B:B,$D$25)+SUMIFS('2-3. Travel Costs&Costs of Stay'!N:N,'2-3. Travel Costs&Costs of Stay'!C:C,B75,'2-3. Travel Costs&Costs of Stay'!B:B,$D$25)+SUMIFS('4. Equipment Costs'!H:H,'4. Equipment Costs'!C:C,B75,'4. Equipment Costs'!B:B,$D$25)+SUMIFS('5. Subcontracting Costs'!H:H,'5. Subcontracting Costs'!C:C,B75,'5. Subcontracting Costs'!B:B,$D$25) -> 0 | E75: =SUMIFS('1. Staff costs'!S:S,'1. Staff costs'!C:C,B75,'1. Staff costs'!B:B,$E$25)+SUMIFS('2-3. Travel Costs&Costs of Stay'!N:N,'2-3. Travel Costs&Costs of Stay'!C:C,B75,'2-3. Travel Costs&Costs of Stay'!B:B,$E$25)+SUMIFS('4. Equipment Costs'!H:H,'4. Equipment Costs'!C:C,B75,'4. Equipment Costs'!B:B,$E$25)+SUMIFS('5. Subcontracting Costs'!H:H,'5. Subcontracting Costs'!C:C,B75,'5. Subcontracting Costs'!B:B,$E$25) -> 0 | F75: =SUMIFS('1. Staff costs'!S:S,'1. Staff costs'!C:C,B75,'1. Staff costs'!B:B,$B$8)+SUMIFS('2-3. Travel Costs&Costs of Stay'!N:N,'2-3. Travel Costs&Costs of Stay'!C:C,B75,'2-3. Travel Costs&Costs of Stay'!B:B,$B$8)+SUMIFS('4. Equipment Costs'!H:H,'4. Equipment Costs'!C:C,B75,'4. Equipment Costs'!B:B,$B$8)+SUMIFS('5. Subcontracting Costs'!H:H,'5. Subcontracting Costs'!C:C,B75,'5. Subcontracting Costs'!B:B,$B$8) -> 0 | G75: =SUMIFS('1. Staff costs'!S:S,'1. Staff costs'!C:C,B75,'1. Staff costs'!B:B,$G$25)+SUMIFS('2-3. Travel Costs&Costs of Stay'!N:N,'2-3. Travel Costs&Costs of Stay'!C:C,B75,'2-3. Travel Costs&Costs of Stay'!B:B,$G$25)+SUMIFS('4. Equipment Costs'!H:H,'4. Equipment Costs'!C:C,B75,'4. Equipment Costs'!B:B,$G$25)+SUMIFS('5. Subcontracting Costs'!H:H,'5. Subcontracting Costs'!C:C,B75,'5. Subcontracting Costs'!B:B,$G$25) -> 0 | H75: =SUMIF('B. Special Mob Strand - Student'!B:B,B75,'B. Special Mob Strand - Student'!N:N)+SUMIF('B. Special Mob Strand - Staff'!B:B,B75,'B. Special Mob Strand - Staff'!N:N) -> 0 | I75: 0
B76: P51 | C76: =SUMIFS('1. Staff costs'!S:S,'1. Staff costs'!C:C,B76,'1. Staff costs'!B:B,$C$25)+SUMIFS('2-3. Travel Costs&Costs of Stay'!N:N,'2-3. Travel Costs&Costs of Stay'!C:C,B76,'2-3. Travel Costs&Costs of Stay'!B:B,$C$25)+SUMIFS('4. Equipment Costs'!H:H,'4. Equipment Costs'!C:C,B76,'4. Equipment Costs'!B:B,$C$25)+SUMIFS('5. Subcontracting Costs'!H:H,'5. Subcontracting Costs'!C:C,B76,'5. Subcontracting Costs'!B:B,$C$25) -> 0 | D76: =SUMIFS('1. Staff costs'!S:S,'1. Staff costs'!C:C,B76,'1. Staff costs'!B:B,$D$25)+SUMIFS('2-3. Travel Costs&Costs of Stay'!N:N,'2-3. Travel Costs&Costs of Stay'!C:C,B76,'2-3. Travel Costs&Costs of Stay'!B:B,$D$25)+SUMIFS('4. Equipment Costs'!H:H,'4. Equipment Costs'!C:C,B76,'4. Equipment Costs'!B:B,$D$25)+SUMIFS('5. Subcontracting Costs'!H:H,'5. Subcontracting Costs'!C:C,B76,'5. Subcontracting Costs'!B:B,$D$25) -> 0 | E76: =SUMIFS('1. Staff costs'!S:S,'1. Staff costs'!C:C,B76,'1. Staff costs'!B:B,$E$25)+SUMIFS('2-3. Travel Costs&Costs of Stay'!N:N,'2-3. Travel Costs&Costs of Stay'!C:C,B76,'2-3. Travel Costs&Costs of Stay'!B:B,$E$25)+SUMIFS('4. Equipment Costs'!H:H,'4. Equipment Costs'!C:C,B76,'4. Equipment Costs'!B:B,$E$25)+SUMIFS('5. Subcontracting Costs'!H:H,'5. Subcontracting Costs'!C:C,B76,'5. Subcontracting Costs'!B:B,$E$25) -> 0 | F76: =SUMIFS('1. Staff costs'!S:S,'1. Staff costs'!C:C,B76,'1. Staff costs'!B:B,$B$8)+SUMIFS('2-3. Travel Costs&Costs of Stay'!N:N,'2-3. Travel Costs&Costs of Stay'!C:C,B76,'2-3. Travel Costs&Costs of Stay'!B:B,$B$8)+SUMIFS('4. Equipment Costs'!H:H,'4. Equipment Costs'!C:C,B76,'4. Equipment Costs'!B:B,$B$8)+SUMIFS('5. Subcontracting Costs'!H:H,'5. Subcontracting Costs'!C:C,B76,'5. Subcontracting Costs'!B:B,$B$8) -> 0 | G76: =SUMIFS('1. Staff costs'!S:S,'1. Staff costs'!C:C,B76,'1. Staff costs'!B:B,$G$25)+SUMIFS('2-3. Travel Costs&Costs of Stay'!N:N,'2-3. Travel Costs&Costs of Stay'!C:C,B76,'2-3. Travel Costs&Costs of Stay'!B:B,$G$25)+SUMIFS('4. Equipment Costs'!H:H,'4. Equipment Costs'!C:C,B76,'4. Equipment Costs'!B:B,$G$25)+SUMIFS('5. Subcontracting Costs'!H:H,'5. Subcontracting Costs'!C:C,B76,'5. Subcontracting Costs'!B:B,$G$25) -> 0 | H76: =SUMIF('B. Special Mob Strand - Student'!B:B,B76,'B. Special Mob Strand - Student'!N:N)+SUMIF('B. Special Mob Strand - Staff'!B:B,B76,'B. Special Mob Strand - Staff'!N:N) -> 0 | I76: 0
B77: P52 | C77: =SUMIFS('1. Staff costs'!S:S,'1. Staff costs'!C:C,B77,'1. Staff costs'!B:B,$C$25)+SUMIFS('2-3. Travel Costs&Costs of Stay'!N:N,'2-3. Travel Costs&Costs of Stay'!C:C,B77,'2-3. Travel Costs&Costs of Stay'!B:B,$C$25)+SUMIFS('4. Equipment Costs'!H:H,'4. Equipment Costs'!C:C,B77,'4. Equipment Costs'!B:B,$C$25)+SUMIFS('5. Subcontracting Costs'!H:H,'5. Subcontracting Costs'!C:C,B77,'5. Subcontracting Costs'!B:B,$C$25) -> 0 | D77: =SUMIFS('1. Staff costs'!S:S,'1. Staff costs'!C:C,B77,'1. Staff costs'!B:B,$D$25)+SUMIFS('2-3. Travel Costs&Costs of Stay'!N:N,'2-3. Travel Costs&Costs of Stay'!C:C,B77,'2-3. Travel Costs&Costs of Stay'!B:B,$D$25)+SUMIFS('4. Equipment Costs'!H:H,'4. Equipment Costs'!C:C,B77,'4. Equipment Costs'!B:B,$D$25)+SUMIFS('5. Subcontracting Costs'!H:H,'5. Subcontracting Costs'!C:C,B77,'5. Subcontracting Costs'!B:B,$D$25) -> 0 | E77: =SUMIFS('1. Staff costs'!S:S,'1. Staff costs'!C:C,B77,'1. Staff costs'!B:B,$E$25)+SUMIFS('2-3. Travel Costs&Costs of Stay'!N:N,'2-3. Travel Costs&Costs of Stay'!C:C,B77,'2-3. Travel Costs&Costs of Stay'!B:B,$E$25)+SUMIFS('4. Equipment Costs'!H:H,'4. Equipment Costs'!C:C,B77,'4. Equipment Costs'!B:B,$E$25)+SUMIFS('5. Subcontracting Costs'!H:H,'5. Subcontracting Costs'!C:C,B77,'5. Subcontracting Costs'!B:B,$E$25) -> 0 | F77: =SUMIFS('1. Staff costs'!S:S,'1. Staff costs'!C:C,B77,'1. Staff costs'!B:B,$B$8)+SUMIFS('2-3. Travel Costs&Costs of Stay'!N:N,'2-3. Travel Costs&Costs of Stay'!C:C,B77,'2-3. Travel Costs&Costs of Stay'!B:B,$B$8)+SUMIFS('4. Equipment Costs'!H:H,'4. Equipment Costs'!C:C,B77,'4. Equipment Costs'!B:B,$B$8)+SUMIFS('5. Subcontracting Costs'!H:H,'5. Subcontracting Costs'!C:C,B77,'5. Subcontracting Costs'!B:B,$B$8) -> 0 | G77: =SUMIFS('1. Staff costs'!S:S,'1. Staff costs'!C:C,B77,'1. Staff costs'!B:B,$G$25)+SUMIFS('2-3. Travel Costs&Costs of Stay'!N:N,'2-3. Travel Costs&Costs of Stay'!C:C,B77,'2-3. Travel Costs&Costs of Stay'!B:B,$G$25)+SUMIFS('4. Equipment Costs'!H:H,'4. Equipment Costs'!C:C,B77,'4. Equipment Costs'!B:B,$G$25)+SUMIFS('5. Subcontracting Costs'!H:H,'5. Subcontracting Costs'!C:C,B77,'5. Subcontracting Costs'!B:B,$G$25) -> 0 | H77: =SUMIF('B. Special Mob Strand - Student'!B:B,B77,'B. Special Mob Strand - Student'!N:N)+SUMIF('B. Special Mob Strand - Staff'!B:B,B77,'B. Special Mob Strand - Staff'!N:N) -> 0 | I77: 0
B78: P53 | C78: =SUMIFS('1. Staff costs'!S:S,'1. Staff costs'!C:C,B78,'1. Staff costs'!B:B,$C$25)+SUMIFS('2-3. Travel Costs&Costs of Stay'!N:N,'2-3. Travel Costs&Costs of Stay'!C:C,B78,'2-3. Travel Costs&Costs of Stay'!B:B,$C$25)+SUMIFS('4. Equipment Costs'!H:H,'4. Equipment Costs'!C:C,B78,'4. Equipment Costs'!B:B,$C$25)+SUMIFS('5. Subcontracting Costs'!H:H,'5. Subcontracting Costs'!C:C,B78,'5. Subcontracting Costs'!B:B,$C$25) -> 0 | D78: =SUMIFS('1. Staff costs'!S:S,'1. Staff costs'!C:C,B78,'1. Staff costs'!B:B,$D$25)+SUMIFS('2-3. Travel Costs&Costs of Stay'!N:N,'2-3. Travel Costs&Costs of Stay'!C:C,B78,'2-3. Travel Costs&Costs of Stay'!B:B,$D$25)+SUMIFS('4. Equipment Costs'!H:H,'4. Equipment Costs'!C:C,B78,'4. Equipment Costs'!B:B,$D$25)+SUMIFS('5. Subcontracting Costs'!H:H,'5. Subcontracting Costs'!C:C,B78,'5. Subcontracting Costs'!B:B,$D$25) -> 0 | E78: =SUMIFS('1. Staff costs'!S:S,'1. Staff costs'!C:C,B78,'1. Staff costs'!B:B,$E$25)+SUMIFS('2-3. Travel Costs&Costs of Stay'!N:N,'2-3. Travel Costs&Costs of Stay'!C:C,B78,'2-3. Travel Costs&Costs of Stay'!B:B,$E$25)+SUMIFS('4. Equipment Costs'!H:H,'4. Equipment Costs'!C:C,B78,'4. Equipment Costs'!B:B,$E$25)+SUMIFS('5. Subcontracting Costs'!H:H,'5. Subcontracting Costs'!C:C,B78,'5. Subcontracting Costs'!B:B,$E$25) -> 0 | F78: =SUMIFS('1. Staff costs'!S:S,'1. Staff costs'!C:C,B78,'1. Staff costs'!B:B,$B$8)+SUMIFS('2-3. Travel Costs&Costs of Stay'!N:N,'2-3. Travel Costs&Costs of Stay'!C:C,B78,'2-3. Travel Costs&Costs of Stay'!B:B,$B$8)+SUMIFS('4. Equipment Costs'!H:H,'4. Equipment Costs'!C:C,B78,'4. Equipment Costs'!B:B,$B$8)+SUMIFS('5. Subcontracting Costs'!H:H,'5. Subcontracting Costs'!C:C,B78,'5. Subcontracting Costs'!B:B,$B$8) -> 0 | G78: =SUMIFS('1. Staff costs'!S:S,'1. Staff costs'!C:C,B78,'1. Staff costs'!B:B,$G$25)+SUMIFS('2-3. Travel Costs&Costs of Stay'!N:N,'2-3. Travel Costs&Costs of Stay'!C:C,B78,'2-3. Travel Costs&Costs of Stay'!B:B,$G$25)+SUMIFS('4. Equipment Costs'!H:H,'4. Equipment Costs'!C:C,B78,'4. Equipment Costs'!B:B,$G$25)+SUMIFS('5. Subcontracting Costs'!H:H,'5. Subcontracting Costs'!C:C,B78,'5. Subcontracting Costs'!B:B,$G$25) -> 0 | H78: =SUMIF('B. Special Mob Strand - Student'!B:B,B78,'B. Special Mob Strand - Student'!N:N)+SUMIF('B. Special Mob Strand - Staff'!B:B,B78,'B. Special Mob Strand - Staff'!N:N) -> 0 | I78: 0
B79: P54 | C79: =SUMIFS('1. Staff costs'!S:S,'1. Staff costs'!C:C,B79,'1. Staff costs'!B:B,$C$25)+SUMIFS('2-3. Travel Costs&Costs of Stay'!N:N,'2-3. Travel Costs&Costs of Stay'!C:C,B79,'2-3. Travel Costs&Costs of Stay'!B:B,$C$25)+SUMIFS('4. Equipment Costs'!H:H,'4. Equipment Costs'!C:C,B79,'4. Equipment Costs'!B:B,$C$25)+SUMIFS('5. Subcontracting Costs'!H:H,'5. Subcontracting Costs'!C:C,B79,'5. Subcontracting Costs'!B:B,$C$25) -> 0 | D79: =SUMIFS('1. Staff costs'!S:S,'1. Staff costs'!C:C,B79,'1. Staff costs'!B:B,$D$25)+SUMIFS('2-3. Travel Costs&Costs of Stay'!N:N,'2-3. Travel Costs&Costs of Stay'!C:C,B79,'2-3. Travel Costs&Costs of Stay'!B:B,$D$25)+SUMIFS('4. Equipment Costs'!H:H,'4. Equipment Costs'!C:C,B79,'4. Equipment Costs'!B:B,$D$25)+SUMIFS('5. Subcontracting Costs'!H:H,'5. Subcontracting Costs'!C:C,B79,'5. Subcontracting Costs'!B:B,$D$25) -> 0 | E79: =SUMIFS('1. Staff costs'!S:S,'1. Staff costs'!C:C,B79,'1. Staff costs'!B:B,$E$25)+SUMIFS('2-3. Travel Costs&Costs of Stay'!N:N,'2-3. Travel Costs&Costs of Stay'!C:C,B79,'2-3. Travel Costs&Costs of Stay'!B:B,$E$25)+SUMIFS('4. Equipment Costs'!H:H,'4. Equipment Costs'!C:C,B79,'4. Equipment Costs'!B:B,$E$25)+SUMIFS('5. Subcontracting Costs'!H:H,'5. Subcontracting Costs'!C:C,B79,'5. Subcontracting Costs'!B:B,$E$25) -> 0 | F79: =SUMIFS('1. Staff costs'!S:S,'1. Staff costs'!C:C,B79,'1. Staff costs'!B:B,$B$8)+SUMIFS('2-3. Travel Costs&Costs of Stay'!N:N,'2-3. Travel Costs&Costs of Stay'!C:C,B79,'2-3. Travel Costs&Costs of Stay'!B:B,$B$8)+SUMIFS('4. Equipment Costs'!H:H,'4. Equipment Costs'!C:C,B79,'4. Equipment Costs'!B:B,$B$8)+SUMIFS('5. Subcontracting Costs'!H:H,'5. Subcontracting Costs'!C:C,B79,'5. Subcontracting Costs'!B:B,$B$8) -> 0 | G79: =SUMIFS('1. Staff costs'!S:S,'1. Staff costs'!C:C,B79,'1. Staff costs'!B:B,$G$25)+SUMIFS('2-3. Travel Costs&Costs of Stay'!N:N,'2-3. Travel Costs&Costs of Stay'!C:C,B79,'2-3. Travel Costs&Costs of Stay'!B:B,$G$25)+SUMIFS('4. Equipment Costs'!H:H,'4. Equipment Costs'!C:C,B79,'4. Equipment Costs'!B:B,$G$25)+SUMIFS('5. Subcontracting Costs'!H:H,'5. Subcontracting Costs'!C:C,B79,'5. Subcontracting Costs'!B:B,$G$25) -> 0 | H79: =SUMIF('B. Special Mob Strand - Student'!B:B,B79,'B. Special Mob Strand - Student'!N:N)+SUMIF('B. Special Mob Strand - Staff'!B:B,B79,'B. Special Mob Strand - Staff'!N:N) -> 0 | I79: 0
B80: P55 | C80: =SUMIFS('1. Staff costs'!S:S,'1. Staff costs'!C:C,B80,'1. Staff costs'!B:B,$C$25)+SUMIFS('2-3. Travel Costs&Costs of Stay'!N:N,'2-3. Travel Costs&Costs of Stay'!C:C,B80,'2-3. Travel Costs&Costs of Stay'!B:B,$C$25)+SUMIFS('4. Equipment Costs'!H:H,'4. Equipment Costs'!C:C,B80,'4. Equipment Costs'!B:B,$C$25)+SUMIFS('5. Subcontracting Costs'!H:H,'5. Subcontracting Costs'!C:C,B80,'5. Subcontracting Costs'!B:B,$C$25) -> 0 | D80: =SUMIFS('1. Staff costs'!S:S,'1. Staff costs'!C:C,B80,'1. Staff costs'!B:B,$D$25)+SUMIFS('2-3. Travel Costs&Costs of Stay'!N:N,'2-3. Travel Costs&Costs of Stay'!C:C,B80,'2-3. Travel Costs&Costs of Stay'!B:B,$D$25)+SUMIFS('4. Equipment Costs'!H:H,'4. Equipment Costs'!C:C,B80,'4. Equipment Costs'!B:B,$D$25)+SUMIFS('5. Subcontracting Costs'!H:H,'5. Subcontracting Costs'!C:C,B80,'5. Subcontracting Costs'!B:B,$D$25) -> 0 | E80: =SUMIFS('1. Staff costs'!S:S,'1. Staff costs'!C:C,B80,'1. Staff costs'!B:B,$E$25)+SUMIFS('2-3. Travel Costs&Costs of Stay'!N:N,'2-3. Travel Costs&Costs of Stay'!C:C,B80,'2-3. Travel Costs&Costs of Stay'!B:B,$E$25)+SUMIFS('4. Equipment Costs'!H:H,'4. Equipment Costs'!C:C,B80,'4. Equipment Costs'!B:B,$E$25)+SUMIFS('5. Subcontracting Costs'!H:H,'5. Subcontracting Costs'!C:C,B80,'5. Subcontracting Costs'!B:B,$E$25) -> 0 | F80: =SUMIFS('1. Staff costs'!S:S,'1. Staff costs'!C:C,B80,'1. Staff costs'!B:B,$B$8)+SUMIFS('2-3. Travel Costs&Costs of Stay'!N:N,'2-3. Travel Costs&Costs of Stay'!C:C,B80,'2-3. Travel Costs&Costs of Stay'!B:B,$B$8)+SUMIFS('4. Equipment Costs'!H:H,'4. Equipment Costs'!C:C,B80,'4. Equipment Costs'!B:B,$B$8)+SUMIFS('5. Subcontracting Costs'!H:H,'5. Subcontracting Costs'!C:C,B80,'5. Subcontracting Costs'!B:B,$B$8) -> 0 | G80: =SUMIFS('1. Staff costs'!S:S,'1. Staff costs'!C:C,B80,'1. Staff costs'!B:B,$G$25)+SUMIFS('2-3. Travel Costs&Costs of Stay'!N:N,'2-3. Travel Costs&Costs of Stay'!C:C,B80,'2-3. Travel Costs&Costs of Stay'!B:B,$G$25)+SUMIFS('4. Equipment Costs'!H:H,'4. Equipment Costs'!C:C,B80,'4. Equipment Costs'!B:B,$G$25)+SUMIFS('5. Subcontracting Costs'!H:H,'5. Subcontracting Costs'!C:C,B80,'5. Subcontracting Costs'!B:B,$G$25) -> 0 | H80: =SUMIF('B. Special Mob Strand - Student'!B:B,B80,'B. Special Mob Strand - Student'!N:N)+SUMIF('B. Special Mob Strand - Staff'!B:B,B80,'B. Special Mob Strand - Staff'!N:N) -> 0 | I80: 0
B81: TOTAL | C81: =SUM(C26:C80) -> 0 | D81: =SUM(D26:D80) -> 0 | E81: 0 | F81: 0 | G81: 0 | H81: 0 | I81: =SUM(C81:H81) -> 0

Sheet Rates (hidden)
E2: Staff Costs | I2: SMS
C3: Country | D3: PR/PA | E3: Manager | F3: Teacher/Trainer/Researcher | G3: Technical Staff | H3: Administrative Staff | I3: Students from Partner Countries | J3: Students from Programme Countries | K3: Staff from Partner Countries | L3: Staff from Programme Countries | N3: Country SMS | P3: Distance | Q3: Travel Costs (EUR)
B4: 1 | C4: Austria | D4: Programme Countries | E4: 294 | F4: 241 | G4: 190 | H4: 157 | I4: 850 | J4: 0 | K4: 140 | L4: 0 | N4: Austria | P4: 0 KM and 9 KM | Q4: 0
B5: 2 | C5: Belgium | D5: Programme Countries | E5: 280 | F5: 214 | G5: 162 | H5: 131 | I5: 800 | J5: 0 | K5: 140 | L5: 0 | N5: Belgium | P5: 10 KM and 99 KM | Q5: 20
B6: 3 | C6: Bulgaria | D6: Programme Countries | E6: 88 | F6: 74 | G6: 55 | H6: 39 | I6: 750 | J6: 0 | K6: 140 | L6: 0 | N6: Bulgaria | P6: 100 KM and 499 KM | Q6: 180
B7: 4 | C7: Croatia | D7: Programme Countries | E7: 88 | F7: 74 | G7: 55 | H7: 39 | I7: 800 | J7: 0 | K7: 100 | L7: 0 | N7: Croatia | P7: 500 KM and 1999 KM | Q7: 275
B8: 5 | C8: Cyprus | D8: Programme Countries | E8: 164 | F8: 137 | G8: 102 | H8: 78 | I8: 800 | J8: 0 | K8: 140 | L8: 0 | N8: Cyprus | P8: 2000 KM and 2999 KM | Q8: 360
B9: 6 | C9: Czech Republic | D9: Programme Countries | E9: 164 | F9: 137 | G9: 102 | H9: 78 | I9: 800 | J9: 0 | K9: 140 | L9: 0 | N9: Czech Republic | P9: 3000 KM and 3999 KM | Q9: 530
B10: 7 | C10: Denmark | D10: Programme Countries | E10: 294 | F10: 241 | G10: 190 | H10: 157 | I10: 850 | J10: 0 | K10: 160 | L10: 0 | N10: Denmark | P10: 4000 KM and 7999 KM | Q10: 820
B11: 8 | C11: Estonia | D11: Programme Countries | E11: 88 | F11: 74 | G11: 55 | H11: 39 | I11: 750 | J11: 0 | K11: 100 | L11: 0 | N11: Estonia | P11: 8000 KM or more | Q11: 1100
B12: 9 | C12: Finland | D12: Programme Countries | E12: 280 | F12: 214 | G12: 162 | H12: 131 | I12: 850 | J12: 0 | K12: 140 | L12: 0 | N12: Finland
B13: 10 | C13: former Yugoslav Republic of Macedonia | D13: Programme Countries | E13: 88 | F13: 74 | G13: 55 | H13: 39 | I13: 750 | J13: 0 | K13: 120 | L13: 0 | N13: former Yugoslav Republic of Macedonia | P13: Work Package
B14: 11 | C14: France | D14: Programme Countries | E14: 280 | F14: 214 | G14: 162 | H14: 131 | I14: 850 | J14: 0 | K14: 140 | L14: 0 | N14: France | P14: Preparation
B15: 12 | C15: Germany | D15: Programme Countries | E15: 280 | F15: 214 | G15: 162 | H15: 131 | I15: 800 | J15: 0 | K15: 120 | L15: 0 | N15: Germany | P15: Development
B16: 13 | C16: Greece | D16: Programme Countries | E16: 164 | F16: 137 | G16: 102 | H16: 78 | I16: 800 | J16: 0 | K16: 140 | L16: 0 | N16: Greece | P16: Quality Plan
B17: 14 | C17: Hungary | D17: Programme Countries | E17: 88 | F17: 74 | G17: 55 | H17: 39 | I17: 750 | J17: 0 | K17: 140 | L17: 0 | N17: Hungary | P17: Dissemination & Exploitation
B18: 15 | C18: Iceland | D18: Programme Countries | E18: 280 | F18: 214 | G18: 162 | H18: 131 | I18: 800 | J18: 0 | K18: 140 | L18: 0 | N18: Iceland | P18: Management
B19: 16 | C19: Ireland | D19: Programme Countries | E19: 294 | F19: 241 | G19: 190 | H19: 157 | I19: 850 | J19: 0 | K19: 160 | L19: 0 | N19: Ireland
B20: 17 | C20: Italy | D20: Programme Countries | E20: 280 | F20: 214 | G20: 162 | H20: 131 | I20: 850 | J20: 0 | K20: 140 | L20: 0 | N20: Italy | P20: Action Type
B21: 18 | C21: Latvia | D21: Programme Countries | E21: 88 | F21: 74 | G21: 55 | H21: 39 | I21: 750 | J21: 0 | K21: 120 | L21: 0 | N21: Latvia | P21: Joint Project
B22: 19 | C22: Liechtenstein | D22: Programme Countries | E22: 294 | F22: 241 | G22: 190 | H22: 157 | I22: 850 | J22: 0 | K22: 140 | L22: 0 | N22: Liechtenstein | P22: Structural Project
B23: 20 | C23: Lithuania | D23: Programme Countries | E23: 88 | F23: 74 | G23: 55 | H23: 39 | I23: 750 | J23: 0 | K23: 100 | L23: 0 | N23: Lithuania
B24: 21 | C24: Luxembourg | D24: Programme Countries | E24: 294 | F24: 241 | G24: 190 | H24: 157 | I24: 800 | J24: 0 | K24: 140 | L24: 0 | N24: Luxembourg | P24: Duration
B25: 22 | C25: Malta | D25: Programme Countries | E25: 164 | F25: 137 | G25: 102 | H25: 78 | I25: 750 | J25: 0 | K25: 120 | L25: 0 | N25: Malta | P25: 24
B26: 23 | C26: Netherlands | D26: Programme Countries | E26: 294 | F26: 241 | G26: 190 | H26: 157 | I26: 800 | J26: 0 | K26: 160 | L26: 0 | N26: Netherlands | P26: 36
B27: 24 | C27: Norway | D27: Programme Countries | E27: 294 | F27: 241 | G27: 190 | H27: 157 | I27: 850 | J27: 0 | K27: 140 | L27: 0 | N27: Norway
B28: 25 | C28: Poland | D28: Programme Countries | E28: 88 | F28: 74 | G28: 55 | H28: 39 | I28: 750 | J28: 0 | K28: 140 | L28: 0 | N28: Poland | P28: Category 2
B29: 26 | C29: Portugal | D29: Programme Countries | E29: 164 | F29: 137 | G29: 102 | H29: 78 | I29: 800 | J29: 0 | K29: 120 | L29: 0 | N29: Portugal | P29: Student
B30: 27 | C30: Romania | D30: Programme Countries | E30: 88 | F30: 74 | G30: 55 | H30: 39 | I30: 750 | J30: 0 | K30: 140 | L30: 0 | N30: Romania | P30: Staff
B31: 28 | C31: Slovakia | D31: Programme Countries | E31: 88 | F31: 74 | G31: 55 | H31: 39 | I31: 750 | J31: 0 | K31: 120 | L31: 0 | N31: Slovakia
B32: 29 | C32: Slovenia | D32: Programme Countries | E32: 164 | F32: 137 | G32: 102 | H32: 78 | I32: 800 | J32: 0 | K32: 100 | L32: 0 | N32: Slovenia
B33: 30 | C33: Spain | D33: Programme Countries | E33: 164 | F33: 137 | G33: 102 | H33: 78 | I33: 800 | J33: 0 | K33: 120 | L33: 0 | N33: Spain
B34: 31 | C34: Sweden | D34: Programme Countries | E34: 294 | F34: 241 | G34: 190 | H34: 157 | I34: 850 | J34: 0 | K34: 160 | L34: 0 | N34: Sweden
B35: 32 | C35: Turkey | D35: Programme Countries | E35: 88 | F35: 74 | G35: 55 | H35: 39 | I35: 800 | J35: 0 | K35: 140 | L35: 0 | N35: Turkey
B36: 33 | C36: United Kingdom | D36: Programme Countries | E36: 280 | F36: 214 | G36: 162 | H36: 131 | I36: 850 | J36: 0 | K36: 160 | L36: 0 | N36: United Kingdom
B37: 34 | C37: Afghanistan | D37: Partner Countries | E37: 77 | F37: 57 | G37: 40 | H37: 32 | I37: 0 | J37: 0 | K37: 0 | L37: 0 | N37: Albania
B38: 35 | C38: Albania | D38: Partner Countries | E38: 108 | F38: 80 | G38: 57 | H38: 45 | I38: 750 | J38: 650 | K38: 100 | L38: 160 | N38: Algeria
B39: 36 | C39: Algeria | D39: Partner Countries | E39: 47 | F39: 33 | G39: 22 | H39: 17 | I39: 750 | J39: 650 | K39: 100 | L39: 160 | N39: Armenia
B40: 37 | C40: Angola | D40: Partner Countries | E40: 108 | F40: 80 | G40: 57 | H40: 45 | I40: 0 | J40: 0 | K40: 0 | L40: 0 | N40: Azerbaijan
B41: 38 | C41: Antigua and Barbuda | D41: Partner Countries | E41: 108 | F41: 80 | G41: 57 | H41: 45 | I41: 0 | J41: 0 | K41: 0 | L41: 0 | N41: Belarus
B42: 39 | C42: Argentina | D42: Partner Countries | E42: 108 | F42: 80 | G42: 57 | H42: 45 | I42: 0 | J42: 0 | K42: 0 | L42: 0 | N42: Bosnia and Herzegovina
B43: 40 | C43: Armenia | D43: Partner Countries | E43: 47 | F43: 33 | G43: 22 | H43: 17 | I43: 750 | J43: 650 | K43: 100 | L43: 160 | N43: Egypt
B44: 41 | C44: Azerbaijan | D44: Partner Countries | E44: 77 | F44: 57 | G44: 40 | H44: 32 | I44: 750 | J44: 650 | K44: 100 | L44: 160 | N44: Georgia
B45: 42 | C45: Bahamas | D45: Partner Countries | E45: 77 | F45: 57 | G45: 40 | H45: 32 | I45: 0 | J45: 0 | K45: 0 | L45: 0 | N45: Israel
B46: 43 | C46: Bangladesh | D46: Partner Countries | E46: 47 | F46: 33 | G46: 22 | H46: 17 | I46: 0 | J46: 0 | K46: 0 | L46: 0 | N46: Jordan
B47: 44 | C47: Barbados | D47: Partner Countries | E47: 108 | F47: 80 | G47: 57 | H47: 45 | I47: 0 | J47: 0 | K47: 0 | L47: 0 | N47: Kosovo
B48: 45 | C48: Belarus | D48: Partner Countries | E48: 47 | F48: 33 | G48: 22 | H48: 17 | I48: 750 | J48: 650 | K48: 100 | L48: 160 | N48: Lebanon
B49: 46 | C49: Belize | D49: Partner Countries | E49: 47 | F49: 33 | G49: 22 | H49: 17 | I49: 0 | J49: 0 | K49: 0 | L49: 0 | N49: Libya
B50: 47 | C50: Benin | D50: Partner Countries | E50: 47 | F50: 33 | G50: 22 | H50: 17 | I50: 0 | J50: 0 | K50: 0 | L50: 0 | N50: Moldova
B51: 48 | C51: Bhutan | D51: Partner Countries | E51: 47 | F51: 33 | G51: 22 | H51: 17 | I51: 0 | J51: 0 | K51: 0 | L51: 0 | N51: Montenegro
B52: 49 | C52: Bolivia | D52: Partner Countries | E52: 77 | F52: 57 | G52: 40 | H52: 32 | I52: 0 | J52: 0 | K52: 0 | L52: 0 | N52: Morocco
B53: 50 | C53: Bosnia and Herzegovina | D53: Partner Countries | E53: 108 | F53: 80 | G53: 57 | H53: 45 | I53: 750 | J53: 650 | K53: 100 | L53: 160 | N53: Palestine
B54: 51 | C54: Botswana | D54: Partner Countries | E54: 47 | F54: 33 | G54: 22 | H54: 17 | I54: 0 | J54: 0 | K54: 0 | L54: 0 | N54: Serbia
B55: 52 | C55: Brazil | D55: Partner Countries | E55: 108 | F55: 80 | G55: 57 | H55: 45 | I55: 0 | J55: 0 | K55: 0 | L55: 0 | N55: Syria
B56: 53 | C56: Burkina Faso | D56: Partner Countries | E56: 77 | F56: 57 | G56: 40 | H56: 32 | I56: 0 | J56: 0 | K56: 0 | L56: 0 | N56: Tunisia
B57: 54 | C57: Burundi | D57: Partner Countries | E57: 47 | F57: 33 | G57: 22 | H57: 17 | I57: 0 | J57: 0 | K57: 0 | L57: 0 | N57: Ukraine
B58: 55 | C58: Cambodia | D58: Partner Countries | E58: 47 | F58: 33 | G58: 22 | H58: 17 | I58: 0 | J58: 0 | K58: 0 | L58: 0
B59: 56 | C59: Cameroon | D59: Partner Countries | E59: 77 | F59: 57 | G59: 40 | H59: 32 | I59: 0 | J59: 0 | K59: 0 | L59: 0
B60: 57 | C60: Cape Verde | D60: Partner Countries | E60: 47 | F60: 33 | G60: 22 | H60: 17 | I60: 0 | J60: 0 | K60: 0 | L60: 0
B61: 58 | C61: Central African Republic | D61: Partner Countries | E61: 47 | F61: 33 | G61: 22 | H61: 17 | I61: 0 | J61: 0 | K61: 0 | L61: 0
B62: 59 | C62: Chad | D62: Partner Countries | E62: 47 | F62: 33 | G62: 22 | H62: 17 | I62: 0 | J62: 0 | K62: 0 | L62: 0
B63: 60 | C63: Chile | D63: Partner Countries | E63: 108 | F63: 80 | G63: 57 | H63: 45 | I63: 0 | J63: 0 | K63: 0 | L63: 0
B64: 61 | C64: China | D64: Partner Countries | E64: 77 | F64: 57 | G64: 40 | H64: 32 | I64: 0 | J64: 0 | K64: 0 | L64: 0
B65: 62 | C65: Colombia | D65: Partner Countries | E65: 108 | F65: 80 | G65: 57 | H65: 45 | I65: 0 | J65: 0 | K65: 0 | L65: 0
B66: 63 | C66: Comoros | D66: Partner Countries | E66: 108 | F66: 80 | G66: 57 | H66: 45 | I66: 0 | J66: 0 | K66: 0 | L66: 0
B67: 64 | C67: Congo | D67: Partner Countries | E67: 77 | F67: 57 | G67: 40 | H67: 32 | I67: 0 | J67: 0 | K67: 0 | L67: 0
B68: 65 | C68: Congo - Republic of the- | D68: Partner Countries | E68: 47 | F68: 33 | G68: 22 | H68: 17 | I68: 0 | J68: 0 | K68: 0 | L68: 0
B69: 66 | C69: Cook Islands | D69: Partner Countries | E69: 108 | F69: 80 | G69: 57 | H69: 45 | I69: 0 | J69: 0 | K69: 0 | L69: 0
B70: 67 | C70: Costa Rica | D70: Partner Countries | E70: 77 | F70: 57 | G70: 40 | H70: 32 | I70: 0 | J70: 0 | K70: 0 | L70: 0
B71: 68 | C71: Cuba | D71: Partner Countries | E71: 47 | F71: 33 | G71: 22 | H71: 17 | I71: 0 | J71: 0 | K71: 0 | L71: 0
B72: 69 | C72: Djibouti | D72: Partner Countries | E72: 77 | F72: 57 | G72: 40 | H72: 32 | I72: 0 | J72: 0 | K72: 0 | L72: 0
B73: 70 | C73: Dominica | D73: Partner Countries | E73: 108 | F73: 80 | G73: 57 | H73: 45 | I73: 0 | J73: 0 | K73: 0 | L73: 0
B74: 71 | C74: Dominican Republic | D74: Partner Countries | E74: 77 | F74: 57 | G74: 40 | H74: 32 | I74: 0 | J74: 0 | K74: 0 | L74: 0
B75: 72 | C75: DPR Korea | D75: Partner Countries | E75: 47 | F75: 33 | G75: 22 | H75: 17 | I75: 0 | J75: 0 | K75: 0 | L75: 0
B76: 73 | C76: Ecuador | D76: Partner Countries | E76: 77 | F76: 57 | G76: 40 | H76: 32 | I76: 0 | J76: 0 | K76: 0 | L76: 0
B77: 74 | C77: Egypt | D77: Partner Countries | E77: 47 | F77: 33 | G77: 22 | H77: 17 | I77: 750 | J77: 650 | K77: 100 | L77: 160
B78: 75 | C78: El Salvador | D78: Partner Countries | E78: 77 | F78: 57 | G78: 40 | H78: 32 | I78: 0 | J78: 0 | K78: 0 | L78: 0
B79: 76 | C79: Equatorial Guinea | D79: Partner Countries | E79: 47 | F79: 33 | G79: 22 | H79: 17 | I79: 0 | J79: 0 | K79: 0 | L79: 0
B80: 77 | C80: Eritrea | D80: Partner Countries | E80: 47 | F80: 33 | G80: 22 | H80: 17 | I80: 0 | J80: 0 | K80: 0 | L80: 0
B81: 78 | C81: Ethiopia | D81: Partner Countries | E81: 47 | F81: 33 | G81: 22 | H81: 17 | I81: 0 | J81: 0 | K81: 0 | L81: 0
B82: 79 | C82: Fiji | D82: Partner Countries | E82: 47 | F82: 33 | G82: 22 | H82: 17 | I82: 0 | J82: 0 | K82: 0 | L82: 0
B83: 80 | C83: Gabon | D83: Partner Countries | E83: 108 | F83: 80 | G83: 57 | H83: 45 | I83: 0 | J83: 0 | K83: 0 | L83: 0
B84: 81 | C84: Gambia | D84: Partner Countries | E84: 47 | F84: 33 | G84: 22 | H84: 17 | I84: 0 | J84: 0 | K84: 0 | L84: 0
B85: 82 | C85: Georgia | D85: Partner Countries | E85: 77 | F85: 57 | G85: 40 | H85: 32 | I85: 750 | J85: 650 | K85: 100 | L85: 160
B86: 83 | C86: Ghana | D86: Partner Countries | E86: 47 | F86: 33 | G86: 22 | H86: 17 | I86: 0 | J86: 0 | K86: 0 | L86: 0
B87: 84 | C87: Grenada | D87: Partner Countries | E87: 108 | F87: 80 | G87: 57 | H87: 45 | I87: 0 | J87: 0 | K87: 0 | L87: 0
B88: 85 | C88: Guatemala | D88: Partner Countries | E88: 77 | F88: 57 | G88: 40 | H88: 32 | I88: 0 | J88: 0 | K88: 0 | L88: 0
B89: 86 | C89: Guinea | D89: Partner Countries | E89: 47 | F89: 33 | G89: 22 | H89: 17 | I89: 0 | J89: 0 | K89: 0 | L89: 0
B90: 87 | C90: Guinea-Bissau | D90: Partner Countries | E90: 77 | F90: 57 | G90: 40 | H90: 32 | I90: 0 | J90: 0 | K90: 0 | L90: 0
B91: 88 | C91: Guyana | D91: Partner Countries | E91: 47 | F91: 33 | G91: 22 | H91: 17 | I91: 0 | J91: 0 | K91: 0 | L91: 0
B92: 89 | C92: Haiti | D92: Partner Countries | E92: 77 | F92: 57 | G92: 40 | H92: 32 | I92: 0 | J92: 0 | K92: 0 | L92: 0
B93: 90 | C93: Honduras | D93: Partner Countries | E93: 47 | F93: 33 | G93: 22 | H93: 17 | I93: 0 | J93: 0 | K93: 0 | L93: 0
B94: 91 | C94: India | D94: Partner Countries | E94: 47 | F94: 33 | G94: 22 | H94: 17 | I94: 0 | J94: 0 | K94: 0 | L94: 0
B95: 92 | C95: Indonesia | D95: Partner Countries | E95: 47 | F95: 33 | G95: 22 | H95: 17 | I95: 0 | J95: 0 | K95: 0 | L95: 0
B96: 93 | C96: Iran | D96: Partner Countries | E96: 77 | F96: 57 | G96: 40 | H96: 32 | I96: 0 | J96: 0 | K96: 0 | L96: 0
B97: 94 | C97: Iraq | D97: Partner Countries | E97: 77 | F97: 57 | G97: 40 | H97: 32 | I97: 0 | J97: 0 | K97: 0 | L97: 0
B98: 95 | C98: Israel | D98: Partner Countries | E98: 166 | F98: 132 | G98: 102 | H98: 92 | I98: 750 | J98: 650 | K98: 100 | L98: 160
B99: 96 | C99: Ivory Coast | D99: Partner Countries | E99: 108 | F99: 80 | G99: 57 | H99: 45 | I99: 0 | J99: 0 | K99: 0 | L99: 0
B100: 97 | C100: Jamaica | D100: Partner Countries | E100: 77 | F100: 57 | G100: 40 | H100: 32 | I100: 0 | J100: 0 | K100: 0 | L100: 0
B101: 98 | C101: Jordan | D101: Partner Countries | E101: 77 | F101: 57 | G101: 40 | H101: 32 | I101: 750 | J101: 650 | K101: 100 | L101: 160
B102: 99 | C102: Kazakstan | D102: Partner Countries | E102: 77 | F102: 57 | G102: 40 | H102: 32 | I102: 0 | J102: 0 | K102: 0 | L102: 0
B103: 100 | C103: Kenya | D103: Partner Countries | E103: 77 | F103: 57 | G103: 40 | H103: 32 | I103: 0 | J103: 0 | K103: 0 | L103: 0
B104: 101 | C104: Kiribati | D104: Partner Countries | E104: 47 | F104: 33 | G104: 22 | H104: 17 | I104: 0 | J104: 0 | K104: 0 | L104: 0
B105: 102 | C105: Kosovo | D105: Partner Countries | E105: 108 | F105: 80 | G105: 57 | H105: 45 | I105: 750 | J105: 650 | K105: 100 | L105: 160
B106: 103 | C106: Kyrgyzstan | D106: Partner Countries | E106: 47 | F106: 33 | G106: 22 | H106: 17 | I106: 0 | J106: 0 | K106: 0 | L106: 0
B107: 104 | C107: Laos | D107: Partner Countries | E107: 47 | F107: 33 | G107: 22 | H107: 17 | I107: 0 | J107: 0 | K107: 0 | L107: 0
B108: 105 | C108: Lebanon | D108: Partner Countries | E108: 108 | F108: 80 | G108: 57 | H108: 45 | I108: 750 | J108: 650 | K108: 100 | L108: 160
B109: 106 | C109: Lesotho | D109: Partner Countries | E109: 47 | F109: 33 | G109: 22 | H109: 17 | I109: 0 | J109: 0 | K109: 0 | L109: 0
B110: 107 | C110: Liberia | D110: Partner Countries | E110: 47 | F110: 33 | G110: 22 | H110: 17 | I110: 0 | J110: 0 | K110: 0 | L110: 0
B111: 108 | C111: Libya | D111: Partner Countries | E111: 108 | F111: 80 | G111: 57 | H111: 45 | I111: 750 | J111: 650 | K111: 100 | L111: 160
B112: 109 | C112: Madagascar | D112: Partner Countries | E112: 47 | F112: 33 | G112: 22 | H112: 17 | I112: 0 | J112: 0 | K112: 0 | L112: 0
B113: 110 | C113: Malawi | D113: Partner Countries | E113: 47 | F113: 33 | G113: 22 | H113: 17 | I113: 0 | J113: 0 | K113: 0 | L113: 0
B114: 111 | C114: Malaysia | D114: Partner Countries | E114: 47 | F114: 33 | G114: 22 | H114: 17 | I114: 0 | J114: 0 | K114: 0 | L114: 0
B115: 112 | C115: Maldives | D115: Partner Countries | E115: 47 | F115: 33 | G115: 22 | H115: 17 | I115: 0 | J115: 0 | K115: 0 | L115: 0
B116: 113 | C116: Mali | D116: Partner Countries | E116: 47 | F116: 33 | G116: 22 | H116: 17 | I116: 0 | J116: 0 | K116: 0 | L116: 0
B117: 114 | C117: Marshall Islands | D117: Partner Countries | E117: 47 | F117: 33 | G117: 22 | H117: 17 | I117: 0 | J117: 0 | K117: 0 | L117: 0
B118: 115 | C118: Mauritania | D118: Partner Countries | E118: 47 | F118: 33 | G118: 22 | H118: 17 | I118: 0 | J118: 0 | K118: 0 | L118: 0
B119: 116 | C119: Mauritius | D119: Partner Countries | E119: 47 | F119: 33 | G119: 22 | H119: 17 | I119: 0 | J119: 0 | K119: 0 | L119: 0
B120: 117 | C120: Mexico | D120: Partner Countries | E120: 108 | F120: 80 | G120: 57 | H120: 45 | I120: 0 | J120: 0 | K120: 0 | L120: 0
B121: 118 | C121: Micronesia - Federated States of- | D121: Partner Countries | E121: 77 | F121: 57 | G121: 40 | H121: 32 | I121: 0 | J121: 0 | K121: 0 | L121: 0
B122: 119 | C122: Moldova | D122: Partner Countries | E122: 47 | F122: 33 | G122: 22 | H122: 17 | I122: 750 | J122: 650 | K122: 100 | L122: 160
B123: 120 | C123: Mongolia | D123: Partner Countries | E123: 47 | F123: 33 | G123: 22 | H123: 17 | I123: 0 | J123: 0 | K123: 0 | L123: 0
B124: 121 | C124: Montenegro | D124: Partner Countries | E124: 108 | F124: 80 | G124: 57 | H124: 45 | I124: 750 | J124: 650 | K124: 100 | L124: 160
B125: 122 | C125: Morocco | D125: Partner Countries | E125: 77 | F125: 57 | G125: 40 | H125: 32 | I125: 750 | J125: 650 | K125: 100 | L125: 160
B126: 123 | C126: Mozambique | D126: Partner Countries | E126: 77 | F126: 57 | G126: 40 | H126: 32 | I126: 0 | J126: 0 | K126: 0 | L126: 0
B127: 124 | C127: Myanmar | D127: Partner Countries | E127: 47 | F127: 33 | G127: 22 | H127: 17 | I127: 0 | J127: 0 | K127: 0 | L127: 0
B128: 125 | C128: Namibia | D128: Partner Countries | E128: 77 | F128: 57 | G128: 40 | H128: 32 | I128: 0 | J128: 0 | K128: 0 | L128: 0
B129: 126 | C129: Nauru | D129: Partner Countries | E129: 47 | F129: 33 | G129: 22 | H129: 17 | I129: 0 | J129: 0 | K129: 0 | L129: 0
B130: 127 | C130: Nepal | D130: Partner Countries | E130: 47 | F130: 33 | G130: 22 | H130: 17 | I130: 0 | J130: 0 | K130: 0 | L130: 0
B131: 128 | C131: Nicaragua | D131: Partner Countries | E131: 47 | F131: 33 | G131: 22 | H131: 17 | I131: 0 | J131: 0 | K131: 0 | L131: 0
B132: 129 | C132: Niger | D132: Partner Countries | E132: 47 | F132: 33 | G132: 22 | H132: 17 | I132: 0 | J132: 0 | K132: 0 | L132: 0
B133: 130 | C133: Nigeria | D133: Partner Countries | E133: 108 | F133: 80 | G133: 57 | H133: 45 | I133: 0 | J133: 0 | K133: 0 | L133: 0
B134: 131 | C134: Niue | D134: Partner Countries | E134: 47 | F134: 33 | G134: 22 | H134: 17 | I134: 0 | J134: 0 | K134: 0 | L134: 0
B135: 132 | C135: Pakistan | D135: Partner Countries | E135: 47 | F135: 33 | G135: 22 | H135: 17 | I135: 0 | J135: 0 | K135: 0 | L135: 0
B136: 133 | C136: Palau | D136: Partner Countries | E136: 47 | F136: 33 | G136: 22 | H136: 17 | I136: 0 | J136: 0 | K136: 0 | L136: 0
B137: 134 | C137: Palestine | D137: Partner Countries | E137: 77 | F137: 57 | G137: 40 | H137: 32 | I137: 750 | J137: 650 | K137: 100 | L137: 160
B138: 135 | C138: Panama | D138: Partner Countries | E138: 77 | F138: 57 | G138: 40 | H138: 32 | I138: 0 | J138: 0 | K138: 0 | L138: 0
B139: 136 | C139: Papua New Guinea | D139: Partner Countries | E139: 77 | F139: 57 | G139: 40 | H139: 32 | I139: 0 | J139: 0 | K139: 0 | L139: 0
B140: 137 | C140: Paraguay | D140: Partner Countries | E140: 77 | F140: 57 | G140: 40 | H140: 32 | I140: 0 | J140: 0 | K140: 0 | L140: 0
B141: 138 | C141: Peru | D141: Partner Countries | E141: 108 | F141: 80 | G141: 57 | H141: 45 | I141: 0 | J141: 0 | K141: 0 | L141: 0
B142: 139 | C142: Philippines | D142: Partner Countries | E142: 47 | F142: 33 | G142: 22 | H142: 17 | I142: 0 | J142: 0 | K142: 0 | L142: 0
B143: 140 | C143: Russia | D143: Partner Countries | E143: 77 | F143: 57 | G143: 40 | H143: 32 | I143: 0 | J143: 0 | K143: 0 | L143: 0
B144: 141 | C144: Rwanda | D144: Partner Countries | E144: 47 | F144: 33 | G144: 22 | H144: 17 | I144: 0 | J144: 0 | K144: 0 | L144: 0
B145: 142 | C145: Saint Kitts and Nevis | D145: Partner Countries | E145: 108 | F145: 80 | G145: 57 | H145: 45 | I145: 0 | J145: 0 | K145: 0 | L145: 0
B146: 143 | C146: Saint Lucia | D146: Partner Countries | E146: 108 | F146: 80 | G146: 57 | H146: 45 | I146: 0 | J146: 0 | K146: 0 | L146: 0
B147: 144 | C147: Saint Vincent and the Grenadines | D147: Partner Countries | E147: 108 | F147: 80 | G147: 57 | H147: 45 | I147: 0 | J147: 0 | K147: 0 | L147: 0
B148: 145 | C148: Samoa | D148: Partner Countries | E148: 47 | F148: 33 | G148: 22 | H148: 17 | I148: 0 | J148: 0 | K148: 0 | L148: 0
B149: 146 | C149: Sao Tome and Principe | D149: Partner Countries | E149: 108 | F149: 80 | G149: 57 | H149: 45 | I149: 0 | J149: 0 | K149: 0 | L149: 0
B150: 147 | C150: Senegal | D150: Partner Countries | E150: 77 | F150: 57 | G150: 40 | H150: 32 | I150: 0 | J150: 0 | K150: 0 | L150: 0
B151: 148 | C151: Serbia | D151: Partner Countries | E151: 108 | F151: 80 | G151: 57 | H151: 45 | I151: 750 | J151: 650 | K151: 100 | L151: 160
B152: 149 | C152: Seychelles | D152: Partner Countries | E152: 108 | F152: 80 | G152: 57 | H152: 45 | I152: 0 | J152: 0 | K152: 0 | L152: 0
B153: 150 | C153: Sierra Leone | D153: Partner Countries | E153: 47 | F153: 33 | G153: 22 | H153: 17 | I153: 0 | J153: 0 | K153: 0 | L153: 0
B154: 151 | C154: Solomon Islands | D154: Partner Countries | E154: 47 | F154: 33 | G154: 22 | H154: 17 | I154: 0 | J154: 0 | K154: 0 | L154: 0
B155: 152 | C155: Somalia | D155: Partner Countries | E155: 47 | F155: 33 | G155: 22 | H155: 17 | I155: 0 | J155: 0 | K155: 0 | L155: 0
B156: 153 | C156: South Africa | D156: Partner Countries | E156: 77 | F156: 57 | G156: 40 | H156: 32 | I156: 0 | J156: 0 | K156: 0 | L156: 0
B157: 154 | C157: South Sudan | D157: Partner Countries | E157: 47 | F157: 33 | G157: 22 | H157: 17 | I157: 0 | J157: 0 | K157: 0 | L157: 0
B158: 155 | C158: Sri Lanka | D158: Partner Countries | E158: 47 | F158: 33 | G158: 22 | H158: 17 | I158: 0 | J158: 0 | K158: 0 | L158: 0
B159: 156 | C159: Sudan | D159: Partner Countries | E159: 47 | F159: 33 | G159: 22 | H159: 17 | I159: 0 | J159: 0 | K159: 0 | L159: 0
B160: 157 | C160: Suriname | D160: Partner Countries | E160: 77 | F160: 57 | G160: 40 | H160: 32 | I160: 0 | J160: 0 | K160: 0 | L160: 0
B161: 158 | C161: Swaziland | D161: Partner Countries | E161: 77 | F161: 57 | G161: 40 | H161: 32 | I161: 0 | J161: 0 | K161: 0 | L161: 0
B162: 159 | C162: Syria | D162: Partner Countries | E162: 47 | F162: 33 | G162: 22 | H162: 17 | I162: 750 | J162: 650 | K162: 100 | L162: 160
B163: 160 | C163: Tajikistan | D163: Partner Countries | E163: 47 | F163: 33 | G163: 22 | H163: 17 | I163: 0 | J163: 0 | K163: 0 | L163: 0
B164: 161 | C164: Tanzania | D164: Partner Countries | E164: 47 | F164: 33 | G164: 22 | H164: 17 | I164: 0 | J164: 0 | K164: 0 | L164: 0
B165: 162 | C165: Thailand | D165: Partner Countries | E165: 108 | F165: 80 | G165: 57 | H165: 45 | I165: 0 | J165: 0 | K165: 0 | L165: 0
B166: 163 | C166: Timor Leste - Republic of- | D166: Partner Countries | E166: 47 | F166: 33 | G166: 22 | H166: 17 | I166: 0 | J166: 0 | K166: 0 | L166: 0
B167: 164 | C167: Togo | D167: Partner Countries | E167: 47 | F167: 33 | G167: 22 | H167: 17 | I167: 0 | J167: 0 | K167: 0 | L167: 0
B168: 165 | C168: Tonga | D168: Partner Countries | E168: 47 | F168: 33 | G168: 22 | H168: 17 | I168: 0 | J168: 0 | K168: 0 | L168: 0
B169: 166 | C169: Trinidad and Tobago | D169: Partner Countries | E169: 77 | F169: 57 | G169: 40 | H169: 32 | I169: 0 | J169: 0 | K169: 0 | L169: 0
B170: 167 | C170: Tunisia | D170: Partner Countries | E170: 47 | F170: 33 | G170: 22 | H170: 17 | I170: 750 | J170: 650 | K170: 100 | L170: 160
B171: 168 | C171: Turkmenistan | D171: Partner Countries | E171: 47 | F171: 33 | G171: 22 | H171: 17 | I171: 0 | J171: 0 | K171: 0 | L171: 0
B172: 169 | C172: Tuvalu | D172: Partner Countries | E172: 47 | F172: 33 | G172: 22 | H172: 17 | I172: 0 | J172: 0 | K172: 0 | L172: 0
B173: 170 | C173: Uganda | D173: Partner Countries | E173: 47 | F173: 33 | G173: 22 | H173: 17 | I173: 0 | J173: 0 | K173: 0 | L173: 0
B174: 171 | C174: Ukraine | D174: Partner Countries | E174: 108 | F174: 80 | G174: 57 | H174: 45 | I174: 750 | J174: 650 | K174: 100 | L174: 160
B175: 172 | C175: Uruguay | D175: Partner Countries | E175: 108 | F175: 80 | G175: 57 | H175: 45 | I175: 0 | J175: 0 | K175: 0 | L175: 0
B176: 173 | C176: Uzbekistan | D176: Partner Countries | E176: 47 | F176: 33 | G176: 22 | H176: 17 | I176: 0 | J176: 0 | K176: 0 | L176: 0
B177: 174 | C177: Vanuatu | D177: Partner Countries | E177: 77 | F177: 57 | G177: 40 | H177: 32 | I177: 0 | J177: 0 | K177: 0 | L177: 0
B178: 175 | C178: Venezuela | D178: Partner Countries | E178: 108 | F178: 80 | G178: 57 | H178: 45 | I178: 0 | J178: 0 | K178: 0 | L178: 0
B179: 176 | C179: Vietnam | D179: Partner Countries | E179: 47 | F179: 33 | G179: 22 | H179: 17 | I179: 0 | J179: 0 | K179: 0 | L179: 0
B180: 177 | C180: Yemen | D180: Partner Countries | E180: 47 | F180: 33 | G180: 22 | H180: 17 | I180: 0 | J180: 0 | K180: 0 | L180: 0
B181: 178 | C181: Zambia | D181: Partner Countries | E181: 108 | F181: 80 | G181: 57 | H181: 45 | I181: 0 | J181: 0 | K181: 0 | L181: 0
B182: 179 | C182: Zimbabwe | D182: Partner Countries | E182: 108 | F182: 80 | G182: 57 | H182: 45 | I182: 0 | J182: 0 | K182: 0 | L182: 0

Sheet Unit Costs & Funding Rule
B1: UNIT COSTS AND SUMMARY OF THE FUNDING RULES FOR JOINT AND STRUCTURAL CAPACITY BUILDING PROJECTS You can find below the unit costs values used in this file for the calculation of the grant. Please refer to the Erasmus+ Programme guide 2017* for a complete overview of the funding rules applying to the Joint and Structural Capacity Building Projects (Part B of the guide and Annex 1).
B2: * Link to Erasmus+ Programme guide 2017: | C2: http://ec.europa.eu/programmes/erasmus-plus/resources_en
B3: * Link to CBHE Call for proposal, forms, annexes and guidelines: | C3: http://eur-lex.europa.eu/legal-content/EN/TXT/?uri=OJ:JOC_2016_386_R_0009
B4: A.1 Staff Costs | I4: A.2 & B Travel Costs | L4: A. 3 Costs of Stay | P4: A.4 Equipment | S4: A.5 Subcontracting | W4: B - Special Mobility Strand
B5: Unit costs Contribution to the costs of staff performing tasks which are directly necessary to the achievements of the project's objectives. Conditional: applicants will have to justify the type and volume of resources needed in relation to the implementation of the proposed activities and outputs. The contribution is provided on the condition that the salary for the same tasks is compensated only once. | I5: Unit costs based on the travel distance per participant. Travel distances must be calculated using the distance calculator supported by the European Commission . The applicant must indicate the distance of a one-way travel to calculate the amount of the EU grant that will support the round trip. | L5: Costs for subsistence, accommodation, local and public transport such as bus and taxi, personal or optional health insurance. Unit costs based on the duration of the stay of the participants: Staff: 120 EUR/day from day 1 to day 14 70 EUR/day from day 15 to day 60 50 EUR/day from day 61 to day 90 (the maximum) Student: 55 EUR/day from day 1 to day 14 40 EUR/day from day 15 to max day 90 (the maximum) | P5: Contribution for the purchase of equipment necessary for the implementation of the project. Support is provided only for equipment purchased for the benefit of the HEIs in the Partner Countries. Conditional: the request for financial support to cover these costs must be motivated in the application form | S5: Support for sub-contracting costs that are necessary to the implementation of the project, including, in particular, costs for the compulsory financial audits (audit certificate) and for any external quality assurance procedure. Sub-contracting for project-management-related tasks is not eligible. Sub-contracting to external bodies should be very occasional. The specific competences and particular expertise needed to reach the project objectives should be found in the consortium and should determine its composition. | W5: Travel costs (students and staff): Unit costs (please refer to unit costs in table A2). Contribution to the travel costs of students and staff involved in the project, from their place of origin to the venue of the activity and return (including visa fee and related obligatory insurance, travel insurance and cancellation costs if justified). Activities and related travels must be carried out in the countries involved in the project. Any exception to this rule must be authorised by the Agency. For the detailed list of eligible activities, see Annex I of this Guide. Subsistence costs: Unit costs based on the duration of the stay of the participants. Costs for subsistence, accommodation, local and public transport such as bus and taxi, personal or optional health insurance. Based on the duration of the stay per participant.
W6: Subsistence costs for Special Mobility Strand
B7: Country | C7: PR/PA | D7: Manager | E7: Teacher/Trainer/Researcher | F7: Technical Staff | G7: Administrative Staff | I7: Distance | J7: Travel Costs (EUR) | L7: Number of Days | M7: Student | N7: Staff | P7: 100% of eligible costs Max. 30% of the total grant | S7: 100% of eligible costs Max. 10% of the total grant | W7: Country | X7: PR/PA | Y7: Students from Partner Countries (per month) | Z7: Students from Programme Countries (per month) | AA7: Staff from Partner Countries (per day) | AB7: Staff from Programme Countries (per day)
B8: =Rates!C4 -> Austria | C8: =Rates!D4 -> Programme Countries | D8: =Rates!E4 -> 294 | E8: =Rates!F4 -> 241 | F8: =Rates!G4 -> 190 | G8: =Rates!H4 -> 157 | I8: =Rates!P4 -> 0 KM and 9 KM | J8: =Rates!Q4 -> 0 | L8: 1 | M8: =L8*55 -> 55 | N8: =L8*120 -> 120 | W8: =Rates!N4 -> Austria | X8: =VLOOKUP(W8,Rates!$C$4:$L$182,2,FALSE) -> Programme Countries | Y8: =VLOOKUP(W8,Rates!$C$4:$L$182,7,FALSE) -> 850 | Z8: =VLOOKUP(W8,Rates!$C$4:$L$182,8,FALSE) -> 0 | AA8: =VLOOKUP(W8,Rates!$C$4:$L$182,9,FALSE) -> 140 | AB8: =VLOOKUP(W8,Rates!$C$4:$L$182,10,FALSE) -> 0
B9: =Rates!C5 -> Belgium | C9: =Rates!D5 -> Programme Countries | D9: =Rates!E5 -> 280 | E9: =Rates!F5 -> 214 | F9: =Rates!G5 -> 162 | G9: =Rates!H5 -> 131 | I9: =Rates!P5 -> 10 KM and 99 KM | J9: =Rates!Q5 -> 20 | L9: 2 | M9: =L9*55 -> 110 | N9: =L9*120 -> 240 | W9: =Rates!N5 -> Belgium | X9: =VLOOKUP(W9,Rates!$C$4:$L$182,2,FALSE) -> Programme Countries | Y9: =VLOOKUP(W9,Rates!$C$4:$L$182,7,FALSE) -> 800 | Z9: =VLOOKUP(W9,Rates!$C$4:$L$182,8,FALSE) -> 0 | AA9: =VLOOKUP(W9,Rates!$C$4:$L$182,9,FALSE) -> 140 | AB9: =VLOOKUP(W9,Rates!$C$4:$L$182,10,FALSE) -> 0
B10: =Rates!C6 -> Bulgaria | C10: =Rates!D6 -> Programme Countries | D10: =Rates!E6 -> 88 | E10: =Rates!F6 -> 74 | F10: =Rates!G6 -> 55 | G10: =Rates!H6 -> 39 | I10: =Rates!P6 -> 100 KM and 499 KM | J10: =Rates!Q6 -> 180 | L10: 3 | M10: 165 | N10: 360 | W10: =Rates!N6 -> Bulgaria | X10: =VLOOKUP(W10,Rates!$C$4:$L$182,2,FALSE) -> Programme Countries | Y10: =VLOOKUP(W10,Rates!$C$4:$L$182,7,FALSE) -> 750 | Z10: =VLOOKUP(W10,Rates!$C$4:$L$182,8,FALSE) -> 0 | AA10: =VLOOKUP(W10,Rates!$C$4:$L$182,9,FALSE) -> 140 | AB10: =VLOOKUP(W10,Rates!$C$4:$L$182,10,FALSE) -> 0
B11: =Rates!C7 -> Croatia | C11: =Rates!D7 -> Programme Countries | D11: =Rates!E7 -> 88 | E11: =Rates!F7 -> 74 | F11: =Rates!G7 -> 55 | G11: =Rates!H7 -> 39 | I11: =Rates!P7 -> 500 KM and 1999 KM | J11: =Rates!Q7 -> 275 | L11: 4 | M11: 220 | N11: 480 | W11: =Rates!N7 -> Croatia | X11: =VLOOKUP(W11,Rates!$C$4:$L$182,2,FALSE) -> Programme Countries | Y11: =VLOOKUP(W11,Rates!$C$4:$L$182,7,FALSE) -> 800 | Z11: =VLOOKUP(W11,Rates!$C$4:$L$182,8,FALSE) -> 0 | AA11: =VLOOKUP(W11,Rates!$C$4:$L$182,9,FALSE) -> 100 | AB11: =VLOOKUP(W11,Rates!$C$4:$L$182,10,FALSE) -> 0
B12: =Rates!C8 -> Cyprus | C12: =Rates!D8 -> Programme Countries | D12: =Rates!E8 -> 164 | E12: =Rates!F8 -> 137 | F12: =Rates!G8 -> 102 | G12: =Rates!H8 -> 78 | I12: =Rates!P8 -> 2000 KM and 2999 KM | J12: =Rates!Q8 -> 360 | L12: 5 | M12: 275 | N12: 600 | W12: =Rates!N8 -> Cyprus | X12: =VLOOKUP(W12,Rates!$C$4:$L$182,2,FALSE) -> Programme Countries | Y12: =VLOOKUP(W12,Rates!$C$4:$L$182,7,FALSE) -> 800 | Z12: =VLOOKUP(W12,Rates!$C$4:$L$182,8,FALSE) -> 0 | AA12: =VLOOKUP(W12,Rates!$C$4:$L$182,9,FALSE) -> 140 | AB12: =VLOOKUP(W12,Rates!$C$4:$L$182,10,FALSE) -> 0
B13: =Rates!C9 -> Czech Republic | C13: =Rates!D9 -> Programme Countries | D13: =Rates!E9 -> 164 | E13: =Rates!F9 -> 137 | F13: =Rates!G9 -> 102 | G13: =Rates!H9 -> 78 | I13: =Rates!P9 -> 3000 KM and 3999 KM | J13: =Rates!Q9 -> 530 | L13: 6 | M13: 330 | N13: 720 | W13: =Rates!N9 -> Czech Republic | X13: =VLOOKUP(W13,Rates!$C$4:$L$182,2,FALSE) -> Programme Countries | Y13: =VLOOKUP(W13,Rates!$C$4:$L$182,7,FALSE) -> 800 | Z13: =VLOOKUP(W13,Rates!$C$4:$L$182,8,FALSE) -> 0 | AA13: =VLOOKUP(W13,Rates!$C$4:$L$182,9,FALSE) -> 140 | AB13: =VLOOKUP(W13,Rates!$C$4:$L$182,10,FALSE) -> 0
B14: =Rates!C10 -> Denmark | C14: =Rates!D10 -> Programme Countries | D14: =Rates!E10 -> 294 | E14: =Rates!F10 -> 241 | F14: =Rates!G10 -> 190 | G14: =Rates!H10 -> 157 | I14: =Rates!P10 -> 4000 KM and 7999 KM | J14: =Rates!Q10 -> 820 | L14: 7 | M14: 385 | N14: 840 | W14: =Rates!N10 -> Denmark | X14: =VLOOKUP(W14,Rates!$C$4:$L$182,2,FALSE) -> Programme Countries | Y14: =VLOOKUP(W14,Rates!$C$4:$L$182,7,FALSE) -> 850 | Z14: =VLOOKUP(W14,Rates!$C$4:$L$182,8,FALSE) -> 0 | AA14: =VLOOKUP(W14,Rates!$C$4:$L$182,9,FALSE) -> 160 | AB14: =VLOOKUP(W14,Rates!$C$4:$L$182,10,FALSE) -> 0
B15: =Rates!C11 -> Estonia | C15: =Rates!D11 -> Programme Countries | D15: =Rates!E11 -> 88 | E15: =Rates!F11 -> 74 | F15: =Rates!G11 -> 55 | G15: =Rates!H11 -> 39 | I15: =Rates!P11 -> 8000 KM or more | J15: =Rates!Q11 -> 1100 | L15: 8 | M15: 440 | N15: 960 | W15: =Rates!N11 -> Estonia | X15: =VLOOKUP(W15,Rates!$C$4:$L$182,2,FALSE) -> Programme Countries | Y15: =VLOOKUP(W15,Rates!$C$4:$L$182,7,FALSE) -> 750 | Z15: =VLOOKUP(W15,Rates!$C$4:$L$182,8,FALSE) -> 0 | AA15: =VLOOKUP(W15,Rates!$C$4:$L$182,9,FALSE) -> 100 | AB15: =VLOOKUP(W15,Rates!$C$4:$L$182,10,FALSE) -> 0
B16: =Rates!C12 -> Finland | C16: =Rates!D12 -> Programme Countries | D16: =Rates!E12 -> 280 | E16: =Rates!F12 -> 214 | F16: =Rates!G12 -> 162 | G16: =Rates!H12 -> 131 | L16: 9 | M16: 495 | N16: 1080 | W16: =Rates!N12 -> Finland | X16: =VLOOKUP(W16,Rates!$C$4:$L$182,2,FALSE) -> Programme Countries | Y16: =VLOOKUP(W16,Rates!$C$4:$L$182,7,FALSE) -> 850 | Z16: =VLOOKUP(W16,Rates!$C$4:$L$182,8,FALSE) -> 0 | AA16: =VLOOKUP(W16,Rates!$C$4:$L$182,9,FALSE) -> 140 | AB16: =VLOOKUP(W16,Rates!$C$4:$L$182,10,FALSE) -> 0
B17: =Rates!C13 -> former Yugoslav Republic of Macedonia | C17: =Rates!D13 -> Programme Countries | D17: =Rates!E13 -> 88 | E17: =Rates!F13 -> 74 | F17: =Rates!G13 -> 55 | G17: =Rates!H13 -> 39 | L17: 10 | M17: 550 | N17: 1200 | W17: =Rates!N13 -> former Yugoslav Republic of Macedonia | X17: =VLOOKUP(W17,Rates!$C$4:$L$182,2,FALSE) -> Programme Countries | Y17: =VLOOKUP(W17,Rates!$C$4:$L$182,7,FALSE) -> 750 | Z17: =VLOOKUP(W17,Rates!$C$4:$L$182,8,FALSE) -> 0 | AA17: =VLOOKUP(W17,Rates!$C$4:$L$182,9,FALSE) -> 120 | AB17: =VLOOKUP(W17,Rates!$C$4:$L$182,10,FALSE) -> 0
B18: =Rates!C14 -> France | C18: =Rates!D14 -> Programme Countries | D18: =Rates!E14 -> 280 | E18: =Rates!F14 -> 214 | F18: =Rates!G14 -> 162 | G18: =Rates!H14 -> 131 | L18: 11 | M18: 605 | N18: 1320 | W18: =Rates!N14 -> France | X18: =VLOOKUP(W18,Rates!$C$4:$L$182,2,FALSE) -> Programme Countries | Y18: =VLOOKUP(W18,Rates!$C$4:$L$182,7,FALSE) -> 850 | Z18: =VLOOKUP(W18,Rates!$C$4:$L$182,8,FALSE) -> 0 | AA18: =VLOOKUP(W18,Rates!$C$4:$L$182,9,FALSE) -> 140 | AB18: =VLOOKUP(W18,Rates!$C$4:$L$182,10,FALSE) -> 0
B19: =Rates!C15 -> Germany | C19: =Rates!D15 -> Programme Countries | D19: =Rates!E15 -> 280 | E19: =Rates!F15 -> 214 | F19: =Rates!G15 -> 162 | G19: =Rates!H15 -> 131 | L19: 12 | M19: 660 | N19: 1440 | W19: =Rates!N15 -> Germany | X19: =VLOOKUP(W19,Rates!$C$4:$L$182,2,FALSE) -> Programme Countries | Y19: =VLOOKUP(W19,Rates!$C$4:$L$182,7,FALSE) -> 800 | Z19: =VLOOKUP(W19,Rates!$C$4:$L$182,8,FALSE) -> 0 | AA19: =VLOOKUP(W19,Rates!$C$4:$L$182,9,FALSE) -> 120 | AB19: =VLOOKUP(W19,Rates!$C$4:$L$182,10,FALSE) -> 0
B20: =Rates!C16 -> Greece | C20: =Rates!D16 -> Programme Countries | D20: =Rates!E16 -> 164 | E20: =Rates!F16 -> 137 | F20: =Rates!G16 -> 102 | G20: =Rates!H16 -> 78 | L20: 13 | M20: 715 | N20: 1560 | W20: =Rates!N16 -> Greece | X20: =VLOOKUP(W20,Rates!$C$4:$L$182,2,FALSE) -> Programme Countries | Y20: =VLOOKUP(W20,Rates!$C$4:$L$182,7,FALSE) -> 800 | Z20: =VLOOKUP(W20,Rates!$C$4:$L$182,8,FALSE) -> 0 | AA20: =VLOOKUP(W20,Rates!$C$4:$L$182,9,FALSE) -> 140 | AB20: =VLOOKUP(W20,Rates!$C$4:$L$182,10,FALSE) -> 0
B21: =Rates!C17 -> Hungary | C21: =Rates!D17 -> Programme Countries | D21: =Rates!E17 -> 88 | E21: =Rates!F17 -> 74 | F21: =Rates!G17 -> 55 | G21: =Rates!H17 -> 39 | L21: 14 | M21: 770 | N21: 1680 | W21: =Rates!N17 -> Hungary | X21: =VLOOKUP(W21,Rates!$C$4:$L$182,2,FALSE) -> Programme Countries | Y21: =VLOOKUP(W21,Rates!$C$4:$L$182,7,FALSE) -> 750 | Z21: =VLOOKUP(W21,Rates!$C$4:$L$182,8,FALSE) -> 0 | AA21: =VLOOKUP(W21,Rates!$C$4:$L$182,9,FALSE) -> 140 | AB21: =VLOOKUP(W21,Rates!$C$4:$L$182,10,FALSE) -> 0
B22: =Rates!C18 -> Iceland | C22: =Rates!D18 -> Programme Countries | D22: =Rates!E18 -> 280 | E22: =Rates!F18 -> 214 | F22: =Rates!G18 -> 162 | G22: =Rates!H18 -> 131 | L22: 15 | M22: =((L22-$L$21)*40)+770 -> 810 | N22: =((L22-$L$21)*70)+1680 -> 1750 | W22: =Rates!N18 -> Iceland | X22: =VLOOKUP(W22,Rates!$C$4:$L$182,2,FALSE) -> Programme Countries | Y22: =VLOOKUP(W22,Rates!$C$4:$L$182,7,FALSE) -> 800 | Z22: =VLOOKUP(W22,Rates!$C$4:$L$182,8,FALSE) -> 0 | AA22: =VLOOKUP(W22,Rates!$C$4:$L$182,9,FALSE) -> 140 | AB22: =VLOOKUP(W22,Rates!$C$4:$L$182,10,FALSE) -> 0
B23: =Rates!C19 -> Ireland | C23: =Rates!D19 -> Programme Countries | D23: =Rates!E19 -> 294 | E23: =Rates!F19 -> 241 | F23: =Rates!G19 -> 190 | G23: =Rates!H19 -> 157 | L23: 16 | M23: =((L23-$L$21)*40)+770 -> 850 | N23: =((L23-$L$21)*70)+1680 -> 1820 | W23: =Rates!N19 -> Ireland | X23: =VLOOKUP(W23,Rates!$C$4:$L$182,2,FALSE) -> Programme Countries | Y23: =VLOOKUP(W23,Rates!$C$4:$L$182,7,FALSE) -> 850 | Z23: =VLOOKUP(W23,Rates!$C$4:$L$182,8,FALSE) -> 0 | AA23: =VLOOKUP(W23,Rates!$C$4:$L$182,9,FALSE) -> 160 | AB23: =VLOOKUP(W23,Rates!$C$4:$L$182,10,FALSE) -> 0
B24: =Rates!C20 -> Italy | C24: =Rates!D20 -> Programme Countries | D24: =Rates!E20 -> 280 | E24: =Rates!F20 -> 214 | F24: =Rates!G20 -> 162 | G24: =Rates!H20 -> 131 | L24: 17 | M24: 890 | N24: 1890 | W24: =Rates!N20 -> Italy | X24: =VLOOKUP(W24,Rates!$C$4:$L$182,2,FALSE) -> Programme Countries | Y24: =VLOOKUP(W24,Rates!$C$4:$L$182,7,FALSE) -> 850 | Z24: =VLOOKUP(W24,Rates!$C$4:$L$182,8,FALSE) -> 0 | AA24: =VLOOKUP(W24,Rates!$C$4:$L$182,9,FALSE) -> 140 | AB24: =VLOOKUP(W24,Rates!$C$4:$L$182,10,FALSE) -> 0
B25: =Rates!C21 -> Latvia | C25: =Rates!D21 -> Programme Countries | D25: =Rates!E21 -> 88 | E25: =Rates!F21 -> 74 | F25: =Rates!G21 -> 55 | G25: =Rates!H21 -> 39 | L25: 18 | M25: 930 | N25: 1960 | W25: =Rates!N21 -> Latvia | X25: =VLOOKUP(W25,Rates!$C$4:$L$182,2,FALSE) -> Programme Countries | Y25: =VLOOKUP(W25,Rates!$C$4:$L$182,7,FALSE) -> 750 | Z25: =VLOOKUP(W25,Rates!$C$4:$L$182,8,FALSE) -> 0 | AA25: =VLOOKUP(W25,Rates!$C$4:$L$182,9,FALSE) -> 120 | AB25: =VLOOKUP(W25,Rates!$C$4:$L$182,10,FALSE) -> 0
B26: =Rates!C22 -> Liechtenstein | C26: =Rates!D22 -> Programme Countries | D26: =Rates!E22 -> 294 | E26: =Rates!F22 -> 241 | F26: =Rates!G22 -> 190 | G26: =Rates!H22 -> 157 | L26: 19 | M26: 970 | N26: 2030 | W26: =Rates!N22 -> Liechtenstein | X26: =VLOOKUP(W26,Rates!$C$4:$L$182,2,FALSE) -> Programme Countries | Y26: =VLOOKUP(W26,Rates!$C$4:$L$182,7,FALSE) -> 850 | Z26: =VLOOKUP(W26,Rates!$C$4:$L$182,8,FALSE) -> 0 | AA26: =VLOOKUP(W26,Rates!$C$4:$L$182,9,FALSE) -> 140 | AB26: =VLOOKUP(W26,Rates!$C$4:$L$182,10,FALSE) -> 0
B27: =Rates!C23 -> Lithuania | C27: =Rates!D23 -> Programme Countries | D27: =Rates!E23 -> 88 | E27: =Rates!F23 -> 74 | F27: =Rates!G23 -> 55 | G27: =Rates!H23 -> 39 | L27: 20 | M27: 1010 | N27: 2100 | W27: =Rates!N23 -> Lithuania | X27: =VLOOKUP(W27,Rates!$C$4:$L$182,2,FALSE) -> Programme Countries | Y27: =VLOOKUP(W27,Rates!$C$4:$L$182,7,FALSE) -> 750 | Z27: =VLOOKUP(W27,Rates!$C$4:$L$182,8,FALSE) -> 0 | AA27: =VLOOKUP(W27,Rates!$C$4:$L$182,9,FALSE) -> 100 | AB27: =VLOOKUP(W27,Rates!$C$4:$L$182,10,FALSE) -> 0
B28: =Rates!C24 -> Luxembourg | C28: =Rates!D24 -> Programme Countries | D28: =Rates!E24 -> 294 | E28: =Rates!F24 -> 241 | F28: =Rates!G24 -> 190 | G28: =Rates!H24 -> 157 | L28: 21 | M28: 1050 | N28: 2170 | W28: =Rates!N24 -> Luxembourg | X28: =VLOOKUP(W28,Rates!$C$4:$L$182,2,FALSE) -> Programme Countries | Y28: =VLOOKUP(W28,Rates!$C$4:$L$182,7,FALSE) -> 800 | Z28: =VLOOKUP(W28,Rates!$C$4:$L$182,8,FALSE) -> 0 | AA28: =VLOOKUP(W28,Rates!$C$4:$L$182,9,FALSE) -> 140 | AB28: =VLOOKUP(W28,Rates!$C$4:$L$182,10,FALSE) -> 0
B29: =Rates!C25 -> Malta | C29: =Rates!D25 -> Programme Countries | D29: =Rates!E25 -> 164 | E29: =Rates!F25 -> 137 | F29: =Rates!G25 -> 102 | G29: =Rates!H25 -> 78 | L29: 22 | M29: 1090 | N29: 2240 | W29: =Rates!N25 -> Malta | X29: =VLOOKUP(W29,Rates!$C$4:$L$182,2,FALSE) -> Programme Countries | Y29: =VLOOKUP(W29,Rates!$C$4:$L$182,7,FALSE) -> 750 | Z29: =VLOOKUP(W29,Rates!$C$4:$L$182,8,FALSE) -> 0 | AA29: =VLOOKUP(W29,Rates!$C$4:$L$182,9,FALSE) -> 120 | AB29: =VLOOKUP(W29,Rates!$C$4:$L$182,10,FALSE) -> 0
B30: =Rates!C26 -> Netherlands | C30: =Rates!D26 -> Programme Countries | D30: =Rates!E26 -> 294 | E30: =Rates!F26 -> 241 | F30: =Rates!G26 -> 190 | G30: =Rates!H26 -> 157 | L30: 23 | M30: 1130 | N30: 2310 | W30: =Rates!N26 -> Netherlands | X30: =VLOOKUP(W30,Rates!$C$4:$L$182,2,FALSE) -> Programme Countries | Y30: =VLOOKUP(W30,Rates!$C$4:$L$182,7,FALSE) -> 800 | Z30: =VLOOKUP(W30,Rates!$C$4:$L$182,8,FALSE) -> 0 | AA30: =VLOOKUP(W30,Rates!$C$4:$L$182,9,FALSE) -> 160 | AB30: =VLOOKUP(W30,Rates!$C$4:$L$182,10,FALSE) -> 0
B31: =Rates!C27 -> Norway | C31: =Rates!D27 -> Programme Countries | D31: =Rates!E27 -> 294 | E31: =Rates!F27 -> 241 | F31: =Rates!G27 -> 190 | G31: =Rates!H27 -> 157 | L31: 24 | M31: 1170 | N31: 2380 | W31: =Rates!N27 -> Norway | X31: =VLOOKUP(W31,Rates!$C$4:$L$182,2,FALSE) -> Programme Countries | Y31: =VLOOKUP(W31,Rates!$C$4:$L$182,7,FALSE) -> 850 | Z31: =VLOOKUP(W31,Rates!$C$4:$L$182,8,FALSE) -> 0 | AA31: =VLOOKUP(W31,Rates!$C$4:$L$182,9,FALSE) -> 140 | AB31: =VLOOKUP(W31,Rates!$C$4:$L$182,10,FALSE) -> 0
B32: =Rates!C28 -> Poland | C32: =Rates!D28 -> Programme Countries | D32: =Rates!E28 -> 88 | E32: =Rates!F28 -> 74 | F32: =Rates!G28 -> 55 | G32: =Rates!H28 -> 39 | L32: 25 | M32: 1210 | N32: 2450 | W32: =Rates!N28 -> Poland | X32: =VLOOKUP(W32,Rates!$C$4:$L$182,2,FALSE) -> Programme Countries | Y32: =VLOOKUP(W32,Rates!$C$4:$L$182,7,FALSE) -> 750 | Z32: =VLOOKUP(W32,Rates!$C$4:$L$182,8,FALSE) -> 0 | AA32: =VLOOKUP(W32,Rates!$C$4:$L$182,9,FALSE) -> 140 | AB32: =VLOOKUP(W32,Rates!$C$4:$L$182,10,FALSE) -> 0
B33: =Rates!C29 -> Portugal | C33: =Rates!D29 -> Programme Countries | D33: =Rates!E29 -> 164 | E33: =Rates!F29 -> 137 | F33: =Rates!G29 -> 102 | G33: =Rates!H29 -> 78 | L33: 26 | M33: 1250 | N33: 2520 | W33: =Rates!N29 -> Portugal | X33: =VLOOKUP(W33,Rates!$C$4:$L$182,2,FALSE) -> Programme Countries | Y33: =VLOOKUP(W33,Rates!$C$4:$L$182,7,FALSE) -> 800 | Z33: =VLOOKUP(W33,Rates!$C$4:$L$182,8,FALSE) -> 0 | AA33: =VLOOKUP(W33,Rates!$C$4:$L$182,9,FALSE) -> 120 | AB33: =VLOOKUP(W33,Rates!$C$4:$L$182,10,FALSE) -> 0
B34: =Rates!C30 -> Romania | C34: =Rates!D30 -> Programme Countries | D34: =Rates!E30 -> 88 | E34: =Rates!F30 -> 74 | F34: =Rates!G30 -> 55 | G34: =Rates!H30 -> 39 | L34: 27 | M34: 1290 | N34: 2590 | W34: =Rates!N30 -> Romania | X34: =VLOOKUP(W34,Rates!$C$4:$L$182,2,FALSE) -> Programme Countries | Y34: =VLOOKUP(W34,Rates!$C$4:$L$182,7,FALSE) -> 750 | Z34: =VLOOKUP(W34,Rates!$C$4:$L$182,8,FALSE) -> 0 | AA34: =VLOOKUP(W34,Rates!$C$4:$L$182,9,FALSE) -> 140 | AB34: =VLOOKUP(W34,Rates!$C$4:$L$182,10,FALSE) -> 0
B35: =Rates!C31 -> Slovakia | C35: =Rates!D31 -> Programme Countries | D35: =Rates!E31 -> 88 | E35: =Rates!F31 -> 74 | F35: =Rates!G31 -> 55 | G35: =Rates!H31 -> 39 | L35: 28 | M35: 1330 | N35: 2660 | W35: =Rates!N31 -> Slovakia | X35: =VLOOKUP(W35,Rates!$C$4:$L$182,2,FALSE) -> Programme Countries | Y35: =VLOOKUP(W35,Rates!$C$4:$L$182,7,FALSE) -> 750 | Z35: =VLOOKUP(W35,Rates!$C$4:$L$182,8,FALSE) -> 0 | AA35: =VLOOKUP(W35,Rates!$C$4:$L$182,9,FALSE) -> 120 | AB35: =VLOOKUP(W35,Rates!$C$4:$L$182,10,FALSE) -> 0
B36: =Rates!C32 -> Slovenia | C36: =Rates!D32 -> Programme Countries | D36: =Rates!E32 -> 164 | E36: =Rates!F32 -> 137 | F36: =Rates!G32 -> 102 | G36: =Rates!H32 -> 78 | L36: 29 | M36: 1370 | N36: 2730 | W36: =Rates!N32 -> Slovenia | X36: =VLOOKUP(W36,Rates!$C$4:$L$182,2,FALSE) -> Programme Countries | Y36: =VLOOKUP(W36,Rates!$C$4:$L$182,7,FALSE) -> 800 | Z36: =VLOOKUP(W36,Rates!$C$4:$L$182,8,FALSE) -> 0 | AA36: =VLOOKUP(W36,Rates!$C$4:$L$182,9,FALSE) -> 100 | AB36: =VLOOKUP(W36,Rates!$C$4:$L$182,10,FALSE) -> 0
B37: =Rates!C33 -> Spain | C37: =Rates!D33 -> Programme Countries | D37: =Rates!E33 -> 164 | E37: =Rates!F33 -> 137 | F37: =Rates!G33 -> 102 | G37: =Rates!H33 -> 78 | L37: 30 | M37: 1410 | N37: 2800 | W37: =Rates!N33 -> Spain | X37: =VLOOKUP(W37,Rates!$C$4:$L$182,2,FALSE) -> Programme Countries | Y37: =VLOOKUP(W37,Rates!$C$4:$L$182,7,FALSE) -> 800 | Z37: =VLOOKUP(W37,Rates!$C$4:$L$182,8,FALSE) -> 0 | AA37: =VLOOKUP(W37,Rates!$C$4:$L$182,9,FALSE) -> 120 | AB37: =VLOOKUP(W37,Rates!$C$4:$L$182,10,FALSE) -> 0
B38: =Rates!C34 -> Sweden | C38: =Rates!D34 -> Programme Countries | D38: =Rates!E34 -> 294 | E38: =Rates!F34 -> 241 | F38: =Rates!G34 -> 190 | G38: =Rates!H34 -> 157 | L38: 31 | M38: 1450 | N38: 2870 | W38: =Rates!N34 -> Sweden | X38: =VLOOKUP(W38,Rates!$C$4:$L$182,2,FALSE) -> Programme Countries | Y38: =VLOOKUP(W38,Rates!$C$4:$L$182,7,FALSE) -> 850 | Z38: =VLOOKUP(W38,Rates!$C$4:$L$182,8,FALSE) -> 0 | AA38: =VLOOKUP(W38,Rates!$C$4:$L$182,9,FALSE) -> 160 | AB38: =VLOOKUP(W38,Rates!$C$4:$L$182,10,FALSE) -> 0
B39: =Rates!C35 -> Turkey | C39: =Rates!D35 -> Programme Countries | D39: =Rates!E35 -> 88 | E39: =Rates!F35 -> 74 | F39: =Rates!G35 -> 55 | G39: =Rates!H35 -> 39 | L39: 32 | M39: 1490 | N39: 2940 | W39: =Rates!N35 -> Turkey | X39: =VLOOKUP(W39,Rates!$C$4:$L$182,2,FALSE) -> Programme Countries | Y39: =VLOOKUP(W39,Rates!$C$4:$L$182,7,FALSE) -> 800 | Z39: =VLOOKUP(W39,Rates!$C$4:$L$182,8,FALSE) -> 0 | AA39: =VLOOKUP(W39,Rates!$C$4:$L$182,9,FALSE) -> 140 | AB39: =VLOOKUP(W39,Rates!$C$4:$L$182,10,FALSE) -> 0
B40: =Rates!C36 -> United Kingdom | C40: =Rates!D36 -> Programme Countries | D40: =Rates!E36 -> 280 | E40: =Rates!F36 -> 214 | F40: =Rates!G36 -> 162 | G40: =Rates!H36 -> 131 | L40: 33 | M40: 1530 | N40: 3010 | W40: =Rates!N36 -> United Kingdom | X40: =VLOOKUP(W40,Rates!$C$4:$L$182,2,FALSE) -> Programme Countries | Y40: =VLOOKUP(W40,Rates!$C$4:$L$182,7,FALSE) -> 850 | Z40: =VLOOKUP(W40,Rates!$C$4:$L$182,8,FALSE) -> 0 | AA40: =VLOOKUP(W40,Rates!$C$4:$L$182,9,FALSE) -> 160 | AB40: =VLOOKUP(W40,Rates!$C$4:$L$182,10,FALSE) -> 0
B41: =Rates!C37 -> Afghanistan | C41: =Rates!D37 -> Partner Countries | D41: =Rates!E37 -> 77 | E41: =Rates!F37 -> 57 | F41: =Rates!G37 -> 40 | G41: =Rates!H37 -> 32 | L41: 34 | M41: 1570 | N41: 3080 | W41: =Rates!N37 -> Albania | X41: =VLOOKUP(W41,Rates!$C$4:$L$182,2,FALSE) -> Partner Countries | Y41: =VLOOKUP(W41,Rates!$C$4:$L$182,7,FALSE) -> 750 | Z41: =VLOOKUP(W41,Rates!$C$4:$L$182,8,FALSE) -> 650 | AA41: =VLOOKUP(W41,Rates!$C$4:$L$182,9,FALSE) -> 100 | AB41: =VLOOKUP(W41,Rates!$C$4:$L$182,10,FALSE) -> 160
B42: =Rates!C38 -> Albania | C42: =Rates!D38 -> Partner Countries | D42: =Rates!E38 -> 108 | E42: =Rates!F38 -> 80 | F42: =Rates!G38 -> 57 | G42: =Rates!H38 -> 45 | L42: 35 | M42: 1610 | N42: 3150 | W42: =Rates!N38 -> Algeria | X42: =VLOOKUP(W42,Rates!$C$4:$L$182,2,FALSE) -> Partner Countries | Y42: =VLOOKUP(W42,Rates!$C$4:$L$182,7,FALSE) -> 750 | Z42: =VLOOKUP(W42,Rates!$C$4:$L$182,8,FALSE) -> 650 | AA42: =VLOOKUP(W42,Rates!$C$4:$L$182,9,FALSE) -> 100 | AB42: =VLOOKUP(W42,Rates!$C$4:$L$182,10,FALSE) -> 160
B43: =Rates!C39 -> Algeria | C43: =Rates!D39 -> Partner Countries | D43: =Rates!E39 -> 47 | E43: =Rates!F39 -> 33 | F43: =Rates!G39 -> 22 | G43: =Rates!H39 -> 17 | L43: 36 | M43: 1650 | N43: 3220 | W43: =Rates!N39 -> Armenia | X43: =VLOOKUP(W43,Rates!$C$4:$L$182,2,FALSE) -> Partner Countries | Y43: =VLOOKUP(W43,Rates!$C$4:$L$182,7,FALSE) -> 750 | Z43: =VLOOKUP(W43,Rates!$C$4:$L$182,8,FALSE) -> 650 | AA43: =VLOOKUP(W43,Rates!$C$4:$L$182,9,FALSE) -> 100 | AB43: =VLOOKUP(W43,Rates!$C$4:$L$182,10,FALSE) -> 160
B44: =Rates!C40 -> Angola | C44: =Rates!D40 -> Partner Countries | D44: =Rates!E40 -> 108 | E44: =Rates!F40 -> 80 | F44: =Rates!G40 -> 57 | G44: =Rates!H40 -> 45 | L44: 37 | M44: 1690 | N44: 3290 | W44: =Rates!N40 -> Azerbaijan | X44: =VLOOKUP(W44,Rates!$C$4:$L$182,2,FALSE) -> Partner Countries | Y44: =VLOOKUP(W44,Rates!$C$4:$L$182,7,FALSE) -> 750 | Z44: =VLOOKUP(W44,Rates!$C$4:$L$182,8,FALSE) -> 650 | AA44: =VLOOKUP(W44,Rates!$C$4:$L$182,9,FALSE) -> 100 | AB44: =VLOOKUP(W44,Rates!$C$4:$L$182,10,FALSE) -> 160
B45: =Rates!C41 -> Antigua and Barbuda | C45: =Rates!D41 -> Partner Countries | D45: =Rates!E41 -> 108 | E45: =Rates!F41 -> 80 | F45: =Rates!G41 -> 57 | G45: =Rates!H41 -> 45 | L45: 38 | M45: 1730 | N45: 3360 | W45: =Rates!N41 -> Belarus | X45: =VLOOKUP(W45,Rates!$C$4:$L$182,2,FALSE) -> Partner Countries | Y45: =VLOOKUP(W45,Rates!$C$4:$L$182,7,FALSE) -> 750 | Z45: =VLOOKUP(W45,Rates!$C$4:$L$182,8,FALSE) -> 650 | AA45: =VLOOKUP(W45,Rates!$C$4:$L$182,9,FALSE) -> 100 | AB45: =VLOOKUP(W45,Rates!$C$4:$L$182,10,FALSE) -> 160
B46: =Rates!C42 -> Argentina | C46: =Rates!D42 -> Partner Countries | D46: =Rates!E42 -> 108 | E46: =Rates!F42 -> 80 | F46: =Rates!G42 -> 57 | G46: =Rates!H42 -> 45 | L46: 39 | M46: 1770 | N46: 3430 | W46: =Rates!N42 -> Bosnia and Herzegovina | X46: =VLOOKUP(W46,Rates!$C$4:$L$182,2,FALSE) -> Partner Countries | Y46: =VLOOKUP(W46,Rates!$C$4:$L$182,7,FALSE) -> 750 | Z46: =VLOOKUP(W46,Rates!$C$4:$L$182,8,FALSE) -> 650 | AA46: =VLOOKUP(W46,Rates!$C$4:$L$182,9,FALSE) -> 100 | AB46: =VLOOKUP(W46,Rates!$C$4:$L$182,10,FALSE) -> 160
B47: =Rates!C43 -> Armenia | C47: =Rates!D43 -> Partner Countries | D47: =Rates!E43 -> 47 | E47: =Rates!F43 -> 33 | F47: =Rates!G43 -> 22 | G47: =Rates!H43 -> 17 | L47: 40 | M47: 1810 | N47: 3500 | W47: =Rates!N43 -> Egypt | X47: =VLOOKUP(W47,Rates!$C$4:$L$182,2,FALSE) -> Partner Countries | Y47: =VLOOKUP(W47,Rates!$C$4:$L$182,7,FALSE) -> 750 | Z47: =VLOOKUP(W47,Rates!$C$4:$L$182,8,FALSE) -> 650 | AA47: =VLOOKUP(W47,Rates!$C$4:$L$182,9,FALSE) -> 100 | AB47: =VLOOKUP(W47,Rates!$C$4:$L$182,10,FALSE) -> 160
B48: =Rates!C44 -> Azerbaijan | C48: =Rates!D44 -> Partner Countries | D48: =Rates!E44 -> 77 | E48: =Rates!F44 -> 57 | F48: =Rates!G44 -> 40 | G48: =Rates!H44 -> 32 | L48: 41 | M48: 1850 | N48: 3570 | W48: =Rates!N44 -> Georgia | X48: =VLOOKUP(W48,Rates!$C$4:$L$182,2,FALSE) -> Partner Countries | Y48: =VLOOKUP(W48,Rates!$C$4:$L$182,7,FALSE) -> 750 | Z48: =VLOOKUP(W48,Rates!$C$4:$L$182,8,FALSE) -> 650 | AA48: =VLOOKUP(W48,Rates!$C$4:$L$182,9,FALSE) -> 100 | AB48: =VLOOKUP(W48,Rates!$C$4:$L$182,10,FALSE) -> 160
B49: =Rates!C45 -> Bahamas | C49: =Rates!D45 -> Partner Countries | D49: =Rates!E45 -> 77 | E49: =Rates!F45 -> 57 | F49: =Rates!G45 -> 40 | G49: =Rates!H45 -> 32 | L49: 42 | M49: 1890 | N49: 3640 | W49: =Rates!N45 -> Israel | X49: =VLOOKUP(W49,Rates!$C$4:$L$182,2,FALSE) -> Partner Countries | Y49: =VLOOKUP(W49,Rates!$C$4:$L$182,7,FALSE) -> 750 | Z49: =VLOOKUP(W49,Rates!$C$4:$L$182,8,FALSE) -> 650 | AA49: =VLOOKUP(W49,Rates!$C$4:$L$182,9,FALSE) -> 100 | AB49: =VLOOKUP(W49,Rates!$C$4:$L$182,10,FALSE) -> 160
B50: =Rates!C46 -> Bangladesh | C50: =Rates!D46 -> Partner Countries | D50: =Rates!E46 -> 47 | E50: =Rates!F46 -> 33 | F50: =Rates!G46 -> 22 | G50: =Rates!H46 -> 17 | L50: 43 | M50: 1930 | N50: 3710 | W50: =Rates!N46 -> Jordan | X50: =VLOOKUP(W50,Rates!$C$4:$L$182,2,FALSE) -> Partner Countries | Y50: =VLOOKUP(W50,Rates!$C$4:$L$182,7,FALSE) -> 750 | Z50: =VLOOKUP(W50,Rates!$C$4:$L$182,8,FALSE) -> 650 | AA50: =VLOOKUP(W50,Rates!$C$4:$L$182,9,FALSE) -> 100 | AB50: =VLOOKUP(W50,Rates!$C$4:$L$182,10,FALSE) -> 160
B51: =Rates!C47 -> Barbados | C51: =Rates!D47 -> Partner Countries | D51: =Rates!E47 -> 108 | E51: =Rates!F47 -> 80 | F51: =Rates!G47 -> 57 | G51: =Rates!H47 -> 45 | L51: 44 | M51: 1970 | N51: 3780 | W51: =Rates!N47 -> Kosovo | X51: =VLOOKUP(W51,Rates!$C$4:$L$182,2,FALSE) -> Partner Countries | Y51: =VLOOKUP(W51,Rates!$C$4:$L$182,7,FALSE) -> 750 | Z51: =VLOOKUP(W51,Rates!$C$4:$L$182,8,FALSE) -> 650 | AA51: =VLOOKUP(W51,Rates!$C$4:$L$182,9,FALSE) -> 100 | AB51: =VLOOKUP(W51,Rates!$C$4:$L$182,10,FALSE) -> 160
B52: =Rates!C48 -> Belarus | C52: =Rates!D48 -> Partner Countries | D52: =Rates!E48 -> 47 | E52: =Rates!F48 -> 33 | F52: =Rates!G48 -> 22 | G52: =Rates!H48 -> 17 | L52: 45 | M52: 2010 | N52: 3850 | W52: =Rates!N48 -> Lebanon | X52: =VLOOKUP(W52,Rates!$C$4:$L$182,2,FALSE) -> Partner Countries | Y52: =VLOOKUP(W52,Rates!$C$4:$L$182,7,FALSE) -> 750 | Z52: =VLOOKUP(W52,Rates!$C$4:$L$182,8,FALSE) -> 650 | AA52: =VLOOKUP(W52,Rates!$C$4:$L$182,9,FALSE) -> 100 | AB52: =VLOOKUP(W52,Rates!$C$4:$L$182,10,FALSE) -> 160
B53: =Rates!C49 -> Belize | C53: =Rates!D49 -> Partner Countries | D53: =Rates!E49 -> 47 | E53: =Rates!F49 -> 33 | F53: =Rates!G49 -> 22 | G53: =Rates!H49 -> 17 | L53: 46 | M53: 2050 | N53: 3920 | W53: =Rates!N49 -> Libya | X53: =VLOOKUP(W53,Rates!$C$4:$L$182,2,FALSE) -> Partner Countries | Y53: =VLOOKUP(W53,Rates!$C$4:$L$182,7,FALSE) -> 750 | Z53: =VLOOKUP(W53,Rates!$C$4:$L$182,8,FALSE) -> 650 | AA53: =VLOOKUP(W53,Rates!$C$4:$L$182,9,FALSE) -> 100 | AB53: =VLOOKUP(W53,Rates!$C$4:$L$182,10,FALSE) -> 160
B54: =Rates!C50 -> Benin | C54: =Rates!D50 -> Partner Countries | D54: =Rates!E50 -> 47 | E54: =Rates!F50 -> 33 | F54: =Rates!G50 -> 22 | G54: =Rates!H50 -> 17 | L54: 47 | M54: 2090 | N54: 3990 | W54: =Rates!N50 -> Moldova | X54: =VLOOKUP(W54,Rates!$C$4:$L$182,2,FALSE) -> Partner Countries | Y54: =VLOOKUP(W54,Rates!$C$4:$L$182,7,FALSE) -> 750 | Z54: =VLOOKUP(W54,Rates!$C$4:$L$182,8,FALSE) -> 650 | AA54: =VLOOKUP(W54,Rates!$C$4:$L$182,9,FALSE) -> 100 | AB54: =VLOOKUP(W54,Rates!$C$4:$L$182,10,FALSE) -> 160
B55: =Rates!C51 -> Bhutan | C55: =Rates!D51 -> Partner Countries | D55: =Rates!E51 -> 47 | E55: =Rates!F51 -> 33 | F55: =Rates!G51 -> 22 | G55: =Rates!H51 -> 17 | L55: 48 | M55: 2130 | N55: 4060 | W55: =Rates!N51 -> Montenegro | X55: =VLOOKUP(W55,Rates!$C$4:$L$182,2,FALSE) -> Partner Countries | Y55: =VLOOKUP(W55,Rates!$C$4:$L$182,7,FALSE) -> 750 | Z55: =VLOOKUP(W55,Rates!$C$4:$L$182,8,FALSE) -> 650 | AA55: =VLOOKUP(W55,Rates!$C$4:$L$182,9,FALSE) -> 100 | AB55: =VLOOKUP(W55,Rates!$C$4:$L$182,10,FALSE) -> 160
B56: =Rates!C52 -> Bolivia | C56: =Rates!D52 -> Partner Countries | D56: =Rates!E52 -> 77 | E56: =Rates!F52 -> 57 | F56: =Rates!G52 -> 40 | G56: =Rates!H52 -> 32 | L56: 49 | M56: 2170 | N56: 4130 | W56: =Rates!N52 -> Morocco | X56: =VLOOKUP(W56,Rates!$C$4:$L$182,2,FALSE) -> Partner Countries | Y56: =VLOOKUP(W56,Rates!$C$4:$L$182,7,FALSE) -> 750 | Z56: =VLOOKUP(W56,Rates!$C$4:$L$182,8,FALSE) -> 650 | AA56: =VLOOKUP(W56,Rates!$C$4:$L$182,9,FALSE) -> 100 | AB56: =VLOOKUP(W56,Rates!$C$4:$L$182,10,FALSE) -> 160
B57: =Rates!C53 -> Bosnia and Herzegovina | C57: =Rates!D53 -> Partner Countries | D57: =Rates!E53 -> 108 | E57: =Rates!F53 -> 80 | F57: =Rates!G53 -> 57 | G57: =Rates!H53 -> 45 | L57: 50 | M57: 2210 | N57: 4200 | W57: =Rates!N53 -> Palestine | X57: =VLOOKUP(W57,Rates!$C$4:$L$182,2,FALSE) -> Partner Countries | Y57: =VLOOKUP(W57,Rates!$C$4:$L$182,7,FALSE) -> 750 | Z57: =VLOOKUP(W57,Rates!$C$4:$L$182,8,FALSE) -> 650 | AA57: =VLOOKUP(W57,Rates!$C$4:$L$182,9,FALSE) -> 100 | AB57: =VLOOKUP(W57,Rates!$C$4:$L$182,10,FALSE) -> 160
B58: =Rates!C54 -> Botswana | C58: =Rates!D54 -> Partner Countries | D58: =Rates!E54 -> 47 | E58: =Rates!F54 -> 33 | F58: =Rates!G54 -> 22 | G58: =Rates!H54 -> 17 | L58: 51 | M58: 2250 | N58: 4270 | W58: =Rates!N54 -> Serbia | X58: =VLOOKUP(W58,Rates!$C$4:$L$182,2,FALSE) -> Partner Countries | Y58: =VLOOKUP(W58,Rates!$C$4:$L$182,7,FALSE) -> 750 | Z58: =VLOOKUP(W58,Rates!$C$4:$L$182,8,FALSE) -> 650 | AA58: =VLOOKUP(W58,Rates!$C$4:$L$182,9,FALSE) -> 100 | AB58: =VLOOKUP(W58,Rates!$C$4:$L$182,10,FALSE) -> 160
B59: =Rates!C55 -> Brazil | C59: =Rates!D55 -> Partner Countries | D59: =Rates!E55 -> 108 | E59: =Rates!F55 -> 80 | F59: =Rates!G55 -> 57 | G59: =Rates!H55 -> 45 | L59: 52 | M59: 2290 | N59: 4340 | W59: =Rates!N55 -> Syria | X59: =VLOOKUP(W59,Rates!$C$4:$L$182,2,FALSE) -> Partner Countries | Y59: =VLOOKUP(W59,Rates!$C$4:$L$182,7,FALSE) -> 750 | Z59: =VLOOKUP(W59,Rates!$C$4:$L$182,8,FALSE) -> 650 | AA59: =VLOOKUP(W59,Rates!$C$4:$L$182,9,FALSE) -> 100 | AB59: =VLOOKUP(W59,Rates!$C$4:$L$182,10,FALSE) -> 160
B60: =Rates!C56 -> Burkina Faso | C60: =Rates!D56 -> Partner Countries | D60: =Rates!E56 -> 77 | E60: =Rates!F56 -> 57 | F60: =Rates!G56 -> 40 | G60: =Rates!H56 -> 32 | L60: 53 | M60: 2330 | N60: 4410 | W60: =Rates!N56 -> Tunisia | X60: =VLOOKUP(W60,Rates!$C$4:$L$182,2,FALSE) -> Partner Countries | Y60: =VLOOKUP(W60,Rates!$C$4:$L$182,7,FALSE) -> 750 | Z60: =VLOOKUP(W60,Rates!$C$4:$L$182,8,FALSE) -> 650 | AA60: =VLOOKUP(W60,Rates!$C$4:$L$182,9,FALSE) -> 100 | AB60: =VLOOKUP(W60,Rates!$C$4:$L$182,10,FALSE) -> 160
B61: =Rates!C57 -> Burundi | C61: =Rates!D57 -> Partner Countries | D61: =Rates!E57 -> 47 | E61: =Rates!F57 -> 33 | F61: =Rates!G57 -> 22 | G61: =Rates!H57 -> 17 | L61: 54 | M61: 2370 | N61: 4480 | W61: =Rates!N57 -> Ukraine | X61: =VLOOKUP(W61,Rates!$C$4:$L$182,2,FALSE) -> Partner Countries | Y61: =VLOOKUP(W61,Rates!$C$4:$L$182,7,FALSE) -> 750 | Z61: =VLOOKUP(W61,Rates!$C$4:$L$182,8,FALSE) -> 650 | AA61: =VLOOKUP(W61,Rates!$C$4:$L$182,9,FALSE) -> 100 | AB61: =VLOOKUP(W61,Rates!$C$4:$L$182,10,FALSE) -> 160
B62: =Rates!C58 -> Cambodia | C62: =Rates!D58 -> Partner Countries | D62: =Rates!E58 -> 47 | E62: =Rates!F58 -> 33 | F62: =Rates!G58 -> 22 | G62: =Rates!H58 -> 17 | L62: 55 | M62: 2410 | N62: 4550
B63: =Rates!C59 -> Cameroon | C63: =Rates!D59 -> Partner Countries | D63: =Rates!E59 -> 77 | E63: =Rates!F59 -> 57 | F63: =Rates!G59 -> 40 | G63: =Rates!H59 -> 32 | L63: 56 | M63: 2450 | N63: 4620
B64: =Rates!C60 -> Cape Verde | C64: =Rates!D60 -> Partner Countries | D64: =Rates!E60 -> 47 | E64: =Rates!F60 -> 33 | F64: =Rates!G60 -> 22 | G64: =Rates!H60 -> 17 | L64: 57 | M64: 2490 | N64: 4690
B65: =Rates!C61 -> Central African Republic | C65: =Rates!D61 -> Partner Countries | D65: =Rates!E61 -> 47 | E65: =Rates!F61 -> 33 | F65: =Rates!G61 -> 22 | G65: =Rates!H61 -> 17 | L65: 58 | M65: 2530 | N65: 4760
B66: =Rates!C62 -> Chad | C66: =Rates!D62 -> Partner Countries | D66: =Rates!E62 -> 47 | E66: =Rates!F62 -> 33 | F66: =Rates!G62 -> 22 | G66: =Rates!H62 -> 17 | L66: 59 | M66: 2570 | N66: 4830
B67: =Rates!C63 -> Chile | C67: =Rates!D63 -> Partner Countries | D67: =Rates!E63 -> 108 | E67: =Rates!F63 -> 80 | F67: =Rates!G63 -> 57 | G67: =Rates!H63 -> 45 | L67: 60 | M67: 2610 | N67: 4900
B68: =Rates!C64 -> China | C68: =Rates!D64 -> Partner Countries | D68: =Rates!E64 -> 77 | E68: =Rates!F64 -> 57 | F68: =Rates!G64 -> 40 | G68: =Rates!H64 -> 32 | L68: 61 | M68: 2650 | N68: =((L68-$L$67)*50)+4900 -> 4950
B69: =Rates!C65 -> Colombia | C69: =Rates!D65 -> Partner Countries | D69: =Rates!E65 -> 108 | E69: =Rates!F65 -> 80 | F69: =Rates!G65 -> 57 | G69: =Rates!H65 -> 45 | L69: 62 | M69: 2690 | N69: =((L69-$L$67)*50)+4900 -> 5000
B70: =Rates!C66 -> Comoros | C70: =Rates!D66 -> Partner Countries | D70: =Rates!E66 -> 108 | E70: =Rates!F66 -> 80 | F70: =Rates!G66 -> 57 | G70: =Rates!H66 -> 45 | L70: 63 | M70: 2730 | N70: 5050
B71: =Rates!C67 -> Congo | C71: =Rates!D67 -> Partner Countries | D71: =Rates!E67 -> 77 | E71: =Rates!F67 -> 57 | F71: =Rates!G67 -> 40 | G71: =Rates!H67 -> 32 | L71: 64 | M71: 2770 | N71: 5100
B72: =Rates!C68 -> Congo - Republic of the- | C72: =Rates!D68 -> Partner Countries | D72: =Rates!E68 -> 47 | E72: =Rates!F68 -> 33 | F72: =Rates!G68 -> 22 | G72: =Rates!H68 -> 17 | L72: 65 | M72: 2810 | N72: 5150
B73: =Rates!C69 -> Cook Islands | C73: =Rates!D69 -> Partner Countries | D73: =Rates!E69 -> 108 | E73: =Rates!F69 -> 80 | F73: =Rates!G69 -> 57 | G73: =Rates!H69 -> 45 | L73: 66 | M73: 2850 | N73: 5200
B74: =Rates!C70 -> Costa Rica | C74: =Rates!D70 -> Partner Countries | D74: =Rates!E70 -> 77 | E74: =Rates!F70 -> 57 | F74: =Rates!G70 -> 40 | G74: =Rates!H70 -> 32 | L74: 67 | M74: 2890 | N74: 5250
B75: =Rates!C71 -> Cuba | C75: =Rates!D71 -> Partner Countries | D75: =Rates!E71 -> 47 | E75: =Rates!F71 -> 33 | F75: =Rates!G71 -> 22 | G75: =Rates!H71 -> 17 | L75: 68 | M75: 2930 | N75: 5300
B76: =Rates!C72 -> Djibouti | C76: =Rates!D72 -> Partner Countries | D76: =Rates!E72 -> 77 | E76: =Rates!F72 -> 57 | F76: =Rates!G72 -> 40 | G76: =Rates!H72 -> 32 | L76: 69 | M76: 2970 | N76: 5350
B77: =Rates!C73 -> Dominica | C77: =Rates!D73 -> Partner Countries | D77: =Rates!E73 -> 108 | E77: =Rates!F73 -> 80 | F77: =Rates!G73 -> 57 | G77: =Rates!H73 -> 45 | L77: 70 | M77: 3010 | N77: 5400
B78: =Rates!C74 -> Dominican Republic | C78: =Rates!D74 -> Partner Countries | D78: =Rates!E74 -> 77 | E78: =Rates!F74 -> 57 | F78: =Rates!G74 -> 40 | G78: =Rates!H74 -> 32 | L78: 71 | M78: 3050 | N78: 5450
B79: =Rates!C75 -> DPR Korea | C79: =Rates!D75 -> Partner Countries | D79: =Rates!E75 -> 47 | E79: =Rates!F75 -> 33 | F79: =Rates!G75 -> 22 | G79: =Rates!H75 -> 17 | L79: 72 | M79: 3090 | N79: 5500
B80: =Rates!C76 -> Ecuador | C80: =Rates!D76 -> Partner Countries | D80: =Rates!E76 -> 77 | E80: =Rates!F76 -> 57 | F80: =Rates!G76 -> 40 | G80: =Rates!H76 -> 32 | L80: 73 | M80: 3130 | N80: 5550
B81: =Rates!C77 -> Egypt | C81: =Rates!D77 -> Partner Countries | D81: =Rates!E77 -> 47 | E81: =Rates!F77 -> 33 | F81: =Rates!G77 -> 22 | G81: =Rates!H77 -> 17 | L81: 74 | M81: 3170 | N81: 5600
B82: =Rates!C78 -> El Salvador | C82: =Rates!D78 -> Partner Countries | D82: =Rates!E78 -> 77 | E82: =Rates!F78 -> 57 | F82: =Rates!G78 -> 40 | G82: =Rates!H78 -> 32 | L82: 75 | M82: 3210 | N82: 5650
B83: =Rates!C79 -> Equatorial Guinea | C83: =Rates!D79 -> Partner Countries | D83: =Rates!E79 -> 47 | E83: =Rates!F79 -> 33 | F83: =Rates!G79 -> 22 | G83: =Rates!H79 -> 17 | L83: 76 | M83: 3250 | N83: 5700
B84: =Rates!C80 -> Eritrea | C84: =Rates!D80 -> Partner Countries | D84: =Rates!E80 -> 47 | E84: =Rates!F80 -> 33 | F84: =Rates!G80 -> 22 | G84: =Rates!H80 -> 17 | L84: 77 | M84: 3290 | N84: 5750
B85: =Rates!C81 -> Ethiopia | C85: =Rates!D81 -> Partner Countries | D85: =Rates!E81 -> 47 | E85: =Rates!F81 -> 33 | F85: =Rates!G81 -> 22 | G85: =Rates!H81 -> 17 | L85: 78 | M85: 3330 | N85: 5800
B86: =Rates!C82 -> Fiji | C86: =Rates!D82 -> Partner Countries | D86: =Rates!E82 -> 47 | E86: =Rates!F82 -> 33 | F86: =Rates!G82 -> 22 | G86: =Rates!H82 -> 17 | L86: 79 | M86: 3370 | N86: 5850
B87: =Rates!C83 -> Gabon | C87: =Rates!D83 -> Partner Countries | D87: =Rates!E83 -> 108 | E87: =Rates!F83 -> 80 | F87: =Rates!G83 -> 57 | G87: =Rates!H83 -> 45 | L87: 80 | M87: =((L87-$L$21)*40)+770 -> 3410 | N87: 5900
B88: =Rates!C84 -> Gambia | C88: =Rates!D84 -> Partner Countries | D88: =Rates!E84 -> 47 | E88: =Rates!F84 -> 33 | F88: =Rates!G84 -> 22 | G88: =Rates!H84 -> 17 | L88: 81 | M88: 3450 | N88: 5950
B89: =Rates!C85 -> Georgia | C89: =Rates!D85 -> Partner Countries | D89: =Rates!E85 -> 77 | E89: =Rates!F85 -> 57 | F89: =Rates!G85 -> 40 | G89: =Rates!H85 -> 32 | L89: 82 | M89: 3490 | N89: 6000
B90: =Rates!C86 -> Ghana | C90: =Rates!D86 -> Partner Countries | D90: =Rates!E86 -> 47 | E90: =Rates!F86 -> 33 | F90: =Rates!G86 -> 22 | G90: =Rates!H86 -> 17 | L90: 83 | M90: 3530 | N90: 6050
B91: =Rates!C87 -> Grenada | C91: =Rates!D87 -> Partner Countries | D91: =Rates!E87 -> 108 | E91: =Rates!F87 -> 80 | F91: =Rates!G87 -> 57 | G91: =Rates!H87 -> 45 | L91: 84 | M91: 3570 | N91: 6100
B92: =Rates!C88 -> Guatemala | C92: =Rates!D88 -> Partner Countries | D92: =Rates!E88 -> 77 | E92: =Rates!F88 -> 57 | F92: =Rates!G88 -> 40 | G92: =Rates!H88 -> 32 | L92: 85 | M92: 3610 | N92: 6150
B93: =Rates!C89 -> Guinea | C93: =Rates!D89 -> Partner Countries | D93: =Rates!E89 -> 47 | E93: =Rates!F89 -> 33 | F93: =Rates!G89 -> 22 | G93: =Rates!H89 -> 17 | L93: 86 | M93: 3650 | N93: 6200
B94: =Rates!C90 -> Guinea-Bissau | C94: =Rates!D90 -> Partner Countries | D94: =Rates!E90 -> 77 | E94: =Rates!F90 -> 57 | F94: =Rates!G90 -> 40 | G94: =Rates!H90 -> 32 | L94: 87 | M94: 3690 | N94: 6250
B95: =Rates!C91 -> Guyana | C95: =Rates!D91 -> Partner Countries | D95: =Rates!E91 -> 47 | E95: =Rates!F91 -> 33 | F95: =Rates!G91 -> 22 | G95: =Rates!H91 -> 17 | L95: 88 | M95: 3730 | N95: 6300
B96: =Rates!C92 -> Haiti | C96: =Rates!D92 -> Partner Countries | D96: =Rates!E92 -> 77 | E96: =Rates!F92 -> 57 | F96: =Rates!G92 -> 40 | G96: =Rates!H92 -> 32 | L96: 89 | M96: 3770 | N96: 6350
B97: =Rates!C93 -> Honduras | C97: =Rates!D93 -> Partner Countries | D97: =Rates!E93 -> 47 | E97: =Rates!F93 -> 33 | F97: =Rates!G93 -> 22 | G97: =Rates!H93 -> 17 | L97: 90 | M97: 3810 | N97: 6400
B98: =Rates!C94 -> India | C98: =Rates!D94 -> Partner Countries | D98: =Rates!E94 -> 47 | E98: =Rates!F94 -> 33 | F98: =Rates!G94 -> 22 | G98: =Rates!H94 -> 17
B99: =Rates!C95 -> Indonesia | C99: =Rates!D95 -> Partner Countries | D99: =Rates!E95 -> 47 | E99: =Rates!F95 -> 33 | F99: =Rates!G95 -> 22 | G99: =Rates!H95 -> 17
B100: =Rates!C96 -> Iran | C100: =Rates!D96 -> Partner Countries | D100: =Rates!E96 -> 77 | E100: =Rates!F96 -> 57 | F100: =Rates!G96 -> 40 | G100: =Rates!H96 -> 32
B101: =Rates!C97 -> Iraq | C101: =Rates!D97 -> Partner Countries | D101: =Rates!E97 -> 77 | E101: =Rates!F97 -> 57 | F101: =Rates!G97 -> 40 | G101: =Rates!H97 -> 32
B102: =Rates!C98 -> Israel | C102: =Rates!D98 -> Partner Countries | D102: =Rates!E98 -> 166 | E102: =Rates!F98 -> 132 | F102: =Rates!G98 -> 102 | G102: =Rates!H98 -> 92
B103: =Rates!C99 -> Ivory Coast | C103: =Rates!D99 -> Partner Countries | D103: =Rates!E99 -> 108 | E103: =Rates!F99 -> 80 | F103: =Rates!G99 -> 57 | G103: =Rates!H99 -> 45
B104: =Rates!C100 -> Jamaica | C104: =Rates!D100 -> Partner Countries | D104: =Rates!E100 -> 77 | E104: =Rates!F100 -> 57 | F104: =Rates!G100 -> 40 | G104: =Rates!H100 -> 32
B105: =Rates!C101 -> Jordan | C105: =Rates!D101 -> Partner Countries | D105: =Rates!E101 -> 77 | E105: =Rates!F101 -> 57 | F105: =Rates!G101 -> 40 | G105: =Rates!H101 -> 32
B106: =Rates!C102 -> Kazakstan | C106: =Rates!D102 -> Partner Countries | D106: =Rates!E102 -> 77 | E106: =Rates!F102 -> 57 | F106: =Rates!G102 -> 40 | G106: =Rates!H102 -> 32
B107: =Rates!C103 -> Kenya | C107: =Rates!D103 -> Partner Countries | D107: =Rates!E103 -> 77 | E107: =Rates!F103 -> 57 | F107: =Rates!G103 -> 40 | G107: =Rates!H103 -> 32
B108: =Rates!C104 -> Kiribati | C108: =Rates!D104 -> Partner Countries | D108: =Rates!E104 -> 47 | E108: =Rates!F104 -> 33 | F108: =Rates!G104 -> 22 | G108: =Rates!H104 -> 17
B109: =Rates!C105 -> Kosovo | C109: =Rates!D105 -> Partner Countries | D109: =Rates!E105 -> 108 | E109: =Rates!F105 -> 80 | F109: =Rates!G105 -> 57 | G109: =Rates!H105 -> 45
B110: =Rates!C106 -> Kyrgyzstan | C110: =Rates!D106 -> Partner Countries | D110: =Rates!E106 -> 47 | E110: =Rates!F106 -> 33 | F110: =Rates!G106 -> 22 | G110: =Rates!H106 -> 17
B111: =Rates!C107 -> Laos | C111: =Rates!D107 -> Partner Countries | D111: =Rates!E107 -> 47 | E111: =Rates!F107 -> 33 | F111: =Rates!G107 -> 22 | G111: =Rates!H107 -> 17
B112: =Rates!C108 -> Lebanon | C112: =Rates!D108 -> Partner Countries | D112: =Rates!E108 -> 108 | E112: =Rates!F108 -> 80 | F112: =Rates!G108 -> 57 | G112: =Rates!H108 -> 45
B113: =Rates!C109 -> Lesotho | C113: =Rates!D109 -> Partner Countries | D113: =Rates!E109 -> 47 | E113: =Rates!F109 -> 33 | F113: =Rates!G109 -> 22 | G113: =Rates!H109 -> 17
B114: =Rates!C110 -> Liberia | C114: =Rates!D110 -> Partner Countries | D114: =Rates!E110 -> 47 | E114: =Rates!F110 -> 33 | F114: =Rates!G110 -> 22 | G114: =Rates!H110 -> 17
B115: =Rates!C111 -> Libya | C115: =Rates!D111 -> Partner Countries | D115: =Rates!E111 -> 108 | E115: =Rates!F111 -> 80 | F115: =Rates!G111 -> 57 | G115: =Rates!H111 -> 45
B116: =Rates!C112 -> Madagascar | C116: =Rates!D112 -> Partner Countries | D116: =Rates!E112 -> 47 | E116: =Rates!F112 -> 33 | F116: =Rates!G112 -> 22 | G116: =Rates!H112 -> 17
B117: =Rates!C113 -> Malawi | C117: =Rates!D113 -> Partner Countries | D117: =Rates!E113 -> 47 | E117: =Rates!F113 -> 33 | F117: =Rates!G113 -> 22 | G117: =Rates!H113 -> 17
B118: =Rates!C114 -> Malaysia | C118: =Rates!D114 -> Partner Countries | D118: =Rates!E114 -> 47 | E118: =Rates!F114 -> 33 | F118: =Rates!G114 -> 22 | G118: =Rates!H114 -> 17
B119: =Rates!C115 -> Maldives | C119: =Rates!D115 -> Partner Countries | D119: =Rates!E115 -> 47 | E119: =Rates!F115 -> 33 | F119: =Rates!G115 -> 22 | G119: =Rates!H115 -> 17
B120: =Rates!C116 -> Mali | C120: =Rates!D116 -> Partner Countries | D120: =Rates!E116 -> 47 | E120: =Rates!F116 -> 33 | F120: =Rates!G116 -> 22 | G120: =Rates!H116 -> 17
B121: =Rates!C117 -> Marshall Islands | C121: =Rates!D117 -> Partner Countries | D121: =Rates!E117 -> 47 | E121: =Rates!F117 -> 33 | F121: =Rates!G117 -> 22 | G121: =Rates!H117 -> 17
B122: =Rates!C118 -> Mauritania | C122: =Rates!D118 -> Partner Countries | D122: =Rates!E118 -> 47 | E122: =Rates!F118 -> 33 | F122: =Rates!G118 -> 22 | G122: =Rates!H118 -> 17
B123: =Rates!C119 -> Mauritius | C123: =Rates!D119 -> Partner Countries | D123: =Rates!E119 -> 47 | E123: =Rates!F119 -> 33 | F123: =Rates!G119 -> 22 | G123: =Rates!H119 -> 17
B124: =Rates!C120 -> Mexico | C124: =Rates!D120 -> Partner Countries | D124: =Rates!E120 -> 108 | E124: =Rates!F120 -> 80 | F124: =Rates!G120 -> 57 | G124: =Rates!H120 -> 45
B125: =Rates!C121 -> Micronesia - Federated States of- | C125: =Rates!D121 -> Partner Countries | D125: =Rates!E121 -> 77 | E125: =Rates!F121 -> 57 | F125: =Rates!G121 -> 40 | G125: =Rates!H121 -> 32
B126: =Rates!C122 -> Moldova | C126: =Rates!D122 -> Partner Countries | D126: =Rates!E122 -> 47 | E126: =Rates!F122 -> 33 | F126: =Rates!G122 -> 22 | G126: =Rates!H122 -> 17
B127: =Rates!C123 -> Mongolia | C127: =Rates!D123 -> Partner Countries | D127: =Rates!E123 -> 47 | E127: =Rates!F123 -> 33 | F127: =Rates!G123 -> 22 | G127: =Rates!H123 -> 17
B128: =Rates!C124 -> Montenegro | C128: =Rates!D124 -> Partner Countries | D128: =Rates!E124 -> 108 | E128: =Rates!F124 -> 80 | F128: =Rates!G124 -> 57 | G128: =Rates!H124 -> 45
B129: =Rates!C125 -> Morocco | C129: =Rates!D125 -> Partner Countries | D129: =Rates!E125 -> 77 | E129: =Rates!F125 -> 57 | F129: =Rates!G125 -> 40 | G129: =Rates!H125 -> 32
B130: =Rates!C126 -> Mozambique | C130: =Rates!D126 -> Partner Countries | D130: =Rates!E126 -> 77 | E130: =Rates!F126 -> 57 | F130: =Rates!G126 -> 40 | G130: =Rates!H126 -> 32
B131: =Rates!C127 -> Myanmar | C131: =Rates!D127 -> Partner Countries | D131: =Rates!E127 -> 47 | E131: =Rates!F127 -> 33 | F131: =Rates!G127 -> 22 | G131: =Rates!H127 -> 17
B132: =Rates!C128 -> Namibia | C132: =Rates!D128 -> Partner Countries | D132: =Rates!E128 -> 77 | E132: =Rates!F128 -> 57 | F132: =Rates!G128 -> 40 | G132: =Rates!H128 -> 32
B133: =Rates!C129 -> Nauru | C133: =Rates!D129 -> Partner Countries | D133: =Rates!E129 -> 47 | E133: =Rates!F129 -> 33 | F133: =Rates!G129 -> 22 | G133: =Rates!H129 -> 17
B134: =Rates!C130 -> Nepal | C134: =Rates!D130 -> Partner Countries | D134: =Rates!E130 -> 47 | E134: =Rates!F130 -> 33 | F134: =Rates!G130 -> 22 | G134: =Rates!H130 -> 17
B135: =Rates!C131 -> Nicaragua | C135: =Rates!D131 -> Partner Countries | D135: =Rates!E131 -> 47 | E135: =Rates!F131 -> 33 | F135: =Rates!G131 -> 22 | G135: =Rates!H131 -> 17
B136: =Rates!C132 -> Niger | C136: =Rates!D132 -> Partner Countries | D136: =Rates!E132 -> 47 | E136: =Rates!F132 -> 33 | F136: =Rates!G132 -> 22 | G136: =Rates!H132 -> 17
B137: =Rates!C133 -> Nigeria | C137: =Rates!D133 -> Partner Countries | D137: =Rates!E133 -> 108 | E137: =Rates!F133 -> 80 | F137: =Rates!G133 -> 57 | G137: =Rates!H133 -> 45
B138: =Rates!C134 -> Niue | C138: =Rates!D134 -> Partner Countries | D138: =Rates!E134 -> 47 | E138: =Rates!F134 -> 33 | F138: =Rates!G134 -> 22 | G138: =Rates!H134 -> 17
B139: =Rates!C135 -> Pakistan | C139: =Rates!D135 -> Partner Countries | D139: =Rates!E135 -> 47 | E139: =Rates!F135 -> 33 | F139: =Rates!G135 -> 22 | G139: =Rates!H135 -> 17
B140: =Rates!C136 -> Palau | C140: =Rates!D136 -> Partner Countries | D140: =Rates!E136 -> 47 | E140: =Rates!F136 -> 33 | F140: =Rates!G136 -> 22 | G140: =Rates!H136 -> 17
B141: =Rates!C137 -> Palestine | C141: =Rates!D137 -> Partner Countries | D141: =Rates!E137 -> 77 | E141: =Rates!F137 -> 57 | F141: =Rates!G137 -> 40 | G141: =Rates!H137 -> 32
B142: =Rates!C138 -> Panama | C142: =Rates!D138 -> Partner Countries | D142: =Rates!E138 -> 77 | E142: =Rates!F138 -> 57 | F142: =Rates!G138 -> 40 | G142: =Rates!H138 -> 32
B143: =Rates!C139 -> Papua New Guinea | C143: =Rates!D139 -> Partner Countries | D143: =Rates!E139 -> 77 | E143: =Rates!F139 -> 57 | F143: =Rates!G139 -> 40 | G143: =Rates!H139 -> 32
B144: =Rates!C140 -> Paraguay | C144: =Rates!D140 -> Partner Countries | D144: =Rates!E140 -> 77 | E144: =Rates!F140 -> 57 | F144: =Rates!G140 -> 40 | G144: =Rates!H140 -> 32
B145: =Rates!C141 -> Peru | C145: =Rates!D141 -> Partner Countries | D145: =Rates!E141 -> 108 | E145: =Rates!F141 -> 80 | F145: =Rates!G141 -> 57 | G145: =Rates!H141 -> 45
B146: =Rates!C142 -> Philippines | C146: =Rates!D142 -> Partner Countries | D146: =Rates!E142 -> 47 | E146: =Rates!F142 -> 33 | F146: =Rates!G142 -> 22 | G146: =Rates!H142 -> 17
B147: =Rates!C143 -> Russia | C147: =Rates!D143 -> Partner Countries | D147: =Rates!E143 -> 77 | E147: =Rates!F143 -> 57 | F147: =Rates!G143 -> 40 | G147: =Rates!H143 -> 32
B148: =Rates!C144 -> Rwanda | C148: =Rates!D144 -> Partner Countries | D148: =Rates!E144 -> 47 | E148: =Rates!F144 -> 33 | F148: =Rates!G144 -> 22 | G148: =Rates!H144 -> 17
B149: =Rates!C145 -> Saint Kitts and Nevis | C149: =Rates!D145 -> Partner Countries | D149: =Rates!E145 -> 108 | E149: =Rates!F145 -> 80 | F149: =Rates!G145 -> 57 | G149: =Rates!H145 -> 45
B150: =Rates!C146 -> Saint Lucia | C150: =Rates!D146 -> Partner Countries | D150: =Rates!E146 -> 108 | E150: =Rates!F146 -> 80 | F150: =Rates!G146 -> 57 | G150: =Rates!H146 -> 45
B151: =Rates!C147 -> Saint Vincent and the Grenadines | C151: =Rates!D147 -> Partner Countries | D151: =Rates!E147 -> 108 | E151: =Rates!F147 -> 80 | F151: =Rates!G147 -> 57 | G151: =Rates!H147 -> 45
B152: =Rates!C148 -> Samoa | C152: =Rates!D148 -> Partner Countries | D152: =Rates!E148 -> 47 | E152: =Rates!F148 -> 33 | F152: =Rates!G148 -> 22 | G152: =Rates!H148 -> 17
B153: =Rates!C149 -> Sao Tome and Principe | C153: =Rates!D149 -> Partner Countries | D153: =Rates!E149 -> 108 | E153: =Rates!F149 -> 80 | F153: =Rates!G149 -> 57 | G153: =Rates!H149 -> 45
B154: =Rates!C150 -> Senegal | C154: =Rates!D150 -> Partner Countries | D154: =Rates!E150 -> 77 | E154: =Rates!F150 -> 57 | F154: =Rates!G150 -> 40 | G154: =Rates!H150 -> 32
B155: =Rates!C151 -> Serbia | C155: =Rates!D151 -> Partner Countries | D155: =Rates!E151 -> 108 | E155: =Rates!F151 -> 80 | F155: =Rates!G151 -> 57 | G155: =Rates!H151 -> 45
B156: =Rates!C152 -> Seychelles | C156: =Rates!D152 -> Partner Countries | D156: =Rates!E152 -> 108 | E156: =Rates!F152 -> 80 | F156: =Rates!G152 -> 57 | G156: =Rates!H152 -> 45
B157: =Rates!C153 -> Sierra Leone | C157: =Rates!D153 -> Partner Countries | D157: =Rates!E153 -> 47 | E157: =Rates!F153 -> 33 | F157: =Rates!G153 -> 22 | G157: =Rates!H153 -> 17
B158: =Rates!C154 -> Solomon Islands | C158: =Rates!D154 -> Partner Countries | D158: =Rates!E154 -> 47 | E158: =Rates!F154 -> 33 | F158: =Rates!G154 -> 22 | G158: =Rates!H154 -> 17
B159: =Rates!C155 -> Somalia | C159: =Rates!D155 -> Partner Countries | D159: =Rates!E155 -> 47 | E159: =Rates!F155 -> 33 | F159: =Rates!G155 -> 22 | G159: =Rates!H155 -> 17
B160: =Rates!C156 -> South Africa | C160: =Rates!D156 -> Partner Countries | D160: =Rates!E156 -> 77 | E160: =Rates!F156 -> 57 | F160: =Rates!G156 -> 40 | G160: =Rates!H156 -> 32
B161: =Rates!C157 -> South Sudan | C161: =Rates!D157 -> Partner Countries | D161: =Rates!E157 -> 47 | E161: =Rates!F157 -> 33 | F161: =Rates!G157 -> 22 | G161: =Rates!H157 -> 17
B162: =Rates!C158 -> Sri Lanka | C162: =Rates!D158 -> Partner Countries | D162: =Rates!E158 -> 47 | E162: =Rates!F158 -> 33 | F162: =Rates!G158 -> 22 | G162: =Rates!H158 -> 17
B163: =Rates!C159 -> Sudan | C163: =Rates!D159 -> Partner Countries | D163: =Rates!E159 -> 47 | E163: =Rates!F159 -> 33 | F163: =Rates!G159 -> 22 | G163: =Rates!H159 -> 17
B164: =Rates!C160 -> Suriname | C164: =Rates!D160 -> Partner Countries | D164: =Rates!E160 -> 77 | E164: =Rates!F160 -> 57 | F164: =Rates!G160 -> 40 | G164: =Rates!H160 -> 32
B165: =Rates!C161 -> Swaziland | C165: =Rates!D161 -> Partner Countries | D165: =Rates!E161 -> 77 | E165: =Rates!F161 -> 57 | F165: =Rates!G161 -> 40 | G165: =Rates!H161 -> 32
B166: =Rates!C162 -> Syria | C166: =Rates!D162 -> Partner Countries | D166: =Rates!E162 -> 47 | E166: =Rates!F162 -> 33 | F166: =Rates!G162 -> 22 | G166: =Rates!H162 -> 17
B167: =Rates!C163 -> Tajikistan | C167: =Rates!D163 -> Partner Countries | D167: =Rates!E163 -> 47 | E167: =Rates!F163 -> 33 | F167: =Rates!G163 -> 22 | G167: =Rates!H163 -> 17
B168: =Rates!C164 -> Tanzania | C168: =Rates!D164 -> Partner Countries | D168: =Rates!E164 -> 47 | E168: =Rates!F164 -> 33 | F168: =Rates!G164 -> 22 | G168: =Rates!H164 -> 17
B169: =Rates!C165 -> Thailand | C169: =Rates!D165 -> Partner Countries | D169: =Rates!E165 -> 108 | E169: =Rates!F165 -> 80 | F169: =Rates!G165 -> 57 | G169: =Rates!H165 -> 45
B170: =Rates!C166 -> Timor Leste - Republic of- | C170: =Rates!D166 -> Partner Countries | D170: =Rates!E166 -> 47 | E170: =Rates!F166 -> 33 | F170: =Rates!G166 -> 22 | G170: =Rates!H166 -> 17
B171: =Rates!C167 -> Togo | C171: =Rates!D167 -> Partner Countries | D171: =Rates!E167 -> 47 | E171: =Rates!F167 -> 33 | F171: =Rates!G167 -> 22 | G171: =Rates!H167 -> 17
B172: =Rates!C168 -> Tonga | C172: =Rates!D168 -> Partner Countries | D172: =Rates!E168 -> 47 | E172: =Rates!F168 -> 33 | F172: =Rates!G168 -> 22 | G172: =Rates!H168 -> 17
B173: =Rates!C169 -> Trinidad and Tobago | C173: =Rates!D169 -> Partner Countries | D173: =Rates!E169 -> 77 | E173: =Rates!F169 -> 57 | F173: =Rates!G169 -> 40 | G173: =Rates!H169 -> 32
B174: =Rates!C170 -> Tunisia | C174: =Rates!D170 -> Partner Countries | D174: =Rates!E170 -> 47 | E174: =Rates!F170 -> 33 | F174: =Rates!G170 -> 22 | G174: =Rates!H170 -> 17
B175: =Rates!C171 -> Turkmenistan | C175: =Rates!D171 -> Partner Countries | D175: =Rates!E171 -> 47 | E175: =Rates!F171 -> 33 | F175: =Rates!G171 -> 22 | G175: =Rates!H171 -> 17
B176: =Rates!C172 -> Tuvalu | C176: =Rates!D172 -> Partner Countries | D176: =Rates!E172 -> 47 | E176: =Rates!F172 -> 33 | F176: =Rates!G172 -> 22 | G176: =Rates!H172 -> 17
B177: =Rates!C173 -> Uganda | C177: =Rates!D173 -> Partner Countries | D177: =Rates!E173 -> 47 | E177: =Rates!F173 -> 33 | F177: =Rates!G173 -> 22 | G177: =Rates!H173 -> 17
B178: =Rates!C174 -> Ukraine | C178: =Rates!D174 -> Partner Countries | D178: =Rates!E174 -> 108 | E178: =Rates!F174 -> 80 | F178: =Rates!G174 -> 57 | G178: =Rates!H174 -> 45
B179: =Rates!C175 -> Uruguay | C179: =Rates!D175 -> Partner Countries | D179: =Rates!E175 -> 108 | E179: =Rates!F175 -> 80 | F179: =Rates!G175 -> 57 | G179: =Rates!H175 -> 45
B180: =Rates!C176 -> Uzbekistan | C180: =Rates!D176 -> Partner Countries | D180: =Rates!E176 -> 47 | E180: =Rates!F176 -> 33 | F180: =Rates!G176 -> 22 | G180: =Rates!H176 -> 17
B181: =Rates!C177 -> Vanuatu | C181: =Rates!D177 -> Partner Countries | D181: =Rates!E177 -> 77 | E181: =Rates!F177 -> 57 | F181: =Rates!G177 -> 40 | G181: =Rates!H177 -> 32
B182: =Rates!C178 -> Venezuela | C182: =Rates!D178 -> Partner Countries | D182: =Rates!E178 -> 108 | E182: =Rates!F178 -> 80 | F182: =Rates!G178 -> 57 | G182: =Rates!H178 -> 45
B183: =Rates!C179 -> Vietnam | C183: =Rates!D179 -> Partner Countries | D183: =Rates!E179 -> 47 | E183: =Rates!F179 -> 33 | F183: =Rates!G179 -> 22 | G183: =Rates!H179 -> 17
B184: =Rates!C180 -> Yemen | C184: =Rates!D180 -> Partner Countries | D184: =Rates!E180 -> 47 | E184: =Rates!F180 -> 33 | F184: =Rates!G180 -> 22 | G184: =Rates!H180 -> 17
B185: =Rates!C181 -> Zambia | C185: =Rates!D181 -> Partner Countries | D185: =Rates!E181 -> 108 | E185: =Rates!F181 -> 80 | F185: =Rates!G181 -> 57 | G185: =Rates!H181 -> 45
B186: =Rates!C182 -> Zimbabwe | C186: =Rates!D182 -> Partner Countries | D186: =Rates!E182 -> 108 | E186: =Rates!F182 -> 80 | F186: =Rates!G182 -> 57 | G186: =Rates!H182 -> 45
